Workbook

Sheet Information
A1: ERA Western Power AA5 Revenue Model, September 2022 [Draft Decision]
B9: Worksheet | C9: Description
B10: INPUTS
B11: WACC | C11: Contains the relevant parameters related to computing the WACC
B12: D_Input | C12: Contains general inputs of assumptions for Distribution, ICB, capital expenditures, operating expenditures, approved depreciations etc.
B13: T_ Input | C13: Contains general inputs of assumptions for Transmission, ICB, capital expenditures, operating expenditures, approved depreciations etc.
B14: Adjustment_Input | C14: Contains general inputs of assumptions for calculating incentive and revenue adjustment, such as, SSAM, IAM, GSM and other adjustments.
B15: Incentive_Rate_Inputs | C15: Metrics related to the calculation of service standard incentive rates
B16: Incentive_Rates | C16: Incentive rates related to network performance
B17: CALCULATIONS
B18: D_Asset | C18: Regulatory asset base and depreciation calculations for Distribution
B19: D_Tax_Asset | C19: Tax depreciation calculations for Distribution
B20: T_Asset | C20: Regulatory asset base and depreciation calculations for Transmission
B21: T_Tax_Asset | C21: Tax depreciation calculation for Transmission
B22: D_Adjustment | C22: Revenue adjustment calculation for Distribution
B23: T_Adjustment | C23: Revenue adjustment calculation for Transmission
B24: GSM | C24: Gain Sharing Mechanism calculation for Distribution and Transmission
B25: Tax_Analysis | C25: Tax calculation for Distribution and Transmission
B26: D_CoS | C26: Cost of Service Building Block calculation for Distribution
B27: T_CoS | C27: Cost of Service Building Block calculation for Transmission

Sheet WACC
B1: =Information!$A$1 -> ERA Western Power AA5 Revenue Model, September 2022 [Draft Decision]
B2: Weighted Average Cost of Capital (WACC)
B3: =COLUMN() -> 2 | C3: =COLUMN() -> 3 | D3: =COLUMN() -> 4 | E3: =COLUMN() -> 5 | F3: =COLUMN() -> 6 | G3: =COLUMN() -> 7 | H3: =COLUMN() -> 8 | I3: =COLUMN() -> 9 | J3: =COLUMN() -> 10 | K3: =COLUMN() -> 11 | L3: =COLUMN() -> 12 | M3: =COLUMN() -> 13 | N3: =COLUMN() -> 14 | O3: =COLUMN() -> 15 | P3: =COLUMN() -> 16 | Q3: =COLUMN() -> 17 | R3: =COLUMN() -> 18
A4: =ROW() -> 4 | E4: AA1 | F4: AA2 | G4: AA3 | I4: AA4 | N4: AA5 Draft Decision
A5: =ROW() -> 5 | C5: Determination of the Weighted Average Cost of Capital | E5: Approved | F5: Approved | G5: Approved | I5: 17/18 | J5: 18/19 | K5: 19/20 | L5: 20/21 | M5: 21/22 | N5: 22/23 | O5: =RIGHT(N5,2) & "/" & RIGHT(N5,2)+1 -> 23/24 | P5: =RIGHT(O5,2) & "/" & RIGHT(O5,2)+1 -> 24/25 | Q5: =RIGHT(P5,2) & "/" & RIGHT(P5,2)+1 -> 25/26 | R5: =RIGHT(Q5,2) & "/" & RIGHT(Q5,2)+1 -> 26/27
A6: =ROW() -> 6 | C6: Date of Risk Free Rates | G6: 2012-06-15 | I6: 2018-03-29 | N6: 2022-06-30
A7: =ROW() -> 7 | C7: Nominal Risk Free Rate (Rfn) | G7: 0.0252 | I7: 0.0237 | J7: =$I7 -> 0.0237 | K7: =$I7 -> 0.0237 | L7: =$I7 -> 0.0237 | M7: =$I7 -> 0.0237 | N7: 0.0382 | O7: =$N7 -> 0.0382 | P7: =$N7 -> 0.0382 | Q7: =$N7 -> 0.0382 | R7: =$N7 -> 0.0382
A8: =ROW() -> 8 | C8: Real Risk Free Rate (Rfr) | G8: =(1+G7)/(1+G9)-1 -> 0.004113614104 | I8: =(1+I7)/(1+I9)-1 -> 0.005204241948 | J8: 0.005204241948 | K8: 0.005204241948 | L8: 0.005204241948 | M8: 0.005204241948 | N8: 0.008352758353 | O8: 0.008352758353 | P8: 0.008352758353 | Q8: 0.008352758353 | R8: 0.008352758353
A9: =ROW() -> 9 | C9: Inflation Rate (I) | G9: 0.021 | I9: 0.0184 | J9: =$I9 -> 0.0184 | K9: =$I9 -> 0.0184 | L9: 0.0184 | M9: 0.0184 | N9: 0.0296 | O9: =N9 -> 0.0296 | P9: =O9 -> 0.0296 | Q9: =P9 -> 0.0296 | R9: =Q9 -> 0.0296
A10: =ROW() -> 10 | C10: Debt Proportion (D) | G10: 0.6 | I10: 0.55 | J10: =$I10 -> 0.55 | K10: 0.55 | L10: 0.55 | M10: 0.55 | N10: 0.55 | O10: =$N10 -> 0.55 | P10: =$N10 -> 0.55 | Q10: =$N10 -> 0.55 | R10: =$N10 -> 0.55
A11: =ROW() -> 11 | C11: Equity Proportion (E) | G11: =1-G10 -> 0.4 | I11: =1-I10 -> 0.45 | J11: 0.45 | K11: 0.45 | L11: 0.45 | M11: 0.45 | N11: 0.45 | O11: 0.45 | P11: 0.45 | Q11: 0.45 | R11: 0.45
A12: =ROW() -> 12
A13: =ROW() -> 13 | C13: 5 year IRS (effective yield) | I13: 0.0259 | J13: =$I13 -> 0.0259 | K13: =$I13 -> 0.0259 | L13: =$I13 -> 0.0259 | M13: =$I13 -> 0.0259 | N13: 0.0407 | O13: =$N13 -> 0.0407 | P13: =$N13 -> 0.0407 | Q13: =$N13 -> 0.0407 | R13: =$N13 -> 0.0407
A14: =ROW() -> 14 | C14: Cost of Debt; 5 year Interest Rate Swap Spread | I14: =I13-I7 -> 0.0022 | J14: =J13-J7 -> 0.0022 | K14: =K13-K7 -> 0.0022 | L14: =L13-L7 -> 0.0022 | M14: =M13-M7 -> 0.0022
A15: =ROW() -> 15 | C15: Cost of Debt; Debt Risk Premium (Drp) | G15: 0.02708 | I15: 0.024866 | J15: =IF(J$47=10,J$45,I15) -> 0.024866 | K15: 0.021107 | L15: 0.020249 | M15: 0.019573 | N15: 0.018834 | O15: 0.018834 | P15: 0.018834 | Q15: 0.018834 | R15: 0.018834
A16: =ROW() -> 16 | C16: Cost of Debt; Debt Issuing Cost (Disc) | G16: 0.00125 | I16: 0.001 | J16: =$I16 -> 0.001 | K16: 0.001 | L16: 0.001 | M16: 0.001 | N16: 0.00165 | O16: =$N16 -> 0.00165 | P16: 0.00165 | Q16: 0.00165 | R16: 0.00165
A17: =ROW() -> 17 | C17: Cost of Debt; Hedging Cost | I17: 0.00114 | J17: 0.00114 | K17: 0.00114 | L17: 0.00114 | M17: 0.00114 | N17: 0.00123 | O17: 0.00123 | P17: 0.00123 | Q17: 0.00123 | R17: 0.00123
A18: =ROW() -> 18 | C18: Cost of Debt; Risk Margin (DRm) | G18: =SUM(G15:G16) -> 0.02833 | I18: =SUM(I14:I17) -> 0.029206 | J18: 0.029206 | K18: 0.025447 | L18: 0.024589 | M18: 0.023913 | N18: 0.021714 | O18: 0.021714 | P18: 0.021714 | Q18: 0.021714 | R18: 0.021714
A19: =ROW() -> 19
A20: =ROW() -> 20 | C20: Australian Market Risk Premium (Rp) | G20: 0.06 | I20: 0.06 | J20: 0.06 | K20: 0.06 | L20: 0.06 | M20: 0.06 | N20: 0.062 | O20: =$N20 -> 0.062 | P20: 0.062 | Q20: 0.062 | R20: 0.062
A21: =ROW() -> 21 | C21: Equity Beta (Be) | G21: 0.65 | I21: 0.7 | J21: 0.7 | K21: 0.7 | L21: 0.7 | M21: 0.7 | N21: 0.7 | O21: 0.7 | P21: 0.7 | Q21: 0.7 | R21: 0.7
A22: =ROW() -> 22 | C22: Corporate Tax Rate (T) | G22: 0.3 | I22: 0.3 | J22: 0.3 | K22: 0.3 | L22: 0.3 | M22: 0.3 | N22: 0.3 | O22: 0.3 | P22: 0.3 | Q22: 0.3 | R22: 0.3
A23: =ROW() -> 23 | C23: Franking Credit (g) | G23: 0.25 | I23: 0.5 | J23: 0.5 | K23: 0.5 | L23: 0.5 | M23: 0.5 | N23: 0.5 | O23: 0.5 | P23: 0.5 | Q23: 0.5 | R23: 0.5
A24: =ROW() -> 24 | C24: Imputation Adj (G) | G24: =(1-G22)/(1-G22*(1-G23)) -> 0.9032258065 | I24: =(1-I22)/(1-I22*(1-I23)) -> 0.8235294118 | J24: 0.8235294118 | K24: 0.8235294118 | L24: 0.8235294118 | M24: 0.8235294118 | N24: 0.8235294118 | O24: 0.8235294118 | P24: 0.8235294118 | Q24: 0.8235294118 | R24: 0.8235294118
A25: =ROW() -> 25
A26: =ROW() -> 26 | C26: Debt
A27: =ROW() -> 27 | C27: Nominal Cost of Debt (DPn) | G27: =G7+G18 -> 0.05353 | I27: =SUM(I14:I17)+I7 -> 0.052906 | J27: =SUM(J14:J17)+J7 -> 0.052906 | K27: =SUM(K14:K17)+K7 -> 0.049147 | L27: =SUM(L14:L17)+L7 -> 0.048289 | M27: =SUM(M14:M17)+M7 -> 0.047613 | N27: =SUM(N13:N17) -> 0.062414 | O27: =SUM(O13:O17) -> 0.062414 | P27: =SUM(P13:P17) -> 0.062414 | Q27: =SUM(Q13:Q17) -> 0.062414 | R27: =SUM(R13:R17) -> 0.062414
A28: =ROW() -> 28 | C28: Real Cost of Debt (DPr) | G28: =(1+G27)/(1+G9)-1 -> 0.03186092067 | I28: =(1+I27)/(1+I9)-1 -> 0.03388256088 | J28: 0.03388256088 | K28: 0.03019147683 | L28: 0.02934897879 | M28: 0.02868519246 | N28: 0.03187062937 | O28: 0.03187062937 | P28: 0.03187062937 | Q28: 0.03187062937 | R28: 0.03187062937
A29: =ROW() -> 29
A30: =ROW() -> 30 | C30: Equity
A31: =ROW() -> 31 | C31: Nominal Pre Tax Cost of Equity (EPn) | G31: =(G7+G20*G21)/(1-G22*(1-G23)) -> 0.08283870968 | I31: =(I7+I20*I21)/(1-I22*(1-I23)) -> 0.07729411765 | J31: 0.07729411765 | K31: 0.07729411765 | L31: 0.07729411765 | M31: 0.07729411765 | N31: 0.096 | O31: 0.096 | P31: 0.096 | Q31: 0.096 | R31: 0.096
A32: =ROW() -> 32 | C32: Real Pre Tax Cost of Equity (EPr) | G32: =(1+G31)/(1+G9)-1 -> 0.06056680674 | I32: =(1+I31)/(1+I9)-1 -> 0.05783004482 | J32: 0.05783004482 | K32: 0.05783004482 | L32: 0.05783004482 | M32: 0.05783004482 | N32: 0.06449106449 | O32: 0.06449106449 | P32: 0.06449106449 | Q32: 0.06449106449 | R32: 0.06449106449
A33: =ROW() -> 33 | C33: Nominal After Tax Cost of Equity (EAn) | G33: =G7+G20*G21 -> 0.0642 | I33: =I7+I20*I21 -> 0.0657 | J33: 0.0657 | K33: 0.0657 | L33: 0.0657 | M33: 0.0657 | N33: 0.0816 | O33: 0.0816 | P33: 0.0816 | Q33: 0.0816 | R33: 0.0816
A34: =ROW() -> 34 | C34: Real After Tax Cost of Equity (EAr) | G34: =(1+G33)/(1+G9)-1 -> 0.04231145935 | I34: =(1+I33)/(1+I9)-1 -> 0.04644540456 | J34: 0.04644540456 | K34: 0.04644540456 | L34: 0.04644540456 | M34: 0.04644540456 | N34: 0.05050505051 | O34: 0.05050505051 | P34: 0.05050505051 | Q34: 0.05050505051 | R34: 0.05050505051
A35: =ROW() -> 35
A36: =ROW() -> 36 | C36: WACC: Pre-tax
A37: =ROW() -> 37 | C37: Nominal Pre Tax WACC (WPn) | G37: =G31*G11+G27*G10 -> 0.06525348387 | I37: =I31*I11+I27*I10 -> 0.06388065294 | J37: 0.06388065294 | K37: 0.06181320294 | L37: 0.06134130294 | M37: 0.06096950294 | N37: 0.0775277 | O37: 0.0775277 | P37: 0.0775277 | Q37: 0.0775277 | R37: 0.0775277
A38: =ROW() -> 38 | C38: Real Pre Tax WACC (WPr) | E38: 0.0676 | F38: 0.0798 | G38: =(1+G37)/(1+G9)-1 -> 0.04334327509 | I38: =(1+I37)/(1+I9)-1 -> 0.04465892865 | J38: 0.04465892865 | K38: 0.04262883242 | L38: 0.0421654585 | M38: 0.04180037602 | N38: 0.04654982517 | O38: 0.04654982517 | P38: 0.04654982517 | Q38: 0.04654982517 | R38: 0.04654982517
A39: =ROW() -> 39
A40: =ROW() -> 40 | C40: WACC: Vanilla
A41: =ROW() -> 41 | C41: Nominal Post Tax WACC (WAn) | G41: =G10*G27+G33*G11 -> 0.057798 | I41: =I10*I27+I33*I11 -> 0.0586633 | J41: 0.0586633 | K41: 0.05659585 | L41: 0.05612395 | M41: 0.05575215 | N41: 0.0710477 | O41: 0.0710477 | P41: 0.0710477 | Q41: 0.0710477 | R41: 0.0710477
A42: =ROW() -> 42 | C42: Real Post Tax WACC | G42: =(1+G41)/(1+G9)-1 -> 0.03604113614 | I42: =(1+I41)/(1+I9)-1 -> 0.03953584053 | J42: 0.03953584053 | K42: 0.0375057443 | L42: 0.03704237038 | M42: 0.0366772879 | N42: 0.04025611888 | O42: 0.04025611888 | P42: 0.04025611888 | Q42: 0.04025611888 | R42: 0.04025611888
A43: =ROW() -> 43
A44: =ROW() -> 44
A45: =ROW() -> 45 | G45: Trailing Averaged DRP | I45: =J45 -> 0.024866 | J45: =IF(J47=10,AVERAGE(J51:J60),"") -> 0.024866 | K45: =IF(K47=10,AVERAGE(K52:K61),"") -> 0.021107 | L45: =IF(L47=10,AVERAGE(L53:L62),"") -> 0.020249 | M45: =IF(M47=10,AVERAGE(M54:M63),"") -> 0.019573 | N45: =IF(N47=10,AVERAGE(N55:N64),"") -> 0.018834 | O45: =IF(O47=10,AVERAGE(O56:O65),"") ->  | P45: =IF(P47=10,AVERAGE(P57:P66),"") ->  | Q45: =IF(Q47=10,AVERAGE(Q58:Q67),"") ->  | R45: =IF(R47=10,AVERAGE(R59:R68),"") -> 
A46: =ROW() -> 46
A47: =ROW() -> 47 | G47: Count flag | J47: =COUNT(J50:J68) -> 10 | K47: =COUNT(K50:K68) -> 10 | L47: 10 | M47: 10 | N47: 10 | O47: 9 | P47: 8 | Q47: 7 | R47: 6
A48: =ROW() -> 48 | G48: 10 year trailing average chart
A49: =ROW() -> 49 | G49: Year | J49: 18/19 | K49: 19/20 | L49: 20/21 | M49: 21/22 | N49: 22/23 | O49: 23/24 | P49: 24/25 | Q49: 25/26 | R49: 26/27
A50: =ROW() -> 50 | G50: 2008/09
A51: =ROW() -> 51 | G51: 2009/10 | J51: 0.05483
A52: =ROW() -> 52 | G52: 2010/11 | J52: 0.02355 | K52: =J52 -> 0.02355
A53: =ROW() -> 53 | G53: 2011/12 | J53: 0.01895 | K53: 0.01895 | L53: 0.01895
A54: =ROW() -> 54 | G54: 2012/13 | J54: 0.02842 | K54: 0.02842 | L54: 0.02842 | M54: 0.02842
A55: =ROW() -> 55 | G55: 2013/14 | J55: 0.02768 | K55: =J55 -> 0.02768 | L55: 0.02768 | M55: 0.02768 | N55: 0.02768
A56: =ROW() -> 56 | G56: 2014/15 | J56: 0.02634 | K56: 0.02634 | L56: 0.02634 | M56: 0.02634 | N56: 0.02634 | O56: =IF(N56="","",N56) -> 0.02634
A57: =ROW() -> 57 | G57: 2015/16 | J57: 0.0164 | K57: 0.0164 | L57: 0.0164 | M57: 0.0164 | N57: 0.0164 | O57: =IF(N57="","",N57) -> 0.0164 | P57: =IF(O57="","",O57) -> 0.0164
A58: =ROW() -> 58 | G58: 2016/17 | J58: 0.02352 | K58: 0.02352 | L58: 0.02352 | M58: 0.02352 | N58: 0.02352 | O58: 0.02352 | P58: 0.02352 | Q58: =IF(P58="","",P58) -> 0.02352
A59: =ROW() -> 59 | G59: 2017/18 | J59: 0.01656 | K59: 0.01656 | L59: 0.01656 | M59: 0.01656 | N59: 0.01656 | O59: 0.01656 | P59: 0.01656 | Q59: 0.01656 | R59: 0.01656
A60: =ROW() -> 60 | G60: 2018/19 | J60: 0.01241 | K60: 0.01241 | L60: 0.01241 | M60: 0.01241 | N60: 0.01241 | O60: 0.01241 | P60: 0.01241 | Q60: 0.01241 | R60: 0.01241
A61: =ROW() -> 61 | G61: 2019/20 | K61: 0.01724 | L61: =IF(K61="","",K61) -> 0.01724 | M61: 0.01724 | N61: 0.01724 | O61: 0.01724 | P61: 0.01724 | Q61: 0.01724 | R61: 0.01724
A62: =ROW() -> 62 | G62: 2020/21 | L62: 0.01497 | M62: 0.01497 | N62: =IF(M62="","",M62) -> 0.01497 | O62: 0.01497 | P62: 0.01497 | Q62: 0.01497 | R62: 0.01497
A63: =ROW() -> 63 | G63: 2021/22 | M63: 0.01219 | N63: =IF(M63="","",M63) -> 0.01219 | O63: 0.01219 | P63: 0.01219 | Q63: 0.01219 | R63: 0.01219
A64: =ROW() -> 64 | G64: 2022/23 | N64: 0.02103 | O64: 0.02103 | P64: 0.02103 | Q64: 0.02103 | R64: 0.02103
A65: =ROW() -> 65 | G65: 2023/24
A66: =ROW() -> 66 | G66: 2024/25
A67: =ROW() -> 67 | G67: 2025/26
A68: =ROW() -> 68 | G68: 2026/27

Sheet D_Input
B1: =Information!$A$1 -> ERA Western Power AA5 Revenue Model, September 2022 [Draft Decision]
B2: Distribution Input
B3: =COLUMN() -> 2 | C3: =COLUMN() -> 3 | D3: =COLUMN() -> 4 | E3: =COLUMN() -> 5 | F3: =COLUMN() -> 6 | G3: =COLUMN() -> 7 | H3: =COLUMN() -> 8 | I3: =COLUMN() -> 9 | J3: =COLUMN() -> 10 | K3: =COLUMN() -> 11 | L3: =COLUMN() -> 12 | M3: =COLUMN() -> 13 | N3: =COLUMN() -> 14 | O3: =COLUMN() -> 15 | P3: =COLUMN() -> 16 | Q3: =COLUMN() -> 17 | R3: =COLUMN() -> 18 | S3: =COLUMN() -> 19 | T3: =COLUMN() -> 20 | U3: =COLUMN() -> 21 | V3: =COLUMN() -> 22 | W3: =COLUMN() -> 23 | X3: =COLUMN() -> 24 | Y3: =COLUMN() -> 25 | Z3: =COLUMN() -> 26 | AA3: =COLUMN() -> 27 | AB3: =COLUMN() -> 28 | AC3: =COLUMN() -> 29 | AD3: =COLUMN() -> 30 | AE3: =COLUMN() -> 31
A4: =ROW() -> 4 | B4: Year Ending 30 June | J4: 2006 | K4: =J4+1 -> 2007 | L4: =K4+1 -> 2008 | M4: 2009 | N4: 2010 | O4: 2011 | P4: 2012 | Q4: 2013 | R4: 2014 | S4: 2015 | T4: 2016 | U4: 2017 | V4: 2018 | W4: 2019 | X4: 2020 | Y4: 2021 | Z4: 2022 | AA4: 2023 | AB4: 2024 | AC4: 2025 | AD4: 2026 | AE4: 2027
A5: =ROW() -> 5 | B5: Project Year | J5: 0 | K5: =J5+1 -> 1 | L5: 2 | M5: 3 | N5: 4 | O5: 5 | P5: 6 | Q5: 7 | R5: 8 | S5: 9 | T5: 10 | U5: 11 | V5: 12 | W5: 13 | X5: 14 | Y5: 15 | Z5: 16 | AA5: 17 | AB5: 18 | AC5: 19 | AD5: 20 | AE5: 21
A6: =ROW() -> 6 | B6: Regulatory Period | K6: AA1 | N6: AA2 | Q6: AA3 | V6: AA4 | AA6: AA5
A7: =ROW() -> 7 | B7: AA1 WP's Forecasted Inflation
A8: =ROW() -> 8 | C8: June CPI | I8: 148.4 | J8: =I8*(1+J9) -> 152.7036 | K8: =J8*(1+K9) -> 156.9793008 | L8: =K8*(1+L9) -> 161.0607626 | M8: =L8*(1+M9) -> 165.2483424
A9: =ROW() -> 9 | C9: Forecast Annual Inflation | J9: 0.029 | K9: 0.028 | L9: 0.026 | M9: 0.026
A10: =ROW() -> 10 | C10: Inflation Factor | J10: 1 | K10: =J10*(1+K9) -> 1.028 | L10: =K10*(1+L9) -> 1.054728 | M10: =L10*(1+M9) -> 1.082150928
A11: =ROW() -> 11 | B11: AA2 Actual and WP's Forecasted Inflation
A12: =ROW() -> 12 | C12: June CPI | I12: 148.4 | J12: 154.3 | K12: 157.5 | L12: 164.6 | M12: 167 | N12: =M12*(1+N13) -> 168.336 | O12: =N12*(1+O13) -> 172.207728 | P12: =O12*(1+P13) -> 176.8573367
A13: =ROW() -> 13 | C13: Actual & Forecast Annual Inflation | J13: =J12/I12-1 -> 0.0397574124 | K13: =K12/J12-1 -> 0.02073882048 | L13: =L12/K12-1 -> 0.04507936508 | M13: =M12/L12-1 -> 0.01458080194 | N13: 0.008 | O13: 0.023 | P13: 0.027
A14: =ROW() -> 14 | C14: Inflation Factor | J14: =K14/(1+K13) -> 0.9239520958 | K14: =L14/(1+L13) -> 0.9431137725 | L14: =M14/(1+M13) -> 0.9856287425 | M14: 1 | N14: =M14*(1+N13) -> 1.008 | O14: =N14*(1+O13) -> 1.031184 | P14: =O14*(1+P13) -> 1.059025968
A15: =ROW() -> 15 | B15: AA3 Actual and WP's Forecasted Inflation
A16: =ROW() -> 16 | C16: June CPI | I16: 148.4 | J16: 154.3 | K16: 157.5 | L16: 164.6 | M16: 167 | N16: 172.1 | O16: 178.3 | P16: 180.4 | Q16: =P16*(1+Q17) -> 185.812 | R16: =Q16*(1+R17) -> 190.4573 | S16: =R16*(1+S17) -> 195.2187325 | T16: =S16*(1+T17) -> 200.0992008 | U16: =T16*(1+U17) -> 205.1016808
A17: =ROW() -> 17 | C17: Actual & Forecast Annual Inflation | J17: =J16/I16-1 -> 0.0397574124 | K17: 0.02073882048 | L17: 0.04507936508 | M17: 0.01458080194 | N17: 0.03053892216 | O17: 0.03602556653 | P17: =P16/O16-1 -> 0.01177790241 | Q17: 0.03 | R17: 0.025 | S17: 0.025 | T17: 0.025 | U17: 0.025
A18: =ROW() -> 18 | C18: Inflation Factor | J18: =K18/(1+K17) -> 0.8553215078 | K18: 0.873059867 | L18: 0.9124168514 | M18: 0.9257206208 | N18: 0.9539911308 | O18: 0.9883592018 | P18: 1 | Q18: =P18*(1+Q17) -> 1.03 | R18: =Q18*(1+R17) -> 1.05575 | S18: =R18*(1+S17) -> 1.08214375 | T18: =S18*(1+T17) -> 1.109197344 | U18: =T18*(1+U17) -> 1.136927277
A19: =ROW() -> 19 | B19: AA4 Actual and Forecasted Inflation
A20: =ROW() -> 20 | J20: =J4 -> 2006 | K20: =K4 -> 2007 | L20: 2008 | M20: 2009 | N20: 2010 | O20: 2011 | P20: 2012 | Q20: 2013 | R20: 2014 | S20: 2015 | T20: 2016 | U20: 2017 | V20: 2018 | W20: 2019 | X20: 2020 | Y20: 2021 | Z20: 2022 | AA20: 2023 | AB20: 2024 | AC20: 2025 | AD20: 2026 | AE20: 2027
A21: =ROW() -> 21 | C21: June CPI | D21: Base $ June | E21: =Z20 -> 2022 | I21: 148.4 | J21: 154.3 | K21: 157.5 | L21: 164.6 | M21: 167 | N21: 172.1 | O21: 178.3 | P21: 180.4
A22: =ROW() -> 22 | C22: June CPI (rebased) | D22: Base CPI | E22: =HLOOKUP(E21,$I$20:$AE$22,3,FALSE) -> 126.1 | P22: 100.4 | Q22: 102.8 | R22: 105.9 | S22: 107.5 | T22: 108.6 | U22: 110.7 | V22: 113 | W22: 114.8 | X22: 114.4 | Y22: 118.8 | Z22: 126.1 | AA22: =Z22*(1+AA23) -> 129.83256 | AB22: =AA22*(1+AB23) -> 133.6756038 | AC22: =AB22*(1+AC23) -> 137.6324016 | AD22: =AC22*(1+AD23) -> 141.7063207 | AE22: =AD22*(1+AE23) -> 145.9008278
A23: =ROW() -> 23 | C23: Actual & Forecast Inflation | J23: =J21/I21-1 -> 0.0397574124 | K23: 0.02073882048 | L23: 0.04507936508 | M23: 0.01458080194 | N23: 0.03053892216 | O23: 0.03602556653 | P23: 0.01177790241 | Q23: =Q22/P22-1 -> 0.02390438247 | R23: 0.03015564202 | S23: 0.01510859301 | T23: 0.01023255814 | U23: 0.01933701657 | V23: 0.02077687444 | W23: 0.01592920354 | X23: -0.003484320557 | Y23: 0.03846153846 | Z23: 0.06144781145 | AA23: =WACC!N$9 -> 0.0296 | AB23: =WACC!O$9 -> 0.0296 | AC23: =WACC!P$9 -> 0.0296 | AD23: =WACC!Q$9 -> 0.0296 | AE23: =WACC!R$9 -> 0.0296
A24: =ROW() -> 24 | C24: End of year Inflation factor | J24: =K24/(1+K23) -> 0.6810014225 | K24: 0.6951245888 | L24: 0.7264603639 | M24: 0.7370527386 | N24: 0.7595615348 | O24: 0.7869251694 | P24: =P$22/$E$22 -> 0.7961934972 | Q24: 0.8152260111 | R24: 0.8398096749 | S24: 0.8524980174 | T24: 0.861221253 | U24: 0.8778747026 | V24: 0.8961141951 | W24: 0.9103885805 | X24: 0.9072164948 | Y24: 0.942109437 | Z24: 1 | AA24: 1.0296 | AB24: 1.06007616 | AC24: 1.091454414 | AD24: 1.123761465 | AE24: 1.157024804
A25: =ROW() -> 25 | B25: Initial Capital Base and Asset Lives
A26: =ROW() -> 26 | B26: Distribution | G26: ICB Life @ 30/06/2006 | H26: 2006 ICB ($M Real 30/06/2006) | I26: ="2006 ICB ($M Real 30/06/"&$E$21&")" -> 2006 ICB ($M Real 30/06/2022) | K26: Tax asset Life | L26: Tax ICB ($M Nominal 2012) | N26: Regulatory Capex Life (AA1/AA2) | O26: Regulatory Capex Life (AA3) | P26: Regulatory Capex Life (AA4) | Q26: Regulatory Capex Life (AA5)
A27: =ROW() -> 27 | C27: Wooden Pole Lines | G27: 14.5 | H27: 472.5939602 | I27: =H27/$J$24 -> 693.9691234 | K27: 45 | L27: 2747.935154 | N27: 41 | O27: 41 | P27: 41 | Q27: 41
A28: =ROW() -> 28 | C28: Underground Cables | G28: 36.9 | H28: 535.2080615 | I28: 785.9132798 | K28: 50 | L28: 110.2319941 | N28: 60 | O28: 60 | P28: 60 | Q28: 60
A29: =ROW() -> 29 | C29: Transformers | G29: 16.9 | H29: 203.7623314 | I29: 299.2098469 | K29: 40 | L29: 32.22184132 | N29: 35 | O29: 35 | P29: 35 | Q29: 35
A30: =ROW() -> 30 | C30: Switchgear | G30: 13.5 | H30: 108.607514 | I30: 159.4820662 | K30: 30 | L30: 25.6890398 | N30: 35 | O30: 35 | P30: 35 | Q30: 35
A31: =ROW() -> 31 | C31: Street lighting | G31: 1.2 | H31: 5.256461486 | I31: 7.718723209 | K31: 15 | L31: 35.1250608 | N31: 20 | O31: 20 | P31: 20 | Q31: 20
A32: =ROW() -> 32 | C32: Meters and Services | G32: 9.2 | H32: 168.2064526 | I32: 246.9986802 | K32: 25 | L32: 3.246493062 | N32: 25 | O32: 15 | P32: 15 | Q32: 15
A33: =ROW() -> 33 | C33: IT | G33: 9.8 | H33: 15.41481432 | I33: 22.63550972 | K33: 4 | L33: 31.47250339 | N33: 10.16 | O33: 6 | P33: 6 | Q33: 6
A34: =ROW() -> 34 | C34: SCADA & Communications | G34: 10.2 | H34: 12.82523809 | I34: 18.83290939 | K34: 10 | L34: 15.86631549 | N34: 10.16 | O34: 10.16 | P34: 10.16 | Q34: 10.16
A35: =ROW() -> 35 | C35: Other Distribution Non-Network | G35: 11.3 | H35: 51.22111724 | I35: 75.21440565 | K35: 10 | L35: 107.6731485 | N35: 10.16 | O35: 10.16 | P35: 27 | Q35: 27
A36: =ROW() -> 36 | C36: Distribution Land & Easements | H36: 21.41871547 | I36: 31.45179255 | K36: 0 | L36: 18.23082961 | N36: 0 | O36: 0 | P36: 0 | Q36: 0
A37: =ROW() -> 37 | C37: Equity Raising Costs | H37: 0 | I37: 0 | K37: 5 | N37: 0 | O37: =ROUND(SUMPRODUCT(O$27:O$35,D_Asset!$Q$17:$Q$25)/SUM(D_Asset!$Q$17:$Q$25),) -> 43 | P37: =ROUND(SUMPRODUCT(P$27:P$35,D_Asset!$V$17:$V$25)/SUM(D_Asset!$V$17:$V$25),) -> 43 | Q37: =ROUND(SUMPRODUCT(Q$27:Q$35,D_Asset!$AA$17:$AA$25)/SUM(D_Asset!$AA$17:$AA$25),) -> 42
A38: =ROW() -> 38 | C38: Standalone Power Systems | K38: 15 | P38: 20 | Q38: 20
A39: =ROW() -> 39 | C39: Storage | K39: 10 | P39: 20 | Q39: 20
A40: =ROW() -> 40 | C40: Total | H40: =SUM(H27:H37) -> 1594.514666 | I40: =SUM(I27:I37) -> 2341.426337 | L40: =SUM(L27:L37) -> 3127.69238
A41: =ROW() -> 41 | B41: Asset Allocation
A42: =ROW() -> 42 | B42: AA1 & AA2 Distribution Asset Allocation
A43: =ROW() -> 43 | C43: Growth | D43: Wooden Pole Lines | E43: Underground Cables | F43: Transformers | G43: Switchgear | H43: Street lighting | I43: Meters and Services | J43: IT | K43: SCADA & Communications | L43: Other Distribution Non-Network | M43: Distribution Land & Easements | N43: Equity Raising Costs
A44: =ROW() -> 44 | C44: Capacity Expansion | D44: 0.2745781156 | E44: 0.5405291628 | F44: 0.1275846512 | G44: 0.05730807048 | H44: 0 | I44: 0 | J44: 0 | K44: 0 | L44: 0 | M44: 0 | N44: 0 | O44: =IF(SUM(D44:N44)=1,"OK","ERROR") -> OK
A45: =ROW() -> 45 | C45: Customer Driven | D45: 0.0817695066 | E45: 0.5337599061 | F45: 0.1991918811 | G45: 0.1216440085 | H45: 0.06363469771 | I45: 0 | J45: 0 | K45: 0 | L45: 0 | M45: 0 | N45: 0 | O45: OK
A46: =ROW() -> 46 | C46: gifted assets | D46: 0.0817695066 | E46: 0.5337599061 | F46: 0.1991918811 | G46: 0.1216440085 | H46: 0.06363469771 | I46: 0 | J46: 0 | K46: 0 | L46: 0 | M46: 0 | N46: 0 | O46: OK
A47: =ROW() -> 47 | C47: Asset replacement and renewal
A48: =ROW() -> 48 | C48: Asset Replacement | D48: 0.7585927355 | E48: 0 | F48: 0.06124409528 | G48: 0.1801631692 | H48: 0 | I48: 0 | J48: 0 | K48: 0 | L48: 0 | M48: 0 | N48: 0 | O48: OK
A49: =ROW() -> 49 | C49: State Undergrounding Power Program (SUPP) | D49: 0 | E49: 0.769 | F49: 0.069 | G49: 0.069 | H49: 0.093 | I49: 0 | J49: 0 | K49: 0 | L49: 0 | M49: 0 | N49: 0 | O49: OK
A50: =ROW() -> 50 | C50: Metering | D50: 0 | E50: 0 | F50: 0 | G50: 0 | H50: 0 | I50: 1 | J50: 0 | K50: 0 | L50: 0 | M50: 0 | N50: 0 | O50: OK
A51: =ROW() -> 51 | C51: Smartgrid | D51: 0 | E51: 0 | F51: 0 | G51: 0 | H51: 0 | I51: 0.65 | J51: 0 | K51: 0.35 | L51: 0 | M51: 0 | N51: 0 | O51: OK
A52: =ROW() -> 52 | C52: Wood Pole Management | D52: 0 | E52: 0 | F52: 0 | G52: 0 | H52: 0 | I52: 0 | J52: 0 | K52: 0 | L52: 0 | M52: 0 | N52: 0 | O52: 0
A53: =ROW() -> 53 | C53: Improvement in service
A54: =ROW() -> 54 | C54: Reliability Driven | D54: 0.5173171804 | E54: 0.221707363 | F54: 0 | G54: 0.2472033235 | H54: 0 | I54: 0 | J54: 0 | K54: 0.01377213309 | L54: 0 | M54: 0 | N54: 0 | O54: OK
A55: =ROW() -> 55 | C55: Rural Power Improvement Program (RPIP) | D55: 0.8 | E55: 0 | F55: 0 | G55: 0.2 | H55: 0 | I55: 0 | J55: 0 | K55: 0 | L55: 0 | M55: 0 | N55: 0 | O55: OK
A56: =ROW() -> 56 | C56: SCADA & Communications | D56: 0 | E56: 0 | F56: 0 | G56: 0 | H56: 0 | I56: 0 | J56: 0 | K56: 1 | L56: 0 | M56: 0 | N56: 0 | O56: OK
A57: =ROW() -> 57 | C57: Compliance
A58: =ROW() -> 58 | C58: Safety, Environmental & Statutory | D58: 0.6274771247 | E58: 0.1180486792 | F58: 0.07097184511 | G58: 0.1270547872 | H58: 0.05644756383 | I58: 0 | J58: 0 | K58: 0 | L58: 0 | M58: 0 | N58: 0 | O58: OK
A59: =ROW() -> 59 | C59: Corporate
A60: =ROW() -> 60 | C60: IT | D60: 0 | E60: 0 | F60: 0 | G60: 0 | H60: 0 | I60: 0 | J60: 1 | K60: 0 | L60: 0 | M60: 0 | N60: 0 | O60: OK
A61: =ROW() -> 61 | C61: Business Support | D61: 0 | E61: 0 | F61: 0 | G61: 0 | H61: 0 | I61: 0 | J61: 0 | K61: 0 | L61: 1 | M61: 0 | N61: 0 | O61: OK
A62: =ROW() -> 62 | C62: Equity Raising Costs | D62: 0 | E62: 0 | F62: 0 | G62: 0 | H62: 0 | I62: 0 | J62: 0 | K62: 0 | L62: 0 | M62: 0 | N62: 1 | O62: OK
A63: =ROW() -> 63
A64: =ROW() -> 64 | B64: AA3 Proposed Distribution Asset Allocation
A65: =ROW() -> 65 | C65: Growth | D65: Wooden Pole Lines | E65: Underground Cables | F65: Transformers | G65: Switchgear | H65: Street lighting | I65: Meters and Services | J65: IT | K65: SCADA & Communications | L65: Other Distribution Non-Network | M65: Distribution Land & Easements | N65: Equity Raising Costs
A66: =ROW() -> 66 | C66: Capacity Expansion | D66: 0.4528455475 | E66: 0.3937764732 | F66: 0.07362193862 | G66: 0.07840838279 | H66: 0.001347657887 | I66: 0 | J66: 0 | K66: 0 | L66: 0 | M66: 0 | N66: 0 | O66: =IF(SUM(D66:N66)=1,"OK","ERROR") -> OK
A67: =ROW() -> 67 | C67: Customer Driven | D67: 0.1296069327 | E67: 0.2456531962 | F67: 0.4807318146 | G67: 0.137064576 | H67: 0.006943480447 | I67: 0 | J67: 0 | K67: 0 | L67: 0 | M67: 0 | N67: 0 | O67: =IF(SUM(D67:N67)=1,"OK","ERROR") -> OK
A68: =ROW() -> 68 | C68: gifted assets | D68: 0.1296069327 | E68: 0.2456531962 | F68: 0.4807318146 | G68: 0.137064576 | H68: 0.006943480447 | I68: 0 | J68: 0 | K68: 0 | L68: 0 | M68: 0 | N68: 0 | O68: =IF(SUM(D68:N68)=1,"OK","ERROR") -> OK
A69: =ROW() -> 69 | C69: Asset replacement and renewal
A70: =ROW() -> 70 | C70: Asset Replacement | D70: 0 | E70: 0.1830563095 | F70: 0.5163548429 | G70: 0.2653017117 | H70: 0.03528713594 | I70: 0 | J70: 0 | K70: 0 | L70: 0 | M70: 0 | N70: 0 | O70: =IF(SUM(D70:N70)=1,"OK","ERROR") -> OK
A71: =ROW() -> 71 | C71: State Undergrounding Power Program (SUPP) | D71: 0.01428742804 | E71: 0.634002595 | F71: 0.2356579095 | G71: 0.09126369846 | H71: 0.024788369 | I71: 0 | J71: 0 | K71: 0 | L71: 0 | M71: 0 | N71: 0 | O71: =IF(SUM(D71:N71)=1,"OK","ERROR") -> OK
A72: =ROW() -> 72 | C72: Metering | D72: 0 | E72: 0 | F72: 0 | G72: 0 | H72: 0 | I72: 1 | J72: 0 | K72: 0 | L72: 0 | M72: 0 | N72: 0 | O72: =IF(SUM(D72:N72)=1,"OK","ERROR") -> OK
A73: =ROW() -> 73 | C73: Smartgrid | D73: 0 | E73: 0 | F73: 0 | G73: 0 | H73: 0 | I73: 0.65 | J73: 0 | K73: 0.35 | L73: 0 | M73: 0 | N73: 0 | O73: =IF(SUM(D73:N73)=1,"OK","ERROR") -> OK
A74: =ROW() -> 74 | C74: Wood Pole Management | D74: 1 | E74: 0 | F74: 0 | G74: 0 | H74: 0 | I74: 0 | J74: 0 | K74: 0 | L74: 0 | M74: 0 | N74: 0 | O74: =IF(SUM(D74:N74)=1,"OK","ERROR") -> OK
A75: =ROW() -> 75 | C75: Improvement in service
A76: =ROW() -> 76 | C76: Reliability Driven | D76: 0.2565746422 | E76: 0.4740034641 | F76: 0.05138636275 | G76: 0.216527421 | H76: 0.001508109905 | I76: 0 | J76: 0 | K76: 0 | L76: 0 | M76: 0 | N76: 0 | O76: =IF(SUM(D76:N76)=1,"OK","ERROR") -> OK
A77: =ROW() -> 77 | C77: Rural Power Improvement Program (RPIP)
A78: =ROW() -> 78 | C78: SCADA & Communications | D78: 0 | E78: 0 | F78: 0 | G78: 0 | H78: 0 | I78: 0 | J78: 0 | K78: 1 | L78: 0 | M78: 0 | N78: 0 | O78: =IF(SUM(D78:N78)=1,"OK","ERROR") -> OK
A79: =ROW() -> 79 | C79: Compliance
A80: =ROW() -> 80 | C80: Safety, Environmental & Statutory | D80: 0.416205545 | E80: 0.02604003539 | F80: 0.2774890424 | G80: 0.2651954455 | H80: 0.01506993179 | I80: 0 | J80: 0 | K80: 0 | L80: 0 | M80: 0 | N80: 0 | O80: =IF(SUM(D80:N80)=1,"OK","ERROR") -> OK
A81: =ROW() -> 81 | C81: Corporate
A82: =ROW() -> 82 | C82: IT | D82: 0 | E82: 0 | F82: 0 | G82: 0 | H82: 0 | I82: 0 | J82: 1 | K82: 0 | L82: 0 | M82: 0 | N82: 0 | O82: =IF(SUM(D82:N82)=1,"OK","ERROR") -> OK
A83: =ROW() -> 83 | C83: Business Support | D83: 0 | E83: 0 | F83: 0 | G83: 0 | H83: 0 | I83: 0 | J83: 0 | K83: 0 | L83: 1 | M83: 0 | N83: 0 | O83: =IF(SUM(D83:N83)=1,"OK","ERROR") -> OK
A84: =ROW() -> 84 | C84: Equity Raising Costs | D84: 0 | E84: 0 | F84: 0 | G84: 0 | H84: 0 | I84: 0 | J84: 0 | K84: 0 | L84: 0 | M84: 0 | N84: 1 | O84: =IF(SUM(D84:N84)=1,"OK","ERROR") -> OK
A85: =ROW() -> 85
A86: =ROW() -> 86 | B86: AA4 Proposed Distribution Asset Allocation
A87: =ROW() -> 87 | C87: Growth | D87: Wooden Pole Lines | E87: Underground Cables | F87: Transformers | G87: Switchgear | H87: Street lighting | I87: Meters and Services | J87: IT | K87: SCADA & Communications | L87: Other Distribution Non-Network | M87: Distribution Land & Easements | N87: Equity Raising Costs | O87: Standalone Power Systems | P87: Storage
A88: =ROW() -> 88 | C88: Capacity Expansion | D88: 0.4528455475 | E88: 0.3937764732 | F88: 0.07362193862 | G88: 0.07840838279 | H88: 0.001347657887 | I88: 0 | J88: 0 | K88: 0 | L88: 0 | M88: 0 | N88: 0 | O88: 0 | P88: 0 | Q88: =IF(SUM(D88:N88)=1,"OK","ERROR") -> OK
A89: =ROW() -> 89 | C89: Customer Driven | D89: 0.1296069327 | E89: 0.2456531962 | F89: 0.4807318146 | G89: 0.137064576 | H89: 0.006943480447 | I89: 0 | J89: 0 | K89: 0 | L89: 0 | M89: 0 | N89: 0 | O89: 0 | P89: 0 | Q89: =IF(SUM(D89:N89)=1,"OK","ERROR") -> OK
A90: =ROW() -> 90 | C90: gifted assets | D90: 0.1296069327 | E90: 0.2456531962 | F90: 0.4807318146 | G90: 0.137064576 | H90: 0.006943480447 | I90: 0 | J90: 0 | K90: 0 | L90: 0 | M90: 0 | N90: 0 | O90: 0 | P90: 0 | Q90: =IF(SUM(D90:N90)=1,"OK","ERROR") -> OK
A91: =ROW() -> 91 | C91: Asset replacement and renewal
A92: =ROW() -> 92 | C92: Asset Replacement | D92: 0 | E92: 0.1830563095 | F92: 0.5163548429 | G92: 0.2653017117 | H92: 0.03528713594 | I92: 0 | J92: 0 | K92: 0 | L92: 0 | M92: 0 | N92: 0 | O92: 0 | P92: 0 | Q92: =IF(SUM(D92:N92)=1,"OK","ERROR") -> OK
A93: =ROW() -> 93 | C93: State Undergrounding Power Program (SUPP) | D93: 0.01428742804 | E93: 0.634002595 | F93: 0.2356579095 | G93: 0.09126369846 | H93: 0.024788369 | I93: 0 | J93: 0 | K93: 0 | L93: 0 | M93: 0 | N93: 0 | O93: 0 | P93: 0 | Q93: =IF(SUM(D93:N93)=1,"OK","ERROR") -> OK
A94: =ROW() -> 94 | C94: Metering | D94: 0 | E94: 0 | F94: 0 | G94: 0 | H94: 0 | I94: 1 | J94: 0 | K94: 0 | L94: 0 | M94: 0 | N94: 0 | O94: 0 | P94: 0 | Q94: =IF(SUM(D94:N94)=1,"OK","ERROR") -> OK
A95: =ROW() -> 95 | C95: Smartgrid | D95: 0 | E95: 0 | F95: 0 | G95: 0 | H95: 0 | I95: 0.65 | J95: 0 | K95: 0.35 | L95: 0 | M95: 0 | N95: 0 | O95: 0 | P95: 0 | Q95: =IF(SUM(D95:N95)=1,"OK","ERROR") -> OK
A96: =ROW() -> 96 | C96: Wood Pole Management | D96: 1 | E96: 0 | F96: 0 | G96: 0 | H96: 0 | I96: 0 | J96: 0 | K96: 0 | L96: 0 | M96: 0 | N96: 0 | O96: 0 | P96: 0 | Q96: =IF(SUM(D96:N96)=1,"OK","ERROR") -> OK
A97: =ROW() -> 97 | C97: Improvement in service
A98: =ROW() -> 98 | C98: Reliability Driven | D98: 0.2565746422 | E98: 0.4740034641 | F98: 0.05138636275 | G98: 0.216527421 | H98: 0.001508109905 | I98: 0 | J98: 0 | K98: 0 | L98: 0 | M98: 0 | N98: 0 | O98: 0 | P98: 0 | Q98: =IF(SUM(D98:N98)=1,"OK","ERROR") -> OK
A99: =ROW() -> 99 | C99: Rural Power Improvement Program (RPIP)
A100: =ROW() -> 100 | C100: SCADA & Communications | D100: 0 | E100: 0 | F100: 0 | G100: 0 | H100: 0 | I100: 0 | J100: 0 | K100: 1 | L100: 0 | M100: 0 | N100: 0 | O100: 0 | P100: 0 | Q100: =IF(SUM(D100:N100)=1,"OK","ERROR") -> OK
A101: =ROW() -> 101 | C101: Compliance
A102: =ROW() -> 102 | C102: Safety, Environmental & Statutory | D102: 0.416205545 | E102: 0.02604003539 | F102: 0.2774890424 | G102: 0.2651954455 | H102: 0.01506993179 | I102: 0 | J102: 0 | K102: 0 | L102: 0 | M102: 0 | N102: 0 | O102: 0 | P102: 0 | Q102: =IF(SUM(D102:N102)=1,"OK","ERROR") -> OK
A103: =ROW() -> 103 | C103: Corporate
A104: =ROW() -> 104 | C104: IT | D104: 0 | E104: 0 | F104: 0 | G104: 0 | H104: 0 | I104: 0 | J104: 1 | K104: 0 | L104: 0 | M104: 0 | N104: 0 | O104: 0 | P104: 0 | Q104: =IF(SUM(D104:N104)=1,"OK","ERROR") -> OK
A105: =ROW() -> 105 | C105: Business Support | D105: 0 | E105: 0 | F105: 0 | G105: 0 | H105: 0 | I105: 0 | J105: 0 | K105: 0 | L105: 0.6 | M105: 0.4 | N105: 0 | O105: 0 | P105: 0 | Q105: =IF(SUM(D105:N105)=1,"OK","ERROR") -> OK
A106: =ROW() -> 106 | C106: Equity Raising Costs | D106: 0 | E106: 0 | F106: 0 | G106: 0 | H106: 0 | I106: 0 | J106: 0 | K106: 0 | L106: 0 | M106: 0 | N106: 1 | O106: 0 | P106: 0 | Q106: =IF(SUM(D106:N106)=1,"OK","ERROR") -> OK
A107: =ROW() -> 107 | C107: SPS adjustment | D107: 0 | E107: 0 | F107: 0 | G107: 0 | H107: 0 | I107: 0 | J107: 0 | K107: 0 | L107: 0 | M107: 0 | N107: 0 | O107: 1 | P107: 0
A108: =ROW() -> 108
A109: =ROW() -> 109 | B109: AA5 Proposed Distribution Asset Allocation
A110: =ROW() -> 110 | C110: Growth | D110: Wooden Pole Lines | E110: Underground Cables | F110: Transformers | G110: Switchgear | H110: Street lighting | I110: Meters and Services | J110: IT | K110: SCADA & Communications | L110: Other Distribution Non-Network | M110: Distribution Land & Easements | N110: Equity Raising Costs | O110: Standalone Power Systems | P110: Storage
A111: =ROW() -> 111 | C111: Capacity Expansion | D111: 0 | E111: 0.7398244374 | F111: 0.03001222021 | G111: 0 | H111: 0 | I111: 0 | J111: 0 | K111: 0 | L111: 0.2301632306 | M111: 0 | N111: 0 | O111: 0 | P111: 1.117148047e-07 | Q111: =IF(SUM(D111:P111)=1,"OK","ERROR") -> OK
A112: =ROW() -> 112 | C112: Customer Driven | D112: 0.1073365091 | E112: 0.3493253142 | F112: 0.2124247482 | G112: 0.1395207031 | H112: 0.08240478909 | I112: 0.005789388935 | J112: 0 | K112: 0.0009134215002 | L112: 0.1022851259 | M112: 0 | N112: 0 | O112: 0 | P112: 0 | Q112: =IF(SUM(D112:P112)=1,"OK","ERROR") -> OK
A113: =ROW() -> 113 | C113: gifted assets | D113: 0.1073365091 | E113: 0.3493253142 | F113: 0.2124247482 | G113: 0.1395207031 | H113: 0.08240478909 | I113: 0.005789388935 | J113: 0 | K113: 0.0009134215002 | L113: 0.1022851259 | M113: 0 | N113: 0 | O113: 0 | P113: 0 | Q113: OK
A114: =ROW() -> 114 | C114: Asset replacement and renewal
A115: =ROW() -> 115 | C115: Asset Replacement | D115: 0.1327120275 | E115: 0.4118860794 | F115: 0.03260209852 | G115: 0.09844295007 | H115: 0.04679474348 | I115: 0 | J115: 0 | K115: 0 | L115: 7.859276233e-05 | M115: 0 | N115: 0 | O115: 0.2774835083 | P115: 0 | Q115: OK
A116: =ROW() -> 116 | C116: State Undergrounding Power Program (SUPP) | D116: 0.01428742804 | E116: 0.634002595 | F116: 0.2356579095 | G116: 0.09126369846 | H116: 0.024788369 | I116: 0 | J116: 0 | K116: 0 | L116: 0 | M116: 0 | N116: 0 | O116: 0 | P116: 0 | Q116: OK
A117: =ROW() -> 117 | C117: Metering | D117: 0 | E117: 0 | F117: 0 | G117: 0 | H117: 0 | I117: 1 | J117: 0 | K117: 0 | L117: 0 | M117: 0 | N117: 0 | O117: 0 | P117: 0 | Q117: OK
A118: =ROW() -> 118 | C118: Smartgrid
A119: =ROW() -> 119 | C119: Wood Pole Management | D119: 1 | E119: 0 | F119: 0 | G119: 0 | H119: 0 | I119: 0 | J119: 0 | K119: 0 | L119: 0 | M119: 0 | N119: 0 | O119: 0 | P119: 0 | Q119: OK
A120: =ROW() -> 120 | C120: Improvement in service
A121: =ROW() -> 121 | C121: Reliability Driven | D121: 0.674384624 | E121: 0 | F121: 0 | G121: 0 | H121: 0 | I121: 0 | J121: 0 | K121: 0 | L121: 0.325615376 | M121: 0 | N121: 0 | O121: 0 | P121: 0 | Q121: OK
A122: =ROW() -> 122 | C122: Rural Power Improvement Program (RPIP)
A123: =ROW() -> 123 | C123: SCADA & Communications | D123: 0 | E123: 0 | F123: 0 | G123: 0 | H123: 0 | I123: 0 | J123: 0 | K123: 1 | L123: 0 | M123: 0 | N123: 0 | O123: 0 | P123: 0 | Q123: OK
A124: =ROW() -> 124 | C124: Compliance
A125: =ROW() -> 125 | C125: Safety, Environmental & Statutory | D125: 0.6808917021 | E125: 0.06950630635 | F125: 0 | G125: 0 | H125: 0 | I125: 0 | J125: 0 | K125: 0 | L125: 0.2495546852 | M125: 0 | N125: 0 | O125: 0 | P125: 4.730642455e-05 | Q125: OK
A126: =ROW() -> 126 | C126: Corporate
A127: =ROW() -> 127 | C127: IT | D127: 0 | E127: 0 | F127: 0 | G127: 0 | H127: 0 | I127: 0 | J127: 1 | K127: 0 | L127: 0 | M127: 0 | N127: 0 | O127: 0 | P127: 0 | Q127: OK
A128: =ROW() -> 128 | C128: Business Support | D128: 0 | E128: 0 | F128: 0 | G128: 0 | H128: 0 | I128: 0 | J128: 0 | K128: 0 | L128: 1 | M128: 0 | N128: 0 | O128: 0 | P128: 0 | Q128: OK
A129: =ROW() -> 129 | C129: Equity Raising Costs | D129: 0 | E129: 0 | F129: 0 | G129: 0 | H129: 0 | I129: 0 | J129: 0 | K129: 0 | L129: 0 | M129: 0 | N129: 1 | O129: 0 | P129: 0 | Q129: OK
A130: =ROW() -> 130 | C130: SPS adjustment
A131: =ROW() -> 131
A132: =ROW() -> 132 | B132: Capital Expenditure | J132: 2006 | K132: =J132+1 -> 2007 | L132: =K132+1 -> 2008 | M132: 2009 | N132: 2010 | O132: 2011 | P132: 2012 | Q132: 2013 | R132: 2014 | S132: 2015 | T132: 2016 | U132: 2017 | V132: 2018 | W132: 2019 | X132: 2020 | Y132: 2021 | Z132: 2022 | AA132: 2023 | AB132: 2024 | AC132: 2025 | AD132: 2026 | AE132: 2027
A133: =ROW() -> 133 | B133: [APPROVED] Capex by Regulatory category ($M Real) | K133: Approved AA1 ($M Real 30/6/2006) | N133: Approved AA2 ($M Real 30/6/2009) | Q133: Approved AA3 ($M Real 30/06/2012) | V133: Approved AA4 ($M Real 30/06/2017) | AA133: Approved AA5 ($M Real 30/06/2022)
A134: =ROW() -> 134 | C134: Growth
A135: =ROW() -> 135 | C135: Capacity Expansion | K135: 30.46692607 | L135: 32.23579918 | M135: 37.24064634 | N135: 81.53610338 | O135: 104.00771 | P135: 98.29684795 | Q135: 56.86398175 | R135: 61.31506795 | S135: 68.09468738 | T135: 68.46959239 | U135: 76.34670082 | V135: 44.23061498 | W135: 41.83879648 | X135: 34.07471396 | Y135: 25.75847133 | Z135: 28.33885682 | AA135: 39.77382611 | AB135: 28.4474482 | AC135: 22.38466221 | AD135: 25.65457159 | AE135: 21.96091338
A136: =ROW() -> 136 | C136: Customer Driven | K136: 90.15564202 | L136: 104.7473851 | M136: 119.3391759 | N136: 202.3809524 | O136: 202.7766141 | P136: 202.3817229 | Q136: 202.8875168 | R136: 203.6464388 | S136: 209.3581819 | T136: 210.8412448 | U136: 217.3904696 | V136: 122.1344698 | W136: 131.6727311 | X136: 120.5186566 | Y136: 125.4491026 | Z136: 125.4961051 | AA136: 111.2170348 | AB136: 111.279412 | AC136: 111.3625532 | AD136: 112.3564878 | AE136: 104.6878176
A137: =ROW() -> 137 | C137: gifted assets | K137: 15.49610895 | L137: 18.91482923 | M137: 22.11336643 | N137: 86.60714286 | O137: 86.77646278 | P137: 86.60747259 | Q137: 63.48375 | R137: 63.48375 | S137: 63.48375 | T137: 63.48375 | U137: 63.48375 | V137: 80.2592 | W137: 80.51923981 | X137: 80.78012214 | Y137: 81.04184974 | Z137: 81.30442533 | AA137: 37.96064646 | AB137: 38.13368627 | AC137: 38.30751486 | AD137: 38.48213584 | AE137: 38.65755281
A138: =ROW() -> 138 | C138: Asset replacement and renewal
A139: =ROW() -> 139 | C139: Asset Replacement | K139: 17.12062257 | L139: 28.44335222 | M139: 28.73905959 | N139: 71.35291871 | O139: 110.513529 | P139: 131.0129034 | Q139: 42.10312237 | R139: 37.29162329 | S139: 35.11290884 | T139: 36.59228216 | U139: 36.71714631 | V139: 73.36770593 | W139: 76.47506084 | X139: 83.1187056 | Y139: 90.24114044 | Z139: 100.8989142 | AA139: 198.269772 | AB139: 214.5612495 | AC139: 226.0196251 | AD139: 215.8041433 | AE139: 224.7774189
A140: =ROW() -> 140 | C140: State Undergrounding Power Program (SUPP) | K140: 16.62669439 | L140: 15.4448417 | M140: 15.80030017 | N140: 19.84126984 | O140: 19.39518069 | P140: 18.88527817 | Q140: 38.47981035 | R140: 18.58997669 | S140: 0 | T140: 0 | U140: 0 | V140: 39.80650748 | W140: 51.10275449 | X140: 33.55284822 | Y140: 8.617475385 | Z140: 18.65428615 | AA140: 29.77304347 | AB140: 39.39982088 | AC140: 51.17898805 | AD140: 62.15731425 | AE140: 64.90295902
A141: =ROW() -> 141 | C141: Metering | K141: 4.281373805 | L141: 7.66885744 | M141: 9.240855172 | N141: 12.21669437 | O141: 12.32954483 | P141: 12.75291375 | Q141: 13.47299916 | R141: 44.52881164 | S141: 44.14484204 | T141: 40.1797608 | U141: 16.12225971 | V141: 20.84449588 | W141: 27.05433676 | X141: 31.67142699 | Y141: 32.20539633 | Z141: 32.12731451 | AA141: 71.28383804 | AB141: 69.06065084 | AC141: 76.86044844 | AD141: 68.77898115 | AE141: 63.54604829
A142: =ROW() -> 142 | C142: Smartgrid | K142: 0 | L142: 0 | M142: 0 | N142: 0 | O142: 0 | P142: 0 | Q142: 2.476654257 | R142: 24.02344465 | S142: 26.58838762 | T142: 20.19237979 | U142: 15.60218682 | V142: 0 | W142: 0 | X142: 0 | Y142: 0 | Z142: 0 | AA142: 0 | AB142: 0 | AC142: 0 | AD142: 0 | AE142: 0
A143: =ROW() -> 143 | C143: Wood Pole Management | K143: 0 | L143: 0 | M143: 0 | N143: 0 | O143: 0 | P143: 0 | Q143: 164.5489089 | R143: 188.3679301 | S143: 199.10846 | T143: 209.8162509 | U143: 222.2791548 | V143: 168.0138066 | W143: 128.6983177 | X143: 120.5341915 | Y143: 119.2330991 | Z143: 108.8474982 | AA143: 90.97230577 | AB143: 91.2365213 | AC143: 78.70117037 | AD143: 82.88400504 | AE143: 83.22117583
A144: =ROW() -> 144 | C144: Improvement in service
A145: =ROW() -> 145 | C145: Reliability Driven | K145: 9.238326848 | L145: 18.77640491 | M145: 12.56756303 | N145: 10.95977778 | O145: 29.05520256 | P145: 47.02658245 | Q145: 0.5943970217 | R145: 0.603099029 | S145: 0.608894373 | T145: 0.6149963388 | U145: 0.6240874727 | V145: 4.382566495 | W145: 6.03702366 | X145: 0 | Y145: 0 | Z145: 0 | AA145: 0.2647909766 | AB145: 0 | AC145: 0 | AD145: 0 | AE145: 0
A146: =ROW() -> 146 | C146: Rural Power Improvement Program (RPIP) | K146: 9.976016633 | L146: 10.05087312 | M146: 11.08902621 | N146: 7.936507937 | O146: 0 | P146: 0 | Q146: 0 | R146: 0 | S146: 0 | T146: 0 | U146: 0 | V146: 0 | W146: 0 | X146: 0 | Y146: 0 | Z146: 0 | AA146: 0 | AB146: 0 | AC146: 0 | AD146: 0 | AE146: 0
A147: =ROW() -> 147 | C147: SCADA & Communications | K147: 2.120622568 | L147: 1.706601133 | M147: 1.755762483 | N147: 5.57882334 | O147: 6.049111949 | P147: 5.592444543 | Q147: 5.151440855 | R147: 6.332539804 | S147: 7.002285289 | T147: 3.894976812 | U147: 6.968976778 | V147: 3.338559363 | W147: 3.749011442 | X147: 4.547153015 | Y147: 4.219339639 | Z147: 3.866157565 | AA147: 26.29093648 | AB147: 26.0420441 | AC147: 29.83766647 | AD147: 35.48634328 | AE147: 37.04500653
A148: =ROW() -> 148 | C148: Compliance
A149: =ROW() -> 149 | C149: Safety, Environmental & Statutory | K149: 26.93774319 | L149: 43.61314007 | M149: 43.09010767 | N149: 79.98564679 | O149: 101.8432335 | P149: 111.0123653 | Q149: 112.9354341 | R149: 112.7795184 | S149: 113.152871 | T149: 84.76699537 | U149: 91.42881474 | V149: 28.0322134 | W149: 43.5478113 | X149: 42.58895868 | Y149: 35.22094412 | Z149: 35.30243688 | AA149: 50.47045355 | AB149: 49.76458832 | AC149: 51.02377171 | AD149: 51.13816493 | AE149: 51.01814562
A150: =ROW() -> 150 | C150: Corporate
A151: =ROW() -> 151 | C151: IT | K151: 18.71984436 | L151: 16.11789959 | M151: 14.23091697 | N151: 17.85714286 | O151: 22.54689755 | P151: 15.58035449 | Q151: 25.68695973 | R151: 24.74733711 | S151: 14.48505646 | T151: 15.14131609 | U151: 15.36514138 | V151: 35.30532739 | W151: 37.77237134 | X151: 31.80599626 | Y151: 23.01468333 | Z151: 17.23027652 | AA151: 16.98819845 | AB151: 18.80620408 | AC151: 18.7682165 | AD151: 22.2959911 | AE151: 21.4367603
A152: =ROW() -> 152 | C152: Business Support | K152: 12.29182879 | L152: 14.13539794 | M152: 8.331555023 | N152: 14.90327381 | O152: 26.71589164 | P152: 22.98881306 | Q152: 20.43842228 | R152: 19.98582415 | S152: 13.85252125 | T152: 13.99134272 | U152: 11.54006399 | V152: 18.87065093 | W152: 33.98089161 | X152: 90.66880185 | Y152: 8.539248816 | Z152: 7.095745955 | AA152: 9.044965988 | AB152: 10.75120827 | AC152: 18.52502054 | AD152: 1.78575098 | AE152: 1.865421928
A153: =ROW() -> 153 | C153: Equity Raising Costs | Q153: 5.016144636 | R153: 4.297127355 | S153: 3.445143794 | T153: 1.444439887 | U153: 0 | V153: 0 | W153: 0 | X153: 0 | Y153: 0 | Z153: 0 | AA153: 0 | AB153: 0 | AC153: 0 | AD153: 0 | AE153: 0
A154: =ROW() -> 154 | C154: SPS adjustment
A155: =ROW() -> 155 | C155: Total | K155: =SUM(K135:K154) -> 253.4317502 | L155: =SUM(L135:L154) -> 311.8553816 | M155: 323.538335 | N155: 611.156254 | O155: 722.0093785 | P155: 752.1376985 | Q155: 754.1395421 | R155: 809.9924889 | S155: 798.4379899 | T155: 769.4293281 | U155: 773.8687525 | V155: 638.5861183 | W155: 662.4483465 | X155: 673.8615748 | Y155: 553.5407509 | Z155: 559.1620173 | AA155: 682.3098121 | AB155: 697.4828337 | AC155: 722.9696374 | AD155: 716.8238892 | AE155: 713.1192203
A156: =ROW() -> 156 | B156: [ACTUAL] Capex by Regulatory category ($M Nominal) | K156: Actual AA1 | N156: Actual AA2 | Q156: Actual AA3 (post-adjustment) | V156: Actual AA4 | Z156: Forecast | AA156: Modelled AA5
A157: =ROW() -> 157 | C157: Growth
A158: =ROW() -> 158 | C158: Capacity Expansion | K158: 75.881777 | L158: 61.4 | M158: 61.11670557 | N158: 62.75 | O158: 34.419 | P158: 48.108 | Q158: 48.471 | R158: 39.331 | S158: 26.154 | T158: 25.438 | U158: 35.492 | V158: 27.968 | W158: 6.378 | X158: 13.56 | Y158: 4.46 | Z158: 17.71373269 | AA158: =AA204*AA$24 -> 40.95113136 | AB158: 30.15646165 | AC158: 24.43183838 | AD158: 28.82961895 | AE158: 25.40932151
A159: =ROW() -> 159 | C159: Customer Driven | K159: 181 | L159: 189.5 | M159: 244.7729952 | N159: 203.07 | O159: 233.503 | P159: 174.933 | Q159: 188.491 | R159: 178.841 | S159: 149.256 | T159: 140.451 | U159: 131.167 | V159: 124.177 | W159: 126.168 | X159: 102.764 | Y159: 102.584 | Z159: 109.4163325 | AA159: 114.509059 | AB159: 117.9646518 | AC159: 121.5471503 | AD159: 126.2618913 | AE159: 121.1264017
A160: =ROW() -> 160 | C160: gifted assets | K160: 21.99333 | L160: 20.3 | M160: 71.96126273 | N160: 84.262 | O160: 53.951 | P160: 66.651 | Q160: 57.585 | R160: 59.138 | S160: 147.877 | T160: 123.773 | U160: 82.347 | V160: 56.483 | W160: 62.657 | X160: 48.044 | Y160: 50.415 | Z160: 47.56688328 | AA160: 39.08428159 | AB160: 40.4246117 | AC160: 41.8109062 | AD160: 43.24474134 | AE160: 44.72774747
A161: =ROW() -> 161 | C161: Asset replacement and renewal
A162: =ROW() -> 162 | C162: Asset Replacement | K162: 27.286123 | L162: 39.4 | M162: 64.04171498 | N162: 80.119 | O162: 98.032 | P162: 177.973 | Q162: 48.784 | R162: 45.21 | S162: 94.493 | T162: 136.803 | U162: 114.918 | V162: 73.916 | W162: 76.979 | X162: 59.002 | Y162: 86.925 | Z162: 130.1111848 | AA162: =AA208*AA$24 -> 204.1385573 | AB162: 227.4512654 | AC162: 246.6901175 | AD162: 242.5123803 | AE162: 260.0730492
A163: =ROW() -> 163 | C163: State Undergrounding Power Program (SUPP) | K163: 21.052371 | L163: 22 | M163: 22.92657578 | N163: 21.084 | O163: 18.744 | P163: 33.372 | Q163: 29.69 | R163: 18.964 | S163: 15.286 | T163: 10.77 | U163: 10.389 | V163: 7.06 | W163: 30.982 | X163: 28.431 | Y163: 30.682 | Z163: 20.86758282 | AA163: 30.65432555 | AB163: 41.76681083 | AC163: 55.85953243 | AD163: 69.84999452 | AE163: 75.09433347
A164: =ROW() -> 164 | C164: Metering | K164: 10.720987 | L164: 12.4 | M164: 13.99441339 | N164: 11.148 | O164: 15.992 | P164: 14.079 | Q164: 11.318 | R164: 11.518 | S164: 16.686 | T164: 26.495 | U164: 24.481 | V164: 17.788 | W164: 28.471 | X164: 35.997 | Y164: 36.909 | Z164: 38.74484006 | AA164: 73.39383964 | AB164: 73.20954955 | AC164: 83.88967574 | AD164: 77.29116862 | AE164: 73.52435409
A165: =ROW() -> 165 | C165: Smartgrid | K165: 0 | L165: 0 | M165: 0 | N165: 0 | O165: 0 | P165: 4.015 | Q165: 0.781 | R165: 0.549 | S165: -1.329 | T165: 0 | U165: 0 | V165: 0 | W165: 0 | X165: 0 | Y165: 0 | Z165: 0 | AA165: 0 | AB165: 0 | AC165: 0 | AD165: 0 | AE165: 0
A166: =ROW() -> 166 | C166: Wood Pole Management | K166: 0 | L166: 0 | M166: 0 | N166: 0 | O166: 0 | P166: 0 | Q166: 216.856 | R166: 282.461 | S166: 234.234 | T166: 186.445 | U166: 81.72 | V166: 120.413 | W166: 122.451 | X166: 145.261 | Y166: 160.113 | Z166: 97.10971749 | AA166: 93.66508603 | AB166: 96.71766115 | AC166: 85.89873981 | AD166: 93.14185093 | AE166: 96.28896469
A167: =ROW() -> 167 | C167: Improvement in service
A168: =ROW() -> 168 | C168: Reliability Driven | K168: 5.485359 | L168: 18.9 | M168: 27.00531919 | N168: 9.344 | O168: 8.136 | P168: 9.108 | Q168: 1.694 | R168: 0.095 | S168: 0.181 | T168: 0.776 | U168: 3.664 | V168: 2.004 | W168: 5.041 | X168: 6.19 | Y168: 2.338 | Z168: 6.162639085 | AA168: =AA214*AA$24 -> 0.2726287895 | AB168: 0 | AC168: 0 | AD168: 0 | AE168: 0
A169: =ROW() -> 169 | C169: Rural Power Improvement Program (RPIP) | K169: 9.618685 | L169: 23.6 | M169: 23.86639491 | N169: 8.173 | O169: -0.18 | Q169: 0 | R169: 0 | S169: 0 | T169: 0 | U169: 0 | V169: 0 | W169: 0 | X169: 0 | Y169: 0 | Z169: 0 | AA169: 0 | AB169: 0 | AC169: 0 | AD169: 0 | AE169: 0
A170: =ROW() -> 170 | C170: SCADA & Communications | K170: 2.241186 | L170: 2.1 | M170: 1.9741209 | N170: 3.262 | O170: 3.196 | P170: 3.458 | Q170: 3.074 | R170: 2.513 | S170: 3.143 | T170: 3.702 | U170: 5.064 | V170: 8.15 | W170: 8.154 | X170: 25.188 | Y170: 22.097 | Z170: 17.65222538 | AA170: 27.0691482 | AB170: 27.60655011 | AC170: 32.56645279 | AD170: 39.87818511 | AE170: 42.86199144
A171: =ROW() -> 171 | C171: Compliance
A172: =ROW() -> 172 | C172: Safety, Environmental & Statutory | K172: 33.953598 | L172: 34.7 | M172: 58.10199275 | N172: 63.674 | O172: 61.078 | P172: 94.93 | Q172: 128.555 | R172: 145.383 | S172: 115.225 | T172: 35.978 | U172: 14.781 | V172: 16.469 | W172: 30.464 | X172: 28.708 | Y172: 43.498 | Z172: 67.15989954 | AA172: =AA218*AA$24 -> 51.96437898 | AB172: =AB218*AB$24 -> 52.75425369 | AC172: =AC218*AC$24 -> 55.69012087 | AD172: =AD218*AD$24 -> 57.46709914 | AE172: =AE218*AE$24 -> 59.02925996
A173: =ROW() -> 173 | C173: Corporate
A174: =ROW() -> 174 | C174: IT | K174: 17.9775 | L174: 33.975 | M174: 20.7 | N174: 16.102 | O174: 25.105 | P174: 32.277 | Q174: 18.72 | R174: 13.033 | S174: 20.512 | T174: 12.401 | U174: 30.948 | V174: 36.949 | W174: 39.654 | X174: 49.063 | Y174: 34.76 | Z174: 43.21399657 | AA174: =AA220*AA$24 -> 17.49104913 | AB174: 19.93600861 | AC174: 20.48465275 | AD174: 25.05537562 | AE174: 24.80286339
A175: =ROW() -> 175 | C175: Business Support | K175: 9.075 | L175: 9.075 | M175: 24.6 | N175: 11.546 | O175: 20.902 | P175: 22.724 | Q175: 19.903 | R175: 2.517 | S175: 10.415 | T175: 15.678 | U175: 5.245 | V175: 16.732 | W175: 27.427 | X175: 39.082 | Y175: 12.67 | Z175: 68.57681056 | AA175: 9.312696981 | AB175: 11.39709957 | AC175: 20.21921545 | AD175: 2.006758138 | AE175: 2.158339442
A176: =ROW() -> 176 | C176: Equity Raising Costs | K176: 0 | L176: 0 | M176: 0 | N176: 0 | O176: 0 | P176: 0 | Q176: 5.484702631 | R176: 4.480711191 | S176: 3.529921867 | T176: 1.329817786 | U176: 0 | V176: 0 | W176: 0 | X176: 0 | Y176: 0 | Z176: 0 | AA176: 0 | AB176: 0 | AC176: 0 | AD176: 0 | AE176: 0
A177: =ROW() -> 177 | C177: SPS adjustment | AA177: 0 | AB177: 0 | AC177: 0 | AD177: 0 | AE177: 0
A178: =ROW() -> 178 | C178: Total | K178: =SUM(K158:K177) -> 416.285916 | L178: =SUM(L158:L177) -> 467.35 | M178: 635.0614954 | N178: 574.534 | O178: 572.878 | P178: 681.628 | Q178: 779.4067026 | R178: 804.0337112 | S178: 835.6629219 | T178: 720.0398178 | U178: 540.216 | V178: 508.109 | W178: 564.826 | X178: 581.29 | Y178: 587.451 | Z178: 664.2958448 | AA178: 702.5061825 | AB178: 739.384924 | AC178: 789.0884022 | AD178: 805.5390639 | AE178: 825.0966264
A179: =ROW() -> 179 | B179: ="[APPROVED] Capex by Regulatory category ($M Real at 30/06/"&$E$21&")" -> [APPROVED] Capex by Regulatory category ($M Real at 30/06/2022) | K179: Approved AA1 | N179: Approved AA2 | Q179: Approved AA3 | V179: Approved AA4 | AA179: Approved AA5
A180: =ROW() -> 180 | C180: Growth
A181: =ROW() -> 181 | C181: Capacity Expansion | K181: =K135/$J$24 -> 44.73841766 | L181: 47.33587643 | M181: 54.68512269 | N181: =N135/$M$24 -> 110.6245172 | O181: 141.1129822 | P181: 133.3647415 | Q181: =Q135/$P$24 -> 71.41980178 | R181: 77.01025964 | S181: 85.52529958 | T181: 85.99617132 | U181: 95.88963121 | V181: =V135/$U$24 -> 50.38374479 | W181: 47.65918912 | X181: 38.8150084 | Y181: 29.34185398 | Z181: 32.28120908 | AA181: =AA135/$Z$24 -> 39.77382611 | AB181: 28.4474482 | AC181: 22.38466221 | AD181: 25.65457159 | AE181: 21.96091338
A182: =ROW() -> 182 | C182: Customer Driven | K182: 132.386863 | L182: 153.8137538 | M182: 175.2407146 | N182: 274.5813723 | O182: 275.1181882 | P182: 274.5824177 | Q182: 254.8218711 | R182: 255.7750591 | S182: 262.9488719 | T182: 264.8115635 | U182: 273.0372333 | V182: 139.125173 | W182: 149.9903468 | X182: 137.2845763 | Y182: 142.90092 | Z182: 142.9544612 | AA182: 111.2170348 | AB182: 111.279412 | AC182: 111.3625532 | AD182: 112.3564878 | AE182: 104.6878176
A183: =ROW() -> 183 | C183: gifted assets | K183: 22.75488485 | L183: 27.77502161 | M183: 32.47183588 | N183: 117.5046755 | O183: 117.7344011 | P183: 117.5051229 | Q183: 79.73407246 | R183: 79.73407246 | S183: 79.73407246 | T183: 79.73407246 | U183: 79.73407246 | V183: 91.4244365 | W183: 91.72065167 | X183: 92.01782658 | Y183: 92.31596434 | Z183: 92.61506806 | AA183: 37.96064646 | AB183: 38.13368627 | AC183: 38.30751486 | AD183: 38.48213584 | AE183: 38.65755281
A184: =ROW() -> 184 | C184: Asset replacement and renewal
A185: =ROW() -> 185 | C185: Asset Replacement | K185: =K139/$J$24 -> 25.14036242 | L185: 41.76694979 | M185: 42.20117409 | N185: =N139/$M$24 -> 96.80843036 | O185: 149.9397847 | P185: 177.7524138 | Q185: =Q139/$P$24 -> 52.88051525 | R185: 46.83738742 | S185: 44.10097415 | T185: 45.95903168 | U185: 46.11585806 | V185: =V139/$U$24 -> 83.57423413 | W185: 87.11386786 | X185: 94.68174143 | Y185: 102.7950118 | Z185: 114.9354389 | AA185: =AA139/$Z$24 -> 198.269772 | AB185: 214.5612495 | AC185: 226.0196251 | AD185: 215.8041433 | AE185: 224.7774189
A186: =ROW() -> 186 | C186: State Undergrounding Power Program (SUPP) | K186: 24.41506558 | L186: 22.6796027 | M186: 23.20156706 | N186: 26.91974238 | O186: 26.31450868 | P186: 25.62269589 | Q186: 48.32972197 | R186: 23.34856634 | S186: 0 | T186: 0 | U186: 0 | V186: 45.3441788 | W186: 58.2119001 | X186: 38.22054346 | Y186: 9.816293099 | Z186: 21.24937203 | AA186: 29.77304347 | AB186: 39.39982088 | AC186: 51.17898805 | AD186: 62.15731425 | AE186: 64.90295902
A187: =ROW() -> 187 | C187: Metering | K187: 6.286879386 | L187: 11.26114746 | M187: 13.56950935 | N187: 16.57506136 | O187: 16.72817179 | P187: 17.30257969 | Q187: 16.92176488 | R187: 55.92712299 | S187: 55.44486635 | T187: 50.4648191 | U187: 20.2491728 | V187: 23.74427218 | W187: 30.81799336 | X187: 36.07738883 | Y187: 36.68564117 | Z187: 36.59669702 | AA187: 71.28383804 | AB187: 69.06065084 | AC187: 76.86044844 | AD187: 68.77898115 | AE187: 63.54604829
A188: =ROW() -> 188 | C188: Smartgrid | K188: 0 | L188: 0 | M188: 0 | N188: 0 | O188: 0 | P188: 0 | Q188: 3.110618544 | R188: 30.17287222 | S188: 33.39437927 | T188: 25.36114633 | U188: 19.59597368 | V188: 0 | W188: 0 | X188: 0 | Y188: 0 | Z188: 0 | AA188: 0 | AB188: 0 | AC188: 0 | AD188: 0 | AE188: 0
A189: =ROW() -> 189 | C189: Wood Pole Management | K189: 0 | L189: 0 | M189: 0 | N189: 0 | O189: 0 | P189: 0 | Q189: 206.6694961 | R189: 236.5856173 | S189: 250.0754661 | T189: 263.5241956 | U189: 279.177305 | V189: 191.387001 | W189: 146.6021487 | X189: 137.3022723 | Y189: 135.8201788 | Z189: 123.989788 | AA189: 90.97230577 | AB189: 91.2365213 | AC189: 78.70117037 | AD189: 82.88400504 | AE189: 83.22117583
A190: =ROW() -> 190 | C190: Improvement in service | K190: 0 | L190: 0 | M190: 0 | N190: 0 | O190: 0 | P190: 0
A191: =ROW() -> 191 | C191: Reliability Driven | K191: 13.5657967 | L191: 27.57175579 | M191: 18.45453272 | N191: 14.86973347 | O191: 39.42079181 | P191: 63.80355162 | Q191: =Q145/$P$24 -> 0.7465484506 | R191: 0.7574779637 | S191: 0.7647567772 | T191: 0.7724207004 | U191: 0.7838389472 | V191: =V145/$U$24 -> 4.992246026 | W191: 6.876862543 | X191: 0 | Y191: 0 | Z191: 0 | AA191: =AA145/$Z$24 -> 0.2647909766 | AB191: 0 | AC191: 0 | AD191: 0 | AE191: 0
A192: =ROW() -> 192 | C192: Rural Power Improvement Program (RPIP) | K192: 14.64903935 | L192: 14.75896054 | M192: 16.28341122 | N192: 10.76789695 | O192: 0 | P192: 0 | Q192: 0 | R192: 0 | S192: 0 | T192: 0 | U192: 0 | V192: 0 | W192: 0 | X192: 0 | Y192: 0 | Z192: 0 | AA192: 0 | AB192: 0 | AC192: 0 | AD192: 0 | AE192: 0
A193: =ROW() -> 193 | C193: SCADA & Communications | K193: 3.113976708 | L193: 2.506016987 | M193: 2.578206777 | N193: 7.569096549 | O193: 8.207162978 | P193: 7.587577185 | Q193: 6.470086572 | R193: 7.953518619 | S193: 8.794702938 | T193: 4.891997769 | U193: 8.752868244 | V193: 3.803002129 | W193: 4.270554136 | X193: 5.179728954 | Y193: 4.80631191 | Z193: 4.40399701 | AA193: 26.29093648 | AB193: 26.0420441 | AC193: 29.83766647 | AD193: 35.48634328 | AE193: 37.04500653
A194: =ROW() -> 194 | C194: Compliance | K194: 0 | L194: 0 | M194: 0 | N194: 0 | O194: 0 | P194: 0
A195: =ROW() -> 195 | C195: Safety, Environmental & Statutory | K195: 39.55607477 | L195: 64.04265634 | M195: 63.27462211 | N195: 108.5209275 | O195: 138.1763179 | P195: 150.6165834 | Q195: =Q149/$P$24 -> 141.8442056 | R195: =R149/$P$24 -> 141.6483792 | S195: =S149/$P$24 -> 142.1173011 | T195: =T149/$P$24 -> 106.4653199 | U195: =U149/$P$24 -> 114.8324058 | V195: =V149/$U$24 -> 31.93190705 | W195: =W149/$U$24 -> 49.60595307 | X195: =X149/$U$24 -> 48.51370993 | Y195: =Y149/$U$24 -> 40.12069606 | Z195: =Z149/$U$24 -> 40.21352566 | AA195: =AA149/$Z$24 -> 50.47045355 | AB195: =AB149/$Z$24 -> 49.76458832 | AC195: =AC149/$Z$24 -> 51.02377171 | AD195: =AD149/$Z$24 -> 51.13816493 | AE195: =AE149/$Z$24 -> 51.01814562
A196: =ROW() -> 196 | C196: Corporate | K196: 0 | L196: 0 | M196: 0 | N196: 0 | O196: 0 | P196: 0
A197: =ROW() -> 197 | C197: IT | K197: 27.48870081 | L197: 23.66793821 | M197: 20.8970444 | N197: 24.22776814 | O197: 30.59061634 | P197: 21.13872411 | Q197: =Q151/$P$24 -> 32.26220739 | R197: 31.08206384 | S197: 18.19288466 | T197: 19.01713106 | U197: 19.29825027 | V197: =V151/$U$24 -> 40.21681829 | W197: 43.02706437 | X197: 36.23067867 | Y197: 26.21636465 | Z197: 19.62726169 | AA197: =AA151/$Z$24 -> 16.98819845 | AB197: 18.80620408 | AC197: 18.7682165 | AD197: 22.2959911 | AE197: 21.4367603
A198: =ROW() -> 198 | C198: Business Support | K198: 18.04963747 | L198: 20.75678181 | M198: 12.23426963 | N198: 20.22009149 | O198: 36.24691998 | P198: 31.19018742 | Q198: 25.67016982 | R198: 25.10171738 | S198: 17.39843555 | T198: 17.572792 | U198: 14.49404451 | V198: 21.49583634 | W198: 38.70813399 | X198: 103.2821672 | Y198: 9.727184062 | Z198: 8.082868699 | AA198: 9.044965988 | AB198: 10.75120827 | AC198: 18.52502054 | AD198: 1.78575098 | AE198: 1.865421928
A199: =ROW() -> 199 | C199: Equity Raising Costs | K199: 0 | L199: 0 | M199: 0 | N199: 0 | O199: 0 | P199: 0 | Q199: 6.300157755 | R199: 5.397089237 | S199: 4.327018251 | T199: 1.814181969 | U199: 0 | V199: 0 | W199: 0 | X199: 0 | Y199: 0 | Z199: 0 | AA199: 0 | AB199: 0 | AC199: 0 | AD199: 0 | AE199: 0
A200: =ROW() -> 200 | C200: SPS adjustment | V200: 0 | W200: 0 | X200: 0 | Y200: 0 | Z200: 0 | AA200: 0 | AB200: 0 | AC200: 0 | AD200: 0 | AE200: 0
... 1131 more rows

Sheet T_Input
B1: =Information!$A$1 -> ERA Western Power AA5 Revenue Model, September 2022 [Draft Decision]
B2: Transmission Input
B3: =COLUMN() -> 2 | C3: =COLUMN() -> 3 | D3: =COLUMN() -> 4 | E3: =COLUMN() -> 5 | F3: =COLUMN() -> 6 | G3: =COLUMN() -> 7 | H3: =COLUMN() -> 8 | I3: =COLUMN() -> 9 | J3: =COLUMN() -> 10 | K3: =COLUMN() -> 11 | L3: =COLUMN() -> 12 | M3: =COLUMN() -> 13 | N3: =COLUMN() -> 14 | O3: =COLUMN() -> 15 | P3: =COLUMN() -> 16 | Q3: =COLUMN() -> 17 | R3: =COLUMN() -> 18 | S3: =COLUMN() -> 19 | T3: =COLUMN() -> 20 | U3: =COLUMN() -> 21 | V3: =COLUMN() -> 22 | W3: =COLUMN() -> 23 | X3: =COLUMN() -> 24 | Y3: =COLUMN() -> 25 | Z3: =COLUMN() -> 26 | AA3: =COLUMN() -> 27 | AB3: =COLUMN() -> 28 | AC3: =COLUMN() -> 29 | AD3: =COLUMN() -> 30 | AE3: =COLUMN() -> 31
A4: =ROW() -> 4 | B4: Year Ending 30 June | J4: 2006 | K4: =J4+1 -> 2007 | L4: =K4+1 -> 2008 | M4: 2009 | N4: 2010 | O4: 2011 | P4: 2012 | Q4: 2013 | R4: 2014 | S4: 2015 | T4: 2016 | U4: 2017 | V4: 2018 | W4: 2019 | X4: 2020 | Y4: 2021 | Z4: 2022 | AA4: 2023 | AB4: =AA4+1 -> 2024 | AC4: 2025 | AD4: 2026 | AE4: 2027
A5: =ROW() -> 5 | B5: Project Year | J5: 0 | K5: =J5+1 -> 1 | L5: 2 | M5: 3 | N5: 4 | O5: 5 | P5: 6 | Q5: 7 | R5: 8 | S5: 9 | T5: 10 | U5: 11 | V5: 12 | W5: 13 | X5: 14 | Y5: 15 | Z5: 16 | AA5: 17 | AB5: 18 | AC5: 19 | AD5: 20 | AE5: 21
A6: =ROW() -> 6 | B6: Regulatory Period | K6: AA1 | N6: AA2 | Q6: AA3 | V6: AA4 | AA6: AA5
A7: =ROW() -> 7 | B7: AA1 WP's Forecasted Inflation
A8: =ROW() -> 8 | C8: June CPI | I8: 148.4 | J8: =I8*(1+J9) -> 152.7036 | K8: =J8*(1+K9) -> 156.9793008 | L8: =K8*(1+L9) -> 161.0607626 | M8: =L8*(1+M9) -> 165.2483424
A9: =ROW() -> 9 | C9: Forecast Annual Inflation | J9: 0.029 | K9: 0.028 | L9: 0.026 | M9: 0.026
A10: =ROW() -> 10 | C10: Inflation Factor | J10: 1 | K10: =J10*(1+K9) -> 1.028 | L10: =K10*(1+L9) -> 1.054728 | M10: =L10*(1+M9) -> 1.082150928
A11: =ROW() -> 11 | B11: AA2 Actual and WP's Forecasted Inflation
A12: =ROW() -> 12 | C12: June CPI | I12: 148.4 | J12: 154.3 | K12: 157.5 | L12: 164.6 | M12: 167 | N12: =M12*(1+N13) -> 168.336 | O12: =N12*(1+O13) -> 172.207728 | P12: =O12*(1+P13) -> 176.8573367
A13: =ROW() -> 13 | C13: Actual & Forecast Annual Inflation | J13: =J12/I12-1 -> 0.0397574124 | K13: =K12/J12-1 -> 0.02073882048 | L13: =L12/K12-1 -> 0.04507936508 | M13: =M12/L12-1 -> 0.01458080194 | N13: 0.008 | O13: 0.023 | P13: 0.027
A14: =ROW() -> 14 | C14: Inflation Factor | J14: =K14/(1+K13) -> 0.9239520958 | K14: =L14/(1+L13) -> 0.9431137725 | L14: =M14/(1+M13) -> 0.9856287425 | M14: 1 | N14: =M14*(1+N13) -> 1.008 | O14: =N14*(1+O13) -> 1.031184 | P14: =O14*(1+P13) -> 1.059025968
A15: =ROW() -> 15 | B15: AA3 Actual and WP's Forecasted Inflation
A16: =ROW() -> 16 | C16: June CPI | I16: 148.4 | J16: 154.3 | K16: 157.5 | L16: 164.6 | M16: 167 | N16: 172.1 | O16: 178.3 | P16: 180.4 | Q16: =P16*(1+Q17) -> 185.812 | R16: =Q16*(1+R17) -> 190.4573 | S16: =R16*(1+S17) -> 195.2187325 | T16: =S16*(1+T17) -> 200.0992008 | U16: =T16*(1+U17) -> 205.1016808
A17: =ROW() -> 17 | C17: Actual & Forecast Annual Inflation | J17: =J16/I16-1 -> 0.0397574124 | K17: 0.02073882048 | L17: 0.04507936508 | M17: 0.01458080194 | N17: 0.03053892216 | O17: 0.03602556653 | P17: =P16/O16-1 -> 0.01177790241 | Q17: 0.03 | R17: 0.025 | S17: 0.025 | T17: 0.025 | U17: 0.025
A18: =ROW() -> 18 | C18: Inflation Factor | J18: =K18/(1+K17) -> 0.8553215078 | K18: 0.873059867 | L18: 0.9124168514 | M18: 0.9257206208 | N18: 0.9539911308 | O18: 0.9883592018 | P18: 1 | Q18: =P18*(1+Q17) -> 1.03 | R18: =Q18*(1+R17) -> 1.05575 | S18: =R18*(1+S17) -> 1.08214375 | T18: =S18*(1+T17) -> 1.109197344 | U18: =T18*(1+U17) -> 1.136927277
A19: =ROW() -> 19 | B19: AA4 Actual and Forecasted Inflation
A20: =ROW() -> 20 | C20: June CPI | D20: Base $ June | E20: =D_Input!$E$21 -> 2022 | I20: 148.4 | J20: 154.3 | K20: 157.5 | L20: 164.6 | M20: 167 | N20: 172.1 | O20: 178.3 | P20: 180.4
A21: =ROW() -> 21 | C21: June CPI (rebased) | D21: Base CPI | E21: =D_Input!$E$22 -> 126.1 | P21: 100.4 | Q21: 102.8 | R21: 105.9 | S21: 107.5 | T21: 108.6 | U21: 110.7 | V21: 113 | W21: 114.8 | X21: 114.4 | Y21: 118.8 | Z21: =Y21*(1+Z22) -> 126.1 | AA21: 129.83256 | AB21: 133.6756038 | AC21: 137.6324016 | AD21: 141.7063207 | AE21: 145.9008278
A22: =ROW() -> 22 | C22: Actual & Forecast Inflation | J22: =J20/I20-1 -> 0.0397574124 | K22: 0.02073882048 | L22: 0.04507936508 | M22: 0.01458080194 | N22: 0.03053892216 | O22: 0.03602556653 | P22: 0.01177790241 | Q22: =Q21/P21-1 -> 0.02390438247 | R22: =R21/Q21-1 -> 0.03015564202 | S22: =S21/R21-1 -> 0.01510859301 | T22: =T21/S21-1 -> 0.01023255814 | U22: =U21/T21-1 -> 0.01933701657 | V22: =D_Input!V23 -> 0.02077687444 | W22: =D_Input!W23 -> 0.01592920354 | X22: =D_Input!X23 -> -0.003484320557 | Y22: =D_Input!Y23 -> 0.03846153846 | Z22: =D_Input!Z23 -> 0.06144781145 | AA22: =D_Input!AA23 -> 0.0296 | AB22: =D_Input!AB23 -> 0.0296 | AC22: =D_Input!AC23 -> 0.0296 | AD22: =D_Input!AD23 -> 0.0296 | AE22: =D_Input!AE23 -> 0.0296
A23: =ROW() -> 23 | C23: End of year Inflation factor | J23: =K23/(1+K22) -> 0.6810014225 | K23: 0.6951245888 | L23: 0.7264603639 | M23: 0.7370527386 | N23: 0.7595615348 | O23: 0.7869251694 | P23: =P$21/$E$21 -> 0.7961934972 | Q23: =Q$21/$E$21 -> 0.8152260111 | R23: 0.8398096749 | S23: 0.8524980174 | T23: 0.861221253 | U23: 0.8778747026 | V23: 0.8961141951 | W23: 0.9103885805 | X23: 0.9072164948 | Y23: 0.942109437 | Z23: 1 | AA23: 1.0296 | AB23: 1.06007616 | AC23: 1.091454414 | AD23: 1.123761465 | AE23: 1.157024804
A24: =ROW() -> 24 | B24: Initial Capital Base and Asset Lives
A25: =ROW() -> 25 | B25: Transmission | G25: ICB Life @ 30/06/2006 | H25: 2006 ICB ($M Real 30/06/2006) | I25: 2006 ICB ($M Real 30/06/2017) | K25: Tax asset Life as at 2012 | L25: Tax ICB ($M Nominal 2012) | N25: Regulatory Capex Life (AA1/AA2) | O25: Regulatory Capex Life (AA3) | P25: Regulatory Capex Life (AA4) | Q25: Regulatory Capex Life (AA5)
A26: =ROW() -> 26 | C26: Transmission cables | G26: 38.1 | H26: 12.08660829 | I26: =H26/$J$23 -> 17.74828641 | K26: 47.5 | L26: 1328.902758 | N26: 55 | O26: 55 | P26: 55 | Q26: 55
A27: =ROW() -> 27 | C27: Transmission steel towers | G27: 41.3 | H27: 365.1878518 | I27: 536.251232 | K27: 47.5 | L27: 58.78918677 | N27: 60 | O27: 60 | P27: 60 | Q27: 60
A28: =ROW() -> 28 | C28: Transmission wood poles | G28: 20.9 | H28: 172.740829 | I28: 253.6570751 | K28: 47.5 | L28: 9.139871168 | N28: 45 | O28: 45 | P28: 45 | Q28: 45
A29: =ROW() -> 29 | C29: Transmission metering | G29: 26.1 | H29: 2.126729009 | I29: 3.122943564 | K29: 25 | L29: 0 | N29: 40 | O29: 40 | P29: 40 | Q29: 40
A30: =ROW() -> 30 | C30: Transmission transformers | G30: 25.5 | H30: 154.909869 | I30: 227.473635 | K30: 40 | L30: 165.4964765 | N30: 50 | O30: 50 | P30: 50 | Q30: 50
A31: =ROW() -> 31 | C31: Transmission reactors | G31: 27 | H31: 3.932879594 | I31: 5.775141525 | K31: 40 | L31: 1.929584197 | N31: 50 | O31: 50 | P31: 50 | Q31: 40
A32: =ROW() -> 32 | C32: Transmission capacitors | G32: 23.1 | H32: 76.25847891 | I32: 111.9799113 | K32: 40 | L32: 12.78949966 | N32: 40 | O32: 40 | P32: 40 | Q32: 40
A33: =ROW() -> 33 | C33: Transmission circuit breakers | G33: 28.2 | H33: 455.2650729 | I33: 668.5229397 | K33: 40 | L33: 23.55868953 | N33: 50 | O33: 50 | P33: 50 | Q33: 40
A34: =ROW() -> 34 | C34: SCADA and communications | G34: 11.4 | H34: 33.89058198 | I34: 49.76580203 | K34: 12.5 | L34: 72.73476178 | N34: 34.15 | O34: 11 | P34: 11 | Q34: 11
A35: =ROW() -> 35 | C35: IT | G35: 4.2 | H35: 2.679569855 | I35: 3.934749277 | K35: 4 | L35: 18.76923065 | N35: 16.85 | O35: 6 | P35: 6 | Q35: 6
A36: =ROW() -> 36 | C36: Other non-network assets | G36: 12 | H36: 24.49947447 | I36: 35.97565829 | K36: 12.5 | L36: 151.0024198 | N36: 16.85 | O36: 16.85 | P36: 27 | Q36: 27
A37: =ROW() -> 37 | C37: Land & Easements | H37: 82.98579328 | I37: 121.8584727 | K37: 0 | L37: 200.1478209 | N37: 0 | O37: 0 | P37: 0 | Q37: 0
A38: =ROW() -> 38 | C38: Equity raising costs | I38: 0 | K38: 5 | L38: 0 | N38: 0 | O38: =ROUND(SUMPRODUCT(O$26:O$36,T_Asset!$Q$17:$Q$27)/SUM(T_Asset!$Q$17:$Q$27),) -> 49 | P38: =ROUND(SUMPRODUCT(P$26:P$36,T_Asset!$V$17:$V$27)/SUM(T_Asset!$V$17:$V$27),) -> 49 | Q38: =ROUND(SUMPRODUCT(Q$26:Q$36,T_Asset!$AA$17:$AA$27)/SUM(T_Asset!$AA$17:$AA$27),) -> 45
A39: =ROW() -> 39 | C39: Transmission secondary systems | K39: 30 | Q39: 30
A40: =ROW() -> 40 | C40: Total | H40: =SUM(H26:H39) -> 1386.563738 | I40: =SUM(I26:I39) -> 2036.065847 | K40: =SUM(K26:K39) -> 391.5 | L40: =SUM(L26:L39) -> 2043.260298
A41: =ROW() -> 41 | B41: Asset Allocation
A42: =ROW() -> 42 | B42: AA1 & AA2 APPROVED Asset Allocation
A43: =ROW() -> 43 | C43: Growth | D43: Transmission cables | E43: Transmission steel towers | F43: Transmission wood poles | G43: Transmission metering | H43: Transmission transformers | I43: Transmission reactors | J43: Transmission capacitors | K43: Transmission circuit breakers | L43: SCADA and communications | M43: IT | N43: Other non-network assets | O43: Land & Easements | P43: Equity raising costs
A44: =ROW() -> 44 | C44: Capacity Expansion | D44: 0.04368145859 | E44: 0.2574091684 | F44: 0.07427927047 | G44: 0 | H44: 0.1826269021 | I44: 0 | J44: 0.0274329919 | K44: 0.209377434 | L44: 0.005831082381 | M44: 0 | N44: 0 | O44: 0.1993616922 | P44: 0 | Q44: =IF(SUM(D44:P44)=1,"OK","ERROR") -> OK
A45: =ROW() -> 45 | C45: Customer Driven | D45: 0 | E45: 0.9014114193 | F45: 0 | G45: 0 | H45: 0.07297974882 | I45: 0 | J45: 0.00112434586 | K45: 0 | L45: 0 | M45: 0 | N45: 0 | O45: 0.024484486 | P45: 0 | Q45: OK
A46: =ROW() -> 46 | C46: Generation Driven | D46: 0 | E46: 0.3121390648 | F46: 0 | G46: 0 | H46: 0.2633351379 | I46: 0.0352614256 | J46: 0.2066711878 | K46: 0.1616052299 | L46: 0.006954268583 | M46: 0 | N46: 0 | O46: 0.01403368537 | P46: 0 | Q46: OK
A47: =ROW() -> 47 | C47: gifted assets | D47: 0 | E47: 0.3121390648 | F47: 0 | G47: 0 | H47: 0.2633351379 | I47: 0.0352614256 | J47: 0.2066711878 | K47: 0.1616052299 | L47: 0.006954268583 | M47: 0 | N47: 0 | O47: 0.01403368537 | P47: 0 | Q47: OK
A48: =ROW() -> 48 | C48: Asset replacement and renewal
A49: =ROW() -> 49 | C49: Asset Replacement | D49: 0 | E49: 0 | F49: 0.01652080808 | G49: 0 | H49: 0.04354820875 | I49: 0.01186214141 | J49: 0.01173063973 | K49: 0.916338202 | L49: 0 | M49: 0 | N49: 0 | O49: 0 | P49: 0 | Q49: OK
A50: =ROW() -> 50 | C50: Improvement in service
A51: =ROW() -> 51 | C51: Reliability Driven | D51: 0 | E51: 0 | F51: 0.8472688889 | G51: 0 | H51: 0 | I51: 0 | J51: 0 | K51: 0.1527311111 | L51: 0 | M51: 0 | N51: 0 | O51: 0 | P51: 0 | Q51: =IF(SUM(D51:P51)=1,"OK","ERROR") -> OK
A52: =ROW() -> 52 | C52: SCADA & Communications | D52: 0 | E52: 0 | F52: 0 | G52: 0 | H52: 0 | I52: 0 | J52: 0 | K52: 0 | L52: 1 | M52: 0 | N52: 0 | O52: 0 | P52: 0 | Q52: =IF(SUM(D52:P52)=1,"OK","ERROR") -> OK
A53: =ROW() -> 53 | C53: Compliance
A54: =ROW() -> 54 | C54: Safety, Environmental & Statutory | D54: 0 | E54: 0 | F54: 0.3214245679 | G54: 0 | H54: 0.4146303704 | I54: 0 | J54: 0 | K54: 0.2639450617 | L54: 0 | M54: 0 | N54: 0 | O54: 0 | P54: 0 | Q54: =IF(SUM(D54:P54)=1,"OK","ERROR") -> OK
A55: =ROW() -> 55 | C55: Corporate
A56: =ROW() -> 56 | C56: IT | D56: 0 | E56: 0 | F56: 0 | G56: 0 | H56: 0 | I56: 0 | J56: 0 | K56: 0 | L56: 0 | M56: 1 | N56: 0 | O56: 0 | P56: 0 | Q56: =IF(SUM(D56:P56)=1,"OK","ERROR") -> OK
A57: =ROW() -> 57 | C57: Business Support | D57: 0 | E57: 0 | F57: 0 | G57: 0 | H57: 0 | I57: 0 | J57: 0 | K57: 0 | L57: 0 | M57: 0 | N57: 1 | O57: 0 | P57: 0 | Q57: =IF(SUM(D57:P57)=1,"OK","ERROR") -> OK
A58: =ROW() -> 58 | C58: Equity Raising Costs | D58: 0 | E58: 0 | F58: 0 | G58: 0 | H58: 0 | I58: 0 | J58: 0 | K58: 0 | L58: 0 | M58: 0 | N58: 0 | O58: 0 | P58: 1 | Q58: =IF(SUM(D58:P58)=1,"OK","ERROR") -> OK
A59: =ROW() -> 59
A60: =ROW() -> 60 | B60: AA3 APPROVED Asset Allocation
A61: =ROW() -> 61 | C61: Growth | D61: Transmission cables | E61: Transmission steel towers | F61: Transmission wood poles | G61: Transmission metering | H61: Transmission transformers | I61: Transmission reactors | J61: Transmission capacitors | K61: Transmission circuit breakers | L61: SCADA and communications | M61: IT | N61: Other non-network assets | O61: Land & Easements | P61: Equity raising costs
A62: =ROW() -> 62 | C62: Capacity Expansion | D62: 0.1288197122 | E62: 0.08158130026 | F62: 0.04427315722 | G62: 0 | H62: 0.3101397437 | I62: 0.04234319172 | J62: 0.03106847006 | K62: 0.09628261272 | L62: 0 | M62: 0 | N62: 0 | O62: 0.2654918121 | P62: 0 | Q62: =IF(SUM(D62:P62)=1,"OK","ERROR") -> OK
A63: =ROW() -> 63 | C63: Customer Driven | D63: 0.08209495336 | E63: 0.09466179622 | F63: 0 | G63: 0 | H63: 0.3529123605 | I63: 0 | J63: 0.02874176457 | K63: 0.2004958335 | L63: 0 | M63: 0 | N63: 0 | O63: 0.2410932918 | P63: 0 | Q63: OK
A64: =ROW() -> 64 | C64: Generation Driven
A65: =ROW() -> 65 | C65: gifted assets | D65: 0.08209495336 | E65: 0.09466179622 | F65: 0 | G65: 0 | H65: 0.3529123605 | I65: 0 | J65: 0.02874176457 | K65: 0.2004958335 | L65: 0 | M65: 0 | N65: 0 | O65: 0.2410932918 | P65: 0 | Q65: OK
A66: =ROW() -> 66 | C66: Asset replacement and renewal
A67: =ROW() -> 67 | C67: Asset Replacement | D67: 0 | E67: 0 | F67: 0 | G67: 0 | H67: 0.5969092318 | I67: 0.0730424798 | J67: 0 | K67: 0.3300482884 | L67: 0 | M67: 0 | N67: 0 | O67: 0 | P67: 0 | Q67: OK
A68: =ROW() -> 68 | C68: Improvement in service
A69: =ROW() -> 69 | C69: Reliability Driven | D69: 0 | E69: 0 | F69: 0.8472688889 | G69: 0 | H69: 0 | I69: 0 | J69: 0 | K69: 0.1527311111 | L69: 0 | M69: 0 | N69: 0 | O69: 0 | P69: 0
A70: =ROW() -> 70 | C70: SCADA & Communications | D70: 0 | E70: 0 | F70: 0 | G70: 0 | H70: 0 | I70: 0 | J70: 0 | K70: 0 | L70: 1 | M70: 0 | N70: 0 | O70: 0 | P70: 0 | Q70: =IF(SUM(D70:P70)=1,"OK","ERROR") -> OK
A71: =ROW() -> 71 | C71: Compliance
A72: =ROW() -> 72 | C72: Safety, Environmental & Statutory | D72: 0 | E72: 0 | F72: 1 | G72: 0 | H72: 0 | I72: 0 | J72: 0 | K72: 0 | L72: 0 | M72: 0 | N72: 0 | O72: 0 | P72: 0 | Q72: =IF(SUM(D72:P72)=1,"OK","ERROR") -> OK
A73: =ROW() -> 73 | C73: Corporate
A74: =ROW() -> 74 | C74: IT | D74: 0 | E74: 0 | F74: 0 | G74: 0 | H74: 0 | I74: 0 | J74: 0 | K74: 0 | L74: 0 | M74: 1 | N74: 0 | O74: 0 | P74: 0 | Q74: =IF(SUM(D74:P74)=1,"OK","ERROR") -> OK
A75: =ROW() -> 75 | C75: Business Support | D75: 0 | E75: 0 | F75: 0 | G75: 0 | H75: 0 | I75: 0 | J75: 0 | K75: 0 | L75: 0 | M75: 0 | N75: 1 | O75: 0 | P75: 0 | Q75: =IF(SUM(D75:P75)=1,"OK","ERROR") -> OK
A76: =ROW() -> 76 | C76: Equity Raising Costs | D76: 0 | E76: 0 | F76: 0 | G76: 0 | H76: 0 | I76: 0 | J76: 0 | K76: 0 | L76: 0 | M76: 0 | N76: 0 | O76: 0 | P76: 1 | Q76: =IF(SUM(D76:P76)=1,"OK","ERROR") -> OK
A77: =ROW() -> 77
A78: =ROW() -> 78 | B78: AA4 Proposed Asset Allocation (Also used for AA3 ACTUAL asset allocation)
A79: =ROW() -> 79 | C79: Growth | D79: Transmission cables | E79: Transmission steel towers | F79: Transmission wood poles | G79: Transmission metering | H79: Transmission transformers | I79: Transmission reactors | J79: Transmission capacitors | K79: Transmission circuit breakers | L79: SCADA and communications | M79: IT | N79: Other non-network assets | O79: Land & Easements | P79: Equity raising costs | Q79: Transmission secondary systems
A80: =ROW() -> 80 | C80: Capacity Expansion | D80: 0.1288197122 | E80: 0.08158130026 | F80: 0.04427315722 | G80: 0 | H80: 0.3101397437 | I80: 0.04234319172 | J80: 0.03106847006 | K80: 0.09628261272 | L80: 0 | M80: 0 | N80: 0 | O80: 0.2654918121 | P80: 0 | R80: =IF(SUM(D80:Q80)=1,"OK","ERROR") -> OK
A81: =ROW() -> 81 | C81: Customer Driven | D81: 0.08209495336 | E81: 0.09466179622 | F81: 0 | G81: 0 | H81: 0.3529123605 | I81: 0 | J81: 0.02874176457 | K81: 0.2004958335 | L81: 0 | M81: 0 | N81: 0 | O81: 0.2410932918 | P81: 0 | R81: =IF(SUM(D81:Q81)=1,"OK","ERROR") -> OK
A82: =ROW() -> 82 | C82: Generation Driven
A83: =ROW() -> 83 | C83: gifted assets | D83: 0.08209495336 | E83: 0.09466179622 | F83: 0 | G83: 0 | H83: 0.3529123605 | I83: 0 | J83: 0.02874176457 | K83: 0.2004958335 | L83: 0 | M83: 0 | N83: 0 | O83: 0.2410932918 | P83: 0 | R83: =IF(SUM(D83:Q83)=1,"OK","ERROR") -> OK
A84: =ROW() -> 84 | C84: Asset replacement and renewal
A85: =ROW() -> 85 | C85: Asset Replacement | D85: 0 | E85: 0 | F85: 0 | G85: 0 | H85: 0.5969092318 | I85: 0.0730424798 | J85: 0 | K85: 0.3300482884 | L85: 0 | M85: 0 | N85: 0 | O85: 0 | P85: 0 | R85: =IF(SUM(D85:Q85)=1,"OK","ERROR") -> OK
A86: =ROW() -> 86 | C86: Improvement in service
A87: =ROW() -> 87 | C87: Reliability Driven | D87: 0 | E87: 0 | F87: 0.8472688889 | G87: 0 | H87: 0 | I87: 0 | J87: 0 | K87: 0.1527311111 | L87: 0 | M87: 0 | N87: 0 | O87: 0 | P87: 0 | R87: =IF(SUM(D87:Q87)=1,"OK","ERROR") -> OK
A88: =ROW() -> 88 | C88: SCADA & Communications | D88: 0 | E88: 0 | F88: 0 | G88: 0 | H88: 0 | I88: 0 | J88: 0 | K88: 0 | L88: 1 | M88: 0 | N88: 0 | O88: 0 | P88: 0 | R88: =IF(SUM(D88:Q88)=1,"OK","ERROR") -> OK
A89: =ROW() -> 89 | C89: Compliance
A90: =ROW() -> 90 | C90: Safety, Environmental & Statutory | D90: 0 | E90: 0 | F90: 1 | G90: 0 | H90: 0 | I90: 0 | J90: 0 | K90: 0 | L90: 0 | M90: 0 | N90: 0 | O90: 0 | P90: 0 | R90: =IF(SUM(D90:Q90)=1,"OK","ERROR") -> OK
A91: =ROW() -> 91 | C91: Corporate
A92: =ROW() -> 92 | C92: IT | D92: 0 | E92: 0 | F92: 0 | G92: 0 | H92: 0 | I92: 0 | J92: 0 | K92: 0 | L92: 0 | M92: 1 | N92: 0 | O92: 0 | P92: 0 | R92: =IF(SUM(D92:Q92)=1,"OK","ERROR") -> OK
A93: =ROW() -> 93 | C93: Business Support | D93: 0 | E93: 0 | F93: 0 | G93: 0 | H93: 0 | I93: 0 | J93: 0 | K93: 0 | L93: 0 | M93: 0 | N93: 0.6 | O93: 0.4 | P93: 0 | R93: =IF(SUM(D93:Q93)=1,"OK","ERROR") -> OK
A94: =ROW() -> 94 | C94: Equity Raising Costs | D94: 0 | E94: 0 | F94: 0 | G94: 0 | H94: 0 | I94: 0 | J94: 0 | K94: 0 | L94: 0 | M94: 0 | N94: 0 | O94: 0 | P94: 1 | R94: =IF(SUM(D94:Q94)=1,"OK","ERROR") -> OK
A95: =ROW() -> 95
A96: =ROW() -> 96 | B96: AA5 Proposed Asset Allocation
A97: =ROW() -> 97 | C97: Growth | D97: Transmission cables | E97: Transmission steel towers | F97: Transmission wood poles | G97: Transmission metering | H97: Transmission transformers | I97: Transmission reactors | J97: Transmission capacitors | K97: Transmission circuit breakers | L97: SCADA and communications | M97: IT | N97: Other non-network assets | O97: Land & Easements | P97: Equity raising costs | Q97: Transmission secondary systems
A98: =ROW() -> 98 | C98: Capacity Expansion | D98: 0 | E98: 0 | F98: 0 | G98: 0 | H98: 0.3403669268 | I98: 0 | J98: 0 | K98: 0 | L98: 0 | M98: 0 | N98: 0.6596330732 | O98: 0 | P98: 0 | Q98: 0 | R98: =IF(SUM(D98:Q98)=1,"OK","ERROR") -> OK
A99: =ROW() -> 99 | C99: Customer Driven | D99: 0.2268291947 | E99: 0.001643418383 | F99: 0.01637890681 | G99: 0 | H99: 0.150385815 | I99: 0 | J99: 0 | K99: 0.1534149043 | L99: 0.01471938202 | M99: 0 | N99: 0.4366283789 | O99: 0 | P99: 0 | Q99: 0 | R99: =IF(SUM(D99:Q99)=1,"OK","ERROR") -> OK
A100: =ROW() -> 100 | C100: Generation Driven
A101: =ROW() -> 101 | C101: gifted assets | D101: 0.2268291947 | E101: 0.001643418383 | F101: 0.01637890681 | G101: 0 | H101: 0.150385815 | I101: 0 | J101: 0 | K101: 0.1534149043 | L101: 0.01471938202 | M101: 0 | N101: 0.4366283789 | O101: 0 | P101: 0 | Q101: 0 | R101: =IF(SUM(D101:Q101)=1,"OK","ERROR") -> OK
A102: =ROW() -> 102 | C102: Asset replacement and renewal
A103: =ROW() -> 103 | C103: Asset Replacement | D103: 0 | E103: 0 | F103: 0.03854009028 | G103: 0 | H103: 0.3126760745 | I103: 0.0265584608 | J103: 0.01566477301 | K103: 0.2690612695 | L103: 0 | M103: 0 | N103: 0.08215903305 | O103: 0 | P103: 0 | Q103: 0.2553402988 | R103: =IF(SUM(D103:Q103)=1,"OK","ERROR") -> OK
A104: =ROW() -> 104 | C104: Improvement in service
A105: =ROW() -> 105 | C105: Reliability Driven | D105: 0 | E105: 0 | F105: 0.8472688889 | G105: 0 | H105: 0 | I105: 0 | J105: 0 | K105: 0.1527311111 | L105: 0 | M105: 0 | N105: 0 | O105: 0 | P105: 0 | Q105: 0 | R105: =IF(SUM(D105:Q105)=1,"OK","ERROR") -> OK
A106: =ROW() -> 106 | C106: SCADA & Communications | D106: 0 | E106: 0 | F106: 0 | G106: 0 | H106: 0 | I106: 0 | J106: 0 | K106: 0 | L106: 1 | M106: 0 | N106: 0 | O106: 0 | P106: 0 | Q106: 0 | R106: =IF(SUM(D106:Q106)=1,"OK","ERROR") -> OK
A107: =ROW() -> 107 | C107: Compliance
A108: =ROW() -> 108 | C108: Safety, Environmental & Statutory | D108: 0.08685525383 | E108: 0 | F108: 0.3460336536 | G108: 0 | H108: 0.04154447707 | I108: 0 | J108: 0 | K108: 0 | L108: 0 | M108: 0 | N108: 0.5129085944 | O108: 0 | P108: 0 | Q108: 0.01265802116 | R108: =IF(SUM(D108:Q108)=1,"OK","ERROR") -> OK
A109: =ROW() -> 109 | C109: Corporate
A110: =ROW() -> 110 | C110: IT | D110: 0 | E110: 0 | F110: 0 | G110: 0 | H110: 0 | I110: 0 | J110: 0 | K110: 0 | L110: 0 | M110: 1 | N110: 0 | O110: 0 | P110: 0 | Q110: 0 | R110: =IF(SUM(D110:Q110)=1,"OK","ERROR") -> OK
A111: =ROW() -> 111 | C111: Business Support | D111: 0 | E111: 0 | F111: 0 | G111: 0 | H111: 0 | I111: 0 | J111: 0 | K111: 0 | L111: 0 | M111: 0 | N111: 1 | O111: 0 | P111: 0 | Q111: 0 | R111: =IF(SUM(D111:Q111)=1,"OK","ERROR") -> OK
A112: =ROW() -> 112 | C112: Equity Raising Costs | D112: 0 | E112: 0 | F112: 0 | G112: 0 | H112: 0 | I112: 0 | J112: 0 | K112: 0 | L112: 0 | M112: 0 | N112: 0 | O112: 0 | P112: 1 | Q112: 0 | R112: =IF(SUM(D112:Q112)=1,"OK","ERROR") -> OK
A113: =ROW() -> 113
A114: =ROW() -> 114 | B114: Capital Expenditure | J114: 2006 | K114: =J114+1 -> 2007 | L114: =K114+1 -> 2008 | M114: 2009 | N114: 2010 | O114: 2011 | P114: 2012 | Q114: 2013 | R114: 2014 | S114: 2015 | T114: 2016 | U114: 2017 | V114: 2018 | W114: 2019 | X114: 2020 | Y114: 2021 | Z114: 2022 | AA114: 2023 | AB114: 2024 | AC114: 2025 | AD114: 2026 | AE114: 2027
A115: =ROW() -> 115 | B115: [APPROVED] Capex by Regulatory category ($M Real) | K115: Approved AA1 ($M Real 30/6/2006) | N115: Approved AA2 ($M Real 30/6/2009) | Q115: Approved AA3 ($M Real 30/06/2012) | V115: Approved AA4 ($M Real 30/06/2017) | AA115: Approved AA5 ($M Real 30/6/2022)
A116: =ROW() -> 116 | C116: Growth
A117: =ROW() -> 117 | C117: Capacity Expansion | Q117: 192.6843523 | R117: 271.1514459 | S117: 130.3389167 | T117: 140.0374611 | U117: 221.3558819 | V117: 25.64412594 | W117: 22.56592228 | X117: 2.668666569 | Y117: 3.3868429 | Z117: 0.3842981957 | AA117: 32.14842532 | AB117: 45.6699473 | AC117: 21.36836727 | AD117: 20.09969265 | AE117: 15.29286403
A118: =ROW() -> 118 | C118: Customer Driven | Q118: 33.74697695 | R118: 58.10388126 | S118: 58.63732148 | T118: 59.18371532 | U118: 60.03047101 | V118: 23.0830573 | W118: 22.76673307 | X118: 22.77767334 | Y118: 23.7095132 | Z118: 23.71839653 | AA118: 71.50429172 | AB118: 39.98324826 | AC118: 40.04747203 | AD118: 40.43959135 | AE118: 17.30845937
A119: =ROW() -> 119 | C119: Generation Driven | Q119: 0 | R119: 0 | S119: 0 | T119: 0 | U119: 0 | V119: 0 | W119: 0 | X119: 0 | Y119: 0 | Z119: 0 | AA119: 0 | AB119: 0 | AC119: 0 | AD119: 0 | AE119: 0
A120: =ROW() -> 120 | C120: gifted assets | Q120: 0 | R120: 0 | S120: 0 | T120: 0 | U120: 0 | V120: 0 | W120: 0 | X120: 0 | Y120: 0 | Z120: 0 | AA120: 0 | AB120: 0 | AC120: 0 | AD120: 0 | AE120: 0
A121: =ROW() -> 121 | C121: Asset replacement and renewal
A122: =ROW() -> 122 | C122: Asset Replacement | Q122: 30.38217573 | R122: 33.21655388 | S122: 33.62278192 | T122: 33.93608547 | U122: 35.76945164 | V122: 30.16060121 | W122: 59.25433409 | X122: 52.76606136 | Y122: 45.84924343 | Z122: 54.98843987 | AA122: 52.83637134 | AB122: 51.93714022 | AC122: 46.64961463 | AD122: 46.39153767 | AE122: 47.71100753
A123: =ROW() -> 123 | C123: Improvement in service
A124: =ROW() -> 124 | C124: Reliability Driven | Q124: 0 | R124: 0 | S124: 0 | T124: 0 | U124: 0 | V124: 0 | W124: 0 | X124: 0 | Y124: 0 | Z124: 0 | AA124: 0 | AB124: 0 | AC124: 0 | AD124: 0 | AE124: 0
A125: =ROW() -> 125 | C125: SCADA & Communications | Q125: 14.05299334 | R125: 11.94190306 | S125: 13.0642737 | T125: 18.70573386 | U125: 18.66232259 | V125: 9.169883954 | W125: 15.45632153 | X125: 17.85809183 | Y125: 16.48445735 | Z125: 12.72758768 | AA125: 32.72952801 | AB125: 33.42858185 | AC125: 39.45059474 | AD125: 39.28151608 | AE125: 41.81473815
A126: =ROW() -> 126 | C126: Compliance
A127: =ROW() -> 127 | C127: Safety, Environmental & Statutory | Q127: 17.91261827 | R127: 19.56866467 | S127: 24.6094458 | T127: 30.15405185 | U127: 30.68915271 | V127: 26.87845185 | W127: 39.64475336 | X127: 37.73671543 | Y127: 31.67002272 | Z127: 32.13464669 | AA127: 42.3091662 | AB127: 43.22177344 | AC127: 46.73184822 | AD127: 31.97189931 | AE127: 25.73129549
A128: =ROW() -> 128 | C128: Corporate
A129: =ROW() -> 129 | C129: IT | Q129: 15.50867235 | R129: 14.93222309 | S129: 8.736386449 | T129: 9.125838976 | U129: 9.256404555 | V129: 14.06714463 | W129: 15.05011991 | X129: 12.67286222 | Y129: 9.170029084 | Z129: 6.865275292 | AA129: 32.97211203 | AB129: 35.75478296 | AC129: 35.36461194 | AD129: 38.06806987 | AE129: 34.52842678
A130: =ROW() -> 130 | C130: Business Support | Q130: 12.33983305 | R130: 12.05918776 | S130: 8.354884858 | T130: 8.432737281 | U130: 6.952067556 | V130: 8.14909902 | W130: 14.67430305 | X130: 39.15440156 | Y130: 3.687587906 | Z130: 3.064225851 | AA130: 17.55522416 | AB130: 20.4404417 | AC130: 34.90636219 | AD130: 3.048982787 | AE130: 3.004655721
A131: =ROW() -> 131 | C131: Equity Raising Costs | Q131: 0.7674487754 | R131: 2.300863536 | S131: 0.4311487214 | T131: 1.377294408 | U131: 3.454061022
A132: =ROW() -> 132 | C132: Total | Q132: =SUM(Q117:Q131) -> 317.3950707 | R132: 423.2747231 | S132: 277.7951596 | T132: 300.9529183 | U132: 386.169813 | V132: 137.1523639 | W132: 189.4124873 | X132: 185.6344723 | Y132: 133.9576966 | Z132: 133.8828701 | AA132: 282.0551188 | AB132: 270.4359157 | AC132: 264.518871 | AD132: 219.3012897 | AE132: 185.3914471
A133: =ROW() -> 133 | B133: [ACTUAL] Capex by Regulatory category ($M Nominal) | K133: Actual AA1 | N133: Actual AA2 | Q133: Actual AA3 ($m Nominal) | V133: Actual AA4 ($ Nominal) | AA133: Modelled AA5 ($ Nominal)
A134: =ROW() -> 134 | C134: Growth
A135: =ROW() -> 135 | C135: Capacity Expansion | K135: 118.4 | L135: 105.97 | M135: 124.1430761 | N135: 103.074 | O135: 56 | P135: 42.519 | Q135: 113.767 | R135: 206.206 | S135: 87.848 | T135: 27.304 | U135: 31.275 | V135: 15.094 | W135: 8.509 | X135: 20.044 | Y135: 33.966 | Z135: 27.84317978 | AA135: =AA171*AA$23 -> 33.10001871 | AB135: 48.41362237 | AC135: 23.32259878 | AD135: 22.58726006 | AE135: 17.69422301
A136: =ROW() -> 136 | C136: Customer Driven | K136: 17.9 | L136: 73.4 | M136: 40.87462505 | N136: 49.887 | O136: 43.274 | P136: 58.145 | Q136: 37.628 | R136: 40.311 | S136: -19.06541283 | T136: 5.057 | U136: 6.474 | V136: 22.403 | W136: 58.86 | X136: 115.133 | Y136: 39.848 | Z136: 51.49040646 | AA136: 73.62081876 | AB136: 42.38528828 | AC136: 43.70999013 | AD136: 45.44445442 | AE136: 20.02631682
A137: =ROW() -> 137 | C137: Generation Driven | K137: 112.7 | L137: 88.1 | M137: 95.63175249 | N137: 26.614 | O137: 13.076 | P137: 0 | Q137: 0 | R137: 0 | S137: 0 | T137: 0 | U137: 0 | V137: 0 | W137: 0 | X137: 0 | Y137: 0 | Z137: 0 | AA137: 0 | AB137: 0 | AC137: 0 | AD137: 0 | AE137: 0
A138: =ROW() -> 138 | C138: gifted assets | N138: 1.486 | O138: 0 | P138: 0 | Q138: 0 | R138: 0 | S138: 0 | T138: 0 | U138: 0 | V138: 0 | W138: 0 | X138: 0 | Y138: 0 | Z138: 0 | AA138: 0 | AB138: 0 | AC138: 0 | AD138: 0 | AE138: 0
A139: =ROW() -> 139 | C139: Asset replacement and renewal
A140: =ROW() -> 140 | C140: Asset Replacement | K140: 12.9 | L140: 11.4 | M140: 24.70372921 | N140: 5.308 | O140: 31.569 | P140: 27.327 | Q140: 26.027 | R140: 42.594 | S140: 37.761 | T140: 40.725 | U140: 33.356 | V140: 27.279 | W140: 48.324 | X140: 59.677 | Y140: 58.8 | Z140: 35.30665923 | AA140: =AA176*AA$23 -> 54.40032793 | AB140: =AB176*AB$23 -> 55.05732417 | AC140: =AC176*AC$23 -> 50.91592782 | AD140: =AD176*AD$23 -> 52.13302234 | AE140: =AE176*AE$23 -> 55.20281915
A141: =ROW() -> 141 | C141: Improvement in service
A142: =ROW() -> 142 | C142: Reliability Driven | K142: 4.78 | L142: 5.1 | M142: 7.05048533 | N142: 1.667 | O142: 1.313 | P142: 0.234 | Q142: 1.217 | R142: 0.269 | S142: 0.186 | T142: 0 | U142: 0 | V142: 0.863 | W142: 0.296 | X142: 0.07 | Y142: 0.173 | Z142: 0.01943593044 | AA142: =AA178*AA$23 -> 0 | AB142: 0 | AC142: 0 | AD142: 0 | AE142: 0
A143: =ROW() -> 143 | C143: SCADA & Communications | K143: 5.523 | L143: 3.8 | M143: 4.60468232 | N143: 9.357 | O143: 5.655 | P143: 12.977 | Q143: 5.674 | R143: 10.502 | S143: 12.725 | T143: 16.462 | U143: 11.455 | V143: 12.792 | W143: 21.816 | X143: 21.873 | Y143: 34.853 | Z143: 32.1566683 | AA143: 33.69832204 | AB143: 35.43684269 | AC143: 43.05852578 | AD143: 44.14305406 | AE143: 48.38068923
A144: =ROW() -> 144 | C144: Compliance
A145: =ROW() -> 145 | C145: Safety, Environmental & Statutory | K145: 3.9 | L145: 5.7 | M145: 6.60065994 | N145: 10.985 | O145: 11.146 | P145: 18.355 | Q145: 20.818 | R145: 18.788 | S145: 25.401 | T145: 22.262 | U145: 21.036 | V145: 21.686 | W145: 16.521 | X145: 23.025 | Y145: 23.155 | Z145: 31.12776821 | AA145: =AA181*AA$23 -> 43.56151752 | AB145: =AB181*AB$23 -> 45.81837161 | AC145: =AC181*AC$23 -> 51.00568203 | AD145: =AD181*AD$23 -> 35.92878841 | AE145: =AE181*AE$23 -> 29.77174713
A146: =ROW() -> 146 | C146: Corporate
A147: =ROW() -> 147 | C147: IT | K147: 5.9925 | L147: 11.325 | M147: 6.9 | N147: 10.176 | O147: 14.878 | P147: 17.465 | Q147: 9.44 | R147: 6.407 | S147: 9.263 | T147: 5.167 | U147: 12.331 | V147: 14.17 | W147: 14.974 | X147: 18.788 | Y147: 13.279 | Z147: 16.48208931 | AA147: =AA183*AA$23 -> 33.94808655 | AB147: 37.90279303 | AC147: 38.59886181 | AD147: 42.77942996 | AE147: 39.95024623
A148: =ROW() -> 148 | C148: Business Support | K148: 3.025 | L148: 3.025 | M148: 8.2 | N148: 7.297 | O148: 12.388 | P148: 14.143 | Q148: 10.923 | R148: 1.804 | S148: 5.134 | T148: 7.03 | U148: 2.265 | V148: -1.482 | W148: 13.103 | X148: 17.673 | Y148: 9.097 | Z148: 26.15562563 | AA148: 18.07485879 | AB148: 21.66842495 | AC148: 38.0987031 | AD148: 3.426329363 | AE148: 3.476461198
A149: =ROW() -> 149 | C149: Equity Raising Costs | K149: 0 | L149: 0 | M149: 0 | N149: 0 | O149: 0 | P149: 0 | Q149: 0.509676198 | R149: 1.817065348 | S149: 0.3514960974 | T149: 0.6815086701 | U149: 1.19584255 | V149: 0 | W149: 0 | X149: 0 | Y149: 0 | Z149: 0 | AA149: 0 | AB149: 0 | AC149: 0 | AD149: 0 | AE149: 0
A150: =ROW() -> 150 | C150: Total | K150: =SUM(K135:K149) -> 285.1205 | L150: 307.82 | M150: 318.7090104 | N150: 225.851 | O150: 189.299 | P150: 191.165 | Q150: 226.0036762 | R150: 328.6980653 | S150: 159.6040833 | T150: 124.6885087 | U150: 119.3878426 | V150: 112.805 | W150: 182.403 | X150: 276.283 | Y150: 213.171 | Z150: 220.5818328 | AA150: =SUM(AA136:AA149) -> 257.3039316 | AB150: =SUM(AB136:AB149) -> 238.2690447 | AC150: =SUM(AC136:AC149) -> 265.3876907 | AD150: =SUM(AD136:AD149) -> 223.8550786 | AE150: =SUM(AE136:AE149) -> 196.8082798
A151: =ROW() -> 151 | B151: ="[APPROVED] Capex by Regulatory category ($M Real at 30/06/"&$E$20&")" -> [APPROVED] Capex by Regulatory category ($M Real at 30/06/2022) | K151: Approved AA1 | N151: Approved AA2 | Q151: Approved AA3 | V151: Approved AA4 | AA151: Approved AA5
A152: =ROW() -> 152 | C152: Growth
A153: =ROW() -> 153 | C153: Capacity Expansion | K153: =K117/$J$23 -> 0 | L153: 0 | M153: 0 | N153: =N117/$M$23 -> 0 | O153: =O117/$M$23 -> 0 | P153: =P117/$M$23 -> 0 | Q153: =Q117/$P$23 -> 242.0069405 | R153: 340.5597343 | S153: 163.7025637 | T153: 175.8837037 | U153: 278.0176963 | V153: =V117/$U$23 -> 29.21160146 | W153: =W117/$U$23 -> 25.70517434 | X153: =X117/$U$23 -> 3.039917384 | Y153: =Y117/$U$23 -> 3.858002617 | Z153: =Z117/$U$23 -> 0.4377597333 | AA153: =AA117/$Z$23 -> 32.14842532 | AB153: =AB117/$Z$23 -> 45.6699473 | AC153: =AC117/$Z$23 -> 21.36836727 | AD153: =AD117/$Z$23 -> 20.09969265 | AE153: =AE117/$Z$23 -> 15.29286403
A154: =ROW() -> 154 | C154: Customer Driven | K154: 0 | L154: 0 | M154: 0 | N154: =N118/$M$23 -> 0 | O154: 0 | P154: 0 | Q154: 42.38539635 | R154: 72.97708593 | S154: 73.64707409 | T154: 74.33333169 | U154: 75.3968366 | V154: =V118/$U$23 -> 26.29425046 | W154: 25.93392087 | X154: 25.94638309 | Y154: 27.0078556 | Z154: 27.01797473 | AA154: =AA118/$Z$23 -> 71.50429172 | AB154: 39.98324826 | AC154: 40.04747203 | AD154: 40.43959135 | AE154: 17.30845937
A155: =ROW() -> 155 | C155: Generation Driven | K155: 0 | L155: 0 | M155: 0 | N155: 0 | O155: 0 | P155: 0 | Q155: 0 | R155: 0 | S155: 0 | T155: 0 | U155: 0 | V155: 0 | W155: 0 | X155: 0 | Y155: 0 | Z155: 0 | AA155: 0 | AB155: 0 | AC155: 0 | AD155: 0 | AE155: 0
A156: =ROW() -> 156 | C156: gifted assets | K156: 0 | L156: 0 | M156: 0 | N156: 0 | O156: 0 | P156: 0 | Q156: 0 | R156: 0 | S156: 0 | T156: 0 | U156: 0 | V156: 0 | W156: 0 | X156: 0 | Y156: 0 | Z156: 0 | AA156: 0 | AB156: 0 | AC156: 0 | AD156: 0 | AE156: 0
A157: =ROW() -> 157 | C157: Asset replacement and renewal | K157: 0 | L157: 0 | M157: 0 | N157: 0 | O157: 0 | P157: 0 | Q157: 0 | R157: 0 | S157: 0 | T157: 0 | U157: 0 | V157: 0 | W157: 0 | X157: 0 | Y157: 0 | Z157: 0 | AA157: 0 | AB157: 0 | AC157: 0 | AD157: 0 | AE157: 0
A158: =ROW() -> 158 | C158: Asset Replacement | K158: 0 | L158: 0 | M158: 0 | N158: 0 | O158: 0 | P158: 0 | Q158: 38.15928645 | R158: 41.71919765 | S158: 42.22941036 | T158: 42.62291213 | U158: 44.92557621 | V158: 34.35638493 | W158: 67.49748446 | X158: 60.10659744 | Y158: 52.2275483 | Z158: 62.63814153 | AA158: 52.83637134 | AB158: 51.93714022 | AC158: 46.64961463 | AD158: 46.39153767 | AE158: 47.71100753
A159: =ROW() -> 159 | C159: Improvement in service | K159: 0 | L159: 0 | M159: 0 | N159: 0 | O159: 0 | P159: 0 | Q159: 0 | R159: 0 | S159: 0 | T159: 0 | U159: 0 | V159: 0 | W159: 0 | X159: 0 | Y159: 0 | Z159: 0 | AA159: 0 | AB159: 0 | AC159: 0 | AD159: 0 | AE159: 0
A160: =ROW() -> 160 | C160: Reliability Driven | K160: 0 | L160: 0 | M160: 0 | N160: 0 | O160: 0 | P160: 0 | Q160: 0 | R160: 0 | S160: 0 | T160: 0 | U160: 0 | V160: 0 | W160: 0 | X160: 0 | Y160: 0 | Z160: 0 | AA160: 0 | AB160: 0 | AC160: 0 | AD160: 0 | AE160: 0
A161: =ROW() -> 161 | C161: SCADA & Communications | K161: 0 | L161: 0 | M161: 0 | N161: 0 | O161: 0 | P161: 0 | Q161: 17.6502237 | R161: 14.99874478 | S161: 16.40841547 | T161: 23.49395458 | U161: 23.43943107 | V161: 10.44554983 | W161: 17.60652344 | X161: 20.34241535 | Y161: 18.77768809 | Z161: 14.49818254 | AA161: 32.72952801 | AB161: 33.42858185 | AC161: 39.45059474 | AD161: 39.28151608 | AE161: 41.81473815
A162: =ROW() -> 162 | C162: Compliance | K162: 0 | L162: 0 | M162: 0 | N162: 0 | O162: 0 | P162: 0 | Q162: 0 | R162: 0 | S162: 0 | T162: 0 | U162: 0 | V162: 0 | W162: 0 | X162: 0 | Y162: 0 | Z162: 0 | AA162: 0 | AB162: 0 | AC162: 0 | AD162: 0 | AE162: 0
A163: =ROW() -> 163 | C163: Safety, Environmental & Statutory | K163: 0 | L163: 0 | M163: 0 | N163: 0 | O163: 0 | P163: 0 | Q163: 22.49782035 | R163: 24.57777505 | S163: 30.90887565 | T163: 37.8727683 | U163: 38.5448422 | V163: 30.61764027 | W163: 45.1599223 | X163: 42.9864482 | Y163: 36.07578921 | Z163: 36.60504921 | AA163: 42.3091662 | AB163: 43.22177344 | AC163: 46.73184822 | AD163: 31.97189931 | AE163: 25.73129549
A164: =ROW() -> 164 | C164: Corporate | K164: 0 | L164: 0 | M164: 0 | N164: 0 | O164: 0 | P164: 0 | Q164: 0 | R164: 0 | S164: 0 | T164: 0 | U164: 0 | V164: 0 | W164: 0 | X164: 0 | Y164: 0 | Z164: 0 | AA164: 0 | AB164: 0 | AC164: 0 | AD164: 0 | AE164: 0
A165: =ROW() -> 165 | C165: IT | K165: 0 | L165: 0 | M165: 0 | N165: 0 | O165: 0 | P165: 0 | Q165: 19.47852174 | R165: 18.75451526 | S165: 10.97269254 | T165: 11.46183561 | U165: 11.62582285 | V165: 16.02409158 | W165: 17.14381319 | X165: 14.43584395 | Y165: 10.44571515 | Z165: 7.820336172 | AA165: 32.97211203 | AB165: 35.75478296 | AC165: 35.36461194 | AD165: 38.06806987 | AE165: 34.52842678
A166: =ROW() -> 166 | C166: Business Support | K166: 0 | L166: 0 | M166: 0 | N166: 0 | O166: 0 | P166: 0 | Q166: 15.49853533 | R166: 15.14605156 | S166: 10.49353566 | T166: 10.59131645 | U166: 8.731630666 | V166: 9.282758685 | W166: 16.71571468 | X166: 44.60135535 | Y166: 4.200585682 | Z166: 3.490504786 | AA166: 17.55522416 | AB166: 20.4404417 | AC166: 34.90636219 | AD166: 3.048982787 | AE166: 3.004655721
A167: =ROW() -> 167 | C167: Equity Raising Costs | K167: 0 | L167: 0 | M167: 0 | N167: 0 | O167: 0 | P167: 0 | Q167: 0.9638973165 | R167: 2.8898296 | S167: 0.5415124878 | T167: 1.729848854 | U167: 4.338218076 | V167: 0 | W167: 0 | X167: 0 | Y167: 0 | Z167: 0 | AA167: 0 | AB167: 0 | AC167: 0 | AD167: 0 | AE167: 0
A168: =ROW() -> 168 | C168: Total | K168: =SUM(K153:K167) -> 0 | L168: 0 | M168: 0 | N168: 0 | O168: 0 | P168: 0 | Q168: 398.6406217 | R168: 531.6229341 | S168: 348.9040799 | T168: 377.9896713 | U168: 485.0200539 | V168: 156.2322772 | W168: 215.7625533 | X168: 211.4589608 | Y168: 152.5931846 | Z168: 152.5079487 | AA168: =SUM(AA154:AA167) -> 249.9066935 | AB168: =SUM(AB154:AB167) -> 224.7659684 | AC168: =SUM(AC154:AC167) -> 243.1505037 | AD168: =SUM(AD154:AD167) -> 199.2015971 | AE168: =SUM(AE154:AE167) -> 170.098583
A169: =ROW() -> 169 | B169: ="[ACTUAL] Capex by Regulatory category ($M Real at 30/06/"&$E$20&")" -> [ACTUAL] Capex by Regulatory category ($M Real at 30/06/2022) | K169: Actual AA1 | N169: Actual AA2 | Q169: Actual AA3 | V169: Actual AA4 | AA169: Modelled AA5
A170: =ROW() -> 170 | C170: Growth
A171: =ROW() -> 171 | C171: Capacity Expansion | K171: =K135/K$23 -> 170.3291783 | L171: 145.8716886 | M171: 168.4317412 | N171: 135.7019745 | O171: 71.16305613 | P171: 53.40284761 | Q171: 139.5527111 | R171: 245.5389669 | S171: 103.047747 | T171: 31.70381584 | U171: 35.62581301 | V171: 16.8438354 | W171: 9.346558362 | X171: 22.09395455 | Y171: 36.05313636 | Z171: 27.84317978 | AA171: =AA153 -> 32.14842532 | AB171: =AB153 -> 45.6699473 | AC171: =AC153 -> 21.36836727 | AD171: =AD153 -> 20.09969265 | AE171: =AE153 -> 15.29286403
A172: =ROW() -> 172 | C172: Customer Driven | K172: 25.75077949 | L172: 101.0378593 | M172: 55.45685256 | N172: 65.67868134 | O172: 54.99125163 | P172: 73.02873008 | Q172: 46.15652529 | R172: 48.00016147 | S172: -22.36417263 | T172: 5.871894107 | U172: 7.374628726 | V172: 25.00016195 | W172: 64.6537108 | X172: 126.9079659 | Y172: 42.29657239 | Z172: 51.49040646 | AA172: =AA154 -> 71.50429172 | AB172: 39.98324826 | AC172: 40.04747203 | AD172: 40.43959135 | AE172: 17.30845937
A173: =ROW() -> 173 | C173: Generation Driven | K173: 162.1292094 | L173: 121.2729619 | M173: 129.7488599 | N173: 35.03863582 | O173: 16.61657361 | P173: 0 | Q173: 0 | R173: 0 | S173: 0 | T173: 0 | U173: 0 | V173: 0 | W173: 0 | X173: 0 | Y173: 0 | Z173: 0 | AA173: 0 | AB173: 0 | AC173: 0 | AD173: 0 | AE173: 0
A174: =ROW() -> 174 | C174: gifted assets | K174: 0 | L174: 0 | M174: 0 | N174: 1.956391855 | O174: 0 | P174: 0 | Q174: 0 | R174: 0 | S174: 0 | T174: 0 | U174: 0 | V174: 0 | W174: 0 | X174: 0 | Y174: 0 | Z174: 0 | AA174: 0 | AB174: 0 | AC174: 0 | AD174: 0 | AE174: 0
A175: =ROW() -> 175 | C175: Asset replacement and renewal | K175: 0 | L175: 0 | M175: 0 | N175: 0 | O175: 0 | P175: 0 | Q175: 0 | R175: 0 | S175: 0 | T175: 0 | U175: 0 | V175: 0 | W175: 0 | X175: 0 | Y175: 0 | Z175: 0 | AA175: 0 | AB175: 0 | AC175: 0 | AD175: 0 | AE175: 0
A176: =ROW() -> 176 | C176: Asset Replacement | K176: 18.55782432 | L176: 15.69252855 | M176: 33.51690852 | N176: 6.988242238 | O176: 40.11690213 | P176: 34.32205876 | Q176: 31.92611576 | R176: 50.71863456 | S176: 44.29453116 | T176: 47.2875 | U176: 37.99631075 | V176: 30.44143274 | W176: 53.08063066 | X176: 65.78032955 | Y176: 62.41313131 | Z176: 35.30665923 | AA176: 52.83637134 | AB176: 51.93714022 | AC176: 46.64961463 | AD176: 46.39153767 | AE176: 47.71100753
A177: =ROW() -> 177 | C177: Improvement in service | K177: 0 | L177: 0 | M177: 0 | N177: 0 | O177: 0 | P177: 0 | Q177: 0 | R177: 0 | S177: 0 | T177: 0 | U177: 0 | V177: 0 | W177: 0 | X177: 0 | Y177: 0 | Z177: 0 | AA177: 0 | AB177: 0 | AC177: 0 | AD177: 0 | AE177: 0
A178: =ROW() -> 178 | C178: Reliability Driven | K178: 6.876465136 | L178: 7.020341719 | M178: 9.565781336 | N178: 2.194687229 | O178: 1.668519513 | P178: 0.2938984064 | Q178: 1.492837549 | R178: 0.3203106704 | S178: 0.2181823256 | T178: 0 | U178: 0 | V178: 0.9630469027 | W178: 0.3251358885 | X178: 0.07715909091 | Y178: 0.1836304714 | Z178: 0.01943593044 | AA178: 0 | AB178: 0 | AC178: 0 | AD178: 0 | AE178: 0
A179: =ROW() -> 179 | C179: SCADA & Communications | K179: 7.945338274 | L179: 5.23084285 | M179: 6.247425834 | N179: 12.31894925 | O179: 7.1861979 | P179: 16.29880179 | Q179: 6.960033074 | R179: 12.50521435 | S179: 14.92672093 | T179: 19.11471639 | U179: 13.04855917 | V179: 14.27496637 | W179: 23.96339373 | X179: 24.11001136 | Y179: 36.99464057 | Z179: 32.1566683 | AA179: 32.72952801 | AB179: 33.42858185 | AC179: 39.45059474 | AD179: 39.28151608 | AE179: 41.81473815
A180: =ROW() -> 180 | C180: Compliance | K180: 0 | L180: 0 | M180: 0 | N180: 0 | O180: 0 | P180: 0 | Q180: 0 | R180: 0 | S180: 0 | T180: 0 | U180: 0 | V180: 0 | W180: 0 | X180: 0 | Y180: 0 | Z180: 0 | AA180: 0 | AB180: 0 | AC180: 0 | AD180: 0 | AE180: 0
A181: =ROW() -> 181 | C181: Safety, Environmental & Statutory | K181: 5.610505028 | L181: 7.846264275 | M181: 8.955478482 | N181: 14.46229107 | O181: 14.16398971 | P181: 23.05344124 | Q181: 25.53647665 | R181: 22.3717356 | S181: 29.79596372 | T181: 25.84933886 | U181: 23.96241734 | V181: 24.20004071 | W181: 18.14719599 | X181: 25.37982955 | Y181: 24.57782407 | Z181: 31.12776821 | AA181: 42.3091662 | AB181: 43.22177344 | AC181: 46.73184822 | AD181: 31.97189931 | AE181: 25.73129549
A182: =ROW() -> 182 | C182: Corporate | K182: 0 | L182: 0 | M182: 0 | N182: 0 | O182: 0 | P182: 0 | Q182: 0 | R182: 0 | S182: 0 | T182: 0 | U182: 0 | V182: 0 | W182: 0 | X182: 0 | Y182: 0 | Z182: 0 | AA182: 0 | AB182: 0 | AC182: 0 | AD182: 0 | AE182: 0
A183: =ROW() -> 183 | C183: IT | K183: 8.620756763 | L183: 15.58928823 | M183: 9.361609609 | N183: 13.3972029 | O183: 18.90649909 | P183: 21.93562251 | Q183: 11.57961089 | R183: 7.629109537 | S183: 10.86571442 | T183: 5.999619705 | U183: 14.04642367 | V183: 15.81271681 | W183: 16.4479216 | X183: 20.7095 | Y183: 14.09496549 | Z183: 16.48208931 | AA183: 32.97211203 | AB183: 35.75478296 | AC183: 35.36461194 | AD183: 38.06806987 | AE183: 34.52842678
A184: =ROW() -> 184 | C184: Business Support | K184: 4.351737874 | L184: 4.164026216 | M184: 11.12539113 | N184: 9.606858254 | O184: 15.74228463 | P184: 17.76326992 | Q184: 13.39873833 | R184: 2.14810576 | S184: 6.022301395 | T184: 8.162826888 | U184: 2.580094851 | V184: -1.65380708 | W184: 14.39275523 | X184: 19.48046591 | Y184: 9.655990741 | Z184: 26.15562563 | AA184: 17.55522416 | AB184: 20.4404417 | AC184: 34.90636219 | AD184: 3.048982787 | AE184: 3.004655721
A185: =ROW() -> 185 | C185: Equity Raising Costs | K185: 0 | L185: 0 | M185: 0 | N185: 0 | O185: 0 | P185: 0 | Q185: 0.6251961923 | R185: 2.163663271 | S185: 0.4123130965 | T185: 0.7913282071 | U185: 1.362201857 | V185: 0 | W185: 0 | X185: 0 | Y185: 0 | Z185: 0 | AA185: 0 | AB185: 0 | AC185: 0 | AD185: 0 | AE185: 0
A186: =ROW() -> 186 | C186: Total | K186: =SUM(K171:K185) -> 410.1717945 | L186: =SUM(L171:L185) -> 423.7258016 | M186: 432.4100485 | N186: 297.3439144 | O186: 240.5552743 | P186: 240.0986703 | Q186: 277.2282448 | R186: 391.3959022 | S186: 187.2193014 | T186: 144.78104 | U186: 135.9964494 | V186: 125.8823938 | W186: 200.3573023 | X186: 304.5392159 | Y186: 226.2698914 | Z186: 220.5818328 | AA186: 282.0551188 | AB186: 270.4359157 | AC186: 264.518871 | AD186: 219.3012897 | AE186: 185.3914471
A187: =ROW() -> 187 | B187: ="[APPROVED] Capex by asset class ($M Real at 30/06/"&$E$20&") including gifted assets" -> [APPROVED] Capex by asset class ($M Real at 30/06/2022) including gifted assets | K187: Approved AA1 | N187: Approved AA2 | Q187: Approved AA3 | V187: Approved AA4 | AA187: Modelled AA5
A188: =ROW() -> 188 | C188: Transmission cables | K188: =SUMPRODUCT(K$153:K$167,OFFSET($D$44:$D$58,0,$A188-$A$188)) -> 0 | L188: 0 | M188: 0 | N188: 0 | O188: 0 | P188: 0 | Q188: =SUMPRODUCT(Q$153:Q$167,OFFSET($D$62:$D$76,0,$A188-$A$188)) -> 34.65489156 | R188: 49.86185743 | S188: 27.13417025 | T188: 28.75967948 | U188: 42.0038594 | V188: =SUMPRODUCT(V$153:V$167,OFFSET($D$80:$D$94,0,$A188-$A$188)) -> 5.921655358 | W188: 5.440377185 | X188: 2.521668392 | Y188: 2.714195432 | Z188: 2.274431458 | AA188: =SUMPRODUCT(AA$153:AA$167,OFFSET($D$98:$D$112,0,$A188-$A$188)) -> 19.89403428 | AB188: =SUMPRODUCT(AB$153:AB$167,OFFSET($D$98:$D$112,0,$A188-$A$188)) -> 12.82340611 | AC188: =SUMPRODUCT(AC$153:AC$167,OFFSET($D$98:$D$112,0,$A188-$A$188)) -> 13.14284237 | AD188: =SUMPRODUCT(AD$153:AD$167,OFFSET($D$98:$D$112,0,$A188-$A$188)) -> 11.94980737 | AE188: =SUMPRODUCT(AE$153:AE$167,OFFSET($D$98:$D$112,0,$A188-$A$188)) -> 6.160962101
A189: =ROW() -> 189 | C189: Transmission steel towers | K189: 0 | L189: 0 | M189: 0 | N189: 0 | O189: 0 | P189: 0 | Q189: 23.75551863 | R189: 34.69144798 | S189: 20.32663232 | T189: 21.38534793 | U189: 29.81824514 | V189: 4.872181408 | W189: 4.552013078 | X189: 2.704131641 | Y189: 2.871352993 | Z189: 2.593283026 | AA189: =SUMPRODUCT(AA$153:AA$167,OFFSET($D$98:$D$112,0,$A189-$A$188)) -> 0.1175114674 | AB189: 0.06570920518 | AC189: 0.0658147517 | AD189: 0.06645916781 | AE189: 0.0284450403
A190: =ROW() -> 190 | C190: Transmission wood poles | K190: 0 | L190: 0 | M190: 0 | N190: 0 | O190: 0 | P190: 0 | Q190: 33.21223167 | R190: 39.65542971 | S190: 38.15650499 | T190: 45.65969517 | U190: 50.85356337 | V190: 31.9109301 | W190: 46.29797152 | X190: 43.12103494 | Y190: 36.24659516 | Z190: 36.62443021 | AA190: 17.84787601 | AB190: 17.61273215 | AC190: 18.62460635 | AD190: 13.51364348 | AE190: 11.02617437
A191: =ROW() -> 191 | C191: Transmission Metering | K191: 0 | L191: 0 | M191: 0 | N191: 0 | O191: 0 | P191: 0 | Q191: 0 | R191: 0 | S191: 0 | T191: 0 | U191: 0 | V191: 0 | W191: 0 | X191: 0 | Y191: 0 | Z191: 0 | AA191: 0 | AB191: 0 | AC191: 0 | AD191: 0 | AE191: 0
A192: =ROW() -> 192 | C192: Transmission transformers | K192: 0 | L192: 0 | M192: 0 | N192: 0 | O192: 0 | P192: 0 | Q192: 112.7919311 | R192: 156.2781986 | S192: 101.9687588 | T192: 106.2236881 | U192: 139.6493038 | V192: 38.84688793 | W192: 57.41446901 | X192: 45.97778141 | Y192: 41.90303175 | Z192: 47.06002887 | AA192: 39.97387328 | AB192: 39.59258008 | AC192: 29.82332579 | AD192: 28.75659125 | AE192: 23.79521566
A193: =ROW() -> 193 | C193: Transmission reactors | K193: 0 | L193: 0 | M193: 0 | N193: 0 | O193: 0 | P193: 0 | Q193: 13.03459519 | R193: 17.46765977 | S193: 10.01622989 | T193: 10.56076058 | U193: 15.05363211 | V193: 3.746387994 | W193: 6.01862277 | X193: 4.519054734 | Y193: 3.978189786 | Z193: 4.593781332 | AA193: 1.403252697 | AB193: 1.379370502 | AC193: 1.238941961 | AD193: 1.232087835 | AE193: 1.267130923
A194: =ROW() -> 194 | C194: Transmission capacitors | K194: 0 | L194: 0 | M194: 0 | N194: 0 | O194: 0 | P194: 0 | Q194: 8.737016468 | R194: 12.67816013 | S194: 7.202735063 | T194: 7.600908701 | U194: 10.8046226 | V194: 1.663302922 | W194: 1.544007087 | X194: 0.8401904164 | Y194: 0.896115666 | Z194: 0.790144794 | AA194: 0.8276697638 | AB194: 0.8135835124 | AC194: 0.7307556243 | AD194: 0.7267129073 | AE194: 0.7473821031
A195: =ROW() -> 195 | C195: Transmission circuit breakers | K195: 0 | L195: 0 | M195: 0 | N195: 0 | O195: 0 | P195: 0 | Q195: 44.39356307 | R195: 61.19093246 | S195: 44.46538665 | T195: 45.90568501 | U195: 56.71263131 | V195: 19.42372301 | W195: 29.95203364 | X195: 25.3329125 | Y195: 23.02403401 | Z195: 26.13275141 | AA195: 25.18604522 | AB195: 20.10829909 | AC195: 18.69548362 | AD195: 18.68620206 | AE195: 15.49255989
A196: =ROW() -> 196 | C196: SCADA and Communications | K196: 0 | L196: 0 | M196: 0 | N196: 0 | O196: 0 | P196: 0 | Q196: 17.6502237 | R196: 14.99874478 | S196: 16.40841547 | T196: 23.49395458 | U196: 23.43943107 | V196: 10.44554983 | W196: 17.60652344 | X196: 20.34241535 | Y196: 18.77768809 | Z196: 14.49818254 | AA196: 33.782027 | AB196: 34.01711056 | AC196: 40.04006878 | AD196: 39.87676188 | AE196: 42.06950797
A197: =ROW() -> 197 | C197: IT | K197: 0 | L197: 0 | M197: 0 | N197: 0 | O197: 0 | P197: 0 | Q197: 19.47852174 | R197: 18.75451526 | S197: 10.97269254 | T197: 11.46183561 | U197: 11.62582285 | V197: 16.02409158 | W197: 17.14381319 | X197: 14.43584395 | Y197: 10.44571515 | Z197: 7.820336172 | AA197: 32.97211203 | AB197: 35.75478296 | AC197: 35.36461194 | AD197: 38.06806987 | AE197: 34.52842678
A198: =ROW() -> 198 | C198: Other Non-Network Assets | K198: 0 | L198: 0 | M198: 0 | N198: 0 | O198: 0 | P198: 0 | Q198: 15.49853533 | R198: 15.14605156 | S198: 10.49353566 | T198: 10.59131645 | U198: 8.731630666 | V198: 5.569655211 | W198: 10.02942881 | X198: 26.76081321 | Y198: 2.520351409 | Z198: 2.094302872 | AA198: 96.02391187 | AB198: 94.45959454 | AC198: 94.28936056 | AD198: 54.17462385 | AE198: 37.76739202
A199: =ROW() -> 199 | C199: Land & Easements | K199: 0 | L199: 0 | M199: 0 | N199: 0 | O199: 0 | P199: 0 | Q199: 74.46969589 | R199: 108.0101069 | S199: 61.21750579 | T199: 64.61695083 | U199: 91.9890935 | V199: 17.80791188 | W199: 19.76329354 | X199: 24.90311422 | Y199: 9.215915189 | Z199: 8.026276004 | AA199: 0 | AB199: 0 | AC199: 0 | AD199: 0 | AE199: 0
A200: =ROW() -> 200 | C200: Equity Raising Costs | K200: 0 | L200: 0 | M200: 0 | N200: 0 | O200: 0 | P200: 0 | Q200: 0.9638973165 | R200: 2.8898296 | S200: 0.5415124878 | T200: 1.729848854 | U200: 4.338218076 | V200: 0 | W200: 0 | X200: 0 | Y200: 0 | Z200: 0 | AA200: 0 | AB200: 0 | AC200: 0 | AD200: 0 | AE200: 0
... 1109 more rows

Sheet Adjustment_Input
B1: =Information!$A$1 -> ERA Western Power AA5 Revenue Model, September 2022 [Draft Decision]
B2: Adjustment Input
B3: =COLUMN() -> 2 | C3: =COLUMN() -> 3 | D3: =COLUMN() -> 4 | E3: =COLUMN() -> 5 | F3: =COLUMN() -> 6 | G3: =COLUMN() -> 7 | H3: =COLUMN() -> 8 | I3: =COLUMN() -> 9 | J3: =COLUMN() -> 10 | K3: =COLUMN() -> 11 | L3: =COLUMN() -> 12 | M3: =COLUMN() -> 13 | N3: =COLUMN() -> 14 | O3: =COLUMN() -> 15 | P3: =COLUMN() -> 16 | Q3: =COLUMN() -> 17 | R3: =COLUMN() -> 18 | S3: =COLUMN() -> 19 | T3: =COLUMN() -> 20 | U3: =COLUMN() -> 21
A4: =ROW() -> 4 | B4: Year ending 30 June Financial Year | H4: 2006 | I4: =H4+1 -> 2007 | J4: 2008 | K4: 2009 | L4: 2010 | M4: 2011 | N4: 2012 | O4: 2013 | P4: 2014 | Q4: 2015 | R4: 2016 | S4: 2017 | T4: 2018 | U4: 2019 | V4: =U4+1 -> 2020 | W4: =V4+1 -> 2021 | X4: =W4+1 -> 2022
A5: =ROW() -> 5 | B5: Inflation factor | H5: =D_Input!J24 -> 0.6810014225 | I5: =D_Input!K24 -> 0.6951245888 | J5: =D_Input!L24 -> 0.7264603639 | K5: =D_Input!M24 -> 0.7370527386 | L5: =D_Input!N24 -> 0.7595615348 | M5: =D_Input!O24 -> 0.7869251694 | N5: =D_Input!P24 -> 0.7961934972 | O5: =D_Input!Q24 -> 0.8152260111 | P5: =D_Input!R24 -> 0.8398096749 | Q5: =D_Input!S24 -> 0.8524980174 | R5: =D_Input!T24 -> 0.861221253 | S5: =D_Input!U24 -> 0.8778747026 | T5: =D_Input!V24 -> 0.8961141951 | U5: =D_Input!W24 -> 0.9103885805 | V5: =D_Input!X24 -> 0.9072164948 | W5: =D_Input!Y24 -> 0.942109437 | X5: =D_Input!Z24 -> 1
A6: =ROW() -> 6
A7: =ROW() -> 7 | B7: Service Standard adjustment mechanism (SSAM)
A8: =ROW() -> 8 | B8: Year Ending 30 June | H8: 2018 | I8: 2019 | J8: 2020 | K8: 2021 | L8: 2022 | N8: 2018 | O8: 2019 | P8: 2020 | Q8: 2021 | R8: 2022 | T8: 2018 | U8: 2019 | V8: 2020 | W8: 2021 | X8: 2022
A9: =ROW() -> 9 | B9: SSAM revenue at risk
A10: =ROW() -> 10 | C10: Distribution revenue at risk - penalties | H10: 0.025 | I10: 0.025 | J10: 0.025 | K10: 0.025 | L10: 0.025 | M10: AA s7.5.9
A11: =ROW() -> 11 | C11: Distribution revenue at risk - rewards | H11: 0.01 | I11: 0.01 | J11: 0.01 | K11: 0.01 | L11: 0.01 | M11: AA s7.5.9
A12: =ROW() -> 12 | C12: Transmission revenue at risk | H12: 0.01 | I12: 0.01 | J12: 0.01 | K12: 0.01 | L12: 0.01 | M12: AA s7.5.8
A13: =ROW() -> 13
A14: =ROW() -> 14 | B14: Distribution Performance | J14: Actual AA4 | L14: Forecast | P14: Benchmark | V14: Target
A15: =ROW() -> 15 | C15: SAIDI - CBD (minutes per annum) | H15: 1.3 | I15: 14.7 | J15: 22.8 | K15: 14.1 | L15: 14.1 | N15: 39.9 | O15: 33.7 | P15: 33.7 | Q15: 33.7 | R15: 33.7 | S15: AA4 s 4.2.4 Table 7 | V15: 17.7 | W15: 17.7 | X15: 17.7 | Y15: AA4 s7.5.11 Table 43
A16: =ROW() -> 16 | C16: SAIDI - Urban (minutes per annum) | H16: 104.5 | I16: 104.2 | J16: 134.3 | K16: 118 | L16: 118 | N16: 183 | O16: 130.6 | P16: 130.6 | Q16: 130.6 | R16: 130.6 | S16: AA4 s 4.2.4 Table 7 | V16: 106.8 | W16: 106.8 | X16: 106.8 | Y16: AA4 s7.5.11 Table 43
A17: =ROW() -> 17 | C17: SAIDI - Rural Short (minutes per annum) | H17: 151.9 | I17: 178.3 | J17: 218.3 | K17: 210.2 | L17: 210.2 | N17: 227.8 | O17: 215.4 | P17: 215.4 | Q17: 215.4 | R17: 215.4 | S17: AA4 s 4.2.4 Table 7 | V17: 188.6 | W17: 188.6 | X17: 188.6 | Y17: AA4 s7.5.11 Table 43
A18: =ROW() -> 18 | C18: SAIDI - Rural Long (minutes per annum) | H18: 718.1 | I18: 663.5 | J18: 737.7 | K18: 713.5 | L18: 713.5 | N18: 724.8 | O18: 848.3 | P18: 848.3 | Q18: 848.3 | R18: 848.3 | S18: AA4 s 4.2.4 Table 7 | V18: 677.7 | W18: 677.7 | X18: 677.7 | Y18: AA4 s7.5.11 Table 43
A19: =ROW() -> 19 | C19: SAIFI - CBD (interruptions per annum) | H19: 0.04 | I19: 0.11 | J19: 0.2 | K19: 0.26 | L19: 0.26 | N19: 0.26 | O19: 0.21 | P19: 0.21 | Q19: 0.21 | R19: 0.21 | S19: AA4 s 4.2.4 Table 9 | V19: 0.12 | W19: 0.12 | X19: 0.12 | Y19: AA4 s7.5.11 Table 44
A20: =ROW() -> 20 | C20: SAIFI - Urban (interruptions per annum) | H20: 1.03 | I20: 0.95 | J20: 1.14 | K20: 1.13 | L20: 1.13 | N20: 2.12 | O20: 1.27 | P20: 1.27 | Q20: 1.27 | R20: 1.27 | S20: AA4 s 4.2.4 Table 9 | V20: 1.09 | W20: 1.09 | X20: 1.09 | Y20: AA4 s7.5.11 Table 44
A21: =ROW() -> 21 | C21: SAIFI - Rural Short (interruptions per annum) | H21: 1.59 | I21: 1.78 | J21: 2.11 | K21: 1.94 | L21: 1.94 | N21: 2.61 | O21: 2.34 | P21: 2.34 | Q21: 2.34 | R21: 2.34 | S21: AA4 s 4.2.4 Table 9 | V21: 1.96 | W21: 1.96 | X21: 1.96 | Y21: AA4 s7.5.11 Table 44
A22: =ROW() -> 22 | C22: SAIFI - Rural Long (interruptions per annum) | H22: 3.96 | I22: 3.83 | J22: 3.77 | K22: 4.25 | L22: 4.25 | N22: 4.51 | O22: 5.7 | P22: 5.7 | Q22: 5.7 | R22: 5.7 | S22: AA4 s 4.2.4 Table 9 | V22: 4.29 | W22: 4.29 | X22: 4.29 | Y22: AA4 s7.5.11 Table 44
A23: =ROW() -> 23 | C23: Call centre performance (% of calls per year) | H23: 91.7 | I23: 91.7 | J23: 92.6 | K23: 91.9 | L23: 91.9 | N23: 77.5 | O23: 86.8 | P23: 86.8 | Q23: 86.8 | R23: 86.8 | S23: AA4 s 4.2.4 Table 11 | V23: 92 | W23: 92 | X23: 92 | Y23: AA4 s7.5.11 Table 45
A24: =ROW() -> 24 | C24: Street Lighting repair time - Metropolitan area | H24: 3.23 | I24: 4.82 | J24: 4.53 | K24: 4.83 | L24: 4.83 | N24: 5 | O24: 5 | P24: 5 | Q24: 5 | R24: 5 | S24: AA4 s 4.2.4 Table 19 | V24: n/a | W24: n/a | X24: n/a | Y24: n/a because not subject to SSAM
A25: =ROW() -> 25 | C25: Street Lighting repair time - Regional area | H25: 8.09 | I25: 8.15 | J25: 6.77 | K25: 7.33 | L25: 7.33 | N25: 9 | O25: 9 | P25: 9 | Q25: 9 | R25: 9 | S25: AA4 s 4.2.4 Table 19 | V25: n/a | W25: n/a | X25: n/a | Y25: n/a because not subject to SSAM
A26: =ROW() -> 26 | C26: Streetlight LED replacement | H26: a | I26: a | J26: a | K26: a | L26: a | N26: * | O26: * | P26: * | Q26: * | R26: * | S26: AA4 s 4.4.4 | V26: n/a | W26: n/a | X26: n/a | Y26: n/a because not subject to SSAM
A27: =ROW() -> 27 | C27: Supply abolishment response time (business days) | H27: n/a | I27: n/a | J27: 3.36 | K27: 2.54 | L27: 2.54 | N27: 15 | O27: 15 | P27: 15 | Q27: 15 | R27: 15 | S27: AA4 s 4.2.4 Table 21 | V27: n/a | W27: n/a | X27: n/a | Y27: n/a because not subject to SSAM
A28: =ROW() -> 28 | C28: Remote de-energise response time (business days) | H28: n/a | I28: n/a | J28: n/a | K28: n/a | L28: n/a | N28: 1 | O28: 1 | P28: 1 | Q28: 1 | R28: 1 | S28: AA4 s 4.6.4 Table 23 | V28: n/a | W28: n/a | X28: n/a | Y28: n/a because not subject to SSAM
A29: =ROW() -> 29 | C29: Remote re-energise response time (business days) | H29: n/a | I29: n/a | J29: n/a | K29: n/a | L29: n/a | N29: 1 | O29: 1 | P29: 1 | Q29: 1 | R29: 1 | S29: AA4 s 4.6.6 Table 25 | V29: n/a | W29: n/a | X29: n/a | Y29: n/a because not subject to SSAM
A30: =ROW() -> 30
A31: =ROW() -> 31 | N31: AA3 benchmark | O31: AA4 benchmark | P31: AA4 benchmark | Q31: AA4 benchmark | R31: AA4 benchmark
A32: =ROW() -> 32 | B32: Transmission performance | J32: Actual AA4 | L32: Forecast | P32: Benchmark | V32: Target
A33: =ROW() -> 33 | C33: Circuit Availability (% of hours per annum) | H33: 99.1 | I33: 98.7 | J33: 98.8 | K33: 98.5 | L33: 98.5 | N33: 97.7 | O33: 97.8 | P33: 97.8 | Q33: 97.8 | R33: 97.8 | S33: AA4 s 4.2.4 Table 13 | V33: 98.5 | W33: 98.5 | X33: 98.5 | Y33: AA4 s7.5.11 Table 46
A34: =ROW() -> 34 | C34: Loss of Supply Event Frequency > 0.1 (# of events) | H34: 11 | I34: 13 | J34: 15 | K34: 14 | L34: 14 | N34: 33 | O34: 26 | P34: 26 | Q34: 26 | R34: 26 | S34: AA4 s 4.2.4 Table 15 | V34: 17 | W34: 17 | X34: 17 | Y34: AA4 s7.5.11 Table 47
A35: =ROW() -> 35 | C35: Loss of Supply Event Frequency > 1 (# of events) | H35: 6 | I35: 2 | J35: 3 | K35: 2 | L35: 2 | N35: 4 | O35: 7 | P35: 7 | Q35: 7 | R35: 7 | S35: AA4 s 4.2.4 Table 15 | V35: 3 | W35: 3 | X35: 3 | Y35: AA4 s7.5.11 Table 47
A36: =ROW() -> 36 | C36: Average Outage Duration (minutes per annum) | H36: 560 | I36: 523 | J36: 751 | K36: 976 | L36: 976 | N36: 886 | O36: 1234 | P36: 1234 | Q36: 1234 | R36: 1234 | S36: AA4 s 4.2.4 Table 17 | V36: 784 | W36: 784 | X36: 784 | Y36: AA4 s7.5.11 Table 48
A37: =ROW() -> 37
A38: =ROW() -> 38 | B38: Distribution incentive rates | J38: [$M Real 30/6/2017] | P38: ="[$M Real 30/6/"&D_Input!$E$21&"]" -> [$M Real 30/6/2022]
A39: =ROW() -> 39 | C39: SAIDI - CBD - per SAIDI minute | H39: 0.03021 | I39: 0.03021 | J39: 0.03021 | K39: 0.03021 | L39: 0.03021 | M39: AA4 s7.5.11 Table 43 | N39: =H39/$S$5 -> 0.03441265583 | O39: =I39/$S$5 -> 0.03441265583 | P39: 0.03441265583 | Q39: 0.03441265583 | R39: 0.03441265583
A40: =ROW() -> 40 | C40: SAIDI - Urban - per SAIDI minute | H40: 0.44666 | I40: 0.44666 | J40: 0.44666 | K40: 0.44666 | L40: 0.44666 | M40: AA4 s7.5.11 Table 43 | N40: =H40/$S$5 -> 0.5087969828 | O40: 0.5087969828 | P40: 0.5087969828 | Q40: 0.5087969828 | R40: 0.5087969828
A41: =ROW() -> 41 | C41: SAIDI - Rural Short - per SAIDI minute | H41: 0.14312 | I41: 0.14312 | J41: 0.14312 | K41: 0.14312 | L41: 0.14312 | M41: AA4 s7.5.11 Table 43 | N41: 0.1630300994 | O41: 0.1630300994 | P41: 0.1630300994 | Q41: 0.1630300994 | R41: 0.1630300994
A42: =ROW() -> 42 | C42: SAIDI - Rural Long - per SAIDI minute | H42: 0.0525 | I42: 0.0525 | J42: 0.0525 | K42: 0.0525 | L42: 0.0525 | M42: AA4 s7.5.11 Table 43 | N42: 0.05980352304 | O42: 0.05980352304 | P42: 0.05980352304 | Q42: 0.05980352304 | R42: 0.05980352304
A43: =ROW() -> 43 | C43: SAIFI - CBD - per 0.01 event | H43: 0.02922 | I43: 0.02922 | J43: 0.02922 | K43: 0.02922 | L43: 0.02922 | M43: AA4 s7.5.11 Table 44 | N43: 0.03328493225 | O43: 0.03328493225 | P43: 0.03328493225 | Q43: 0.03328493225 | R43: 0.03328493225
A44: =ROW() -> 44 | C44: SAIFI - Urban - per 0.01 event | H44: 0.2907 | I44: 0.2907 | J44: 0.2907 | K44: 0.2907 | L44: 0.2907 | M44: AA4 s7.5.11 Table 44 | N44: 0.3311406504 | O44: 0.3311406504 | P44: 0.3311406504 | Q44: 0.3311406504 | R44: 0.3311406504
A45: =ROW() -> 45 | C45: SAIFI - Rural Short - per 0.01 event | H45: 0.09182 | I45: 0.09182 | J45: 0.09182 | K45: 0.09182 | L45: 0.09182 | M45: AA4 s7.5.11 Table 44 | N45: 0.104593514 | O45: 0.104593514 | P45: 0.104593514 | Q45: 0.104593514 | R45: 0.104593514
A46: =ROW() -> 46 | C46: SAIFI - Rural Long - per 0.01 event | H46: 0.05534 | I46: 0.05534 | J46: 0.05534 | K46: 0.05534 | L46: 0.05534 | M46: AA4 s7.5.11 Table 44 | N46: 0.06303860885 | O46: 0.06303860885 | P46: 0.06303860885 | Q46: 0.06303860885 | R46: 0.06303860885
A47: =ROW() -> 47 | C47: Call centre performance - per 0.1% | H47: -0.038059 | I47: -0.038059 | J47: -0.038059 | K47: -0.038059 | L47: -0.038059 | M47: AA4 s7.5.11 Table 45 | N47: -0.0433535673 | O47: -0.0433535673 | P47: -0.0433535673 | Q47: -0.0433535673 | R47: -0.0433535673
A48: =ROW() -> 48
A49: =ROW() -> 49 | B49: Transmission incentive rates | J49: [$M Real 30/6/2012] | P49: ="[$M Real 30/6/"&D_Input!$E$21&"]" -> [$M Real 30/6/2022]
A50: =ROW() -> 50 | C50: Circuit Availability - per 0.1% | H50: -0.449344 | I50: -0.449344 | J50: -0.449344 | K50: -0.449344 | L50: -0.449344 | M50: AA4 s7.5.11 Table 46 | N50: =H50/$S$5 -> -0.5118543668 | O50: -0.5118543668 | P50: -0.5118543668 | Q50: -0.5118543668 | R50: -0.5118543668
A51: =ROW() -> 51 | C51: Loss of Supply Event Frequency >0.1 - per event | H51: 0.089869 | I51: 0.089869 | J51: 0.089869 | K51: 0.089869 | L51: 0.089869 | M51: AA4 s7.5.11 Table 47 | N51: 0.1023711012 | O51: 0.1023711012 | P51: 0.1023711012 | Q51: 0.1023711012 | R51: 0.1023711012
A52: =ROW() -> 52 | C52: Loss of Supply Event Frequency >1 - per event | H52: 0.179737 | I52: 0.179737 | J52: 0.179737 | K52: 0.179737 | L52: 0.179737 | M52: AA4 s7.5.11 Table 47 | N52: 0.2047410632 | O52: 0.2047410632 | P52: 0.2047410632 | Q52: 0.2047410632 | R52: 0.2047410632
A53: =ROW() -> 53 | C53: Average Outage Duration - per minute | H53: 0.005661 | I53: 0.005661 | J53: 0.005661 | K53: 0.005661 | L53: 0.005661 | M53: AA4 s7.5.11 Table 48 | N53: 0.006448528455 | O53: 0.006448528455 | P53: 0.006448528455 | Q53: 0.006448528455 | R53: 0.006448528455
A54: =ROW() -> 54
A55: =ROW() -> 55 | B55: Distribution penalty rates | J55: [$M Real 30/6/2012] | P55: ="[$M Real 30/6/"&D_Input!$E$21&"]" -> [$M Real 30/6/2022]
A56: =ROW() -> 56 | C56: SAIDI - CBD - per SAIDI minute | H56: 0.03021 | I56: 0.03021 | J56: 0.03021 | K56: 0.03021 | L56: 0.03021 | M56: AA4 s7.5.11 Table 43 | N56: =H56/$S$5 -> 0.03441265583 | O56: 0.03441265583 | P56: 0.03441265583 | Q56: 0.03441265583 | R56: 0.03441265583
A57: =ROW() -> 57 | C57: SAIDI - Urban - per SAIDI minute | H57: 0.44666 | I57: 0.44666 | J57: 0.44666 | K57: 0.44666 | L57: 0.44666 | M57: AA4 s7.5.11 Table 43 | N57: 0.5087969828 | O57: 0.5087969828 | P57: 0.5087969828 | Q57: 0.5087969828 | R57: 0.5087969828
A58: =ROW() -> 58 | C58: SAIDI - Rural Short - per SAIDI minute | H58: 0.14312 | I58: 0.14312 | J58: 0.14312 | K58: 0.14312 | L58: 0.14312 | M58: AA4 s7.5.11 Table 43 | N58: 0.1630300994 | O58: 0.1630300994 | P58: 0.1630300994 | Q58: 0.1630300994 | R58: 0.1630300994
A59: =ROW() -> 59 | C59: SAIDI - Rural Long - per SAIDI minute | H59: 0.0525 | I59: 0.0525 | J59: 0.0525 | K59: 0.0525 | L59: 0.0525 | M59: AA4 s7.5.11 Table 43 | N59: 0.05980352304 | O59: 0.05980352304 | P59: 0.05980352304 | Q59: 0.05980352304 | R59: 0.05980352304
A60: =ROW() -> 60 | C60: SAIFI - CBD - per 0.01 event | H60: 0.02922 | I60: 0.02922 | J60: 0.02922 | K60: 0.02922 | L60: 0.02922 | M60: AA4 s7.5.11 Table 44 | N60: 0.03328493225 | O60: 0.03328493225 | P60: 0.03328493225 | Q60: 0.03328493225 | R60: 0.03328493225
A61: =ROW() -> 61 | C61: SAIFI - Urban - per 0.01 event | H61: 0.2907 | I61: 0.2907 | J61: 0.2907 | K61: 0.2907 | L61: 0.2907 | M61: AA4 s7.5.11 Table 44 | N61: 0.3311406504 | O61: 0.3311406504 | P61: 0.3311406504 | Q61: 0.3311406504 | R61: 0.3311406504
A62: =ROW() -> 62 | C62: SAIFI - Rural Short - per 0.01 event | H62: 0.09182 | I62: 0.09182 | J62: 0.09182 | K62: 0.09182 | L62: 0.09182 | M62: AA4 s7.5.11 Table 44 | N62: 0.104593514 | O62: 0.104593514 | P62: 0.104593514 | Q62: 0.104593514 | R62: 0.104593514
A63: =ROW() -> 63 | C63: SAIFI - Rural Long - per 0.01 event | H63: 0.05534 | I63: 0.05534 | J63: 0.05534 | K63: 0.05534 | L63: 0.05534 | M63: AA4 s7.5.11 Table 44 | N63: 0.06303860885 | O63: 0.06303860885 | P63: 0.06303860885 | Q63: 0.06303860885 | R63: 0.06303860885
A64: =ROW() -> 64 | C64: Call centre performance - per 0.1% | H64: -0.012442 | I64: -0.012442 | J64: -0.012442 | K64: -0.012442 | L64: -0.012442 | M64: AA4 s7.5.11 Table 45 | N64: -0.0141728654 | O64: -0.0141728654 | P64: -0.0141728654 | Q64: -0.0141728654 | R64: -0.0141728654
A65: =ROW() -> 65
A66: =ROW() -> 66 | B66: Transmission penalty rates | J66: [$M Real 30/6/2012] | P66: ="[$M Real 30/6/"&D_Input!$E$21&"]" -> [$M Real 30/6/2022]
A67: =ROW() -> 67 | C67: Circuit Availability - per 0.1% | H67: -0.256768 | I67: -0.256768 | J67: -0.256768 | K67: -0.256768 | L67: -0.256768 | M67: AA4 s7.5.11 Table 46 | N67: =H67/$S$5 -> -0.2924882096 | O67: -0.2924882096 | P67: -0.2924882096 | Q67: -0.2924882096 | R67: -0.2924882096
A68: =ROW() -> 68 | C68: Loss of Supply Event Frequency >0.1 - per event | H68: 0.059912 | I68: 0.059912 | J68: 0.059912 | K68: 0.059912 | L68: 0.059912 | M68: AA4 s7.5.11 Table 47 | N68: 0.06824664137 | O68: 0.06824664137 | P68: 0.06824664137 | Q68: 0.06824664137 | R68: 0.06824664137
A69: =ROW() -> 69 | C69: Loss of Supply Event Frequency >1 - per event | H69: 0.134803 | I69: 0.134803 | J69: 0.134803 | K69: 0.134803 | L69: 0.134803 | M69: AA4 s7.5.11 Table 47 | N69: 0.1535560822 | O69: 0.1535560822 | P69: 0.1535560822 | Q69: 0.1535560822 | R69: 0.1535560822
A70: =ROW() -> 70 | C70: Average Outage Duration - per minute | H70: 0.001598 | I70: 0.001598 | J70: 0.001598 | K70: 0.001598 | L70: 0.001598 | M70: AA4 s7.5.11 Table 48 | N70: 0.00182030533 | O70: 0.00182030533 | P70: 0.00182030533 | Q70: 0.00182030533 | R70: 0.00182030533
A71: =ROW() -> 71
A72: =ROW() -> 72 | B72: Gain share mechanism (GSM)
A73: =ROW() -> 73 | B73: Year Ending 30 June | G73: Weight | H73: 2018 | I73: 2019 | J73: 2020 | K73: 2021 | L73: 2022 | N73: 2018 | O73: 2019 | P73: 2020 | Q73: 2021 | R73: 2022
A74: =ROW() -> 74 | B74: Forecast Distribution Escalation factors
A75: =ROW() -> 75 | C75: Customer numbers | G75: 0.458 | H75: 0.0165 | I75: 0.0173 | J75: 0.0169 | K75: 0.0166 | L75: 0.0163 | M75: AA4 s7.4.9 Table 40
A76: =ROW() -> 76 | C76: Circuit length | G76: 0.238 | H76: 0.0091 | I76: 0.0091 | J76: 0.0091 | K76: 0.0091 | L76: 0.0091
A77: =ROW() -> 77 | C77: Ratcheted maximum demand | G77: 0.176 | H77: 0 | I77: 0 | J77: 0 | K77: 0 | L77: 0
A78: =ROW() -> 78 | C78: Energy delivered | G78: 0.128 | H78: -0.0037 | I78: -0.002 | J78: -0.002 | K78: -0.0071 | L78: -0.011
A79: =ROW() -> 79 | C79: Customer and network growth factor (weighted average) | G79: =SUM(G75:G78) -> 1 | H79: =SUMPRODUCT($G$75:$G$78,H75:H78) -> 0.0092492 | I79: =SUMPRODUCT($G$75:$G$78,I75:I78) -> 0.0098332 | J79: =SUMPRODUCT($G$75:$G$78,J75:J78) -> 0.00965 | K79: =SUMPRODUCT($G$75:$G$78,K75:K78) -> 0.0088598 | L79: =SUMPRODUCT($G$75:$G$78,L75:L78) -> 0.0082232
A80: =ROW() -> 80
A81: =ROW() -> 81 | B81: Forecast Transmission Escalation factors
A82: =ROW() -> 82 | C82: Circuit length | G82: 0.376 | H82: 0.0032 | I82: 0.0033 | J82: 0.0022 | K82: 0.0033 | L82: 0.0032 | M82: AA4 s7.4.9 Table 41
A83: =ROW() -> 83 | C83: Ratcheted maximum demand | G83: 0.194 | H83: 0 | I83: 0 | J83: 0 | K83: 0 | L83: 0
A84: =ROW() -> 84 | C84: Energy delivered | G84: 0.231 | H84: -0.0037 | I84: -0.002 | J84: -0.002 | K84: -0.0071 | L84: -0.011
A85: =ROW() -> 85 | C85: Customer numbers | G85: 0.199 | H85: 0 | I85: 0 | J85: 0.0263 | K85: 0.0256 | L85: 0
A86: =ROW() -> 86 | C86: Network growth factor (weighted average) | G86: =SUM(G82:G85) -> 1 | H86: =SUMPRODUCT($G$82:$G$85,H82:H85) -> 0.0003485 | I86: =SUMPRODUCT($G$82:$G$85,I82:I85) -> 0.0007788 | J86: =SUMPRODUCT($G$82:$G$85,J82:J85) -> 0.0055989 | K86: =SUMPRODUCT($G$82:$G$85,K82:K85) -> 0.0046951 | L86: =SUMPRODUCT($G$82:$G$85,L82:L85) -> -0.0013378
A87: =ROW() -> 87
A88: =ROW() -> 88 | B88: Forecast Indirect cost growth escalation
A89: =ROW() -> 89 | C89: Indirect | H89: 0.007 | I89: 0.0076 | J89: 0.0087 | K89: 0.0078 | L89: 0.0059 | M89: AA4 s7.4.9 Table 42
A90: =ROW() -> 90
A91: =ROW() -> 91
A92: =ROW() -> 92 | B92: Actual Distribution escalation factors
A93: =ROW() -> 93 | C93: Customer numbers | H93: 0.01326803198 | I93: 0.008282484711 | J93: 0.02064524666 | K93: 0.01586957733 | L93: 0.01392812252
A94: =ROW() -> 94 | C94: Circuit length | H94: 0.005498734705 | I94: 0.01115120406 | J94: 0.0008544466829 | K94: 0.002908497416 | L94: 0.005095819094
A95: =ROW() -> 95 | C95: Ratcheted maximum demand | H95: 0 | I95: 0 | J95: 0 | K95: 0 | L95: 0
A96: =ROW() -> 96 | C96: Energy delivered | H96: -0.005942773294 | I96: -0.01387556277 | J96: 0.02222887508 | K96: -0.02211158296 | L96: -0.005690326445
A97: =ROW() -> 97 | C97: Customer and network growth factor (weighted average) | H97: =SUMPRODUCT($G$75:$G$78,H93:H96) -> 0.006624782525 | I97: =SUMPRODUCT($G$75:$G$78,I93:I96) -> 0.004671292529 | J97: =SUMPRODUCT($G$75:$G$78,J93:J96) -> 0.01250417729 | K97: =SUMPRODUCT($G$75:$G$78,K93:K96) -> 0.005130206184 | L97: =SUMPRODUCT($G$75:$G$78,L93:L96) -> 0.006863523272
A98: =ROW() -> 98
A99: =ROW() -> 99 | B99: Actual Transmission escalation factors
A100: =ROW() -> 100 | C100: Circuit length | H100: -0.005127672556 | I100: 0.001761528224 | J100: -0.002409701327 | K100: 0.0009400950541 | L100: -0.001212724434
A101: =ROW() -> 101 | C101: Ratcheted maximum demand | H101: 0 | I101: 0 | J101: 0 | K101: 0 | L101: 0
A102: =ROW() -> 102 | C102: Energy delivered | H102: 0.003026227303 | I102: -0.02860654822 | J102: 0.02714828023 | K102: -0.02200694367 | L102: -0.006241053536
A103: =ROW() -> 103 | C103: Customer numbers | H103: 0 | I103: 0 | J103: 0 | K103: 0 | L103: 0
A104: =ROW() -> 104 | C104: Network growth factor (weighted average) | H104: =SUMPRODUCT($G$82:$G$85,H100:H103) -> -0.001228946374 | I104: =SUMPRODUCT($G$82:$G$85,I100:I103) -> -0.005945778026 | J104: =SUMPRODUCT($G$82:$G$85,J100:J103) -> 0.005365205033 | K104: =SUMPRODUCT($G$82:$G$85,K100:K103) -> -0.004730128247 | L104: =SUMPRODUCT($G$82:$G$85,L100:L103) -> -0.001897667754
A105: =ROW() -> 105
A106: =ROW() -> 106 | B106: Actual Indirect cost growth escalation
A107: =ROW() -> 107 | C107: Indirect | H107: 0.004658838477 | I107: 0.00201362928 | J107: 0.010717151 | K107: 0.00266196899 | L107: 0.004670423463
A108: =ROW() -> 108
A109: =ROW() -> 109 | B109: Year Ending 30 June | G109: Weight | H109: 2018 | I109: 2019 | J109: 2020 | K109: 2021 | L109: 2022 | N109: 2018 | O109: 2019 | P109: 2020 | Q109: 2021 | R109: 2022
A110: =ROW() -> 110 | B110: Operating expenditure - Final decision efficiency and innovation benchmark (EIB) | J110: [$M Real 30/6/2017] | P110: ="[$M Real 30/6/"&D_Input!$E$21&"]" -> [$M Real 30/6/2022]
A111: =ROW() -> 111 | C111: ERA Final Decision EIB categories
A112: =ROW() -> 112 | C112: Superannuation costs for defined benefit schemes | H112: 0.1976483124 | I112: 0.196305806 | J112: 0.1949724184 | K112: 0.1936480878 | L112: 0.1923327525 | N112: =H112/$S$5 -> 0.2251441029 | O112: 0.2236148341 | P112: 0.2220959527 | Q112: 0.2205873882 | R112: 0.2190890704
A113: =ROW() -> 113 | C113: Non-revenue cap services cost | H113: 0 | I113: 0 | J113: 0 | K113: 0 | L113: 0 | N113: 0 | O113: 0 | P113: 0 | Q113: 0 | R113: 0
A114: =ROW() -> 114 | C114: Licence fees | H114: 0 | I114: 0 | J114: 0 | K114: 0 | L114: 0 | N114: 0 | O114: 0 | P114: 0 | Q114: 0 | R114: 0
A115: =ROW() -> 115 | C115: Energy safety levy | H115: 4.403882498 | I115: 4.373969567 | J115: 4.344259816 | K115: 4.314751866 | L115: 4.285444345 | N115: 5.016527399 | O115: 4.982453138 | P115: 4.948610323 | Q115: 4.914997383 | R115: 4.881612754
A116: =ROW() -> 116 | C116: Network control service | H116: 0 | I116: 0 | J116: 0 | K116: 0 | L116: 0 | N116: 0 | O116: 0 | P116: 0 | Q116: 0 | R116: 0
A117: =ROW() -> 117 | C117: ERA costs (Electricity Network Access Funding Regulations) | H117: 1.617985342 | I117: 1.108782542 | J117: 1.101251248 | K117: 1.093771109 | L117: 1.594494436 | N117: 1.843070928 | O117: 1.26303052 | P117: 1.254451512 | Q117: 1.245930775 | R117: 1.816312091
A118: =ROW() -> 118 | H118: =SUM(H112:H117) -> 6.219516153 | I118: =SUM(I112:I117) -> 5.679057915 | J118: =SUM(J112:J117) -> 5.640483482 | K118: =SUM(K112:K117) -> 5.602171062 | L118: =SUM(L112:L117) -> 6.072271534
A119: =ROW() -> 119
A120: =ROW() -> 120 | B120: Operating expenditure subject to scale escalation by regulatory category | J120: [$M Real 30/6/2017] | P120: ="[$M Real 30/6/"&D_Input!$E$21&"]" -> [$M Real 30/6/2022]
A121: =ROW() -> 121 | B121: (Insert operating expenditure that excludes any form of escalation)
A122: =ROW() -> 122 | B122: Base distribution
A123: =ROW() -> 123 | C123: Reliability | H123: 1.11731053 | I123: 1.11731053 | J123: 1.11731053 | K123: 1.11731053 | L123: 1.11731053 | N123: =H123/$S$5 -> 1.272744877 | O123: 1.272744877 | P123: 1.272744877 | Q123: 1.272744877 | R123: 1.272744877
A124: =ROW() -> 124 | C124: SCADA & Communications | H124: 4.26387153 | I124: 4.26387153 | J124: 4.26387153 | K124: 4.26387153 | L124: 4.26387153 | N124: 4.857038843 | O124: 4.857038843 | P124: 4.857038843 | Q124: 4.857038843 | R124: 4.857038843
A125: =ROW() -> 125 | C125: Non-revenue cap services | H125: 10.07751255 | I125: 10.07751255 | J125: 10.07751255 | K125: 10.07751255 | L125: 10.07751255 | N125: 11.47944293 | O125: 11.47944293 | P125: 11.47944293 | Q125: 11.47944293 | R125: 11.47944293
A126: =ROW() -> 126 | C126: Network Operations | H126: 14.43457163 | I126: 14.43457163 | J126: 14.43457163 | K126: 14.43457163 | L126: 14.43457163 | N126: 16.44263309 | O126: 16.44263309 | P126: 16.44263309 | Q126: 16.44263309 | R126: 16.44263309
A127: =ROW() -> 127 | C127: Smartgrid | H127: 0 | I127: 0 | J127: 0 | K127: 0 | L127: 0 | N127: 0 | O127: 0 | P127: 0 | Q127: 0 | R127: 0
A128: =ROW() -> 128 | C128: Maintenance Strategy | H128: 0 | I128: 0 | J128: 0 | K128: 0 | L128: 0 | N128: 0 | O128: 0 | P128: 0 | Q128: 0 | R128: 0
A129: =ROW() -> 129 | C129: Preventive Condition | H129: 19.80018238 | I129: 19.80018238 | J129: 19.80018238 | K129: 19.80018238 | L129: 19.80018238 | N129: 22.5546793 | O129: 22.5546793 | P129: 22.5546793 | Q129: 22.5546793 | R129: 22.5546793
A130: =ROW() -> 130 | C130: Preventive Routine | H130: =42.89577875-1 -> 41.89577875 | I130: =42.89577875-1 -> 41.89577875 | J130: =42.89577875-1 -> 41.89577875 | K130: =42.89577875-1 -> 41.89577875 | L130: =42.89577875-1 -> 41.89577875 | N130: 47.72409847 | O130: 47.72409847 | P130: 47.72409847 | Q130: 47.72409847 | R130: 47.72409847
A131: =ROW() -> 131 | C131: Corrective Deferred | H131: 12.8295806 | I131: 12.8295806 | J131: 12.8295806 | K131: 12.8295806 | L131: 12.8295806 | N131: 14.61436417 | O131: 14.61436417 | P131: 14.61436417 | Q131: 14.61436417 | R131: 14.61436417
A132: =ROW() -> 132 | C132: Corrective Emergency | H132: =53.07320368-4 -> 49.07320368 | I132: =53.07320368-4 -> 49.07320368 | J132: =53.07320368-4 -> 49.07320368 | K132: =53.07320368-4 -> 49.07320368 | L132: =53.07320368-4 -> 49.07320368 | N132: 55.90000889 | O132: 55.90000889 | P132: 55.90000889 | Q132: 55.90000889 | R132: 55.90000889
A133: =ROW() -> 133 | C133: Call Centre | H133: 3.86591716 | I133: 3.86591716 | J133: 3.86591716 | K133: 3.86591716 | L133: 3.86591716 | N133: 4.403723161 | O133: 4.403723161 | P133: 4.403723161 | Q133: 4.403723161 | R133: 4.403723161
A134: =ROW() -> 134 | C134: Metering | H134: 13.73056955 | I134: 13.73056955 | J134: 13.73056955 | K134: 13.73056955 | L134: 13.73056955 | N134: 15.64069395 | O134: 15.64069395 | P134: 15.64069395 | Q134: 15.64069395 | R134: 15.64069395
A135: =ROW() -> 135 | C135: Guaranteed service level payments | H135: 1.01032 | I135: 1.01032 | J135: 1.01032 | K135: 1.01032 | L135: 1.01032 | N135: 1.150870388 | O135: 1.150870388 | P135: 1.150870388 | Q135: 1.150870388 | R135: 1.150870388
A136: =ROW() -> 136 | C136: Design & Estimating - Distribution Quotations | H136: 4.91835088 | I136: 4.91835088 | J136: 4.91835088 | K136: 4.91835088 | L136: 4.91835088 | N136: 5.602565908 | O136: 5.602565908 | P136: 5.602565908 | Q136: 5.602565908 | R136: 5.602565908
A137: =ROW() -> 137 | C137: Business Support | H137: 112.3150319 | I137: 112.3150319 | J137: 112.3150319 | K137: 112.3150319 | L137: 112.3150319 | N137: 127.9397066 | O137: 127.9397066 | P137: 127.9397066 | Q137: 127.9397066 | R137: 127.9397066
A138: =ROW() -> 138 | C138: IT | H138: 0 | I138: 0 | J138: 0 | K138: 0 | L138: 0 | N138: 0 | O138: 0 | P138: 0 | Q138: 0 | R138: 0
A139: =ROW() -> 139 | C139: Non-recurring opex | H139: 9.84052159 | I139: 9.84052159 | J139: 9.84052159 | K139: 9.84052159 | L139: 9.84052159 | N139: 11.20948304 | O139: 11.20948304 | P139: 11.20948304 | Q139: 11.20948304 | R139: 11.20948304
A140: =ROW() -> 140 | C140: Total | H140: =SUM(H123:H139) -> 299.1727227 | I140: =SUM(I123:I139) -> 299.1727227 | J140: =SUM(J123:J139) -> 299.1727227 | K140: =SUM(K123:K139) -> 299.1727227 | L140: =SUM(L123:L139) -> 299.1727227 | N140: =SUM(N123:N139) -> 340.7920536 | O140: =SUM(O123:O139) -> 340.7920536 | P140: =SUM(P123:P139) -> 340.7920536 | Q140: =SUM(Q123:Q139) -> 340.7920536 | R140: =SUM(R123:R139) -> 340.7920536
A141: =ROW() -> 141
A142: =ROW() -> 142 | B142: Base Transmission | J142: [$M Real 30/6/2017] | P142: ="[$M Real 30/6/"&D_Input!$E$21&"]" -> [$M Real 30/6/2022]
A143: =ROW() -> 143 | C143: SCADA & Communications | H143: 8.30836852 | I143: 8.30836852 | J143: 8.30836852 | K143: 8.30836852 | L143: 8.30836852 | N143: =H143/$S$5 -> 9.464184918 | O143: 9.464184918 | P143: 9.464184918 | Q143: 9.464184918 | R143: 9.464184918
A144: =ROW() -> 144 | C144: Non-revenue cap services | H144: 3.04139059 | I144: 3.04139059 | J144: 3.04139059 | K144: 3.04139059 | L144: 3.04139059 | N144: 3.464492804 | O144: 3.464492804 | P144: 3.464492804 | Q144: 3.464492804 | R144: 3.464492804
A145: =ROW() -> 145 | C145: Network Operations | H145: 4.525439549 | I145: 4.525439549 | J145: 4.525439549 | K145: 4.525439549 | L145: 4.525439549 | N145: 5.154994825 | O145: 5.154994825 | P145: 5.154994825 | Q145: 5.154994825 | R145: 5.154994825
A146: =ROW() -> 146 | C146: Maintenance Strategy | H146: 0 | I146: 0 | J146: 0 | K146: 0 | L146: 0 | N146: 0 | O146: 0 | P146: 0 | Q146: 0 | R146: 0
A147: =ROW() -> 147 | C147: Preventive Condition | H147: 10.57801646 | I147: 10.57801646 | J147: 10.57801646 | K147: 10.57801646 | L147: 10.57801646 | N147: 12.04957431 | O147: 12.04957431 | P147: 12.04957431 | Q147: 12.04957431 | R147: 12.04957431
A148: =ROW() -> 148 | C148: Preventive Routine | H148: 15.9431707 | I148: 15.9431707 | J148: 15.9431707 | K148: 15.9431707 | L148: 15.9431707 | N148: 18.1611005 | O148: 18.1611005 | P148: 18.1611005 | Q148: 18.1611005 | R148: 18.1611005
A149: =ROW() -> 149 | C149: Corrective Deferred | H149: 7.25527014 | I149: 7.25527014 | J149: 7.25527014 | K149: 7.25527014 | L149: 7.25527014 | N149: 8.264585047 | O149: 8.264585047 | P149: 8.264585047 | Q149: 8.264585047 | R149: 8.264585047
A150: =ROW() -> 150 | C150: Corrective Emergency | H150: 1.68092356 | I150: 1.68092356 | J150: 1.68092356 | K150: 1.68092356 | L150: 1.68092356 | N150: 1.914764778 | O150: 1.914764778 | P150: 1.914764778 | Q150: 1.914764778 | R150: 1.914764778
A151: =ROW() -> 151 | C151: Business Support | H151: 41.02595083 | I151: 41.02595083 | J151: 41.02595083 | K151: 41.02595083 | L151: 41.02595083 | N151: 46.73326467 | O151: 46.73326467 | P151: 46.73326467 | Q151: 46.73326467 | R151: 46.73326467
A152: =ROW() -> 152 | C152: Non-recurring opex | H152: -1.30447629 | I152: -1.30447629 | J152: -1.30447629 | K152: -1.30447629 | L152: -1.30447629 | N152: -1.48594815 | O152: -1.48594815 | P152: -1.48594815 | Q152: -1.48594815 | R152: -1.48594815
A153: =ROW() -> 153 | C153: Total | H153: =SUM(H143:H152) -> 91.05405406 | I153: =SUM(I143:I152) -> 91.05405406 | J153: =SUM(J143:J152) -> 91.05405406 | K153: =SUM(K143:K152) -> 91.05405406 | L153: =SUM(L143:L152) -> 91.05405406 | N153: =SUM(N143:N152) -> 103.7210137 | O153: =SUM(O143:O152) -> 103.7210137 | P153: =SUM(P143:P152) -> 103.7210137 | Q153: =SUM(Q143:Q152) -> 103.7210137 | R153: =SUM(R143:R152) -> 103.7210137
A154: =ROW() -> 154
A155: =ROW() -> 155 | B155: Actual operating expenditure in EIB category | J155: [$M nominal] | P155: ="[$M Real 30/6/"&D_Input!$E$21&"]" -> [$M Real 30/6/2022]
A156: =ROW() -> 156 | B156: Distribution
A157: =ROW() -> 157 | C157: D-Factor Scheme | H157: 0.7813574 | I157: 1.06186761 | J157: 0.84896313 | K157: 2.31760161 | L157: 2.34 | N157: =H157/T$5 -> 0.8719395411 | O157: =I157/U$5 -> 1.166389422 | P157: 0.9357889047 | Q157: 2.460013157 | R157: 2.34
A158: =ROW() -> 158 | C158: Technical rule changes | H158: 0 | I158: 0 | J158: 0 | K158: 0 | L158: 0 | N158: =H158/T$5 -> 0 | O158: 0 | P158: 0 | Q158: 0 | R158: 0
A159: =ROW() -> 159 | C159: Unforeseen events | H159: 0 | I159: 0 | J159: 0 | K159: 0 | L159: 0 | N159: 0 | O159: 0 | P159: 0 | Q159: 0 | R159: 0
A160: =ROW() -> 160 | C160: Superannuation for defined benefit schemes | H160: 0.033 | I160: 0.33 | J160: 0.039 | K160: 0.040061 | L160: 0.040061 | N160: 0.03682566372 | O160: 0.3624825784 | P160: 0.04298863636 | Q160: 0.04252266077 | R160: 0.040061
A161: =ROW() -> 161 | C161: Non-revenue cap services | H161: =D_Input!V1247 -> 13.985 | I161: =D_Input!W1247 -> 15.95 | J161: =D_Input!X1247 -> 14.395 | K161: =D_Input!Y1247 -> 13.17 | L161: =D_Input!Z1247 -> 19.95043385 | N161: 15.60626991 | O161: 17.51999129 | P161: 15.86721591 | Q161: 13.97926768 | R161: 19.95043385
A162: =ROW() -> 162 | C162: License fees | H162: 0 | I162: 0 | J162: 0 | K162: 0 | L162: 0 | N162: 0 | O162: 0 | P162: 0 | Q162: 0 | R162: 0
A163: =ROW() -> 163 | C163: Energy safety levy | H163: 3.251 | I163: 3.296 | J163: 3.283 | K163: 3.286241053 | L163: 3.286241053 | N163: 3.627885841 | O163: 3.620432056 | P163: 3.618761364 | Q163: 3.488173373 | R163: 3.286241053
A164: =ROW() -> 164 | C164: ERA costs (Electricity Network Access Funding Regulations) | H164: 1.552 | I164: 1.134 | J164: 0.83 | K164: 1.175184631 | L164: 1.175184631 | N164: 1.731922124 | O164: 1.245621951 | P164: 0.9148863636 | Q164: 1.247397155 | R164: 1.175184631
A165: =ROW() -> 165 | C165: Regulatory reform costs (non-capital) | H165: 0 | I165: 0 | J165: 0 | K165: 0 | L165: 0 | N165: 0 | O165: 0 | P165: 0 | Q165: 0 | R165: 0
A166: =ROW() -> 166
A167: =ROW() -> 167
A168: =ROW() -> 168 | B168: Transmission
A169: =ROW() -> 169 | C169: D-Factor Scheme | H169: 0 | I169: 5.20302875 | J169: 7.68899215 | K169: 9.37850739 | L169: 8.42332 | N169: =H169/T$5 -> 0 | O169: =I169/U$5 -> 5.715173566 | P169: 8.475366347 | Q169: 9.954796144 | R169: 8.42332
A170: =ROW() -> 170 | C170: Technical rule changes | H170: 0 | I170: 0 | J170: 0 | K170: 0 | L170: 0 | N170: =H170/T$5 -> 0 | O170: 0 | P170: 0 | Q170: 0 | R170: 0
A171: =ROW() -> 171 | C171: Unforeseen events | H171: 0 | I171: 0 | J171: 0 | K171: 0 | L171: 0 | N171: 0 | O171: 0 | P171: 0 | Q171: 0 | R171: 0
A172: =ROW() -> 172 | C172: Superannuation for defined benefit schemes | H172: 0.011 | I172: 0.011 | J172: 0.018 | K172: 0.01896289112 | L172: 0.01896289112 | N172: 0.01227522124 | O172: 0.01208275261 | P172: 0.01984090909 | Q172: 0.02012811928 | R172: 0.01896289112
A173: =ROW() -> 173 | C173: Non-revenue cap services | H173: =T_Input!V1256 -> 4.402 | I173: =T_Input!W1256 -> 5.499 | J173: =T_Input!X1256 -> 4.84 | K173: =T_Input!Y1256 -> 6.469 | L173: =T_Input!Z1256 -> 6.642559908 | N173: 4.912320354 | O173: 6.040277875 | P173: 5.335 | Q173: 6.866505892 | R173: 6.642559908
A174: =ROW() -> 174 | C174: License fees | H174: 0 | I174: 0 | J174: 0 | K174: 0 | L174: 0 | N174: 0 | O174: 0 | P174: 0 | Q174: 0 | R174: 0
A175: =ROW() -> 175 | C175: Energy safety levy | H175: 1.247 | I175: 1.245 | J175: 1.257 | K175: 1.253392947 | L175: 1.253392947 | N175: 1.391563717 | O175: 1.367547909 | P175: 1.385556818 | Q175: 1.330411201 | R175: 1.253392947
A176: =ROW() -> 176 | C176: ERA costs (Electricity Network Access Funding Regulations) | H176: 0.595 | I176: 0.428 | J176: 0.318 | K176: 0.4482227887 | L176: 0.4482227887 | N176: 0.6639778761 | O176: 0.4701289199 | P176: 0.3505227273 | Q176: 0.4757650981 | R176: 0.4482227887
A177: =ROW() -> 177 | C177: Regulatory reform costs (non-capital) | H177: 0 | I177: 0 | J177: 0.72 | K177: 1.22 | L177: 0.39 | N177: 0 | O177: 0 | P177: 0.7936363636 | Q177: 1.29496633 | R177: 0.39
A178: =ROW() -> 178
A179: =ROW() -> 179 | B179: Investment adjustment mechanism (IAM) category inclusion flags [1=Include, 0=Exclude]
A180: =ROW() -> 180 | B180: Year Ending 30 June | H180: 2018 | I180: 2019 | J180: 2020 | K180: 2021 | L180: 2022 | N180: 2018 | O180: 2019 | P180: 2020 | Q180: 2021 | R180: 2022
A181: =ROW() -> 181 | B181: Distribution IAM category inclusion flags [1=Include, 0=Exclude]
A182: =ROW() -> 182 | C182: Growth | J182: Actual AA4 | P182: Proposed AA4
A183: =ROW() -> 183 | C183: Capacity Expansion | H183: 1 | I183: 1 | J183: 1 | K183: 1 | L183: 1 | N183: 1 | O183: 1 | P183: 1 | Q183: 1 | R183: 1
A184: =ROW() -> 184 | C184: Customer Driven | H184: 1 | I184: 1 | J184: 1 | K184: 1 | L184: 1 | N184: 1 | O184: 1 | P184: 1 | Q184: 1 | R184: 1
A185: =ROW() -> 185 | C185: Gifted Assets | H185: 0 | I185: 0 | J185: 0 | K185: 0 | L185: 0 | N185: 0 | O185: 0 | P185: 0 | Q185: 0 | R185: 0
A186: =ROW() -> 186 | C186: Asset replacement and renewal
A187: =ROW() -> 187 | C187: Asset Replacement | H187: 0 | I187: 0 | J187: 0 | K187: 0 | L187: 0 | N187: 0 | O187: 0 | P187: 0 | Q187: 0 | R187: 0
A188: =ROW() -> 188 | C188: State Undergrounding Power Program (SUPP) | H188: 1 | I188: 1 | J188: 1 | K188: 1 | L188: 1 | N188: 1 | O188: 1 | P188: 1 | Q188: 1 | R188: 1
A189: =ROW() -> 189 | C189: Metering | H189: 0 | I189: 0 | J189: 0 | K189: 0 | L189: 0 | N189: 1 | O189: 1 | P189: 1 | Q189: 1 | R189: 1
A190: =ROW() -> 190 | C190: Smartgrid | H190: 0 | I190: 0 | J190: 0 | K190: 0 | L190: 0 | N190: 0 | O190: 0 | P190: 0 | Q190: 0 | R190: 0
A191: =ROW() -> 191 | C191: Wood Pole Management | H191: 0 | I191: 0 | J191: 0 | K191: 0 | L191: 0 | N191: 0 | O191: 0 | P191: 0 | Q191: 0 | R191: 0
A192: =ROW() -> 192 | C192: Improvement in service
A193: =ROW() -> 193 | C193: Reliability Driven | H193: 0 | I193: 0 | J193: 0 | K193: 0 | L193: 0 | N193: 0 | O193: 0 | P193: 0 | Q193: 0 | R193: 0
A194: =ROW() -> 194 | C194: Rural Power Improvement Program (RPIP) | H194: 0 | I194: 0 | J194: 0 | K194: 0 | L194: 0 | N194: 0 | O194: 0 | P194: 0 | Q194: 0 | R194: 0
A195: =ROW() -> 195 | C195: SCADA & Communications | H195: 0 | I195: 0 | J195: 0 | K195: 0 | L195: 0 | N195: 0 | O195: 0 | P195: 0 | Q195: 0 | R195: 0
A196: =ROW() -> 196 | C196: Compliance
A197: =ROW() -> 197 | C197: Safety, Environmental & Statutory | H197: 0 | I197: 0 | J197: 0 | K197: 0 | L197: 0 | N197: 0 | O197: 0 | P197: 0 | Q197: 0 | R197: 0
A198: =ROW() -> 198 | C198: Corporate
A199: =ROW() -> 199 | C199: IT | H199: 0 | I199: 0 | J199: 0 | K199: 0 | L199: 0 | N199: 0 | O199: 0 | P199: 0 | Q199: 0 | R199: 0
A200: =ROW() -> 200 | C200: Business Support | H200: 0 | I200: 0 | J200: 0 | K200: 0 | L200: 0 | N200: 0 | O200: 0 | P200: 0 | Q200: 0 | R200: 0
... 46 more rows

Sheet Incentive_Rate_Input
B1: =Information!$A$1 -> ERA Western Power AA5 Revenue Model, September 2022 [Draft Decision]
B2: Incentive Rate Input
B3: =COLUMN() -> 2 | C3: =COLUMN() -> 3 | D3: =COLUMN() -> 4 | E3: =COLUMN() -> 5 | F3: =COLUMN() -> 6 | G3: =COLUMN() -> 7 | H3: =COLUMN() -> 8 | I3: =COLUMN() -> 9
A4: =ROW() -> 4
A5: =ROW() -> 5 | B5: AA5 VCRs weighted to WA
A6: =ROW() -> 6 | B6: VCRs by feeder type escalated by CPI | D6: ="$/kwh [Real 30/6/"&D_Input!$E$21&"]" -> $/kwh [Real 30/6/2022] | F6: $/kWh [Real 30/6/2021]
A7: =ROW() -> 7 | C7: CBD | D7: =F7/D_Input!$Y$24 -> 45.1539899 | F7: 42.54
A8: =ROW() -> 8 | C8: Urban | D8: =F8/D_Input!$Y$24 -> 44.07131313 | F8: 41.52
A9: =ROW() -> 9 | C9: Rural short | D9: =F9/D_Input!$Y$24 -> 42.60651515 | F9: 40.14
A10: =ROW() -> 10 | C10: Rural long | D10: =F10/D_Input!$Y$24 -> 42.15009259 | F10: 39.71
A11: =ROW() -> 11
A12: =ROW() -> 12 | B12: Value of customer reliability (VCR) - AER STPIS approach
A13: =ROW() -> 13 | B13: WA - energy consumption (for 12 months) [GWh] | D13: CBD | E13: Urban | F13: Rural short | G13: Rural long | H13: Western Power Network Total
A14: =ROW() -> 14 | C14: Energy Consumption | D14: 428.8603776 | E14: 8156.863587 | F14: 3411.005613 | G14: 1060.351469
A15: =ROW() -> 15 | C15: Total | D15: =SUM(D14:D14) -> 428.8603776 | E15: =SUM(E14:E14) -> 8156.863587 | F15: =SUM(F14:F14) -> 3411.005613 | G15: =SUM(G14:G14) -> 1060.351469 | H15: =SUM(D15:G15) -> 13057.08105
A16: =ROW() -> 16
A17: =ROW() -> 17 | B17: ="SSAM Incentive Rate Input [$ Real 30/6/"&D_Input!$E$21&"]" -> SSAM Incentive Rate Input [$ Real 30/6/2022]
A18: =ROW() -> 18 | B18: Ratio of unplanned SAIDI to unplanned SAIFI | D18: Ratio
A19: =ROW() -> 19 | C19: CBD | D19: 1.5
A20: =ROW() -> 20 | C20: Urban | D20: 1.5
A21: =ROW() -> 21 | C21: Rural short | D21: 1.5
A22: =ROW() -> 22 | C22: Rural long | D22: 1.5
A23: =ROW() -> 23
A24: =ROW() -> 24 | B24: Revenue at risk
A25: =ROW() -> 25 | D25: Average AA5 Revenue | E25: Portion at risk | F25: Revenue at risk (rounded to 0 decimal)
A26: =ROW() -> 26 | C26: Transmission average revenue | D26: 84966317.39 | E26: 0.01 | F26: =ROUND(E26*D26,0) -> 849663
A27: =ROW() -> 27 | C27: Distribution average revenue | D27: 1292876304 | E27: 0.01 | F27: =ROUND(E27*D27,0) -> 12928763
A28: =ROW() -> 28 | C28: Total average revenue | D28: =SUM(D26:D27) -> 1377842622 | F28: =SUM(F26:F27) -> 13778426
A29: =ROW() -> 29
A30: =ROW() -> 30 | C30: Average Revenue at Risk per annum | F30: =F28 -> 13778426
A31: =ROW() -> 31 | C31: Total Revenue at Risk for AA4 | F31: =F30*4 -> 55113704 | G31: Calculated for 4 years form FY23 to FY27 due to gap year
A32: =ROW() -> 32
A33: =ROW() -> 33 | B33: Transmission revenue at risk to determine incentive rate | D33: Portion at risk | E33: Revenue at risk
A34: =ROW() -> 34 | C34: Loss of supply event frequency >0.1 system minutes interrupted | D34: 0.3 | E34: =E$26*D$26*D34 -> 254898.9522
A35: =ROW() -> 35 | C35: Loss of supply event frequency >1 system minutes interrupted | D35: 0.3 | E35: =E$26*D$26*D35 -> 254898.9522
A36: =ROW() -> 36 | C36: Average outage duration | D36: 0.4 | E36: =E$26*D$26*D36 -> 339865.2696
A37: =ROW() -> 37 | D37: Total | E37: =SUM(E34:E36) -> 849663.1739 | F37: =IF(ROUND(E37-F26,0)=0,"OK","CHECK") -> OK
A38: =ROW() -> 38
A39: =ROW() -> 39 | B39: AA4 SSB and SSAM Target
A40: =ROW() -> 40 | B40: Distribution Reference Service Benchmark - Statistical output | D40: POE2.5 | E40: SSAM target adj | F40: POE97.5 | G40: SSB target | H40: SSAM target | I40: Rounding
A41: =ROW() -> 41 | C41: CBD SAIDI | D41: N/A | E41: 13.72904119 | F41: 35.23 | G41: =ROUND(F41,$I41) -> 35.2 | H41: =ROUND(E41,$I41) -> 13.7 | I41: 1
A42: =ROW() -> 42 | C42: CBD SAIFI | D42: N/A | E42: 0.1935469946 | F42: 0.44 | G42: 0.44 | H42: 0.19 | I42: 2
A43: =ROW() -> 43 | C43: URBAN SAIDI | D43: N/A | E43: 119.2332872 | F43: 138.9 | G43: 138.9 | H43: 119.2 | I43: 1
A44: =ROW() -> 44 | C44: URBAN SAIFI | D44: N/A | E44: 1.227965287 | F44: 1.33 | G44: 1.33 | H44: 1.23 | I44: 2
A45: =ROW() -> 45 | C45: Rural Short SAIDI | D45: N/A | E45: 198.5111683 | F45: 236.87 | G45: 236.9 | H45: 198.5 | I45: 1
A46: =ROW() -> 46 | C46: Rural Short SAIFI | D46: N/A | E46: 2.022321802 | F46: 2.28 | G46: 2.28 | H46: 2.02 | I46: 2
A47: =ROW() -> 47 | C47: Rural Long SAIDI | D47: N/A | E47: 704.3418441 | F47: 812.5 | G47: 812.5 | H47: 704.3 | I47: 1
A48: =ROW() -> 48 | C48: Rural Long SAIFI | D48: N/A | E48: 4.329356521 | F48: 4.71 | G48: =ROUND(F48,$I48) -> 4.71 | H48: =ROUND(E48,$I48) -> 4.33 | I48: 2
A49: =ROW() -> 49 | C49: Call Centre Performance | D49: 0.907 | E49: N/A | F49: N/A | G49: =ROUND(D49,$I49) -> 0.907 | H49: =IF(ISNUMBER(E49),ROUND(E49,1),"N/A") -> N/A | I49: 3
A50: =ROW() -> 50 | C50: Streetlighting repair time – metropolitan areas | G50: 5 | H50: N/A
A51: =ROW() -> 51 | C51: Streetlighting repair time –regional areas | G51: 9 | H51: N/A
A52: =ROW() -> 52 | C52: Supply abolishment (whole current meter) response time | G52: 15 | H52: N/A
A53: =ROW() -> 53 | C53: Remote de-energise response time | G53: 1 | H53: N/A
A54: =ROW() -> 54 | C54: Remote re-energise response time | G54: 1 | H54: N/A
A55: =ROW() -> 55
A56: =ROW() -> 56 | B56: Adjustments to Distribution Reference Service Benchmark | D56: POE2.5 | E56: SSAM target adj | F56: POE97.5 | G56: SSB target | H56: SSAM target | I56: Rounding
A57: =ROW() -> 57 | C57: CBD SAIDI | D57: N/A | E57: 0 | F57: 0 | G57: =ROUND(F57,$I57) -> 0 | H57: =ROUND(E57,$I57) -> 0 | I57: 1
A58: =ROW() -> 58 | C58: CBD SAIFI | D58: N/A | E58: -0.01996009775 | F58: 0 | G58: 0 | H58: -0.02 | I58: 2
A59: =ROW() -> 59 | C59: URBAN SAIDI | D59: N/A | E59: -0.7315347019 | F59: 0 | G59: 0 | H59: -0.7 | I59: 1
A60: =ROW() -> 60 | C60: URBAN SAIFI | D60: N/A | E60: 0 | F60: 0 | G60: 0 | H60: 0 | I60: 2
A61: =ROW() -> 61 | C61: Rural Short SAIDI | D61: N/A | E61: -0.5844494746 | F61: 0 | G61: 0 | H61: -0.6 | I61: 1
A62: =ROW() -> 62 | C62: Rural Short SAIFI | D62: N/A | E62: 0 | F62: 0 | G62: 0 | H62: 0 | I62: 2
A63: =ROW() -> 63 | C63: Rural Long SAIDI | D63: N/A | E63: 0 | F63: 0 | G63: 0 | H63: 0 | I63: 1
A64: =ROW() -> 64 | C64: Rural Long SAIFI | D64: N/A | E64: 0 | F64: 0 | G64: =ROUND(F64,$I64) -> 0 | H64: =ROUND(E64,$I64) -> 0 | I64: 2
A65: =ROW() -> 65 | C65: Call Centre Performance | D65: =D81-D49 -> -0.039 | E65: N/A | F65: N/A | G65: =ROUND(D65,$I65) -> -0.039 | H65: =IF(ISNUMBER(E65),ROUND(E65,1),"N/A") -> N/A | I65: 3
A66: =ROW() -> 66 | C66: Streetlighting repair time – metropolitan areas | G66: 0 | H66: N/A
A67: =ROW() -> 67 | C67: Streetlighting repair time –regional areas | G67: 0 | H67: N/A
A68: =ROW() -> 68 | C68: Supply abolishment (whole current meter) response time | G68: 0 | H68: N/A
A69: =ROW() -> 69 | C69: Remote de-energise service response time | G69: 0 | H69: N/A
A70: =ROW() -> 70 | C70: Remote re-energise service response time | G70: 0 | H70: N/A
A71: =ROW() -> 71
A72: =ROW() -> 72 | B72: Distribution Reference Service Benchmark | D72: POE2.5 | E72: SSAM target | F72: POE97.5 | G72: SSB target | H72: SSAM target | I72: Rounding
A73: =ROW() -> 73 | C73: CBD SAIDI | D73: N/A | E73: =IF(ISNUMBER(E41),E41,0) + IF(ISNUMBER(E57),E57,0) -> 13.72904119 | F73: =IF(ISNUMBER(F41),F41,0) + IF(ISNUMBER(F57),F57,0) -> 35.23 | G73: =ROUND(F73,$I73) -> 35.2 | H73: =ROUND(E73,$I73) -> 13.7 | I73: 1
A74: =ROW() -> 74 | C74: CBD SAIFI | D74: N/A | E74: =IF(ISNUMBER(E42),E42,0) + IF(ISNUMBER(E58),E58,0) -> 0.1735868969 | F74: 0.44 | G74: 0.44 | H74: 0.17 | I74: 2
A75: =ROW() -> 75 | C75: URBAN SAIDI | D75: N/A | E75: 118.5017525 | F75: 138.9 | G75: 138.9 | H75: 118.5 | I75: 1
A76: =ROW() -> 76 | C76: URBAN SAIFI | D76: N/A | E76: 1.227965287 | F76: 1.33 | G76: 1.33 | H76: 1.23 | I76: 2
A77: =ROW() -> 77 | C77: Rural Short SAIDI | D77: N/A | E77: 197.9267188 | F77: 236.87 | G77: 236.9 | H77: 197.9 | I77: 1
A78: =ROW() -> 78 | C78: Rural Short SAIFI | D78: N/A | E78: 2.022321802 | F78: 2.28 | G78: 2.28 | H78: 2.02 | I78: 2
A79: =ROW() -> 79 | C79: Rural Long SAIDI | D79: N/A | E79: 704.3418441 | F79: 812.5 | G79: 812.5 | H79: 704.3 | I79: 1
A80: =ROW() -> 80 | C80: Rural Long SAIFI | D80: N/A | E80: 4.329356521 | F80: 4.71 | G80: =ROUND(F80,$I80) -> 4.71 | H80: =ROUND(E80,$I80) -> 4.33 | I80: 2
A81: =ROW() -> 81 | C81: Call Centre Performance | D81: 0.868 | E81: 0 | F81: 0 | G81: =ROUND(D81,$I81) -> 0.868 | H81: =IF(ISNUMBER(E81),ROUND(E81,1),"N/A") -> 0 | I81: 3
A82: =ROW() -> 82 | C82: Streetlighting repair time – metropolitan areas | G82: =G50 -> 5 | H82: =IF(ISNUMBER(E82),ROUND(E82,$I82),"N/A") -> N/A
A83: =ROW() -> 83 | C83: Streetlighting repair time –regional areas | G83: =G51 -> 9 | H83: =IF(ISNUMBER(E83),ROUND(E83,$I83),"N/A") -> N/A
A84: =ROW() -> 84 | C84: Supply abolishment (whole current meter) response time | G84: =G52 -> 15 | H84: =IF(ISNUMBER(E84),ROUND(E84,$I84),"N/A") -> N/A
A85: =ROW() -> 85 | C85: Remote de-energise response time | G85: =G53 -> 1 | H85: =IF(ISNUMBER(E85),ROUND(E85,$I85),"N/A") -> N/A
A86: =ROW() -> 86 | C86: Remote re-energise response time | G86: =G54 -> 1 | H86: =IF(ISNUMBER(E86),ROUND(E86,$I86),"N/A") -> N/A
A87: =ROW() -> 87
A88: =ROW() -> 88 | B88: Transmission Reference Service Benchmark - statistical outputs | D88: POE2.5 | E88: SSAM target | F88: POE97.5 | G88: SSB target | H88: SSAM target
A89: =ROW() -> 89 | C89: Loss of supply event frequency >0.1 system minutes interrupted | D89: 0 | E89: 1.4 | F89: 4 | G89: =F89 -> 4 | H89: =E89 -> 1.4
A90: =ROW() -> 90 | C90: Loss of supply event frequency >1 system minutes interrupted | D90: 0 | E90: 0.6 | F90: 2 | G90: =F90 -> 2 | H90: =E90 -> 0.6
A91: =ROW() -> 91 | C91: Average outage duration | D91: 181.64 | E91: 851.7509259 | F91: 1745.8 | G91: =F91 -> 1745.8 | H91: =E91 -> 851.7509259
A92: =ROW() -> 92
A93: =ROW() -> 93 | B93: Adjustment to Transmission Reference Service Benchmark | D93: POE2.5 | E93: SSAM target | F93: POE97.5 | G93: SSB target | H93: SSAM target
A94: =ROW() -> 94 | C94: Loss of supply event frequency >0.1 system minutes interrupted | D94: 0 | E94: 0 | F94: 0 | G94: =F94 -> 0 | H94: =E94 -> 0
A95: =ROW() -> 95 | C95: Loss of supply event frequency >1 system minutes interrupted | D95: 0 | E95: 0 | F95: 0 | G95: =F95 -> 0 | H95: =E95 -> 0
A96: =ROW() -> 96 | C96: Average outage duration | D96: 0 | E96: 0 | F96: 0 | G96: =F96 -> 0 | H96: =E96 -> 0
A97: =ROW() -> 97
A98: =ROW() -> 98 | B98: Transmission Reference Service Benchmark | D98: POE2.5 | E98: SSAM target | F98: POE97.5 | G98: SSB target | H98: SSAM target | I98: Rounding
A99: =ROW() -> 99 | C99: Loss of supply event frequency >0.1 system minutes interrupted | D99: =D89+D94 -> 0 | E99: 1.4 | F99: 4 | G99: =ROUND(F99,$I99) -> 4 | H99: =ROUND(E99,$I99) -> 1 | I99: 0
A100: =ROW() -> 100 | C100: Loss of supply event frequency >1 system minutes interrupted | D100: 0 | E100: 0.6 | F100: 2 | G100: =ROUND(F100,$I100) -> 2 | H100: =ROUND(E100,$I100) -> 1 | I100: 0
A101: =ROW() -> 101 | C101: Average outage duration | D101: 181.64 | E101: 851.7509259 | F101: 1745.8 | G101: =ROUND(F101,$I101) -> 1746 | H101: =ROUND(E101,$I101) -> 852 | I101: 0
A102: =ROW() -> 102
A103: =ROW() -> 103 | B103: AA4 approved VCRs weighted to WA
A104: =ROW() -> 104 | B104: VCRs by feeder type escalated by CPI | D104: ="$/kwh [Real 30/6/"&D_Input!$E$21&"]" -> $/kwh [Real 30/6/2022] | F104: $/kwh [Real 30/6/2017]
A105: =ROW() -> 105 | C105: CBD | D105: =F105*(1/D_Input!$U$24) -> 58.09485095 | F105: 51
A106: =ROW() -> 106 | C106: Urban | D106: =F106*(1/D_Input!$U$24) -> 49.2097561 | F106: 43.2
A107: =ROW() -> 107 | C107: Rural short | D107: =F107*(1/D_Input!$U$24) -> 47.72890696 | F107: 41.9
A108: =ROW() -> 108 | C108: Rural long | D108: =F108*(1/D_Input!$U$24) -> 49.09584463 | F108: 43.1

Sheet Incentive_Rates
B1: =Information!$A$1 -> ERA Western Power AA5 Revenue Model, September 2022 [Draft Decision]
B2: Incentive Rates
B3: =COLUMN() -> 2 | C3: =COLUMN() -> 3 | D3: =COLUMN() -> 4 | E3: =COLUMN() -> 5 | F3: =COLUMN() -> 6 | G3: =COLUMN() -> 7 | H3: =COLUMN() -> 8 | I3: =COLUMN() -> 9
A4: =ROW() -> 4
A5: =ROW() -> 5 | B5: ="Incentive rates calculations [$ Real 30/6/"&D_Input!$E$21&"]" -> Incentive rates calculations [$ Real 30/6/2022]
A6: =ROW() -> 6 | B6: SAIDI Incentive Rates | D6: $/kWh
A7: =ROW() -> 7 | C7: CBD | D7: =Incentive_Rate_Input!D7*(1-1/(1+Incentive_Rate_Input!D19)) -> 27.09239394
A8: =ROW() -> 8 | C8: Urban | D8: =Incentive_Rate_Input!D8*(1-1/(1+Incentive_Rate_Input!D20)) -> 26.44278788
A9: =ROW() -> 9 | C9: Rural short | D9: =Incentive_Rate_Input!D9*(1-1/(1+Incentive_Rate_Input!D21)) -> 25.56390909
A10: =ROW() -> 10 | C10: Rural long | D10: =Incentive_Rate_Input!D10*(1-1/(1+Incentive_Rate_Input!D22)) -> 25.29005556
A11: =ROW() -> 11
A12: =ROW() -> 12 | B12: Convert a SAIDI minute to MWh | D12: MWh/minute
A13: =ROW() -> 13 | C13: CBD | D13: =Incentive_Rate_Input!D$15*1000/(365.25*24*60) -> 0.8153859183
A14: =ROW() -> 14 | C14: Urban | D14: =Incentive_Rate_Input!E$15*1000/(365.25*24*60) -> 15.50852458
A15: =ROW() -> 15 | C15: Rural short | D15: =Incentive_Rate_Input!F$15*1000/(365.25*24*60) -> 6.485294723
A16: =ROW() -> 16 | C16: Rural long | D16: =Incentive_Rate_Input!G$15*1000/(365.25*24*60) -> 2.016030627
A17: =ROW() -> 17
A18: =ROW() -> 18 | B18: SAIDI incentive rate ($ per minute) | D18: $ per minute
A19: =ROW() -> 19 | C19: CBD | D19: =D13*D7*1000 -> 22090.75651
A20: =ROW() -> 20 | C20: Urban | D20: =D14*D8*1000 -> 410088.6257
A21: =ROW() -> 21 | C21: Rural short | D21: =D15*D9*1000 -> 165789.4847
A22: =ROW() -> 22 | C22: Rural long | D22: =D16*D10*1000 -> 50985.52656
A23: =ROW() -> 23
A24: =ROW() -> 24 | B24: SAIFI Incentive Rate ($ per 0.01 event) | D24: $/kWh
A25: =ROW() -> 25 | C25: CBD | D25: =Incentive_Rate_Input!D7/(1+Incentive_Rate_Input!D19) -> 18.06159596
A26: =ROW() -> 26 | C26: Urban | D26: =Incentive_Rate_Input!D8/(1+Incentive_Rate_Input!D20) -> 17.62852525
A27: =ROW() -> 27 | C27: Rural short | D27: =Incentive_Rate_Input!D9/(1+Incentive_Rate_Input!D21) -> 17.04260606
A28: =ROW() -> 28 | C28: Rural long | D28: =Incentive_Rate_Input!D10/(1+Incentive_Rate_Input!D22) -> 16.86003704
A29: =ROW() -> 29
A30: =ROW() -> 30 | B30: Convert an event to MWh (assumes each event of average duration - CAIDI = SAIDI/SAIFI) | D30: MWh/event
A31: =ROW() -> 31 | C31: CBD | D31: =Incentive_Rate_Input!D$15*Incentive_Rate_Input!E73/Incentive_Rate_Input!E74/(365.25*24*60)*1000 -> 64.48912367
A32: =ROW() -> 32 | C32: Urban | D32: =Incentive_Rate_Input!E$15*Incentive_Rate_Input!E75/Incentive_Rate_Input!E76/(365.25*24*60)*1000 -> 1496.611803
A33: =ROW() -> 33 | C33: Rural short | D33: =Incentive_Rate_Input!F$15*Incentive_Rate_Input!E77/Incentive_Rate_Input!E78/(365.25*24*60)*1000 -> 634.7224778
A34: =ROW() -> 34 | C34: Rural long | D34: =Incentive_Rate_Input!G$15*Incentive_Rate_Input!E79/Incentive_Rate_Input!E80/(365.25*24*60)*1000 -> 327.9874787
A35: =ROW() -> 35
A36: =ROW() -> 36 | B36: SAIFI incentive rate ($ per 0.01 event) | D36: $ per 0.01 event
A37: =ROW() -> 37 | C37: CBD | D37: =D31*D25*1000/100 -> 11647.76496
A38: =ROW() -> 38 | C38: Urban | D38: =D32*D26*1000/100 -> 263830.5895
A39: =ROW() -> 39 | C39: Rural short | D39: =D33*D27*1000/100 -> 108173.2515
A40: =ROW() -> 40 | C40: Rural long | D40: =D34*D28*1000/100 -> 55298.81039
A41: =ROW() -> 41
A42: =ROW() -> 42 | B42: Transmission revenue at risk
A43: =ROW() -> 43 | C43: Revenue at risk | D43: =Incentive_Rate_Input!E26 -> 0.01
A44: =ROW() -> 44 | C44: Transmission Revenue (AA4 average) | D44: =Incentive_Rate_Input!D26 -> 84966317.39
A45: =ROW() -> 45 | C45: Transmission Revenue at risk | D45: =D43*D44 -> 849663.1739
A46: =ROW() -> 46
A47: =ROW() -> 47 | B47: Loss of Supply Event Frequency >0.1 and ≤ 1.0 system minutes interrupted incentive rates
A48: =ROW() -> 48 | C48: Loss of supply event frequency >0.1 and ≤ 1.0 system minutes interrupted reward side incentive rate
A49: =ROW() -> 49 | C49: Portion of revenue at risk | D49: =Incentive_Rate_Input!D34 -> 0.3
A50: =ROW() -> 50 | C50: Revenue at risk | D50: =Incentive_Rate_Input!E34 -> 254898.9522
A51: =ROW() -> 51
A52: =ROW() -> 52 | C52: SSAM target | D52: =ROUND(Incentive_Rate_Input!E99,0) -> 1
A53: =ROW() -> 53 | C53: POE92.5 | D53: =ROUND(Incentive_Rate_Input!D99,0) -> 0
A54: =ROW() -> 54 | C54: Difference | D54: =D52-D53 -> 1
A55: =ROW() -> 55
A56: =ROW() -> 56 | C56: Reward side incentive rate dollars per event | D56: =D50/D54 -> 254898.9522
A57: =ROW() -> 57
A58: =ROW() -> 58 | C58: Loss of supply event frequency >0.1, system minutes interrupted reward side incentive rate
A59: =ROW() -> 59 | C59: SSAM target | D59: =D52 -> 1
A60: =ROW() -> 60 | C60: POE97.5 | D60: =ROUND(Incentive_Rate_Input!F99,0) -> 4
A61: =ROW() -> 61 | C61: Difference | D61: =D60-D59 -> 3
A62: =ROW() -> 62
A63: =ROW() -> 63 | C63: Penalty side incentive rate dollars per event | D63: =D50/D61 -> 84966.31739
A64: =ROW() -> 64
A65: =ROW() -> 65 | B65: Loss of Supply Event Frequency >1 system minutes interrupted incentive rates
A66: =ROW() -> 66 | C66: Loss of supply event frequency >1, system minutes interrupted reward side incentive rate
A67: =ROW() -> 67 | C67: Portion of revenue at risk | D67: =Incentive_Rate_Input!D35 -> 0.3
A68: =ROW() -> 68 | C68: Revenue at risk | D68: =Incentive_Rate_Input!E35 -> 254898.9522
A69: =ROW() -> 69
A70: =ROW() -> 70 | C70: SSAM Target | D70: =ROUND(Incentive_Rate_Input!E100,0) -> 1
A71: =ROW() -> 71 | C71: POE2.5 | D71: =ROUND(Incentive_Rate_Input!D100,0) -> 0
A72: =ROW() -> 72 | C72: Difference | D72: =D70-D71 -> 1
A73: =ROW() -> 73
A74: =ROW() -> 74 | C74: Reward side incentive rate dollars per event | D74: =D68/D72 -> 254898.9522
A75: =ROW() -> 75
A76: =ROW() -> 76 | C76: Loss of supply event frequency >1, system minutes interrupted reward side incentive rate
A77: =ROW() -> 77 | C77: SSAM Target | D77: =D70 -> 1
A78: =ROW() -> 78 | C78: POE97.5 | D78: =ROUND(Incentive_Rate_Input!F100,0) -> 2
A79: =ROW() -> 79 | C79: Difference | D79: =D78-D77 -> 1
A80: =ROW() -> 80
A81: =ROW() -> 81 | C81: Penalty side incentive rate dollars per event | D81: =D68/D79 -> 254898.9522
A82: =ROW() -> 82
A83: =ROW() -> 83 | B83: Average Outage Duration Incentive Rates
A84: =ROW() -> 84 | C84: Average Outage Duration reward side incentive rate
A85: =ROW() -> 85 | C85: Portion of revenue at risk | D85: =Incentive_Rate_Input!D36 -> 0.4
A86: =ROW() -> 86 | C86: Revenue at risk | D86: =Incentive_Rate_Input!E36 -> 339865.2696
A87: =ROW() -> 87
A88: =ROW() -> 88 | C88: SSAM Target | D88: =ROUND(Incentive_Rate_Input!E101,0) -> 852
A89: =ROW() -> 89 | C89: POE2.5 | D89: =ROUND(Incentive_Rate_Input!D101,0) -> 182
A90: =ROW() -> 90 | C90: Difference | D90: =D88-D89 -> 670
A91: =ROW() -> 91
A92: =ROW() -> 92 | C92: Reward side incentive rate dollars per event | D92: =D86/D90 -> 507.2615963
A93: =ROW() -> 93
A94: =ROW() -> 94 | C94: Average Outage Duration penalty side incentive rate
A95: =ROW() -> 95 | C95: PoE50 | D95: =D88 -> 852
A96: =ROW() -> 96 | C96: PoE1 | D96: =ROUND(Incentive_Rate_Input!F101,0) -> 1746
A97: =ROW() -> 97 | C97: Difference | D97: =D96-D95 -> 894
A98: =ROW() -> 98
A99: =ROW() -> 99 | C99: Penalty side incentive rate dollars per event | D99: =D86/D97 -> 380.1624939
A100: =ROW() -> 100
A101: =ROW() -> 101 | B101: SSAM financial incentive rates for AA4 period distribution measures
A102: =ROW() -> 102 | E102: ="[$ Real 30/6/"&D_Input!$E$21&"]" -> [$ Real 30/6/2022] | H102: [$ Real 30/6/2017]
A103: =ROW() -> 103 | C103: Performance measure | D103: Unit | E103: AA4 | H103: AA4
A104: =ROW() -> 104 | E104: Reward | F104: Penalty | H104: Reward | I104: Penalty
A105: =ROW() -> 105 | C105: System average interruption duration index (SAIDI)
A106: =ROW() -> 106 | C106: CBD | D106: Minutes | E106: =H106*(1/D_Input!$U$24) -> 34418.3514 | F106: =I106*(1/D_Input!$U$24) -> 34418.3514 | H106: 30215 | I106: 30215
A107: =ROW() -> 107 | C107: Urban | D107: Minutes | E107: =H107*(1/D_Input!$U$24) -> 508796.9828 | F107: =I107*(1/D_Input!$U$24) -> 508796.9828 | H107: 446660 | I107: 446660
A108: =ROW() -> 108 | C108: Rural short | D108: Minutes | E108: =H108*(1/D_Input!$U$24) -> 163027.8211 | F108: =I108*(1/D_Input!$U$24) -> 163027.8211 | H108: 143118 | I108: 143118
A109: =ROW() -> 109 | C109: Rural long | D109: Minutes | E109: =H109*(1/D_Input!$U$24) -> 59806.94038 | F109: =I109*(1/D_Input!$U$24) -> 59806.94038 | H109: 52503 | I109: 52503
A110: =ROW() -> 110 | C110: System average interruption frequency index (SAIFI)
A111: =ROW() -> 111 | C111: CBD | D111: Number of 0.01 events | E111: =H111*(1/D_Input!$U$24) -> 33289.48871 | F111: =I111*(1/D_Input!$U$24) -> 33289.48871 | H111: 29224 | I111: 29224
A112: =ROW() -> 112 | C112: Urban | D112: Number of 0.01 events | E112: =H112*(1/D_Input!$U$24) -> 331137.2331 | F112: =I112*(1/D_Input!$U$24) -> 331137.2331 | H112: 290697 | I112: 290697
A113: =ROW() -> 113 | C113: Rural short | D113: Number of 0.01 events | E113: =H113*(1/D_Input!$U$24) -> 104592.3749 | F113: =I113*(1/D_Input!$U$24) -> 104592.3749 | H113: 91819 | I113: 91819
A114: =ROW() -> 114 | C114: Rural long | D114: Number of 0.01 events | E114: =H114*(1/D_Input!$U$24) -> 63039.74797 | F114: =I114*(1/D_Input!$U$24) -> 63039.74797 | H114: 55341 | I114: 55341

Sheet D_Asset
B1: =Information!$A$1 -> ERA Western Power AA5 Revenue Model, September 2022 [Draft Decision]
B2: Distribution Asset
B3: =COLUMN() -> 2 | C3: =COLUMN() -> 3 | D3: =COLUMN() -> 4 | E3: =COLUMN() -> 5 | F3: =COLUMN() -> 6 | G3: =COLUMN() -> 7 | H3: =COLUMN() -> 8 | I3: =COLUMN() -> 9 | J3: =COLUMN() -> 10 | K3: =COLUMN() -> 11 | L3: =COLUMN() -> 12 | M3: =COLUMN() -> 13 | N3: =COLUMN() -> 14 | O3: =COLUMN() -> 15 | P3: =COLUMN() -> 16 | Q3: =COLUMN() -> 17 | R3: =COLUMN() -> 18 | S3: =COLUMN() -> 19 | T3: =COLUMN() -> 20 | U3: =COLUMN() -> 21 | V3: =COLUMN() -> 22 | W3: =COLUMN() -> 23 | X3: =COLUMN() -> 24 | Y3: =COLUMN() -> 25 | Z3: =COLUMN() -> 26 | AA3: =COLUMN() -> 27 | AB3: =COLUMN() -> 28 | AC3: =COLUMN() -> 29 | AD3: =COLUMN() -> 30 | AE3: =COLUMN() -> 31
A4: =ROW() -> 4 | B4: Year Ending 30 June | J4: 2006 | K4: =J4+1 -> 2007 | L4: =K4+1 -> 2008 | M4: 2009 | N4: 2010 | O4: 2011 | P4: 2012 | Q4: 2013 | R4: 2014 | S4: 2015 | T4: 2016 | U4: 2017 | V4: 2018 | W4: 2019 | X4: 2020 | Y4: 2021 | Z4: 2022 | AA4: 2023 | AB4: =AA4+1 -> 2024 | AC4: 2025 | AD4: 2026 | AE4: 2027
A5: =ROW() -> 5 | B5: Project Year | J5: 0 | K5: =J5+1 -> 1 | L5: 2 | M5: 3 | N5: 4 | O5: 5 | P5: 6 | Q5: 7 | R5: 8 | S5: 9 | T5: 10 | U5: 11 | V5: 12 | W5: 13 | X5: 14 | Y5: 15 | Z5: 16 | AA5: 17 | AB5: 18 | AC5: 19 | AD5: 20 | AE5: 21
A6: =ROW() -> 6 | B6: Regulatory Period | K6: AA1 | N6: AA2 | Q6: AA3 | V6: AA4 | AA6: AA5
A7: =ROW() -> 7 | B7: ="Distribution RAB Summary [$M Real 30/6/"&D_Input!$E$21&"]" -> Distribution RAB Summary [$M Real 30/6/2022]
A8: =ROW() -> 8 | C8: Opening Asset Value | K8: =J13 -> 2341.426337 | L8: =K13 -> 2728.397781 | M8: 3152.356287 | N8: 3771.713965 | O8: 4115.163357 | P8: 4443.724199 | Q8: 4839.758693 | R8: 5363.496576 | S8: 5858.383134 | T8: 6258.679034 | U8: 6519.253927 | V8: 6605.050029 | W8: 6658.755555 | X8: 6747.533506 | Y8: 6895.483976 | Z8: 7061.28135 | AA8: 7264.202171 | AB8: 7499.859015 | AC8: 7744.406001 | AD8: 7982.369774 | AE8: 8184.018004
A9: =ROW() -> 9 | C9: Capex | K9: =K45 -> 535.6471858 | L9: =L45 -> 578.9210398 | M9: 786.9362191 | N9: 541.5221165 | O9: 542.1778605 | P9: 634.3971079 | Q9: 772.9456123 | R9: =R45 -> 764.8479536 | S9: 704.2531861 | T9: 567.3406002 | U9: 407.1571933 | V9: 353.1962517 | W9: 410.2666811 | X9: 471.0325841 | Y9: 474.039252 | Z9: 502.885092 | AA9: 531.1098579 | AB9: 536.4362493 | AC9: 549.9076614 | AD9: 531.8630371 | AE9: 533.0977097
A10: =ROW() -> 10 | C10: Depreciation | K10: =K60 -> -142.7688171 | L10: =L60 -> -149.5733883 | M10: -162.2668452 | N10: -191.7831749 | O10: -208.5216083 | P10: -230.5864593 | Q10: -243.8231523 | R10: -269.0416406 | S10: -298.3396784 | T10: -303.563553 | U10: -320.6571374 | V10: -293.5110002 | W10: -313.9449709 | X10: -318.057471 | Y10: -306.5308238 | Z10: -298.2866049 | AA10: -295.4530138 | AB10: -291.8892636 | AC10: -311.9438883 | AD10: -330.2148072 | AE10: -345.5460616
A11: =ROW() -> 11 | C11: Accelerated Depreciation | K11: =K75 -> -5.632083893 | L11: =L75 -> -5.389144673 | M11: -5.311695887 | N11: -5.211304369 | O11: -5.094139168 | P11: -4.960213406 | Q11: -4.327206928 | R11: -0.5803919419 | S11: 0 | T11: 0 | U11: 0 | V11: -4.369440368 | W11: -6.898978798 | X11: -4.367689064 | Y11: 0 | Z11: 0 | AA11: 0 | AB11: 0 | AC11: 0 | AD11: 0 | AE11: 0
A12: =ROW() -> 12 | C12: Redundant Asset | K12: =K90 -> -0.2748413782 | L12: =L90 -> 0 | M12: 0 | N12: -1.078246044 | O12: -0.00127076886 | P12: -2.815940635 | Q12: -1.057370617 | R12: -0.3393626062 | S12: -5.617608372 | T12: -3.202153921 | U12: =U90 -> -0.7039535946 | V12: -1.610285841 | W12: -0.6447796167 | X12: -0.6569545455 | Y12: -1.711053872 | Z12: -1.677666105 | AA12: 0 | AB12: 0 | AC12: 0 | AD12: 0 | AE12: 0
A13: =ROW() -> 13 | C13: Closing Asset Value | J13: =J105 -> 2341.426337 | K13: =SUM(K8:K12) -> 2728.397781 | L13: =SUM(L8:L12) -> 3152.356287 | M13: 3771.713965 | N13: 4115.163357 | O13: 4443.724199 | P13: 4839.758693 | Q13: 5363.496576 | R13: 5858.383134 | S13: 6258.679034 | T13: 6519.253927 | U13: 6605.050029 | V13: 6658.755555 | W13: 6747.533506 | X13: 6895.483976 | Y13: 7061.28135 | Z13: 7264.202171 | AA13: 7499.859015 | AB13: 7744.406001 | AC13: 7982.369774 | AD13: 8184.018004 | AE13: 8371.569652
A14: =ROW() -> 14
A15: =ROW() -> 15 | B15: ="Distribution RAB by asset categories [$M Real 30/6/"&D_Input!$E$21&"]" -> Distribution RAB by asset categories [$M Real 30/6/2022]
A16: =ROW() -> 16 | B16: Opening Value
A17: =ROW() -> 17 | C17: Wooden Pole Lines | K17: =J92 -> 693.9691234 | L17: =K92 -> 757.179896 | M17: 844.8390856 | N17: 986.7362684 | O17: 1109.053182 | P17: 1218.726065 | Q17: 1420.56808 | R17: 1722.585609 | S17: 2085.969278 | T17: 2342.689972 | U17: 2487.24606 | V17: 2500.950956 | W17: 2547.728297 | X17: 2589.544347 | Y17: 2658.558188 | Z17: 2760.052385 | AA17: 2817.03138 | AB17: 2886.855754 | AC17: 2955.537017 | AD17: 3010.238709 | AE17: 3064.297151
A18: =ROW() -> 18 | C18: Underground Cables | K18: =J93 -> 785.9132798 | L18: 984.7974444 | M18: 1172.552534 | N18: 1435.656803 | O18: 1568.691238 | P18: 1681.996678 | Q18: 1763.513828 | R18: 1808.384238 | S18: 1831.993262 | T18: 1853.456325 | U18: 1870.837121 | V18: 1882.482012 | W18: 1866.418382 | X18: 1854.606077 | Y18: 1851.131461 | Z18: 1850.309115 | AA18: 1839.881201 | AB18: 1915.486171 | AC18: 1987.294378 | AD18: 2057.376345 | AE18: 2123.710049
A19: =ROW() -> 19 | C19: Transformers | K19: 299.2098469 | L19: 352.2154788 | M19: 401.9552013 | N19: 481.1641713 | O19: 514.859719 | P19: 546.0008816 | Q19: 571.6273013 | R19: 691.9708029 | S19: 791.4008845 | T19: 900.7075318 | U19: 989.0089416 | V19: 1045.241832 | W19: 1055.00403 | X19: 1078.026843 | Y19: 1095.175734 | Z19: 1112.640335 | AA19: 1151.607969 | AB19: 1109.423631 | AC19: 1082.06852 | AD19: 1054.503717 | AE19: 1026.349174
A20: =ROW() -> 20 | C20: Switchgear | K20: 159.4820662 | L20: 202.7855689 | M20: 253.5846333 | N20: 330.9892167 | O20: 375.1253421 | P20: 417.1380181 | Q20: 471.8100702 | R20: 531.6964756 | S20: 585.3707063 | T20: 639.4371992 | U20: 674.7956886 | V20: 693.2115571 | W20: 691.0074159 | X20: 695.4660719 | Y20: 700.788408 | Z20: 713.917447 | AA20: 741.3056304 | AB20: 736.8155409 | AC20: 733.660957 | AD20: 730.9145985 | AE20: 726.4447151
A21: =ROW() -> 21 | C21: Street lighting | K21: 7.718723209 | L21: 22.97521575 | M21: 42.43897181 | N21: 72.55942212 | O21: 86.51968335 | P21: 99.99849652 | Q21: 109.8440718 | R21: 109.4843959 | S21: 108.4180748 | T21: 108.3683218 | U21: 108.1137572 | V21: 106.1846129 | W21: 101.4897603 | X21: 97.21199532 | Y21: 92.47127323 | Z21: 88.11143135 | AA21: 84.31638899 | AB21: 87.16213346 | AC21: 90.18436878 | AD21: 93.11920479 | AE21: 94.94572007
A22: =ROW() -> 22 | C22: Meters and Services | K22: 246.9986802 | L22: 233.8551884 | M22: 222.0307501 | N22: 211.5485197 | O22: 197.4903548 | P22: 188.3348338 | Q22: 179.1680757 | R22: 162.2102492 | S22: 141.0238476 | T22: 120.0015308 | U22: 130.4321372 | V22: 141.1304722 | W22: 147.4595728 | X22: 163.1445619 | Y22: 182.0462343 | Z22: 188.0822358 | AA22: 193.3796684 | AB22: 246.015211 | AC22: 291.8084003 | AD22: 340.9301329 | AE22: 376.9627703
A23: =ROW() -> 23 | C23: IT&T | K23: 22.63550972 | L23: 43.30565278 | M23: 80.16361695 | N23: 98.15805861 | O23: 103.1691419 | P23: 117.5774282 | Q23: 137.5223258 | R23: 141.6274028 | S23: 132.9114805 | T23: 127.5572747 | U23: 109.9097038 | V23: 111.5486769 | W23: 113.1734438 | X23: 115.3718706 | Y23: 117.0882104 | Z23: 112.4120351 | AA23: 114.542521 | AB23: 100.9934608 | AC23: 92.88459682 | AD23: 83.19656971 | AE23: 77.84554668
A24: =ROW() -> 24 | C24: SCADA & Communications | K24: 18.83290939 | L24: 19.94792652 | M24: 20.70406831 | N24: 21.17639294 | O24: 22.93293135 | P24: 23.66408524 | Q24: 25.570459 | R24: 25.63040717 | S24: 24.06148591 | T24: 20.59035203 | U24: 16.26056749 | V24: 13.5226465 | W24: 20.30840571 | X24: 24.18666593 | Y24: 39.05427427 | Z24: 55.83656788 | AA24: 66.76613726 | AB24: 84.60062656 | AC24: 99.8482368 | AD24: 116.3549576 | AE24: 135.5711265
A25: =ROW() -> 25 | C25: Other Distribution Non-Network | K25: 75.21440565 | L25: 80.15845781 | M25: 82.91047459 | N25: 102.548162 | O25: 106.1448125 | P25: 119.1120321 | Q25: 130.4908316 | R25: 134.5352707 | S25: 116.7070998 | T25: 105.628217 | U25: 91.22772243 | V25: 70.11806977 | W25: 69.26725814 | X25: 72.0841717 | Y25: 84.46166819 | Z25: 76.80313337 | AA25: 104.3650918 | AB25: 129.184887 | AC25: 153.7128782 | AD25: 184.041252 | AE25: 197.8804025
A26: =ROW() -> 26 | C26: Distribution Land & Easements | K26: 31.45179255 | L26: 31.17695118 | M26: 31.17695118 | N26: 31.17695118 | O26: 31.17695118 | P26: 31.17568041 | Q26: 29.64365072 | R26: 28.64389373 | S26: 28.6069806 | T26: 24.44744014 | U26: 24.44744014 | V26: 24.08982599 | W26: 30.74360608 | X26: 42.14950486 | Y26: 59.38111396 | Z26: 64.64134418 | AA26: 91.95520683 | AB26: 91.95520683 | AC26: 91.95520683 | AD26: 91.95520683 | AE26: 91.95520683
A27: =ROW() -> 27 | C27: Equity Raising Costs | K27: 0 | L27: 0 | M27: 0 | N27: 0 | O27: 0 | P27: 0 | Q27: 0 | R27: 6.727830756 | S27: 11.92003422 | T27: 15.79486814 | U27: 16.97478732 | V27: 16.56936806 | W27: 16.15538231 | X27: 15.74139655 | Y27: 15.32741079 | Z27: 14.91342503 | AA27: 14.49943928 | AB27: 14.08545352 | AC27: 13.67146776 | AD27: 13.257482 | AE27: 12.84349625
A28: =ROW() -> 28 | C28: Standalone Power Systems | K28: 0 | L28: 0 | M28: 0 | N28: 0 | O28: 0 | P28: 0 | Q28: 0 | R28: 0 | S28: 0 | T28: 0 | U28: 0 | V28: 0 | W28: 0 | X28: 0 | Y28: 0 | Z28: 23.561896 | AA28: 44.55153617 | AB28: 97.27854631 | AC28: 151.7753432 | AD28: 206.4747899 | AE28: 255.2037729
A29: =ROW() -> 29 | C29: Storage | K29: 0 | L29: 0 | M29: 0 | N29: 0 | O29: 0 | P29: 0 | Q29: 0 | R29: 0 | S29: 0 | T29: 0 | U29: 0 | V29: 0 | W29: 0 | X29: 0 | Y29: 0 | Z29: 0 | AA29: =Z104 -> 0 | AB29: =AA104 -> 0.002392020028 | AC29: =AB104 -> 0.004629781771 | AD29: =AC104 -> 0.006808565537 | AE29: =AD104 -> 0.008872313489
A30: =ROW() -> 30 | C30: Total | K30: =SUM(K17:K29) -> 2341.426337 | L30: =SUM(L17:L29) -> 2728.397781 | M30: 3152.356287 | N30: 3771.713965 | O30: 4115.163357 | P30: 4443.724199 | Q30: 4839.758693 | R30: 5363.496576 | S30: 5858.383134 | T30: 6258.679034 | U30: 6519.253927 | V30: 6605.050029 | W30: 6658.755555 | X30: 6747.533506 | Y30: 6895.483976 | Z30: 7061.28135 | AA30: 7264.202171 | AB30: 7499.859015 | AC30: 7744.406001 | AD30: 7982.369774 | AE30: 8184.018004
A31: =ROW() -> 31 | B31: Capex (Actual AA1, AA2, AA3 & Forecast AA4)
A32: =ROW() -> 32 | C32: Wooden Pole Lines | K32: =K203 -> 115.2944154 | L32: 141.152333 | M32: 197.5984258 | N32: 184.2448573 | O32: 175.994167 | P32: 275.4503275 | Q32: 377.3583699 | R32: 443.5761135 | S32: 346.144091 | T32: 241.6860086 | U32: 119.65991 | V32: 159.0644821 | W32: 159.360076 | X32: 186.8202562 | Y32: 196.6149148 | Z32: 140.4983011 | AA32: 155.0419462 | AB32: 156.8108503 | AC32: 146.6559333 | AD32: 149.5896576 | AE32: 151.0581714
A33: =ROW() -> 33 | C33: Underground Cables | K33: =K204 -> 220.1826275 | L33: 211.5447524 | M33: 289.7907145 | N33: 166.4094991 | O33: 149.2129223 | P33: 120.3809411 | Q33: 85.51255231 | R33: 65.73474618 | S33: 65.02601329 | T33: 62.37946035 | U33: 58.06926085 | V33: 30.14971614 | W33: 35.54519202 | X33: 45.10115309 | Y33: 48.78490098 | Z33: 40.04318419 | AA33: =AA204 -> 125.0561044 | AB33: 123.3436093 | AC33: 123.6730965 | AD33: 121.9860527 | AE33: 123.013274
A34: =ROW() -> 34 | C34: Transformers | K34: 71.8367733 | L34: 69.62311316 | M34: 100.4626669 | N34: 59.20399329 | O34: 58.10277883 | P34: 54.29841647 | Q34: 150.3240532 | R34: 132.9394904 | S34: 146.9260459 | T34: 130.1341035 | U34: 102.0133701 | V34: 58.10433388 | W34: 74.97553909 | X34: 70.85781742 | Y34: 73.03577525 | Z34: 97.44693997 | AA34: 14.01715024 | AB34: 14.2119236 | AC34: 14.40828707 | AD34: 14.23021179 | AE34: 14.45584259
A35: =ROW() -> 35 | C35: Switchgear | K35: 55.3989529 | L35: 63.77514384 | M35: 91.72441629 | N35: 62.21822112 | O35: 61.77411093 | P35: 76.65295888 | Q35: 83.55605314 | R35: 79.42980549 | S35: 82.04200422 | T35: 65.58435248 | U35: 50.63392238 | V35: 31.82147471 | W35: 39.91889626 | X35: 35.7348642 | Y35: 39.21653531 | Z35: 55.32256823 | AA35: 23.6951445 | AB35: 25.30126825 | AC35: 26.43238701 | AD35: 25.4640732 | AE35: 26.37628748
A36: =ROW() -> 36 | C36: Street lighting | K36: 21.68876188 | L36: 21.57603655 | M36: 31.90466435 | N36: 17.75380657 | O36: 18.0324189 | P36: 15.24298603 | Q36: 6.002554084 | R36: =R207 -> 5.571528116 | S36: 6.84578197 | T36: 6.888681338 | U36: 5.437974743 | V36: 3.231371048 | W36: 3.873748046 | X36: 3.662606595 | Y36: 4.295331152 | Z36: 5.104108028 | AA36: 11.74496597 | AB36: 12.50870511 | AC36: 13.04674107 | AD36: 12.59075738 | AE36: 13.02770417
A37: =ROW() -> 37 | C37: Meters and Services | K37: 13.70419083 | L37: 15.28267275 | M37: 17.13084525 | N37: 14.66372307 | O37: 20.22936947 | P37: 20.88725926 | Q37: 13.99446269 | R37: 10.52363442 | S37: 13.70929874 | T37: 26.77012431 | U37: 24.34629901 | V37: 15.47570011 | W37: 26.14828702 | X37: 31.15689873 | Y37: 20.43365647 | Z37: 21.86731784 | AA37: 69.27055533 | AB37: 67.04623896 | AC37: 74.84453152 | AD37: 66.74507173 | AE37: 61.49822888
A38: =ROW() -> 38 | C38: IT&T | K38: 22.97988895 | L38: 41.87329085 | M38: 25.33928981 | N38: 17.36313555 | O38: 28.06671533 | P38: 36.70320355 | Q38: 22.9629572 | R38: 15.51899245 | S38: 24.06105302 | T38: 14.39931952 | U38: 35.25332249 | V38: 29.99759585 | W38: 33.32532885 | X38: 36.50130823 | Y38: 34.45176593 | Z38: 38.58399657 | AA38: 16.98819845 | AB38: 18.80620408 | AC38: 18.7682165 | AD38: 22.2959911 | AE38: 21.4367603
A39: =ROW() -> 39 | C39: SCADA & Communications | K39: 2.961380796 | L39: 2.90899922 | M39: 2.871837286 | N39: 4.464005425 | O39: 4.203767021 | P39: 6.240214382 | Q39: 4.106039251 | R39: 3.221146506 | S39: 3.141180326 | T39: 4.298546961 | U39: 5.768476965 | V39: 6.679850461 | W39: 6.992917793 | X39: 18.11865685 | Y39: 20.19593229 | Z39: 14.45222538 | AA39: 26.31828192 | AB39: 26.06940488 | AC39: 29.86504769 | AD39: 35.51396888 | AE39: 37.07282107
A40: =ROW() -> 40 | C40: Other Distribution Non-Network | K40: 11.60019425 | L40: 11.184698 | M40: 30.11335891 | N40: 15.20087507 | O40: 26.5616107 | P40: 28.5408008 | Q40: 22.4007397 | R40: 2.997107649 | S40: 12.21703721 | T40: 13.65589612 | U40: 5.97465673 | V40: 11.20303646 | W40: 18.0760176 | X40: 25.84741364 | Y40: 8.069126263 | Z40: 41.14608634 | AA40: 33.95852692 | AB40: 32.79847931 | AC40: 39.49428597 | AD40: 23.5627399 | AE40: 22.78417712
A41: =ROW() -> 41 | C41: Distribution Land & Easements | K41: 0 | L41: 0 | M41: 0 | N41: 0 | O41: 0 | P41: 0 | Q41: 0 | R41: 0 | S41: 0 | T41: 0 | U41: 0 | V41: 7.468690973 | W41: 12.0506784 | X41: 17.23160909 | Y41: 5.379417508 | Z41: 27.43072422 | AA41: 0 | AB41: 0 | AC41: 0 | AD41: 0 | AE41: 0
A42: =ROW() -> 42 | C42: Equity Raising Costs | K42: 0 | L42: 0 | M42: 0 | N42: 0 | O42: 0 | P42: 0 | Q42: 6.727830756 | R42: 5.335388869 | S42: 4.140680441 | T42: 1.544107024 | U42: 0 | V42: 0 | W42: 0 | X42: 0 | Y42: 0 | Z42: 0 | AA42: 0 | AB42: 0 | AC42: 0 | AD42: 0 | AE42: 0
A43: =ROW() -> 43 | C43: Standalone Power Systems | K43: 0 | L43: 0 | M43: 0 | N43: 0 | O43: 0 | P43: 0 | Q43: 0 | R43: 0 | S43: 0 | T43: 0 | U43: 0 | V43: 0 | W43: 0 | X43: 0 | Y43: 23.561896 | Z43: 20.98964017 | AA43: 55.01659193 | AB43: 59.53720825 | AC43: 62.71671851 | AD43: 59.8820908 | AE43: 62.3720268
A44: =ROW() -> 44 | C44: Storage | K44: 0 | L44: 0 | M44: 0 | N44: 0 | O44: 0 | P44: 0 | Q44: 0 | R44: 0 | S44: 0 | T44: 0 | U44: 0 | V44: 0 | W44: 0 | X44: 0 | Y44: 0 | Z44: 0 | AA44: 0.002392020028 | AB44: 0.002357362744 | AC44: 0.002416252905 | AD44: 0.002422029736 | AE44: 0.002415939416
A45: =ROW() -> 45 | C45: Total | K45: =SUM(K32:K44) -> 535.6471858 | L45: =SUM(L32:L44) -> 578.9210398 | M45: 786.9362191 | N45: 541.5221165 | O45: 542.1778605 | P45: 634.3971079 | Q45: 772.9456123 | R45: 764.8479536 | S45: 704.2531861 | T45: 567.3406002 | U45: 407.1571933 | V45: 353.1962517 | W45: 410.2666811 | X45: 471.0325841 | Y45: 474.039252 | Z45: 502.885092 | AA45: 531.1098579 | AB45: 536.4362493 | AC45: 549.9076614 | AD45: 531.8630371 | AE45: 533.0977097
A46: =ROW() -> 46 | B46: Depreciation
A47: =ROW() -> 47 | C47: Wooden Pole Lines | K47: =K125+K233 -> -47.85993954 | L47: -49.45162899 | M47: -51.71781034 | N47: -58.01946548 | O47: -62.50068002 | P47: -68.69323098 | Q47: -72.09543475 | R47: -79.45470103 | S47: -87.96532917 | T47: -96.97579297 | U47: -105.9550148 | V47: -108.5506977 | W47: -112.7027224 | X47: -113.9010652 | Y47: -95.12071764 | Z47: -83.51930544 | AA47: -85.21757279 | AB47: -88.12958671 | AC47: -91.95424159 | AD47: -95.53121557 | AE47: -99.17974381
A48: =ROW() -> 48 | C48: Underground Cables | K48: -21.29846287 | L48: -23.7896627 | M48: -26.68644618 | N48: -33.37506312 | O48: -35.90748253 | P48: -38.86379158 | Q48: -40.64214227 | R48: -42.12572236 | S48: -43.56294939 | T48: -44.99866505 | U48: -46.42436953 | V48: -46.21334601 | W48: -47.35749728 | X48: -48.57576885 | Y48: -49.60724732 | Z48: -50.47109767 | AA48: -49.45113447 | AB48: -51.53540288 | AC48: -53.5911297 | AD48: -55.65234797 | AE48: -57.68544885
A49: =ROW() -> 49 | C49: Transformers | K49: -17.70472467 | L49: -18.80556167 | M49: -20.19135772 | N49: -24.46618467 | O49: -25.9427884 | P49: -27.67995409 | Q49: -29.11511032 | R49: -33.39333044 | S49: -37.61939849 | T49: -41.83269374 | U49: -45.7804796 | V49: -47.88042996 | W49: -50.46843822 | X49: -52.94638985 | Y49: -55.57117452 | Z49: -58.47930541 | AA49: -56.20148784 | AB49: -41.56703487 | AC49: -41.97308983 | AD49: -42.38475518 | AE49: -42.79133266
A50: =ROW() -> 50 | C50: Switchgear | K50: -11.81348639 | L50: -12.70627805 | M50: -14.05390893 | N50: -17.82153048 | O50: -19.50672798 | P50: -21.73289619 | Q50: -23.45328739 | R50: -25.72655513 | S50: -27.97551133 | T50: -30.22586306 | U50: -32.2180539 | V50: -33.75008629 | W50: -34.88685276 | X50: -30.05577222 | Y50: -26.08749628 | Z50: -27.93438486 | AA50: -28.18523395 | AB50: -28.45585217 | AC50: -29.17874555 | AD50: -29.9339566 | AE50: -30.66150155
A51: =ROW() -> 51 | C51: Street lighting | K51: -6.432269341 | L51: -2.11228049 | M51: -1.784214035 | N51: -3.793545348 | O51: -4.55360573 | P51: -5.39741074 | Q51: -6.362229972 | R51: -6.637849206 | S51: -6.895535 | T51: -7.14324593 | U51: -7.367119063 | V51: -7.926223679 | W51: -8.151512988 | X51: -8.403328685 | Y51: -8.655173034 | Z51: -8.89915039 | AA51: -8.899221497 | AB51: -9.486469796 | AC51: -10.11190505 | AD51: -10.7642421 | AE51: -11.39377997
A52: =ROW() -> 52 | C52: Meters and Services | K52: -26.84768263 | L52: -27.10711109 | M52: -27.61307559 | N52: -28.72188801 | O52: -29.38489046 | P52: -30.05401733 | Q52: -30.95228928 | R52: -31.71003595 | S52: -34.73161555 | T52: -16.33951796 | U52: -13.647964 | V52: -9.146599529 | W52: -10.46329789 | X52: -12.25522632 | Y52: -14.39765493 | Z52: -16.56988532 | AA52: -16.63501265 | AB52: -21.25304967 | AC52: -25.72279893 | AD52: -30.71243437 | AE52: -35.16210582
A53: =ROW() -> 53 | C53: IT&T | K53: -2.30974589 | L53: -5.015326679 | M53: -7.344848157 | N53: -11.27380618 | O53: -13.65842903 | P53: -16.66931647 | Q53: -18.85788022 | R53: -24.23491478 | S53: -29.41525875 | T53: -32.04689047 | U53: -33.6143494 | V53: -28.37282892 | W53: -31.12690206 | X53: -34.78496847 | Y53: -39.12794115 | Z53: -36.4535107 | AA53: -30.53725863 | AB53: -26.91506809 | AC53: -28.4562436 | AD53: -27.64701413 | AE53: -25.25690881
A54: =ROW() -> 54 | C54: SCADA & Communications | K54: -1.846363666 | L54: -2.152857437 | M54: -2.399512652 | N54: -2.707467016 | O54: -3.472613128 | P54: -4.333840625 | Q54: -4.046091083 | R54: -4.790067763 | S54: -6.612314209 | T54: -8.628331501 | U54: -8.506397948 | V54: 0.1059087435 | W54: -3.11465757 | X54: -3.25104851 | Y54: -3.41363868 | Z54: -3.522655996 | AA54: -8.483792628 | AB54: -10.82179463 | AC54: -13.35832685 | AD54: -16.29780005 | AE54: -19.5233516
A55: =ROW() -> 55 | C55: Other Distribution Non-Network | K55: -6.656142093 | L55: -8.432681214 | M55: -10.47567155 | N55: -11.60422457 | O55: -13.59439105 | P55: -17.16200129 | Q55: -18.298687 | R55: -20.82527852 | S55: -23.29591999 | T55: -25.00836444 | U55: -26.73796995 | V55: -11.36271113 | W55: -15.25910403 | X55: -13.46991715 | Y55: -14.13579449 | Z55: -12.02332338 | AA55: -9.138731773 | AB55: -8.270488068 | AC55: -9.165912181 | AD55: -9.723589422 | AE55: -9.330211122
A56: =ROW() -> 56 | C56: Distribution Land & Easements | K56: 0 | L56: 0 | M56: 0 | N56: 0 | O56: 0 | P56: 0 | Q56: 0 | R56: 0 | S56: 0 | T56: 0 | U56: 0 | V56: 0 | W56: 0 | X56: 0 | Y56: 0 | Z56: 0 | AA56: 0 | AB56: 0 | AC56: 0 | AD56: 0 | AE56: 0
A57: =ROW() -> 57 | C57: Equity Raising Costs | K57: 0 | L57: 0 | M57: 0 | N57: 0 | O57: 0 | P57: 0 | Q57: 0 | R57: -0.1431854036 | S57: -0.2658465227 | T57: -0.3641878466 | U57: -0.4054192549 | V57: -0.4139857572 | W57: -0.4139857572 | X57: -0.4139857572 | Y57: -0.4139857572 | Z57: -0.4139857572 | AA57: -0.4139857572 | AB57: -0.4139857572 | AC57: -0.4139857572 | AD57: -0.4139857572 | AE57: -0.4139857572
A58: =ROW() -> 58 | C58: Standalone Power Systems | K58: 0 | L58: 0 | M58: 0 | N58: 0 | O58: 0 | P58: 0 | Q58: 0 | R58: 0 | S58: 0 | T58: 0 | U58: 0 | V58: 0 | W58: 0 | X58: 0 | Y58: 0 | Z58: 0 | AA58: -2.289581798 | AB58: -5.040411395 | AC58: -8.017271807 | AD58: -11.15310773 | AE58: -14.14721227
A59: =ROW() -> 59 | C59: Storage | K59: 0 | L59: 0 | M59: 0 | N59: =N137+N245 -> 0 | O59: 0 | P59: 0 | Q59: 0 | R59: 0 | S59: 0 | T59: 0 | U59: 0 | V59: 0 | W59: 0 | X59: 0 | Y59: 0 | Z59: 0 | AA59: 0 | AB59: -0.0001196010014 | AC59: -0.0002374691386 | AD59: -0.0003582817838 | AE59: -0.0004793832707
A60: =ROW() -> 60 | C60: Total | K60: =SUM(K47:K59) -> -142.7688171 | L60: =SUM(L47:L59) -> -149.5733883 | M60: -162.2668452 | N60: -191.7831749 | O60: -208.5216083 | P60: -230.5864593 | Q60: -243.8231523 | R60: -269.0416406 | S60: -298.3396784 | T60: -303.563553 | U60: -320.6571374 | V60: -293.5110002 | W60: -313.9449709 | X60: -318.057471 | Y60: -306.5308238 | Z60: -298.2866049 | AA60: -295.4530138 | AB60: -291.8892636 | AC60: -311.9438883 | AD60: -330.2148072 | AE60: -345.5460616
A61: =ROW() -> 61 | B61: Accelerated Depreciation
A62: =ROW() -> 62 | C62: Wooden Pole Lines | K62: =K140 -> -4.223703272 | L62: -4.04151437 | M62: -3.983432727 | N62: -3.908478277 | O62: -3.820604376 | P62: -3.720160055 | Q62: -3.245405196 | R62: -0.4352939564 | S62: 0 | T62: 0 | U62: 0 | V62: -3.632204862 | W62: -4.841303536 | X62: -3.248396102 | Y62: 0 | Z62: 0 | AA62: 0 | AB62: 0 | AC62: 0 | AD62: 0 | AE62: 0
A63: =ROW() -> 63 | C63: Underground Cables | K63: =K141 -> 0 | L63: 0 | M63: 0 | N63: 0 | O63: 0 | P63: 0 | Q63: 0 | R63: 0 | S63: 0 | T63: 0 | U63: 0 | V63: 0 | W63: 0 | X63: 0 | Y63: 0 | Z63: 0 | AA63: =AA141 -> 0 | AB63: 0 | AC63: 0 | AD63: 0 | AE63: 0
A64: =ROW() -> 64 | C64: Transformers | K64: -1.126416779 | L64: -1.077828935 | M64: -1.062339177 | N64: -1.042260874 | O64: -1.018827834 | P64: -0.9920426813 | Q64: -0.8654413856 | R64: -0.1160783884 | S64: 0 | T64: 0 | U64: 0 | V64: -0.4617058566 | W64: -1.484287794 | X64: -0.7625370509 | Y64: 0 | Z64: 0 | AA64: 0 | AB64: 0 | AC64: 0 | AD64: 0 | AE64: 0
A65: =ROW() -> 65 | C65: Switchgear | K65: -0.2819638424 | L65: -0.269801368 | M65: -0.2659239831 | N65: -0.2605652185 | O65: -0.2547069584 | P65: -0.2480106703 | Q65: -0.2163603464 | R65: -0.02901959709 | S65: 0 | T65: 0 | U65: 0 | V65: -0.2755296495 | W65: -0.5733874686 | X65: -0.3567559106 | Y65: 0 | Z65: 0 | AA65: 0 | AB65: 0 | AC65: 0 | AD65: 0 | AE65: 0
A66: =ROW() -> 66 | C66: Street lighting | K66: 0 | L66: 0 | M66: 0 | N66: 0 | O66: 0 | P66: 0 | Q66: 0 | R66: 0 | S66: 0 | T66: 0 | U66: 0 | V66: 0 | W66: 0 | X66: 0 | Y66: 0 | Z66: 0 | AA66: 0 | AB66: 0 | AC66: 0 | AD66: 0 | AE66: 0
A67: =ROW() -> 67 | C67: Meters and Services | K67: 0 | L67: 0 | M67: 0 | N67: 0 | O67: 0 | P67: 0 | Q67: 0 | R67: 0 | S67: 0 | T67: 0 | U67: 0 | V67: 0 | W67: 0 | X67: 0 | Y67: 0 | Z67: 0 | AA67: 0 | AB67: 0 | AC67: 0 | AD67: 0 | AE67: 0
A68: =ROW() -> 68 | C68: IT&T | K68: 0 | L68: 0 | M68: 0 | N68: 0 | O68: 0 | P68: 0 | Q68: 0 | R68: 0 | S68: 0 | T68: 0 | U68: 0 | V68: 0 | W68: 0 | X68: 0 | Y68: 0 | Z68: 0 | AA68: 0 | AB68: 0 | AC68: 0 | AD68: 0 | AE68: 0
A69: =ROW() -> 69 | C69: SCADA & Communications | K69: 0 | L69: 0 | M69: 0 | N69: 0 | O69: 0 | P69: 0 | Q69: 0 | R69: 0 | S69: 0 | T69: 0 | U69: 0 | V69: 0 | W69: 0 | X69: 0 | Y69: 0 | Z69: 0 | AA69: 0 | AB69: 0 | AC69: 0 | AD69: 0 | AE69: 0
A70: =ROW() -> 70 | C70: Other Distribution Non-Network | K70: 0 | L70: 0 | M70: 0 | N70: 0 | O70: 0 | P70: 0 | Q70: 0 | R70: 0 | S70: 0 | T70: 0 | U70: 0 | V70: 0 | W70: 0 | X70: 0 | Y70: 0 | Z70: 0 | AA70: 0 | AB70: 0 | AC70: 0 | AD70: 0 | AE70: 0
A71: =ROW() -> 71 | C71: Distribution Land & Easements | K71: 0 | L71: 0 | M71: 0 | N71: 0 | O71: 0 | P71: 0 | Q71: 0 | R71: 0 | S71: 0 | T71: 0 | U71: 0 | V71: 0 | W71: 0 | X71: 0 | Y71: 0 | Z71: 0 | AA71: 0 | AB71: 0 | AC71: 0 | AD71: 0 | AE71: 0
A72: =ROW() -> 72 | C72: Equity Raising Costs | K72: 0 | L72: 0 | M72: 0 | N72: 0 | O72: 0 | P72: 0 | Q72: 0 | R72: 0 | S72: 0 | T72: 0 | U72: 0 | V72: 0 | W72: 0 | X72: 0 | Y72: 0 | Z72: 0 | AA72: 0 | AB72: 0 | AC72: 0 | AD72: 0 | AE72: 0
A73: =ROW() -> 73 | C73: Standalone Power Systems | K73: 0 | L73: 0 | M73: 0 | N73: 0 | O73: 0 | P73: 0 | Q73: 0 | R73: 0 | S73: 0 | T73: 0 | U73: 0 | V73: 0 | W73: 0 | X73: 0 | Y73: 0 | Z73: 0 | AA73: 0 | AB73: 0 | AC73: 0 | AD73: 0 | AE73: 0
A74: =ROW() -> 74 | C74: Storage | K74: 0 | L74: 0 | M74: 0 | N74: 0 | O74: 0 | P74: 0 | Q74: 0 | R74: 0 | S74: 0 | T74: 0 | U74: 0 | V74: 0 | W74: 0 | X74: 0 | Y74: 0 | Z74: 0 | AA74: 0 | AB74: 0 | AC74: 0 | AD74: 0 | AE74: 0
A75: =ROW() -> 75 | C75: Total | K75: =SUM(K62:K74) -> -5.632083893 | L75: =SUM(L62:L74) -> -5.389144673 | M75: -5.311695887 | N75: -5.211304369 | O75: -5.094139168 | P75: -4.960213406 | Q75: -4.327206928 | R75: -0.5803919419 | S75: 0 | T75: 0 | U75: 0 | V75: -4.369440368 | W75: -6.898978798 | X75: -4.367689064 | Y75: 0 | Z75: 0 | AA75: 0 | AB75: 0 | AC75: 0 | AD75: 0 | AE75: 0
A76: =ROW() -> 76 | B76: Redundant Assets
A77: =ROW() -> 77 | C77: Wooden Pole Lines | K77: =K155+K218 -> 0 | L77: 0 | M77: 0 | N77: 0 | O77: 0 | P77: -1.194921465 | Q77: 0 | R77: -0.3024494806 | S77: -1.458067907 | T77: -0.1541276293 | U77: 0 | V77: -0.1042380041 | W77: 0 | X77: -0.6569545455 | Y77: 0 | Z77: 0 | AA77: 0 | AB77: 0 | AC77: 0 | AD77: 0 | AE77: 0
A78: =ROW() -> 78 | C78: Underground Cables | K78: =K156+K219 -> 0 | L78: 0 | M78: 0 | N78: 0 | O78: 0 | P78: 0 | Q78: 0 | R78: 0 | S78: 0 | T78: 0 | U78: 0 | V78: 0 | W78: 0 | X78: 0 | Y78: 0 | Z78: 0 | AA78: =AA156+AA219 -> 0 | AB78: 0 | AC78: 0 | AD78: 0 | AE78: 0
A79: =ROW() -> 79 | C79: Transformers | K79: 0 | L79: 0 | M79: 0 | N79: 0 | O79: 0 | P79: 0 | Q79: 0 | R79: 0 | S79: 0 | T79: 0 | U79: 0 | V79: 0 | W79: 0 | X79: 0 | Y79: 0 | Z79: 0 | AA79: 0 | AB79: 0 | AC79: 0 | AD79: 0 | AE79: 0
A80: =ROW() -> 80 | C80: Switchgear | K80: 0 | L80: 0 | M80: 0 | N80: 0 | O80: 0 | P80: 0 | Q80: 0 | R80: 0 | S80: 0 | T80: 0 | U80: 0 | V80: 0 | W80: 0 | X80: 0 | Y80: 0 | Z80: 0 | AA80: 0 | AB80: 0 | AC80: 0 | AD80: 0 | AE80: 0
A81: =ROW() -> 81 | C81: Street lighting | K81: 0 | L81: 0 | M81: 0 | N81: 0 | O81: 0 | P81: 0 | Q81: 0 | R81: 0 | S81: 0 | T81: 0 | U81: 0 | V81: 0 | W81: 0 | X81: 0 | Y81: 0 | Z81: 0 | AA81: 0 | AB81: 0 | AC81: 0 | AD81: 0 | AE81: 0
A82: =ROW() -> 82 | C82: Meters and Services | K82: 0 | L82: 0 | M82: 0 | N82: 0 | O82: 0 | P82: 0 | Q82: 0 | R82: 0 | S82: 0 | T82: 0 | U82: 0 | V82: 0 | W82: 0 | X82: 0 | Y82: 0 | Z82: 0 | AA82: 0 | AB82: 0 | AC82: 0 | AD82: 0 | AE82: 0
A83: =ROW() -> 83 | C83: IT&T | K83: 0 | L83: 0 | M83: 0 | N83: -1.078246044 | O83: 0 | P83: -0.08898948833 | Q83: 0 | R83: 0 | S83: 0 | T83: 0 | U83: 0 | V83: 0 | W83: 0 | X83: 0 | Y83: 0 | Z83: 0 | AA83: 0 | AB83: 0 | AC83: 0 | AD83: 0 | AE83: 0
A84: =ROW() -> 84 | C84: SCADA & Communications | K84: 0 | L84: 0 | M84: 0 | N84: 0 | O84: 0 | P84: 0 | Q84: 0 | R84: 0 | S84: 0 | T84: 0 | U84: 0 | V84: 0 | W84: 0 | X84: 0 | Y84: 0 | Z84: 0 | AA84: 0 | AB84: 0 | AC84: 0 | AD84: 0 | AE84: 0
A85: =ROW() -> 85 | C85: Other Distribution Non-Network | K85: 0 | L85: 0 | M85: 0 | N85: 0 | O85: 0 | P85: 0 | Q85: -0.05761361802 | R85: 0 | S85: 0 | T85: -3.048026291 | U85: -0.3463394509 | V85: -0.6911369556 | W85: 0 | X85: 0 | Y85: -1.591866591 | Z85: -1.560804523 | AA85: 0 | AB85: 0 | AC85: 0 | AD85: 0 | AE85: 0
A86: =ROW() -> 86 | C86: Distribution Land & Easements | K86: -0.2748413782 | L86: 0 | M86: 0 | N86: 0 | O86: -0.00127076886 | P86: -1.532029682 | Q86: -0.9997569986 | R86: -0.03691312559 | S86: -4.159540465 | T86: 0 | U86: -0.3576141436 | V86: -0.8149108811 | W86: -0.6447796167 | X86: 0 | Y86: -0.1191872807 | Z86: -0.1168615812 | AA86: 0 | AB86: 0 | AC86: 0 | AD86: 0 | AE86: 0
A87: =ROW() -> 87 | C87: Equity Raising Costs | K87: 0 | L87: 0 | M87: 0 | N87: 0 | O87: 0 | P87: 0 | Q87: 0 | R87: 0 | S87: 0 | T87: 0 | U87: 0 | V87: 0 | W87: 0 | X87: 0 | Y87: 0 | Z87: 0 | AA87: 0 | AB87: 0 | AC87: 0 | AD87: 0 | AE87: 0
A88: =ROW() -> 88 | C88: Standalone Power Systems | K88: 0 | L88: 0 | M88: 0 | N88: 0 | O88: 0 | P88: 0 | Q88: 0 | R88: 0 | S88: 0 | T88: 0 | U88: 0 | V88: 0 | W88: 0 | X88: 0 | Y88: 0 | Z88: 0 | AA88: 0 | AB88: 0 | AC88: 0 | AD88: 0 | AE88: 0
A89: =ROW() -> 89 | C89: Storage | K89: 0 | L89: 0 | M89: 0 | N89: 0 | O89: 0 | P89: 0 | Q89: 0 | R89: 0 | S89: 0 | T89: 0 | U89: 0 | V89: 0 | W89: 0 | X89: 0 | Y89: 0 | Z89: 0 | AA89: 0 | AB89: 0 | AC89: 0 | AD89: 0 | AE89: 0
A90: =ROW() -> 90 | C90: Total | K90: =SUM(K77:K89) -> -0.2748413782 | L90: =SUM(L77:L89) -> 0 | M90: 0 | N90: -1.078246044 | O90: -0.00127076886 | P90: -2.815940635 | Q90: -1.057370617 | R90: -0.3393626062 | S90: -5.617608372 | T90: -3.202153921 | U90: -0.7039535946 | V90: -1.610285841 | W90: -0.6447796167 | X90: -0.6569545455 | Y90: -1.711053872 | Z90: -1.677666105 | AA90: 0 | AB90: 0 | AC90: 0 | AD90: 0 | AE90: 0
A91: =ROW() -> 91 | B91: Closing Value
A92: =ROW() -> 92 | C92: Wooden Pole Lines | J92: =J170 -> 693.9691234 | K92: =K77+K62+K47+K32+K17 -> 757.179896 | L92: 844.8390856 | M92: 986.7362684 | N92: 1109.053182 | O92: 1218.726065 | P92: 1420.56808 | Q92: 1722.585609 | R92: 2085.969278 | S92: 2342.689972 | T92: 2487.24606 | U92: 2500.950956 | V92: 2547.728297 | W92: 2589.544347 | X92: 2658.558188 | Y92: 2760.052385 | Z92: 2817.03138 | AA92: 2886.855754 | AB92: 2955.537017 | AC92: 3010.238709 | AD92: 3064.297151 | AE92: 3116.175579
A93: =ROW() -> 93 | C93: Underground Cables | J93: =J171 -> 785.9132798 | K93: 984.7974444 | L93: 1172.552534 | M93: 1435.656803 | N93: 1568.691238 | O93: 1681.996678 | P93: 1763.513828 | Q93: 1808.384238 | R93: 1831.993262 | S93: 1853.456325 | T93: 1870.837121 | U93: 1882.482012 | V93: 1866.418382 | W93: 1854.606077 | X93: 1851.131461 | Y93: 1850.309115 | Z93: 1839.881201 | AA93: 1915.486171 | AB93: 1987.294378 | AC93: 2057.376345 | AD93: 2123.710049 | AE93: 2189.037874
A94: =ROW() -> 94 | C94: Transformers | J94: 299.2098469 | K94: 352.2154788 | L94: 401.9552013 | M94: 481.1641713 | N94: 514.859719 | O94: 546.0008816 | P94: 571.6273013 | Q94: 691.9708029 | R94: 791.4008845 | S94: 900.7075318 | T94: 989.0089416 | U94: 1045.241832 | V94: 1055.00403 | W94: 1078.026843 | X94: 1095.175734 | Y94: 1112.640335 | Z94: 1151.607969 | AA94: 1109.423631 | AB94: 1082.06852 | AC94: 1054.503717 | AD94: 1026.349174 | AE94: 998.013684
A95: =ROW() -> 95 | C95: Switchgear | J95: 159.4820662 | K95: 202.7855689 | L95: 253.5846333 | M95: 330.9892167 | N95: 375.1253421 | O95: 417.1380181 | P95: 471.8100702 | Q95: 531.6964756 | R95: 585.3707063 | S95: 639.4371992 | T95: 674.7956886 | U95: 693.2115571 | V95: 691.0074159 | W95: 695.4660719 | X95: 700.788408 | Y95: 713.917447 | Z95: 741.3056304 | AA95: 736.8155409 | AB95: 733.660957 | AC95: 730.9145985 | AD95: 726.4447151 | AE95: 722.159501
A96: =ROW() -> 96 | C96: Street lighting | J96: 7.718723209 | K96: 22.97521575 | L96: 42.43897181 | M96: 72.55942212 | N96: 86.51968335 | O96: 99.99849652 | P96: 109.8440718 | Q96: 109.4843959 | R96: 108.4180748 | S96: 108.3683218 | T96: 108.1137572 | U96: 106.1846129 | V96: 101.4897603 | W96: 97.21199532 | X96: 92.47127323 | Y96: 88.11143135 | Z96: 84.31638899 | AA96: 87.16213346 | AB96: 90.18436878 | AC96: 93.11920479 | AD96: 94.94572007 | AE96: 96.57964427
A97: =ROW() -> 97 | C97: Meters and Services | J97: 246.9986802 | K97: 233.8551884 | L97: 222.0307501 | M97: 211.5485197 | N97: 197.4903548 | O97: 188.3348338 | P97: 179.1680757 | Q97: 162.2102492 | R97: 141.0238476 | S97: 120.0015308 | T97: 130.4321372 | U97: 141.1304722 | V97: 147.4595728 | W97: 163.1445619 | X97: 182.0462343 | Y97: 188.0822358 | Z97: 193.3796684 | AA97: 246.015211 | AB97: 291.8084003 | AC97: 340.9301329 | AD97: 376.9627703 | AE97: 403.2988934
A98: =ROW() -> 98 | C98: IT&T | J98: 22.63550972 | K98: 43.30565278 | L98: 80.16361695 | M98: 98.15805861 | N98: 103.1691419 | O98: 117.5774282 | P98: 137.5223258 | Q98: 141.6274028 | R98: 132.9114805 | S98: 127.5572747 | T98: 109.9097038 | U98: 111.5486769 | V98: 113.1734438 | W98: 115.3718706 | X98: 117.0882104 | Y98: 112.4120351 | Z98: 114.542521 | AA98: 100.9934608 | AB98: 92.88459682 | AC98: 83.19656971 | AD98: 77.84554668 | AE98: 74.02539816
A99: =ROW() -> 99 | C99: SCADA & Communications | J99: 18.83290939 | K99: 19.94792652 | L99: 20.70406831 | M99: 21.17639294 | N99: 22.93293135 | O99: 23.66408524 | P99: 25.570459 | Q99: 25.63040717 | R99: 24.06148591 | S99: 20.59035203 | T99: 16.26056749 | U99: 13.5226465 | V99: 20.30840571 | W99: 24.18666593 | X99: 39.05427427 | Y99: 55.83656788 | Z99: 66.76613726 | AA99: 84.60062656 | AB99: 99.8482368 | AC99: 116.3549576 | AD99: 135.5711265 | AE99: 153.120596
A100: =ROW() -> 100 | C100: Other Distribution Non-Network | J100: 75.21440565 | K100: 80.15845781 | L100: 82.91047459 | M100: 102.548162 | N100: 106.1448125 | O100: 119.1120321 | P100: 130.4908316 | Q100: 134.5352707 | R100: 116.7070998 | S100: 105.628217 | T100: 91.22772243 | U100: 70.11806977 | V100: 69.26725814 | W100: 72.0841717 | X100: 84.46166819 | Y100: 76.80313337 | Z100: 104.3650918 | AA100: 129.184887 | AB100: 153.7128782 | AC100: 184.041252 | AD100: 197.8804025 | AE100: 211.3343684
A101: =ROW() -> 101 | C101: Distribution Land & Easements | J101: 31.45179255 | K101: 31.17695118 | L101: 31.17695118 | M101: 31.17695118 | N101: 31.17695118 | O101: 31.17568041 | P101: 29.64365072 | Q101: 28.64389373 | R101: 28.6069806 | S101: 24.44744014 | T101: 24.44744014 | U101: 24.08982599 | V101: 30.74360608 | W101: 42.14950486 | X101: 59.38111396 | Y101: 64.64134418 | Z101: 91.95520683 | AA101: 91.95520683 | AB101: 91.95520683 | AC101: 91.95520683 | AD101: 91.95520683 | AE101: 91.95520683
A102: =ROW() -> 102 | C102: Equity Raising Costs | J102: 0 | K102: 0 | L102: 0 | M102: 0 | N102: 0 | O102: 0 | P102: 0 | Q102: 6.727830756 | R102: 11.92003422 | S102: 15.79486814 | T102: 16.97478732 | U102: 16.56936806 | V102: 16.15538231 | W102: 15.74139655 | X102: 15.32741079 | Y102: 14.91342503 | Z102: 14.49943928 | AA102: 14.08545352 | AB102: 13.67146776 | AC102: 13.257482 | AD102: 12.84349625 | AE102: 12.42951049
A103: =ROW() -> 103 | C103: Standalone Power Systems | J103: 0 | K103: 0 | L103: 0 | M103: 0 | N103: 0 | O103: 0 | P103: 0 | Q103: 0 | R103: 0 | S103: 0 | T103: 0 | U103: 0 | V103: 0 | W103: 0 | X103: 0 | Y103: 23.561896 | Z103: 44.55153617 | AA103: 97.27854631 | AB103: 151.7753432 | AC103: 206.4747899 | AD103: 255.2037729 | AE103: 303.4285875
A104: =ROW() -> 104 | C104: Storage | J104: 0 | K104: 0 | L104: 0 | M104: 0 | N104: =N89+N74+N59+N44+N29 -> 0 | O104: 0 | P104: 0 | Q104: 0 | R104: 0 | S104: 0 | T104: 0 | U104: 0 | V104: 0 | W104: 0 | X104: 0 | Y104: 0 | Z104: 0 | AA104: 0.002392020028 | AB104: 0.004629781771 | AC104: 0.006808565537 | AD104: 0.008872313489 | AE104: 0.01080886963
A105: =ROW() -> 105 | C105: Total | J105: =SUM(J92:J104) -> 2341.426337 | K105: =SUM(K92:K104) -> 2728.397781 | L105: =SUM(L92:L104) -> 3152.356287 | M105: 3771.713965 | N105: 4115.163357 | O105: 4443.724199 | P105: 4839.758693 | Q105: 5363.496576 | R105: 5858.383134 | S105: 6258.679034 | T105: 6519.253927 | U105: 6605.050029 | V105: 6658.755555 | W105: 6747.533506 | X105: 6895.483976 | Y105: 7061.28135 | Z105: 7264.202171 | AA105: 7499.859015 | AB105: 7744.406001 | AC105: 7982.369774 | AD105: 8184.018004 | AE105: 8371.569652
A106: =ROW() -> 106
A107: =ROW() -> 107 | B107: ="Initial Capital Base (ICB) ($M Real 30/06/"&D_Input!$E$21&"]" -> Initial Capital Base (ICB) ($M Real 30/06/2022] | J107: 2006 | K107: =J107+1 -> 2007 | L107: 2008 | M107: 2009 | N107: 2010 | O107: 2011 | P107: 2012 | Q107: 2013 | R107: 2014 | S107: 2015 | T107: 2016 | U107: 2017 | V107: 2018 | W107: 2019 | X107: 2020 | Y107: 2021 | Z107: 2022 | AA107: 2023 | AB107: 2024 | AC107: 2025 | AD107: 2026 | AE107: 2027
A108: =ROW() -> 108 | B108: Project Year | J108: 0 | K108: 1 | L108: 2 | M108: 3 | N108: 4 | O108: 5 | P108: 6 | Q108: 7 | R108: 8 | S108: 9 | T108: 10 | U108: 11 | V108: 12 | W108: 13 | X108: 14 | Y108: 15 | Z108: 16 | AA108: 17 | AB108: 18 | AC108: 19 | AD108: 20 | AE108: 21
A109: =ROW() -> 109 | B109: Opening Value
A110: =ROW() -> 110 | C110: Wooden Pole Lines | K110: =J170 -> 693.9691234 | L110: =K170 -> 641.8854805 | M110: 590.2946836 | N110: 539.0889757 | O110: 488.3031952 | P110: 437.9775246 | Q110: 386.9595458 | R110: 338.1894881 | S110: 292.359813 | T110: 245.8767816 | U110: 200.6976905 | V110: =U170 -> 155.6727271 | W110: 107.4583622 | X110: 59.79413584 | Y110: 16.74239582 | Z110: 0.8694969654 | AA110: =Z170 -> 0.8694969654 | AB110: =AA170 -> 0 | AC110: 0 | AD110: 0 | AE110: 0
A111: =ROW() -> 111 | C111: Underground Cables | K111: =J171 -> 785.9132798 | L111: 764.6148169 | M111: 743.3163541 | N111: 722.0178912 | O111: 700.7194283 | P111: 679.4209655 | Q111: 658.1225026 | R111: 636.8240397 | S111: 615.5255769 | T111: 594.227114 | U111: 572.9286511 | V111: 551.6301883 | W111: 530.3317254 | X111: 509.0332625 | Y111: 487.7347997 | Z111: 466.4363368 | AA111: =Z171 -> 445.1378739 | AB111: 423.8394111 | AC111: 402.5409482 | AD111: 381.2424853 | AE111: 359.9440225
A112: =ROW() -> 112 | C112: Transformers | K112: 299.2098469 | L112: 280.3787055 | M112: 261.6664953 | N112: 243.0429371 | O112: 224.5155728 | P112: 206.092437 | Q112: 187.7817022 | R112: 169.6885817 | S112: 152.4322425 | T112: 135.3050243 | U112: 118.177806 | V112: 101.0505877 | W112: 83.46166362 | X112: 64.95749143 | Y112: 47.6086018 | Z112: 31.32177239 | AA112: 15.03494297 | AB112: 0 | AC112: 0 | AD112: 0 | AE112: 0
A113: =ROW() -> 113 | C113: Switchgear | K113: 159.4820662 | L113: 147.386616 | M113: 135.325726 | N113: 123.2924419 | O113: 111.2897394 | P113: 99.320323 | Q113: 87.38756845 | R113: 75.51953231 | S113: 63.87212312 | T113: 52.25900983 | U113: 40.64589653 | V113: 29.03278324 | W113: 17.14414029 | X113: 5.16687945 | Y113: =X173 -> 0 | Z113: 0.4063859108 | AA113: 0.4063859108 | AB113: 0 | AC113: 0 | AD113: =AC173 -> 0 | AE113: 0
A114: =ROW() -> 114 | C114: Street lighting | K114: 7.718723209 | L114: 1.286453868 | M114: 8.881784197e-16 | N114: 8.881784197e-16 | O114: 8.881784197e-16 | P114: 8.881784197e-16 | Q114: 8.881784197e-16 | R114: 8.881784197e-16 | S114: 8.881784197e-16 | T114: 8.881784197e-16 | U114: 8.881784197e-16 | V114: 8.881784197e-16 | W114: 8.881784197e-16 | X114: 8.881784197e-16 | Y114: 8.881784197e-16 | Z114: 8.881784197e-16 | AA114: 8.881784197e-16 | AB114: 0 | AC114: 0 | AD114: 0 | AE114: 0
A115: =ROW() -> 115 | C115: Meters and Services | K115: 246.9986802 | L115: 220.1509976 | M115: 193.303315 | N115: 166.4556323 | O115: 139.6079497 | P115: 112.7602671 | Q115: 85.91258442 | R115: 59.06490179 | S115: 32.21721916 | T115: 5.369536526 | U115: 1.181277298e-13 | V115: 1.181277298e-13 | W115: 1.181277298e-13 | X115: 1.181277298e-13 | Y115: 1.181277298e-13 | Z115: 1.181277298e-13 | AA115: 1.181277298e-13 | AB115: 0 | AC115: 0 | AD115: 0 | AE115: 0
A116: =ROW() -> 116 | C116: IT&T | K116: 22.63550972 | L116: 20.32576383 | M116: 18.01601794 | N116: 15.70627205 | O116: 12.31828012 | P116: 10.00853423 | Q116: 7.60979885 | R116: 5.607220205 | S116: 3.604641561 | T116: 1.602062916 | U116: 1.088018564e-14 | V116: 1.088018564e-14 | W116: 1.088018564e-14 | X116: 1.088018564e-14 | Y116: 1.088018564e-14 | Z116: 1.088018564e-14 | AA116: 1.088018564e-14 | AB116: 0 | AC116: 0 | AD116: 0 | AE116: 0
A117: =ROW() -> 117 | C117: SCADA & Communications | K117: 18.83290939 | L117: 16.98654573 | M117: 15.14018206 | N117: 13.2938184 | O117: 11.44745473 | P117: 9.601091063 | Q117: 7.754727397 | R117: 5.908363731 | S117: 4.062000065 | T117: 2.215636399 | U117: 0.3692727332 | V117: 0 | W117: 0 | X117: 0 | Y117: 0 | Z117: 0 | AA117: 0 | AB117: 0 | AC117: 0 | AD117: 0 | AE117: 0
A118: =ROW() -> 118 | C118: Other Distribution Non-Network | K118: 75.21440565 | L118: 68.55826355 | M118: 61.90212146 | N118: 55.24597937 | O118: 48.58983728 | P118: 41.93369518 | Q118: 35.27755309 | R118: 28.56379738 | S118: 21.90765529 | T118: 15.2515132 | U118: 5.547344811 | V118: =U178 -> 0 | W118: 0 | X118: 0 | Y118: 0 | Z118: 0 | AA118: =Z178 -> 0 | AB118: 0 | AC118: 0 | AD118: 0 | AE118: 0
A119: =ROW() -> 119 | C119: Distribution Land & Easements | K119: 31.45179255 | L119: 31.17695118 | M119: 31.17695118 | N119: 31.17695118 | O119: 31.17695118 | P119: 31.17568041 | Q119: 29.64365072 | R119: 28.64389373 | S119: 28.6069806 | T119: 24.44744014 | U119: 24.44744014 | V119: 24.08982599 | W119: 23.27491511 | X119: 22.63013549 | Y119: 22.63013549 | Z119: 22.51094821 | AA119: =Z179 -> 22.39408663 | AB119: 22.39408663 | AC119: 22.39408663 | AD119: 22.39408663 | AE119: 22.39408663
A120: =ROW() -> 120 | C120: Equity Raising Costs | K120: 0 | L120: 0 | M120: 0 | N120: 0 | O120: 0 | P120: 0 | Q120: 0 | R120: 0 | S120: 0 | T120: 0 | U120: 0 | V120: 0 | W120: 0 | X120: 0 | Y120: 0 | Z120: 0 | AA120: =Z180 -> 0 | AB120: 0 | AC120: 0 | AD120: 0 | AE120: 0
A121: =ROW() -> 121 | C121: Standalone Power Systems | K121: 0 | L121: 0 | M121: 0 | N121: 0 | O121: 0 | P121: 0 | Q121: 0 | R121: 0 | S121: 0 | T121: 0 | U121: 0 | V121: 0 | W121: 0 | X121: 0 | Y121: 0 | Z121: 0 | AA121: =Z181 -> 0 | AB121: 0 | AC121: 0 | AD121: 0 | AE121: 0
A122: =ROW() -> 122 | C122: Storage | K122: 0 | L122: 0 | M122: 0 | N122: 0 | O122: 0 | P122: 0 | Q122: 0 | R122: 0 | S122: 0 | T122: 0 | U122: 0 | V122: 0 | W122: 0 | X122: 0 | Y122: 0 | Z122: 0 | AA122: =Z182 -> 0 | AB122: 0 | AC122: 0 | AD122: 0 | AE122: 0
A123: =ROW() -> 123 | C123: Total | K123: =SUM(K110:K122) -> 2341.426337 | L123: =SUM(L110:L122) -> 2192.750595 | M123: 2050.141847 | N123: 1909.320899 | O123: 1767.968409 | P123: 1628.290518 | Q123: 1486.449633 | R123: 1348.009819 | S123: 1214.588252 | T123: 1076.554119 | U123: 962.8141019 | V123: 861.4761123 | W123: 761.6708066 | X123: 661.5819047 | Y123: 574.7159328 | Z123: 521.5449403 | AA123: 483.8427864 | AB123: 446.2334977 | AC123: 424.9350348 | AD123: 403.636572 | AE123: 382.3381091
A124: =ROW() -> 124 | B124: Depreciation | G124: ICB Life as at 30/06/2006
A125: =ROW() -> 125 | C125: Wooden Pole Lines | G125: =D_Input!G27 -> 14.5 | K125: =D_Input!K634 -> -47.85993954 | L125: =D_Input!L634 -> -47.54928254 | M125: =D_Input!M634 -> -47.22227517 | N125: =D_Input!N634 -> -46.87730224 | O125: =D_Input!O634 -> -46.50506621 | P125: =D_Input!P634 -> -46.10289733 | Q125: =D_Input!Q634 -> -45.52465245 | R125: =D_Input!R634 -> -45.09193175 | S125: =D_Input!S634 -> -45.02496345 | T125: =D_Input!T634 -> -45.02496345 | U125: =D_Input!U634 -> -45.02496345 | V125: =D_Input!V634 -> -44.47792202 | W125: =D_Input!W634 -> -42.8229228 | X125: =D_Input!X634 -> -39.14638937 | Y125: =D_Input!Y634 -> -15.87289886 | Z125: =D_Input!Z634 -> 0 | AA125: =-IF($G125=0,0,IF(AA$108>$G125,AA110,(IF(AA$108<$G125,AA110/($G125-Z$108),IF(AA$108<$G125+1,AA110,MIN(0,AA110)))))) -> -0.8694969654 | AB125: 0 | AC125: 0 | AD125: 0 | AE125: 0
A126: =ROW() -> 126 | C126: Underground Cables | G126: =D_Input!G28 -> 36.9 | K126: =D_Input!K635 -> -21.29846287 | L126: =D_Input!L635 -> -21.29846287 | M126: =D_Input!M635 -> -21.29846287 | N126: =D_Input!N635 -> -21.29846287 | O126: =D_Input!O635 -> -21.29846287 | P126: =D_Input!P635 -> -21.29846287 | Q126: =D_Input!Q635 -> -21.29846287 | R126: =D_Input!R635 -> -21.29846287 | S126: =D_Input!S635 -> -21.29846287 | T126: =D_Input!T635 -> -21.29846287 | U126: =D_Input!U635 -> -21.29846287 | V126: =D_Input!V635 -> -21.29846287 | W126: =D_Input!W635 -> -21.29846287 | X126: =D_Input!X635 -> -21.29846287 | Y126: =D_Input!Y635 -> -21.29846287 | Z126: =D_Input!Z635 -> -21.29846287 | AA126: -21.29846287 | AB126: -21.29846287 | AC126: -21.29846287 | AD126: -21.29846287 | AE126: -21.29846287
A127: =ROW() -> 127 | C127: Transformers | G127: =D_Input!G29 -> 16.9 | K127: =D_Input!K636 -> -17.70472467 | L127: =D_Input!L636 -> -17.63438124 | M127: =D_Input!M636 -> -17.561219 | N127: =D_Input!N636 -> -17.48510339 | O127: =D_Input!O636 -> -17.40430797 | P127: =D_Input!P636 -> -17.31869219 | Q127: =D_Input!Q636 -> -17.2276791 | R127: =D_Input!R636 -> -17.14026078 | S127: =D_Input!S636 -> -17.12721826 | T127: =D_Input!T636 -> -17.12721826 | U127: =D_Input!U636 -> -17.12721826 | V127: =D_Input!V636 -> -17.12721826 | W127: =D_Input!W636 -> -17.01988439 | X127: =D_Input!X636 -> -16.58635258 | Y127: =D_Input!Y636 -> -16.28682941 | Z127: =D_Input!Z636 -> -16.28682941 | AA127: -15.03494297 | AB127: 0 | AC127: 0 | AD127: 0 | AE127: 0
A128: =ROW() -> 128 | C128: Switchgear | G128: =D_Input!G30 -> 13.5 | K128: =D_Input!K637 -> -11.81348639 | L128: =D_Input!L637 -> -11.79108861 | M128: =D_Input!M637 -> -11.76736014 | N128: =D_Input!N637 -> -11.74213732 | O128: =D_Input!O637 -> -11.71470941 | P128: =D_Input!P637 -> -11.68474388 | Q128: =D_Input!Q637 -> -11.65167579 | R128: =D_Input!R637 -> -11.61838959 | S128: =D_Input!S637 -> -11.6131133 | T128: =D_Input!T637 -> -11.6131133 | U128: =D_Input!U637 -> -11.6131133 | V128: =D_Input!V637 -> -11.6131133 | W128: =D_Input!W637 -> -11.40387337 | X128: =D_Input!X637 -> -5.048782579 | Y128: =D_Input!Y637 -> 0.4063859108 | Z128: =D_Input!Z637 -> 0 | AA128: =-IF($G128=0,0,IF(AA$108>$G128,AA113,(IF(AA$108<$G128,AA113/($G128-Z$108),IF(AA$108<$G128+1,AA113,MIN(0,AA113)))))) -> -0.4063859108 | AB128: 0 | AC128: 0 | AD128: 0 | AE128: 0
A129: =ROW() -> 129 | C129: Street lighting | G129: =D_Input!G31 -> 1.2 | K129: =D_Input!K638 -> -6.432269341 | L129: =D_Input!L638 -> -1.286453868 | M129: =D_Input!M638 -> 0 | N129: =D_Input!N638 -> 0 | O129: =D_Input!O638 -> 0 | P129: =D_Input!P638 -> 0 | Q129: =D_Input!Q638 -> 0 | R129: =D_Input!R638 -> 0 | S129: =D_Input!S638 -> 0 | T129: =D_Input!T638 -> 0 | U129: =D_Input!U638 -> 0 | V129: =D_Input!V638 -> 0 | W129: =D_Input!W638 -> 0 | X129: =D_Input!X638 -> 0 | Y129: =D_Input!Y638 -> 0 | Z129: =D_Input!Z638 -> 0 | AA129: =-IF($G129=0,0,IF(AA$108>$G129,AA114,(IF(AA$108<$G129,AA114/($G129-Z$108),IF(AA$108<$G129+1,AA114,MIN(0,AA114)))))) -> -8.881784197e-16 | AB129: 0 | AC129: 0 | AD129: 0 | AE129: 0
A130: =ROW() -> 130 | C130: Meters and Services | G130: =D_Input!G32 -> 9.2 | K130: =D_Input!K639 -> -26.84768263 | L130: =D_Input!L639 -> -26.84768263 | M130: =D_Input!M639 -> -26.84768263 | N130: =D_Input!N639 -> -26.84768263 | O130: =D_Input!O639 -> -26.84768263 | P130: =D_Input!P639 -> -26.84768263 | Q130: =D_Input!Q639 -> -26.84768263 | R130: =D_Input!R639 -> -26.84768263 | S130: =D_Input!S639 -> -26.84768263 | T130: =D_Input!T639 -> -5.369536526 | U130: =D_Input!U639 -> 0 | V130: =D_Input!V639 -> 0 | W130: =D_Input!W639 -> 0 | X130: =D_Input!X639 -> 0 | Y130: =D_Input!Y639 -> 0 | Z130: =D_Input!Z639 -> 0 | AA130: -1.181277298e-13 | AB130: 0 | AC130: 0 | AD130: 0 | AE130: 0
A131: =ROW() -> 131 | C131: IT&T | G131: =D_Input!G33 -> 9.8 | K131: =D_Input!K640 -> -2.30974589 | L131: =D_Input!L640 -> -2.30974589 | M131: =D_Input!M640 -> -2.30974589 | N131: =D_Input!N640 -> -2.30974589 | O131: =D_Input!O640 -> -2.30974589 | P131: =D_Input!P640 -> -2.30974589 | Q131: =D_Input!Q640 -> -2.002578645 | R131: =D_Input!R640 -> -2.002578645 | S131: =D_Input!S640 -> -2.002578645 | T131: =D_Input!T640 -> -1.602062916 | U131: =D_Input!U640 -> 0 | V131: =D_Input!V640 -> 0 | W131: =D_Input!W640 -> 0 | X131: =D_Input!X640 -> 0 | Y131: =D_Input!Y640 -> 0 | Z131: =D_Input!Z640 -> 0 | AA131: -1.088018564e-14 | AB131: 0 | AC131: 0 | AD131: 0 | AE131: 0
A132: =ROW() -> 132 | C132: SCADA & Communications | G132: =D_Input!G34 -> 10.2 | K132: =D_Input!K641 -> -1.846363666 | L132: =D_Input!L641 -> -1.846363666 | M132: =D_Input!M641 -> -1.846363666 | N132: =D_Input!N641 -> -1.846363666 | O132: =D_Input!O641 -> -1.846363666 | P132: =D_Input!P641 -> -1.846363666 | Q132: =D_Input!Q641 -> -1.846363666 | R132: =D_Input!R641 -> -1.846363666 | S132: =D_Input!S641 -> -1.846363666 | T132: =D_Input!T641 -> -1.846363666 | U132: =D_Input!U641 -> -0.3692727332 | V132: =D_Input!V641 -> 0 | W132: =D_Input!W641 -> 0 | X132: =D_Input!X641 -> 0 | Y132: =D_Input!Y641 -> 0 | Z132: =D_Input!Z641 -> 0 | AA132: 0 | AB132: 0 | AC132: 0 | AD132: 0 | AE132: 0
A133: =ROW() -> 133 | C133: Other Distribution Non-Network | G133: =D_Input!G35 -> 11.3 | K133: =D_Input!K642 -> -6.656142093 | L133: =D_Input!L642 -> -6.656142093 | M133: =D_Input!M642 -> -6.656142093 | N133: =D_Input!N642 -> -6.656142093 | O133: =D_Input!O642 -> -6.656142093 | P133: =D_Input!P642 -> -6.656142093 | Q133: =D_Input!Q642 -> -6.656142093 | R133: =D_Input!R642 -> -6.656142093 | S133: =D_Input!S642 -> -6.656142093 | T133: =D_Input!T642 -> -6.656142093 | U133: =D_Input!U642 -> -6.656142093 | V133: =D_Input!V642 -> 0 | W133: =D_Input!W642 -> 0 | X133: =D_Input!X642 -> 0 | Y133: =D_Input!Y642 -> 0 | Z133: =D_Input!Z642 -> 0 | AA133: 0 | AB133: 0 | AC133: 0 | AD133: 0 | AE133: 0
A134: =ROW() -> 134 | C134: Distribution Land & Easements | G134: =D_Input!G36 -> 0 | K134: =D_Input!K643 -> 0 | L134: =D_Input!L643 -> 0 | M134: =D_Input!M643 -> 0 | N134: =D_Input!N643 -> 0 | O134: =D_Input!O643 -> 0 | P134: =D_Input!P643 -> 0 | Q134: =D_Input!Q643 -> 0 | R134: =D_Input!R643 -> 0 | S134: =D_Input!S643 -> 0 | T134: =D_Input!T643 -> 0 | U134: =D_Input!U643 -> 0 | V134: =D_Input!V643 -> 0 | W134: =D_Input!W643 -> 0 | X134: =D_Input!X643 -> 0 | Y134: =D_Input!Y643 -> 0 | Z134: =D_Input!Z643 -> 0 | AA134: 0 | AB134: 0 | AC134: 0 | AD134: 0 | AE134: 0
A135: =ROW() -> 135 | C135: Equity Raising Costs | G135: =D_Input!G37 -> 0 | K135: =D_Input!K644 -> 0 | L135: =D_Input!L644 -> 0 | M135: =D_Input!M644 -> 0 | N135: =D_Input!N644 -> 0 | O135: =D_Input!O644 -> 0 | P135: =D_Input!P644 -> 0 | Q135: =D_Input!Q644 -> 0 | R135: =D_Input!R644 -> 0 | S135: =D_Input!S644 -> 0 | T135: =D_Input!T644 -> 0 | U135: =D_Input!U644 -> 0 | V135: =D_Input!V644 -> 0 | W135: =D_Input!W644 -> 0 | X135: =D_Input!X644 -> 0 | Y135: =D_Input!Y644 -> 0 | Z135: =D_Input!Z644 -> 0 | AA135: 0 | AB135: 0 | AC135: 0 | AD135: 0 | AE135: 0
A136: =ROW() -> 136 | C136: Standalone Power Systems | K136: =D_Input!K645 -> 0 | L136: =D_Input!L645 -> 0 | M136: =D_Input!M645 -> 0 | N136: =D_Input!N645 -> 0 | O136: =D_Input!O645 -> 0 | P136: =D_Input!P645 -> 0 | Q136: =D_Input!Q645 -> 0 | R136: =D_Input!R645 -> 0 | S136: =D_Input!S645 -> 0 | T136: =D_Input!T645 -> 0 | U136: =D_Input!U645 -> 0 | V136: =D_Input!V645 -> 0 | W136: =D_Input!W645 -> 0 | X136: =D_Input!X645 -> 0 | Y136: =D_Input!Y645 -> 0 | Z136: =D_Input!Z645 -> 0 | AA136: 0 | AB136: 0 | AC136: 0 | AD136: 0 | AE136: 0
A137: =ROW() -> 137 | C137: Storage | K137: =D_Input!K646 -> 0 | L137: =D_Input!L646 -> 0 | M137: =D_Input!M646 -> 0 | N137: =D_Input!N646 -> 0 | O137: =D_Input!O646 -> 0 | P137: =D_Input!P646 -> 0 | Q137: =D_Input!Q646 -> 0 | R137: =D_Input!R646 -> 0 | S137: =D_Input!S646 -> 0 | T137: =D_Input!T646 -> 0 | U137: =D_Input!U646 -> 0 | V137: =D_Input!V646 -> 0 | W137: =D_Input!W646 -> 0 | X137: =D_Input!X646 -> 0 | Y137: =D_Input!Y646 -> 0 | Z137: =D_Input!Z646 -> 0 | AA137: 0 | AB137: 0 | AC137: 0 | AD137: 0 | AE137: 0
A138: =ROW() -> 138 | C138: Total | K138: =SUM(K125:K137) -> -142.7688171 | L138: =SUM(L125:L137) -> -137.2196034 | M138: -135.5092515 | N138: -135.0629401 | O138: -134.5824807 | P138: -134.0647305 | Q138: -133.0552372 | R138: -132.501812 | S138: -132.4165249 | T138: -110.5378631 | U138: -102.0891727 | V138: -94.51671644 | W138: -92.54514344 | X138: -82.0799874 | Y138: -53.05180522 | Z138: -37.58529228 | AA138: -37.60928872 | AB138: -21.29846287 | AC138: -21.29846287 | AD138: -21.29846287 | AE138: -21.29846287
A139: =ROW() -> 139 | B139: Accelerated Depreciation
A140: =ROW() -> 140 | C140: Wooden Pole Lines | K140: =-D_Input!K1178 -> -4.223703272 | L140: =-D_Input!L1178 -> -4.04151437 | M140: =-D_Input!M1178 -> -3.983432727 | N140: =-D_Input!N1178 -> -3.908478277 | O140: =-D_Input!O1178 -> -3.820604376 | P140: =-D_Input!P1178 -> -3.720160055 | Q140: =-D_Input!Q1178 -> -3.245405196 | R140: =-D_Input!R1178 -> -0.4352939564 | S140: =-D_Input!S1178 -> 0 | T140: =-D_Input!T1178 -> 0 | U140: =-D_Input!U1178 -> 0 | V140: =-D_Input!V1178 -> -3.632204862 | W140: =-D_Input!W1178 -> -4.841303536 | X140: =-D_Input!X1178 -> -3.248396102 | Y140: =-D_Input!Y1178 -> 0 | Z140: =-D_Input!Z1178 -> 0 | AA140: =-D_Input!AA1178 -> 0 | AB140: =-D_Input!AB1178 -> 0 | AC140: =-D_Input!AC1178 -> 0 | AD140: =-D_Input!AD1178 -> 0 | AE140: =-D_Input!AE1178 -> 0
A141: =ROW() -> 141 | C141: Underground Cables | K141: =-D_Input!K1179 -> 0 | L141: =-D_Input!L1179 -> 0 | M141: =-D_Input!M1179 -> 0 | N141: =-D_Input!N1179 -> 0 | O141: =-D_Input!O1179 -> 0 | P141: =-D_Input!P1179 -> 0 | Q141: =-D_Input!Q1179 -> 0 | R141: =-D_Input!R1179 -> 0 | S141: =-D_Input!S1179 -> 0 | T141: =-D_Input!T1179 -> 0 | U141: =-D_Input!U1179 -> 0 | V141: =-D_Input!V1179 -> 0 | W141: =-D_Input!W1179 -> 0 | X141: =-D_Input!X1179 -> 0 | Y141: =-D_Input!Y1179 -> 0 | Z141: =-D_Input!Z1179 -> 0 | AA141: =-D_Input!AA1179 -> 0 | AB141: =-D_Input!AB1179 -> 0 | AC141: =-D_Input!AC1179 -> 0 | AD141: =-D_Input!AD1179 -> 0 | AE141: =-D_Input!AE1179 -> 0
A142: =ROW() -> 142 | C142: Transformers | K142: =-D_Input!K1180 -> -1.126416779 | L142: =-D_Input!L1180 -> -1.077828935 | M142: =-D_Input!M1180 -> -1.062339177 | N142: =-D_Input!N1180 -> -1.042260874 | O142: =-D_Input!O1180 -> -1.018827834 | P142: =-D_Input!P1180 -> -0.9920426813 | Q142: =-D_Input!Q1180 -> -0.8654413856 | R142: =-D_Input!R1180 -> -0.1160783884 | S142: =-D_Input!S1180 -> 0 | T142: =-D_Input!T1180 -> 0 | U142: =-D_Input!U1180 -> 0 | V142: =-D_Input!V1180 -> -0.4617058566 | W142: =-D_Input!W1180 -> -1.484287794 | X142: =-D_Input!X1180 -> -0.7625370509 | Y142: =-D_Input!Y1180 -> 0 | Z142: =-D_Input!Z1180 -> 0 | AA142: =-D_Input!AA1180 -> 0 | AB142: =-D_Input!AB1180 -> 0 | AC142: =-D_Input!AC1180 -> 0 | AD142: =-D_Input!AD1180 -> 0 | AE142: =-D_Input!AE1180 -> 0
A143: =ROW() -> 143 | C143: Switchgear | K143: =-D_Input!K1181 -> -0.2819638424 | L143: =-D_Input!L1181 -> -0.269801368 | M143: =-D_Input!M1181 -> -0.2659239831 | N143: =-D_Input!N1181 -> -0.2605652185 | O143: =-D_Input!O1181 -> -0.2547069584 | P143: =-D_Input!P1181 -> -0.2480106703 | Q143: =-D_Input!Q1181 -> -0.2163603464 | R143: =-D_Input!R1181 -> -0.02901959709 | S143: =-D_Input!S1181 -> 0 | T143: =-D_Input!T1181 -> 0 | U143: =-D_Input!U1181 -> 0 | V143: =-D_Input!V1181 -> -0.2755296495 | W143: =-D_Input!W1181 -> -0.5733874686 | X143: =-D_Input!X1181 -> -0.3567559106 | Y143: =-D_Input!Y1181 -> 0 | Z143: =-D_Input!Z1181 -> 0 | AA143: =-D_Input!AA1181 -> 0 | AB143: =-D_Input!AB1181 -> 0 | AC143: =-D_Input!AC1181 -> 0 | AD143: =-D_Input!AD1181 -> 0 | AE143: =-D_Input!AE1181 -> 0
A144: =ROW() -> 144 | C144: Street lighting | K144: =-D_Input!K1182 -> 0 | L144: =-D_Input!L1182 -> 0 | M144: =-D_Input!M1182 -> 0 | N144: =-D_Input!N1182 -> 0 | O144: =-D_Input!O1182 -> 0 | P144: =-D_Input!P1182 -> 0 | Q144: =-D_Input!Q1182 -> 0 | R144: =-D_Input!R1182 -> 0 | S144: =-D_Input!S1182 -> 0 | T144: =-D_Input!T1182 -> 0 | U144: =-D_Input!U1182 -> 0 | V144: =-D_Input!V1182 -> 0 | W144: =-D_Input!W1182 -> 0 | X144: =-D_Input!X1182 -> 0 | Y144: =-D_Input!Y1182 -> 0 | Z144: =-D_Input!Z1182 -> 0 | AA144: =-D_Input!AA1182 -> 0 | AB144: =-D_Input!AB1182 -> 0 | AC144: =-D_Input!AC1182 -> 0 | AD144: =-D_Input!AD1182 -> 0 | AE144: =-D_Input!AE1182 -> 0
A145: =ROW() -> 145 | C145: Meters and Services | K145: =-D_Input!K1183 -> 0 | L145: =-D_Input!L1183 -> 0 | M145: =-D_Input!M1183 -> 0 | N145: =-D_Input!N1183 -> 0 | O145: =-D_Input!O1183 -> 0 | P145: =-D_Input!P1183 -> 0 | Q145: =-D_Input!Q1183 -> 0 | R145: =-D_Input!R1183 -> 0 | S145: =-D_Input!S1183 -> 0 | T145: =-D_Input!T1183 -> 0 | U145: =-D_Input!U1183 -> 0 | V145: =-D_Input!V1183 -> 0 | W145: =-D_Input!W1183 -> 0 | X145: =-D_Input!X1183 -> 0 | Y145: =-D_Input!Y1183 -> 0 | Z145: =-D_Input!Z1183 -> 0 | AA145: =-D_Input!AA1183 -> 0 | AB145: =-D_Input!AB1183 -> 0 | AC145: =-D_Input!AC1183 -> 0 | AD145: =-D_Input!AD1183 -> 0 | AE145: =-D_Input!AE1183 -> 0
A146: =ROW() -> 146 | C146: IT&T | K146: =-D_Input!K1184 -> 0 | L146: =-D_Input!L1184 -> 0 | M146: =-D_Input!M1184 -> 0 | N146: =-D_Input!N1184 -> 0 | O146: =-D_Input!O1184 -> 0 | P146: =-D_Input!P1184 -> 0 | Q146: =-D_Input!Q1184 -> 0 | R146: =-D_Input!R1184 -> 0 | S146: =-D_Input!S1184 -> 0 | T146: =-D_Input!T1184 -> 0 | U146: =-D_Input!U1184 -> 0 | V146: =-D_Input!V1184 -> 0 | W146: =-D_Input!W1184 -> 0 | X146: =-D_Input!X1184 -> 0 | Y146: =-D_Input!Y1184 -> 0 | Z146: =-D_Input!Z1184 -> 0 | AA146: =-D_Input!AA1184 -> 0 | AB146: =-D_Input!AB1184 -> 0 | AC146: =-D_Input!AC1184 -> 0 | AD146: =-D_Input!AD1184 -> 0 | AE146: =-D_Input!AE1184 -> 0
A147: =ROW() -> 147 | C147: SCADA & Communications | K147: =-D_Input!K1185 -> 0 | L147: =-D_Input!L1185 -> 0 | M147: =-D_Input!M1185 -> 0 | N147: =-D_Input!N1185 -> 0 | O147: =-D_Input!O1185 -> 0 | P147: =-D_Input!P1185 -> 0 | Q147: =-D_Input!Q1185 -> 0 | R147: =-D_Input!R1185 -> 0 | S147: =-D_Input!S1185 -> 0 | T147: =-D_Input!T1185 -> 0 | U147: =-D_Input!U1185 -> 0 | V147: =-D_Input!V1185 -> 0 | W147: =-D_Input!W1185 -> 0 | X147: =-D_Input!X1185 -> 0 | Y147: =-D_Input!Y1185 -> 0 | Z147: =-D_Input!Z1185 -> 0 | AA147: =-D_Input!AA1185 -> 0 | AB147: =-D_Input!AB1185 -> 0 | AC147: =-D_Input!AC1185 -> 0 | AD147: =-D_Input!AD1185 -> 0 | AE147: =-D_Input!AE1185 -> 0
A148: =ROW() -> 148 | C148: Other Distribution Non-Network | K148: =-D_Input!K1186 -> 0 | L148: =-D_Input!L1186 -> 0 | M148: =-D_Input!M1186 -> 0 | N148: =-D_Input!N1186 -> 0 | O148: =-D_Input!O1186 -> 0 | P148: =-D_Input!P1186 -> 0 | Q148: =-D_Input!Q1186 -> 0 | R148: =-D_Input!R1186 -> 0 | S148: =-D_Input!S1186 -> 0 | T148: =-D_Input!T1186 -> 0 | U148: =-D_Input!U1186 -> 0 | V148: =-D_Input!V1186 -> 0 | W148: =-D_Input!W1186 -> 0 | X148: =-D_Input!X1186 -> 0 | Y148: =-D_Input!Y1186 -> 0 | Z148: =-D_Input!Z1186 -> 0 | AA148: =-D_Input!AA1186 -> 0 | AB148: =-D_Input!AB1186 -> 0 | AC148: =-D_Input!AC1186 -> 0 | AD148: =-D_Input!AD1186 -> 0 | AE148: =-D_Input!AE1186 -> 0
A149: =ROW() -> 149 | C149: Distribution Land & Easements | K149: =-D_Input!K1187 -> 0 | L149: =-D_Input!L1187 -> 0 | M149: =-D_Input!M1187 -> 0 | N149: =-D_Input!N1187 -> 0 | O149: =-D_Input!O1187 -> 0 | P149: =-D_Input!P1187 -> 0 | Q149: =-D_Input!Q1187 -> 0 | R149: =-D_Input!R1187 -> 0 | S149: =-D_Input!S1187 -> 0 | T149: =-D_Input!T1187 -> 0 | U149: =-D_Input!U1187 -> 0 | V149: =-D_Input!V1187 -> 0 | W149: =-D_Input!W1187 -> 0 | X149: =-D_Input!X1187 -> 0 | Y149: =-D_Input!Y1187 -> 0 | Z149: =-D_Input!Z1187 -> 0 | AA149: =-D_Input!AA1187 -> 0 | AB149: =-D_Input!AB1187 -> 0 | AC149: =-D_Input!AC1187 -> 0 | AD149: =-D_Input!AD1187 -> 0 | AE149: =-D_Input!AE1187 -> 0
A150: =ROW() -> 150 | C150: Equity Raising Costs | K150: =-D_Input!K1188 -> 0 | L150: =-D_Input!L1188 -> 0 | M150: =-D_Input!M1188 -> 0 | N150: =-D_Input!N1188 -> 0 | O150: =-D_Input!O1188 -> 0 | P150: =-D_Input!P1188 -> 0 | Q150: =-D_Input!Q1188 -> 0 | R150: =-D_Input!R1188 -> 0 | S150: =-D_Input!S1188 -> 0 | T150: =-D_Input!T1188 -> 0 | U150: =-D_Input!U1188 -> 0 | V150: =-D_Input!V1188 -> 0 | W150: =-D_Input!W1188 -> 0 | X150: =-D_Input!X1188 -> 0 | Y150: =-D_Input!Y1188 -> 0 | Z150: =-D_Input!Z1188 -> 0 | AA150: =-D_Input!AA1188 -> 0 | AB150: =-D_Input!AB1188 -> 0 | AC150: =-D_Input!AC1188 -> 0 | AD150: =-D_Input!AD1188 -> 0 | AE150: =-D_Input!AE1188 -> 0
A151: =ROW() -> 151 | C151: Standalone Power Systems | K151: =-D_Input!K1189 -> 0 | L151: =-D_Input!L1189 -> 0 | M151: =-D_Input!M1189 -> 0 | N151: =-D_Input!N1189 -> 0 | O151: =-D_Input!O1189 -> 0 | P151: =-D_Input!P1189 -> 0 | Q151: =-D_Input!Q1189 -> 0 | R151: =-D_Input!R1189 -> 0 | S151: =-D_Input!S1189 -> 0 | T151: =-D_Input!T1189 -> 0 | U151: =-D_Input!U1189 -> 0 | V151: =-D_Input!V1189 -> 0 | W151: =-D_Input!W1189 -> 0 | X151: =-D_Input!X1189 -> 0 | Y151: =-D_Input!Y1189 -> 0 | Z151: =-D_Input!Z1189 -> 0 | AA151: =-D_Input!AA1189 -> 0 | AB151: =-D_Input!AB1189 -> 0 | AC151: =-D_Input!AC1189 -> 0 | AD151: =-D_Input!AD1189 -> 0 | AE151: =-D_Input!AE1189 -> 0
A152: =ROW() -> 152 | C152: Storage | K152: =-D_Input!K1190 -> 0 | L152: =-D_Input!L1190 -> 0 | M152: =-D_Input!M1190 -> 0 | N152: =-D_Input!N1190 -> 0 | O152: =-D_Input!O1190 -> 0 | P152: =-D_Input!P1190 -> 0 | Q152: =-D_Input!Q1190 -> 0 | R152: =-D_Input!R1190 -> 0 | S152: =-D_Input!S1190 -> 0 | T152: =-D_Input!T1190 -> 0 | U152: =-D_Input!U1190 -> 0 | V152: =-D_Input!V1190 -> 0 | W152: =-D_Input!W1190 -> 0 | X152: =-D_Input!X1190 -> 0 | Y152: =-D_Input!Y1190 -> 0 | Z152: =-D_Input!Z1190 -> 0 | AA152: =-D_Input!AA1190 -> 0 | AB152: =-D_Input!AB1190 -> 0 | AC152: =-D_Input!AC1190 -> 0 | AD152: =-D_Input!AD1190 -> 0 | AE152: =-D_Input!AE1190 -> 0
A153: =ROW() -> 153 | C153: Total | K153: =SUM(K140:K152) -> -5.632083893 | L153: =SUM(L140:L152) -> -5.389144673 | M153: -5.311695887 | N153: -5.211304369 | O153: -5.094139168 | P153: -4.960213406 | Q153: -4.327206928 | R153: -0.5803919419 | S153: 0 | T153: 0 | U153: 0 | V153: -4.369440368 | W153: -6.898978798 | X153: -4.367689064 | Y153: 0 | Z153: 0 | AA153: 0 | AB153: 0 | AC153: 0 | AD153: 0 | AE153: 0
A154: =ROW() -> 154 | B154: Redundant Assets
A155: =ROW() -> 155 | C155: Wooden Pole Lines | K155: =-IF(D_Input!K1210>(K110+K125+K140),(K110+K125+K140),D_Input!K1210) -> 0 | L155: =-IF(D_Input!L1210>(L110+L125+L140),(L110+L125+L140),D_Input!L1210) -> 0 | M155: =-IF(D_Input!M1210>(M110+M125+M140),(M110+M125+M140),D_Input!M1210) -> 0 | N155: =-IF(D_Input!N1210>(N110+N125+N140),(N110+N125+N140),D_Input!N1210) -> 0 | O155: =-IF(D_Input!O1210>(O110+O125+O140),(O110+O125+O140),D_Input!O1210) -> 0 | P155: =-IF(D_Input!P1210>(P110+P125+P140),(P110+P125+P140),D_Input!P1210) -> -1.194921465 | Q155: =-IF(D_Input!Q1210>(Q110+Q125+Q140),(Q110+Q125+Q140),D_Input!Q1210) -> 0 | R155: =-IF(D_Input!R1210>(R110+R125+R140),(R110+R125+R140),D_Input!R1210) -> -0.3024494806 | S155: =-IF(D_Input!S1210>(S110+S125+S140),(S110+S125+S140),D_Input!S1210) -> -1.458067907 | T155: =-IF(D_Input!T1210>(T110+T125+T140),(T110+T125+T140),D_Input!T1210) -> -0.1541276293 | U155: =-IF(D_Input!U1210>(U110+U125+U140),(U110+U125+U140),D_Input!U1210) -> 0 | V155: =-IF(D_Input!V1210>(V110+V125+V140),(V110+V125+V140),D_Input!V1210) -> -0.1042380041 | W155: =-IF(D_Input!W1210>(W110+W125+W140),(W110+W125+W140),D_Input!W1210) -> 0 | X155: =-IF(D_Input!X1210>(X110+X125+X140),(X110+X125+X140),D_Input!X1210) -> -0.6569545455 | Y155: =-IF(D_Input!Y1210>(Y110+Y125+Y140),(Y110+Y125+Y140),D_Input!Y1210) -> 0 | Z155: =-IF(D_Input!Z1210>(Z110+Z125+Z140),(Z110+Z125+Z140),D_Input!Z1210) -> 0
A156: =ROW() -> 156 | C156: Underground Cables | K156: =-IF(D_Input!K1211>(K111+K126+K141),(K111+K126+K141),D_Input!K1211) -> 0 | L156: =-IF(D_Input!L1211>(L111+L126+L141),(L111+L126+L141),D_Input!L1211) -> 0 | M156: =-IF(D_Input!M1211>(M111+M126+M141),(M111+M126+M141),D_Input!M1211) -> 0 | N156: =-IF(D_Input!N1211>(N111+N126+N141),(N111+N126+N141),D_Input!N1211) -> 0 | O156: =-IF(D_Input!O1211>(O111+O126+O141),(O111+O126+O141),D_Input!O1211) -> 0 | P156: =-IF(D_Input!P1211>(P111+P126+P141),(P111+P126+P141),D_Input!P1211) -> 0 | Q156: =-IF(D_Input!Q1211>(Q111+Q126+Q141),(Q111+Q126+Q141),D_Input!Q1211) -> 0 | R156: =-IF(D_Input!R1211>(R111+R126+R141),(R111+R126+R141),D_Input!R1211) -> 0 | S156: =-IF(D_Input!S1211>(S111+S126+S141),(S111+S126+S141),D_Input!S1211) -> 0 | T156: =-IF(D_Input!T1211>(T111+T126+T141),(T111+T126+T141),D_Input!T1211) -> 0 | U156: =-IF(D_Input!U1211>(U111+U126+U141),(U111+U126+U141),D_Input!U1211) -> 0 | V156: =-IF(D_Input!V1211>(V111+V126+V141),(V111+V126+V141),D_Input!V1211) -> 0 | W156: =-IF(D_Input!W1211>(W111+W126+W141),(W111+W126+W141),D_Input!W1211) -> 0 | X156: =-IF(D_Input!X1211>(X111+X126+X141),(X111+X126+X141),D_Input!X1211) -> 0 | Y156: =-IF(D_Input!Y1211>(Y111+Y126+Y141),(Y111+Y126+Y141),D_Input!Y1211) -> 0 | Z156: =-IF(D_Input!Z1211>(Z111+Z126+Z141),(Z111+Z126+Z141),D_Input!Z1211) -> 0
A157: =ROW() -> 157 | C157: Transformers | K157: =-IF(D_Input!K1212>(K112+K127+K142),(K112+K127+K142),D_Input!K1212) -> 0 | L157: =-IF(D_Input!L1212>(L112+L127+L142),(L112+L127+L142),D_Input!L1212) -> 0 | M157: =-IF(D_Input!M1212>(M112+M127+M142),(M112+M127+M142),D_Input!M1212) -> 0 | N157: =-IF(D_Input!N1212>(N112+N127+N142),(N112+N127+N142),D_Input!N1212) -> 0 | O157: =-IF(D_Input!O1212>(O112+O127+O142),(O112+O127+O142),D_Input!O1212) -> 0 | P157: =-IF(D_Input!P1212>(P112+P127+P142),(P112+P127+P142),D_Input!P1212) -> 0 | Q157: =-IF(D_Input!Q1212>(Q112+Q127+Q142),(Q112+Q127+Q142),D_Input!Q1212) -> 0 | R157: =-IF(D_Input!R1212>(R112+R127+R142),(R112+R127+R142),D_Input!R1212) -> 0 | S157: =-IF(D_Input!S1212>(S112+S127+S142),(S112+S127+S142),D_Input!S1212) -> 0 | T157: =-IF(D_Input!T1212>(T112+T127+T142),(T112+T127+T142),D_Input!T1212) -> 0 | U157: =-IF(D_Input!U1212>(U112+U127+U142),(U112+U127+U142),D_Input!U1212) -> 0 | V157: =-IF(D_Input!V1212>(V112+V127+V142),(V112+V127+V142),D_Input!V1212) -> 0 | W157: =-IF(D_Input!W1212>(W112+W127+W142),(W112+W127+W142),D_Input!W1212) -> 0 | X157: =-IF(D_Input!X1212>(X112+X127+X142),(X112+X127+X142),D_Input!X1212) -> 0 | Y157: =-IF(D_Input!Y1212>(Y112+Y127+Y142),(Y112+Y127+Y142),D_Input!Y1212) -> 0 | Z157: =-IF(D_Input!Z1212>(Z112+Z127+Z142),(Z112+Z127+Z142),D_Input!Z1212) -> 0
A158: =ROW() -> 158 | C158: Switchgear | K158: =-IF(D_Input!K1213>(K113+K128+K143),(K113+K128+K143),D_Input!K1213) -> 0 | L158: =-IF(D_Input!L1213>(L113+L128+L143),(L113+L128+L143),D_Input!L1213) -> 0 | M158: =-IF(D_Input!M1213>(M113+M128+M143),(M113+M128+M143),D_Input!M1213) -> 0 | N158: =-IF(D_Input!N1213>(N113+N128+N143),(N113+N128+N143),D_Input!N1213) -> 0 | O158: =-IF(D_Input!O1213>(O113+O128+O143),(O113+O128+O143),D_Input!O1213) -> 0 | P158: =-IF(D_Input!P1213>(P113+P128+P143),(P113+P128+P143),D_Input!P1213) -> 0 | Q158: =-IF(D_Input!Q1213>(Q113+Q128+Q143),(Q113+Q128+Q143),D_Input!Q1213) -> 0 | R158: =-IF(D_Input!R1213>(R113+R128+R143),(R113+R128+R143),D_Input!R1213) -> 0 | S158: =-IF(D_Input!S1213>(S113+S128+S143),(S113+S128+S143),D_Input!S1213) -> 0 | T158: =-IF(D_Input!T1213>(T113+T128+T143),(T113+T128+T143),D_Input!T1213) -> 0 | U158: =-IF(D_Input!U1213>(U113+U128+U143),(U113+U128+U143),D_Input!U1213) -> 0 | V158: =-IF(D_Input!V1213>(V113+V128+V143),(V113+V128+V143),D_Input!V1213) -> 0 | W158: =-IF(D_Input!W1213>(W113+W128+W143),(W113+W128+W143),D_Input!W1213) -> 0 | X158: =-IF(D_Input!X1213>(X113+X128+X143),(X113+X128+X143),D_Input!X1213) -> 0.2386590396 | Y158: =-IF(D_Input!Y1213>(Y113+Y128+Y143),(Y113+Y128+Y143),D_Input!Y1213) -> 0 | Z158: =-IF(D_Input!Z1213>(Z113+Z128+Z143),(Z113+Z128+Z143),D_Input!Z1213) -> 0
A159: =ROW() -> 159 | C159: Street lighting | K159: =-IF(D_Input!K1214>(K114+K129+K144),(K114+K129+K144),D_Input!K1214) -> 0 | L159: =-IF(D_Input!L1214>(L114+L129+L144),(L114+L129+L144),D_Input!L1214) -> 0 | M159: =-IF(D_Input!M1214>(M114+M129+M144),(M114+M129+M144),D_Input!M1214) -> 0 | N159: =-IF(D_Input!N1214>(N114+N129+N144),(N114+N129+N144),D_Input!N1214) -> 0 | O159: =-IF(D_Input!O1214>(O114+O129+O144),(O114+O129+O144),D_Input!O1214) -> 0 | P159: =-IF(D_Input!P1214>(P114+P129+P144),(P114+P129+P144),D_Input!P1214) -> 0 | Q159: =-IF(D_Input!Q1214>(Q114+Q129+Q144),(Q114+Q129+Q144),D_Input!Q1214) -> 0 | R159: =-IF(D_Input!R1214>(R114+R129+R144),(R114+R129+R144),D_Input!R1214) -> 0 | S159: =-IF(D_Input!S1214>(S114+S129+S144),(S114+S129+S144),D_Input!S1214) -> 0 | T159: =-IF(D_Input!T1214>(T114+T129+T144),(T114+T129+T144),D_Input!T1214) -> 0 | U159: =-IF(D_Input!U1214>(U114+U129+U144),(U114+U129+U144),D_Input!U1214) -> 0 | V159: =-IF(D_Input!V1214>(V114+V129+V144),(V114+V129+V144),D_Input!V1214) -> 0 | W159: =-IF(D_Input!W1214>(W114+W129+W144),(W114+W129+W144),D_Input!W1214) -> 0 | X159: =-IF(D_Input!X1214>(X114+X129+X144),(X114+X129+X144),D_Input!X1214) -> 0 | Y159: =-IF(D_Input!Y1214>(Y114+Y129+Y144),(Y114+Y129+Y144),D_Input!Y1214) -> 0 | Z159: =-IF(D_Input!Z1214>(Z114+Z129+Z144),(Z114+Z129+Z144),D_Input!Z1214) -> 0
A160: =ROW() -> 160 | C160: Meters and Services | K160: =-IF(D_Input!K1215>(K115+K130+K145),(K115+K130+K145),D_Input!K1215) -> 0 | L160: =-IF(D_Input!L1215>(L115+L130+L145),(L115+L130+L145),D_Input!L1215) -> 0 | M160: =-IF(D_Input!M1215>(M115+M130+M145),(M115+M130+M145),D_Input!M1215) -> 0 | N160: =-IF(D_Input!N1215>(N115+N130+N145),(N115+N130+N145),D_Input!N1215) -> 0 | O160: =-IF(D_Input!O1215>(O115+O130+O145),(O115+O130+O145),D_Input!O1215) -> 0 | P160: =-IF(D_Input!P1215>(P115+P130+P145),(P115+P130+P145),D_Input!P1215) -> 0 | Q160: =-IF(D_Input!Q1215>(Q115+Q130+Q145),(Q115+Q130+Q145),D_Input!Q1215) -> 0 | R160: =-IF(D_Input!R1215>(R115+R130+R145),(R115+R130+R145),D_Input!R1215) -> 0 | S160: =-IF(D_Input!S1215>(S115+S130+S145),(S115+S130+S145),D_Input!S1215) -> 0 | T160: =-IF(D_Input!T1215>(T115+T130+T145),(T115+T130+T145),D_Input!T1215) -> 0 | U160: =-IF(D_Input!U1215>(U115+U130+U145),(U115+U130+U145),D_Input!U1215) -> 0 | V160: =-IF(D_Input!V1215>(V115+V130+V145),(V115+V130+V145),D_Input!V1215) -> 0 | W160: =-IF(D_Input!W1215>(W115+W130+W145),(W115+W130+W145),D_Input!W1215) -> 0 | X160: =-IF(D_Input!X1215>(X115+X130+X145),(X115+X130+X145),D_Input!X1215) -> 0 | Y160: =-IF(D_Input!Y1215>(Y115+Y130+Y145),(Y115+Y130+Y145),D_Input!Y1215) -> 0 | Z160: =-IF(D_Input!Z1215>(Z115+Z130+Z145),(Z115+Z130+Z145),D_Input!Z1215) -> 0
A161: =ROW() -> 161 | C161: IT&T | K161: =-IF(D_Input!K1216>(K116+K131+K146),(K116+K131+K146),D_Input!K1216) -> 0 | L161: =-IF(D_Input!L1216>(L116+L131+L146),(L116+L131+L146),D_Input!L1216) -> 0 | M161: =-IF(D_Input!M1216>(M116+M131+M146),(M116+M131+M146),D_Input!M1216) -> 0 | N161: =-IF(D_Input!N1216>(N116+N131+N146),(N116+N131+N146),D_Input!N1216) -> -1.078246044 | O161: =-IF(D_Input!O1216>(O116+O131+O146),(O116+O131+O146),D_Input!O1216) -> 0 | P161: =-IF(D_Input!P1216>(P116+P131+P146),(P116+P131+P146),D_Input!P1216) -> -0.08898948833 | Q161: =-IF(D_Input!Q1216>(Q116+Q131+Q146),(Q116+Q131+Q146),D_Input!Q1216) -> 0 | R161: =-IF(D_Input!R1216>(R116+R131+R146),(R116+R131+R146),D_Input!R1216) -> 0 | S161: =-IF(D_Input!S1216>(S116+S131+S146),(S116+S131+S146),D_Input!S1216) -> 0 | T161: =-IF(D_Input!T1216>(T116+T131+T146),(T116+T131+T146),D_Input!T1216) -> 0 | U161: =-IF(D_Input!U1216>(U116+U131+U146),(U116+U131+U146),D_Input!U1216) -> 0 | V161: =-IF(D_Input!V1216>(V116+V131+V146),(V116+V131+V146),D_Input!V1216) -> 0 | W161: =-IF(D_Input!W1216>(W116+W131+W146),(W116+W131+W146),D_Input!W1216) -> 0 | X161: =-IF(D_Input!X1216>(X116+X131+X146),(X116+X131+X146),D_Input!X1216) -> 0 | Y161: =-IF(D_Input!Y1216>(Y116+Y131+Y146),(Y116+Y131+Y146),D_Input!Y1216) -> 0 | Z161: =-IF(D_Input!Z1216>(Z116+Z131+Z146),(Z116+Z131+Z146),D_Input!Z1216) -> 0
A162: =ROW() -> 162 | C162: SCADA & Communications | K162: =-IF(D_Input!K1217>(K117+K132+K147),(K117+K132+K147),D_Input!K1217) -> 0 | L162: =-IF(D_Input!L1217>(L117+L132+L147),(L117+L132+L147),D_Input!L1217) -> 0 | M162: =-IF(D_Input!M1217>(M117+M132+M147),(M117+M132+M147),D_Input!M1217) -> 0 | N162: =-IF(D_Input!N1217>(N117+N132+N147),(N117+N132+N147),D_Input!N1217) -> 0 | O162: =-IF(D_Input!O1217>(O117+O132+O147),(O117+O132+O147),D_Input!O1217) -> 0 | P162: =-IF(D_Input!P1217>(P117+P132+P147),(P117+P132+P147),D_Input!P1217) -> 0 | Q162: =-IF(D_Input!Q1217>(Q117+Q132+Q147),(Q117+Q132+Q147),D_Input!Q1217) -> 0 | R162: =-IF(D_Input!R1217>(R117+R132+R147),(R117+R132+R147),D_Input!R1217) -> 0 | S162: =-IF(D_Input!S1217>(S117+S132+S147),(S117+S132+S147),D_Input!S1217) -> 0 | T162: =-IF(D_Input!T1217>(T117+T132+T147),(T117+T132+T147),D_Input!T1217) -> 0 | U162: =-IF(D_Input!U1217>(U117+U132+U147),(U117+U132+U147),D_Input!U1217) -> 1.831867991e-15 | V162: =-IF(D_Input!V1217>(V117+V132+V147),(V117+V132+V147),D_Input!V1217) -> 0 | W162: =-IF(D_Input!W1217>(W117+W132+W147),(W117+W132+W147),D_Input!W1217) -> 0 | X162: =-IF(D_Input!X1217>(X117+X132+X147),(X117+X132+X147),D_Input!X1217) -> 0 | Y162: =-IF(D_Input!Y1217>(Y117+Y132+Y147),(Y117+Y132+Y147),D_Input!Y1217) -> 0 | Z162: =-IF(D_Input!Z1217>(Z117+Z132+Z147),(Z117+Z132+Z147),D_Input!Z1217) -> 0
A163: =ROW() -> 163 | C163: Other Distribution Non-Network | K163: =-IF(D_Input!K1218>(K118+K133+K148),(K118+K133+K148),D_Input!K1218) -> 0 | L163: =-IF(D_Input!L1218>(L118+L133+L148),(L118+L133+L148),D_Input!L1218) -> 0 | M163: =-IF(D_Input!M1218>(M118+M133+M148),(M118+M133+M148),D_Input!M1218) -> 0 | N163: =-IF(D_Input!N1218>(N118+N133+N148),(N118+N133+N148),D_Input!N1218) -> 0 | O163: =-IF(D_Input!O1218>(O118+O133+O148),(O118+O133+O148),D_Input!O1218) -> 0 | P163: =-IF(D_Input!P1218>(P118+P133+P148),(P118+P133+P148),D_Input!P1218) -> 0 | Q163: =-IF(D_Input!Q1218>(Q118+Q133+Q148),(Q118+Q133+Q148),D_Input!Q1218) -> -0.05761361802 | R163: =-IF(D_Input!R1218>(R118+R133+R148),(R118+R133+R148),D_Input!R1218) -> 0 | S163: =-IF(D_Input!S1218>(S118+S133+S148),(S118+S133+S148),D_Input!S1218) -> 0 | T163: =-IF(D_Input!T1218>(T118+T133+T148),(T118+T133+T148),D_Input!T1218) -> -3.048026291 | U163: =-IF(D_Input!U1218>(U118+U133+U148),(U118+U133+U148),D_Input!U1218) -> 1.108797281 | V163: =-IF(D_Input!V1218>(V118+V133+V148),(V118+V133+V148),D_Input!V1218) -> 0 | W163: =-IF(D_Input!W1218>(W118+W133+W148),(W118+W133+W148),D_Input!W1218) -> 0 | X163: =-IF(D_Input!X1218>(X118+X133+X148),(X118+X133+X148),D_Input!X1218) -> 0 | Y163: =-IF(D_Input!Y1218>(Y118+Y133+Y148),(Y118+Y133+Y148),D_Input!Y1218) -> 0 | Z163: =-IF(D_Input!Z1218>(Z118+Z133+Z148),(Z118+Z133+Z148),D_Input!Z1218) -> 0
A164: =ROW() -> 164 | C164: Distribution Land & Easements | K164: =-IF(D_Input!K1219>(K119+K134+K149),(K119+K134+K149),D_Input!K1219) -> -0.2748413782 | L164: =-IF(D_Input!L1219>(L119+L134+L149),(L119+L134+L149),D_Input!L1219) -> 0 | M164: =-IF(D_Input!M1219>(M119+M134+M149),(M119+M134+M149),D_Input!M1219) -> 0 | N164: =-IF(D_Input!N1219>(N119+N134+N149),(N119+N134+N149),D_Input!N1219) -> 0 | O164: =-IF(D_Input!O1219>(O119+O134+O149),(O119+O134+O149),D_Input!O1219) -> -0.00127076886 | P164: =-IF(D_Input!P1219>(P119+P134+P149),(P119+P134+P149),D_Input!P1219) -> -1.532029682 | Q164: =-IF(D_Input!Q1219>(Q119+Q134+Q149),(Q119+Q134+Q149),D_Input!Q1219) -> -0.9997569986 | R164: =-IF(D_Input!R1219>(R119+R134+R149),(R119+R134+R149),D_Input!R1219) -> -0.03691312559 | S164: =-IF(D_Input!S1219>(S119+S134+S149),(S119+S134+S149),D_Input!S1219) -> -4.159540465 | T164: =-IF(D_Input!T1219>(T119+T134+T149),(T119+T134+T149),D_Input!T1219) -> 0 | U164: =-IF(D_Input!U1219>(U119+U134+U149),(U119+U134+U149),D_Input!U1219) -> -0.3576141436 | V164: =-IF(D_Input!V1219>(V119+V134+V149),(V119+V134+V149),D_Input!V1219) -> -0.8149108811 | W164: =-IF(D_Input!W1219>(W119+W134+W149),(W119+W134+W149),D_Input!W1219) -> -0.6447796167 | X164: =-IF(D_Input!X1219>(X119+X134+X149),(X119+X134+X149),D_Input!X1219) -> 0 | Y164: =-IF(D_Input!Y1219>(Y119+Y134+Y149),(Y119+Y134+Y149),D_Input!Y1219) -> -0.1191872807 | Z164: =-IF(D_Input!Z1219>(Z119+Z134+Z149),(Z119+Z134+Z149),D_Input!Z1219) -> -0.1168615812
A165: =ROW() -> 165 | C165: Equity Raising Costs | K165: =-IF(D_Input!K1220>(K120+K135+K150),(K120+K135+K150),D_Input!K1220) -> 0 | L165: =-IF(D_Input!L1220>(L120+L135+L150),(L120+L135+L150),D_Input!L1220) -> 0 | M165: =-IF(D_Input!M1220>(M120+M135+M150),(M120+M135+M150),D_Input!M1220) -> 0 | N165: =-IF(D_Input!N1220>(N120+N135+N150),(N120+N135+N150),D_Input!N1220) -> 0 | O165: =-IF(D_Input!O1220>(O120+O135+O150),(O120+O135+O150),D_Input!O1220) -> 0 | P165: =-IF(D_Input!P1220>(P120+P135+P150),(P120+P135+P150),D_Input!P1220) -> 0 | Q165: =-IF(D_Input!Q1220>(Q120+Q135+Q150),(Q120+Q135+Q150),D_Input!Q1220) -> 0 | R165: =-IF(D_Input!R1220>(R120+R135+R150),(R120+R135+R150),D_Input!R1220) -> 0 | S165: =-IF(D_Input!S1220>(S120+S135+S150),(S120+S135+S150),D_Input!S1220) -> 0 | T165: =-IF(D_Input!T1220>(T120+T135+T150),(T120+T135+T150),D_Input!T1220) -> 0 | U165: =-IF(D_Input!U1220>(U120+U135+U150),(U120+U135+U150),D_Input!U1220) -> 0 | V165: =-IF(D_Input!V1220>(V120+V135+V150),(V120+V135+V150),D_Input!V1220) -> 0 | W165: =-IF(D_Input!W1220>(W120+W135+W150),(W120+W135+W150),D_Input!W1220) -> 0 | X165: =-IF(D_Input!X1220>(X120+X135+X150),(X120+X135+X150),D_Input!X1220) -> 0 | Y165: =-IF(D_Input!Y1220>(Y120+Y135+Y150),(Y120+Y135+Y150),D_Input!Y1220) -> 0 | Z165: =-IF(D_Input!Z1220>(Z120+Z135+Z150),(Z120+Z135+Z150),D_Input!Z1220) -> 0
A166: =ROW() -> 166 | C166: Standalone Power Systems | K166: =-IF(D_Input!K1221>(K121+K136+K151),(K121+K136+K151),D_Input!K1221) -> 0 | L166: =-IF(D_Input!L1221>(L121+L136+L151),(L121+L136+L151),D_Input!L1221) -> 0 | M166: =-IF(D_Input!M1221>(M121+M136+M151),(M121+M136+M151),D_Input!M1221) -> 0 | N166: =-IF(D_Input!N1221>(N121+N136+N151),(N121+N136+N151),D_Input!N1221) -> 0 | O166: =-IF(D_Input!O1221>(O121+O136+O151),(O121+O136+O151),D_Input!O1221) -> 0 | P166: =-IF(D_Input!P1221>(P121+P136+P151),(P121+P136+P151),D_Input!P1221) -> 0 | Q166: =-IF(D_Input!Q1221>(Q121+Q136+Q151),(Q121+Q136+Q151),D_Input!Q1221) -> 0 | R166: =-IF(D_Input!R1221>(R121+R136+R151),(R121+R136+R151),D_Input!R1221) -> 0 | S166: =-IF(D_Input!S1221>(S121+S136+S151),(S121+S136+S151),D_Input!S1221) -> 0 | T166: =-IF(D_Input!T1221>(T121+T136+T151),(T121+T136+T151),D_Input!T1221) -> 0 | U166: =-IF(D_Input!U1221>(U121+U136+U151),(U121+U136+U151),D_Input!U1221) -> 0 | V166: =-IF(D_Input!V1221>(V121+V136+V151),(V121+V136+V151),D_Input!V1221) -> 0 | W166: =-IF(D_Input!W1221>(W121+W136+W151),(W121+W136+W151),D_Input!W1221) -> 0 | X166: =-IF(D_Input!X1221>(X121+X136+X151),(X121+X136+X151),D_Input!X1221) -> 0 | Y166: =-IF(D_Input!Y1221>(Y121+Y136+Y151),(Y121+Y136+Y151),D_Input!Y1221) -> 0 | Z166: =-IF(D_Input!Z1221>(Z121+Z136+Z151),(Z121+Z136+Z151),D_Input!Z1221) -> 0
A167: =ROW() -> 167 | C167: Storage | K167: =-IF(D_Input!K1222>(K122+K137+K152),(K122+K137+K152),D_Input!K1222) -> 0 | L167: =-IF(D_Input!L1222>(L122+L137+L152),(L122+L137+L152),D_Input!L1222) -> 0 | M167: =-IF(D_Input!M1222>(M122+M137+M152),(M122+M137+M152),D_Input!M1222) -> 0 | N167: =-IF(D_Input!N1222>(N122+N137+N152),(N122+N137+N152),D_Input!N1222) -> 0 | O167: =-IF(D_Input!O1222>(O122+O137+O152),(O122+O137+O152),D_Input!O1222) -> 0 | P167: =-IF(D_Input!P1222>(P122+P137+P152),(P122+P137+P152),D_Input!P1222) -> 0 | Q167: =-IF(D_Input!Q1222>(Q122+Q137+Q152),(Q122+Q137+Q152),D_Input!Q1222) -> 0 | R167: =-IF(D_Input!R1222>(R122+R137+R152),(R122+R137+R152),D_Input!R1222) -> 0 | S167: =-IF(D_Input!S1222>(S122+S137+S152),(S122+S137+S152),D_Input!S1222) -> 0 | T167: =-IF(D_Input!T1222>(T122+T137+T152),(T122+T137+T152),D_Input!T1222) -> 0 | U167: =-IF(D_Input!U1222>(U122+U137+U152),(U122+U137+U152),D_Input!U1222) -> 0 | V167: =-IF(D_Input!V1222>(V122+V137+V152),(V122+V137+V152),D_Input!V1222) -> 0 | W167: =-IF(D_Input!W1222>(W122+W137+W152),(W122+W137+W152),D_Input!W1222) -> 0 | X167: =-IF(D_Input!X1222>(X122+X137+X152),(X122+X137+X152),D_Input!X1222) -> 0 | Y167: =-IF(D_Input!Y1222>(Y122+Y137+Y152),(Y122+Y137+Y152),D_Input!Y1222) -> 0 | Z167: =-IF(D_Input!Z1222>(Z122+Z137+Z152),(Z122+Z137+Z152),D_Input!Z1222) -> 0
A168: =ROW() -> 168 | C168: Total | K168: =SUM(K155:K167) -> -0.2748413782 | L168: =SUM(L155:L167) -> 0 | M168: 0 | N168: -1.078246044 | O168: -0.00127076886 | P168: -2.815940635 | Q168: -1.057370617 | R168: -0.3393626062 | S168: -5.617608372 | T168: -3.202153921 | U168: 0.7511831378 | V168: -0.9191488851 | W168: -0.6447796167 | X168: -0.4182955059 | Y168: -0.1191872807 | Z168: -0.1168615812 | AA168: 0 | AB168: 0 | AC168: 0 | AD168: 0 | AE168: 0
A169: =ROW() -> 169 | B169: Closing Value
A170: =ROW() -> 170 | C170: Wooden Pole Lines | J170: =D_Input!I27 -> 693.9691234 | K170: =K110+K125+K140+K155 -> 641.8854805 | L170: 590.2946836 | M170: 539.0889757 | N170: 488.3031952 | O170: 437.9775246 | P170: 386.9595458 | Q170: 338.1894881 | R170: 292.359813 | S170: 245.8767816 | T170: 200.6976905 | U170: 155.6727271 | V170: 107.4583622 | W170: 59.79413584 | X170: 16.74239582 | Y170: 0.8694969654 | Z170: 0.8694969654 | AA170: 0 | AB170: 0 | AC170: 0 | AD170: 0 | AE170: 0
A171: =ROW() -> 171 | C171: Underground Cables | J171: =D_Input!I28 -> 785.9132798 | K171: 764.6148169 | L171: 743.3163541 | M171: 722.0178912 | N171: 700.7194283 | O171: 679.4209655 | P171: 658.1225026 | Q171: 636.8240397 | R171: 615.5255769 | S171: 594.227114 | T171: 572.9286511 | U171: 551.6301883 | V171: 530.3317254 | W171: 509.0332625 | X171: 487.7347997 | Y171: 466.4363368 | Z171: 445.1378739 | AA171: 423.8394111 | AB171: 402.5409482 | AC171: 381.2424853 | AD171: 359.9440225 | AE171: 338.6455596
A172: =ROW() -> 172 | C172: Transformers | J172: =D_Input!I29 -> 299.2098469 | K172: 280.3787055 | L172: 261.6664953 | M172: 243.0429371 | N172: 224.5155728 | O172: 206.092437 | P172: 187.7817022 | Q172: 169.6885817 | R172: 152.4322425 | S172: 135.3050243 | T172: 118.177806 | U172: 101.0505877 | V172: 83.46166362 | W172: 64.95749143 | X172: 47.6086018 | Y172: 31.32177239 | Z172: 15.03494297 | AA172: 0 | AB172: 0 | AC172: 0 | AD172: 0 | AE172: 0
A173: =ROW() -> 173 | C173: Switchgear | J173: =D_Input!I30 -> 159.4820662 | K173: 147.386616 | L173: 135.325726 | M173: 123.2924419 | N173: 111.2897394 | O173: 99.320323 | P173: 87.38756845 | Q173: 75.51953231 | R173: 63.87212312 | S173: 52.25900983 | T173: 40.64589653 | U173: 29.03278324 | V173: 17.14414029 | W173: 5.16687945 | X173: 0 | Y173: 0.4063859108 | Z173: 0.4063859108 | AA173: 0 | AB173: 0 | AC173: 0 | AD173: 0 | AE173: 0
A174: =ROW() -> 174 | C174: Street lighting | J174: =D_Input!I31 -> 7.718723209 | K174: 1.286453868 | L174: 8.881784197e-16 | M174: 8.881784197e-16 | N174: 8.881784197e-16 | O174: 8.881784197e-16 | P174: 8.881784197e-16 | Q174: 8.881784197e-16 | R174: 8.881784197e-16 | S174: 8.881784197e-16 | T174: 8.881784197e-16 | U174: 8.881784197e-16 | V174: 8.881784197e-16 | W174: 8.881784197e-16 | X174: 8.881784197e-16 | Y174: 8.881784197e-16 | Z174: 8.881784197e-16 | AA174: 0 | AB174: 0 | AC174: 0 | AD174: 0 | AE174: 0
A175: =ROW() -> 175 | C175: Meters and Services | J175: =D_Input!I32 -> 246.9986802 | K175: 220.1509976 | L175: 193.303315 | M175: 166.4556323 | N175: 139.6079497 | O175: 112.7602671 | P175: 85.91258442 | Q175: 59.06490179 | R175: 32.21721916 | S175: 5.369536526 | T175: 1.181277298e-13 | U175: 1.181277298e-13 | V175: 1.181277298e-13 | W175: 1.181277298e-13 | X175: 1.181277298e-13 | Y175: 1.181277298e-13 | Z175: 1.181277298e-13 | AA175: 0 | AB175: 0 | AC175: 0 | AD175: 0 | AE175: 0
A176: =ROW() -> 176 | C176: IT&T | J176: =D_Input!I33 -> 22.63550972 | K176: 20.32576383 | L176: 18.01601794 | M176: 15.70627205 | N176: 12.31828012 | O176: 10.00853423 | P176: 7.60979885 | Q176: 5.607220205 | R176: 3.604641561 | S176: 1.602062916 | T176: 1.088018564e-14 | U176: 1.088018564e-14 | V176: 1.088018564e-14 | W176: 1.088018564e-14 | X176: 1.088018564e-14 | Y176: 1.088018564e-14 | Z176: 1.088018564e-14 | AA176: 0 | AB176: 0 | AC176: 0 | AD176: 0 | AE176: 0
A177: =ROW() -> 177 | C177: SCADA & Communications | J177: =D_Input!I34 -> 18.83290939 | K177: 16.98654573 | L177: 15.14018206 | M177: 13.2938184 | N177: 11.44745473 | O177: 9.601091063 | P177: 7.754727397 | Q177: 5.908363731 | R177: 4.062000065 | S177: 2.215636399 | T177: 0.3692727332 | U177: 0 | V177: 0 | W177: 0 | X177: 0 | Y177: 0 | Z177: 0 | AA177: 0 | AB177: 0 | AC177: 0 | AD177: 0 | AE177: 0
A178: =ROW() -> 178 | C178: Other Distribution Non-Network | J178: =D_Input!I35 -> 75.21440565 | K178: 68.55826355 | L178: 61.90212146 | M178: 55.24597937 | N178: 48.58983728 | O178: 41.93369518 | P178: 35.27755309 | Q178: 28.56379738 | R178: 21.90765529 | S178: 15.2515132 | T178: 5.547344811 | U178: 0 | V178: 0 | W178: 0 | X178: 0 | Y178: 0 | Z178: 0 | AA178: 0 | AB178: 0 | AC178: 0 | AD178: 0 | AE178: 0
A179: =ROW() -> 179 | C179: Distribution Land & Easements | J179: =D_Input!I36 -> 31.45179255 | K179: 31.17695118 | L179: 31.17695118 | M179: 31.17695118 | N179: 31.17695118 | O179: 31.17568041 | P179: 29.64365072 | Q179: 28.64389373 | R179: 28.6069806 | S179: 24.44744014 | T179: 24.44744014 | U179: 24.08982599 | V179: 23.27491511 | W179: 22.63013549 | X179: 22.63013549 | Y179: 22.51094821 | Z179: 22.39408663 | AA179: 22.39408663 | AB179: 22.39408663 | AC179: 22.39408663 | AD179: 22.39408663 | AE179: 22.39408663
A180: =ROW() -> 180 | C180: Equity Raising Costs | J180: =D_Input!I37 -> 0 | K180: 0 | L180: 0 | M180: 0 | N180: 0 | O180: 0 | P180: 0 | Q180: 0 | R180: 0 | S180: 0 | T180: 0 | U180: 0 | V180: 0 | W180: 0 | X180: 0 | Y180: 0 | Z180: 0 | AA180: 0 | AB180: 0 | AC180: 0 | AD180: 0 | AE180: 0
A181: =ROW() -> 181 | C181: Standalone Power Systems | J181: =D_Input!I38 -> 0 | K181: 0 | L181: 0 | M181: 0 | N181: 0 | O181: 0 | P181: 0 | Q181: 0 | R181: 0 | S181: 0 | T181: 0 | U181: 0 | V181: 0 | W181: 0 | X181: 0 | Y181: 0 | Z181: 0 | AA181: 0 | AB181: 0 | AC181: 0 | AD181: 0 | AE181: 0
A182: =ROW() -> 182 | C182: Storage | J182: =D_Input!I39 -> 0 | K182: 0 | L182: 0 | M182: 0 | N182: =N122+N137+N152+N167 -> 0 | O182: 0 | P182: 0 | Q182: 0 | R182: 0 | S182: 0 | T182: 0 | U182: 0 | V182: 0 | W182: 0 | X182: 0 | Y182: 0 | Z182: 0 | AA182: 0 | AB182: 0 | AC182: 0 | AD182: 0 | AE182: 0
A183: =ROW() -> 183 | C183: Total | J183: =SUM(J170:J182) -> 2341.426337 | K183: =SUM(K170:K182) -> 2192.750595 | L183: =SUM(L170:L182) -> 2050.141847 | M183: 1909.320899 | N183: 1767.968409 | O183: 1628.290518 | P183: 1486.449633 | Q183: 1348.009819 | R183: 1214.588252 | S183: 1076.554119 | T183: 962.8141019 | U183: 861.4761123 | V183: 761.6708066 | W183: 661.5819047 | X183: 574.7159328 | Y183: 521.5449403 | Z183: 483.8427864 | AA183: 446.2334977 | AB183: 424.9350348 | AC183: 403.636572 | AD183: 382.3381091 | AE183: 361.0396462
A184: =ROW() -> 184
A185: =ROW() -> 185 | B185: Capital Expenditure | J185: 2006 | K185: =J185+1 -> 2007 | L185: 2008 | M185: 2009 | N185: 2010 | O185: 2011 | P185: 2012 | Q185: 2013 | R185: 2014 | S185: 2015 | T185: 2016 | U185: 2017 | V185: 2018 | W185: 2019 | X185: 2020 | Y185: 2021 | Z185: 2022 | AA185: 2023 | AB185: 2024 | AC185: 2025 | AD185: 2026 | AE185: 2027
A186: =ROW() -> 186 | B186: Project Year | J186: 0 | K186: 1 | L186: 2 | M186: 3 | N186: 4 | O186: 5 | P186: 6 | Q186: 7 | R186: 8 | S186: 9 | T186: 10 | U186: 11 | V186: 12 | W186: 13 | X186: 14 | Y186: 15 | Z186: 16 | AA186: 17 | AB186: 18 | AC186: 19 | AD186: 20 | AE186: 21
A187: =ROW() -> 187 | B187: Opening Value
A188: =ROW() -> 188 | C188: Wooden Pole Lines | K188: =J248 -> 0 | L188: 115.2944154 | M188: 254.544402 | N188: 447.6472926 | O188: 620.7499867 | P188: 780.7485399 | Q188: 1033.608534 | R188: 1384.396121 | S188: 1793.609466 | T188: 2096.813191 | U188: 2286.54837 | V188: 2345.278229 | W188: 2440.269935 | X188: 2529.750211 | Y188: 2641.815792 | Z188: 2759.182888 | AA188: 2816.161883 | AB188: 2886.855754 | AC188: 2955.537017 | AD188: 3010.238709 | AE188: 3064.297151
A189: =ROW() -> 189 | C189: Underground Cables | K189: 0 | L189: 220.1826275 | M189: 429.2361801 | N189: 713.6389113 | O189: 867.9718101 | P189: 1002.575713 | Q189: 1105.391325 | R189: 1171.560198 | S189: 1216.467685 | T189: 1259.229211 | U189: 1297.90847 | V189: 1330.851824 | W189: 1336.086657 | X189: 1345.572814 | Y189: 1363.396662 | Z189: 1383.872778 | AA189: 1394.743327 | AB189: 1491.64676 | AC189: 1584.753429 | AD189: 1676.133859 | AE189: 1763.766027
A190: =ROW() -> 190 | C190: Transformers | K190: 0 | L190: 71.8367733 | M190: 140.288706 | N190: 238.1212342 | O190: 290.3441462 | P190: 339.9084446 | Q190: 383.8455992 | R190: 522.2822212 | S190: 638.9686419 | T190: 765.4025076 | U190: 870.8311356 | V190: 944.1912444 | W190: 971.5423666 | X190: 1013.069352 | Y190: 1047.567132 | Z190: 1081.318562 | AA190: 1136.573026 | AB190: 1109.423631 | AC190: 1082.06852 | AD190: 1054.503717 | AE190: 1026.349174
A191: =ROW() -> 191 | C191: Switchgear | K191: 0 | L191: 55.3989529 | M191: 118.2589073 | N191: 207.6967748 | O191: 263.8356028 | P191: 317.8176951 | Q191: 384.4225017 | R191: 456.1769432 | S191: 521.4985832 | T191: 587.1781894 | U191: 634.1497921 | V191: 664.1787739 | W191: 673.8632756 | X191: 690.2991925 | Y191: 700.788408 | Z191: 713.5110611 | AA191: 740.8992445 | AB191: 736.8155409 | AC191: 733.660957 | AD191: 730.9145985 | AE191: 726.4447151
A192: =ROW() -> 192 | C192: Street lighting | K192: 0 | L192: 21.68876188 | M192: 42.43897181 | N192: 72.55942212 | O192: 86.51968335 | P192: 99.99849652 | Q192: 109.8440718 | R192: 109.4843959 | S192: 108.4180748 | T192: 108.3683218 | U192: 108.1137572 | V192: 106.1846129 | W192: 101.4897603 | X192: 97.21199532 | Y192: 92.47127323 | Z192: 88.11143135 | AA192: 84.31638899 | AB192: 87.16213346 | AC192: 90.18436878 | AD192: 93.11920479 | AE192: 94.94572007
A193: =ROW() -> 193 | C193: Meters and Services | K193: 0 | L193: 13.70419083 | M193: 28.72743512 | N193: 45.09288741 | O193: 57.88240511 | P193: 75.57456675 | Q193: 93.25549131 | R193: 103.1453474 | S193: 108.8066285 | T193: 114.6319943 | U193: 130.4321372 | V193: 141.1304722 | W193: 147.4595728 | X193: 163.1445619 | Y193: 182.0462343 | Z193: 188.0822358 | AA193: 193.3796684 | AB193: 246.015211 | AC193: 291.8084003 | AD193: 340.9301329 | AE193: 376.9627703
A194: =ROW() -> 194 | C194: IT&T | K194: 0 | L194: 22.97988895 | M194: 62.147599 | N194: 82.45178655 | O194: 90.85086181 | P194: 107.568894 | Q194: 129.912527 | R194: 136.0201826 | S194: 129.3068389 | T194: 125.9552118 | U194: 109.9097038 | V194: 111.5486769 | W194: 113.1734438 | X194: 115.3718706 | Y194: 117.0882104 | Z194: 112.4120351 | AA194: 114.542521 | AB194: 100.9934608 | AC194: 92.88459682 | AD194: 83.19656971 | AE194: 77.84554668
A195: =ROW() -> 195 | C195: SCADA & Communications | K195: 0 | L195: 2.961380796 | M195: 5.563886245 | N195: 7.882574545 | O195: 11.48547662 | P195: 14.06299418 | Q195: 17.8157316 | R195: 19.72204344 | S195: 19.99948585 | T195: 18.37471563 | U195: 15.89129476 | V195: 13.5226465 | W195: 20.30840571 | X195: 24.18666593 | Y195: 39.05427427 | Z195: 55.83656788 | AA195: 66.76613726 | AB195: 84.60062656 | AC195: 99.8482368 | AD195: 116.3549576 | AE195: 135.5711265
A196: =ROW() -> 196 | C196: Other Distribution Non-Network | K196: 0 | L196: 11.60019425 | M196: 21.00835313 | N196: 47.30218258 | O196: 57.55497518 | P196: 77.17833692 | Q196: 95.21327852 | R196: 105.9714733 | S196: 94.79944453 | T196: 90.37670384 | U196: 85.68037762 | V196: 70.11806977 | W196: 69.26725814 | X196: 72.0841717 | Y196: 84.46166819 | Z196: 76.80313337 | AA196: 104.3650918 | AB196: 129.184887 | AC196: 153.7128782 | AD196: 184.041252 | AE196: 197.8804025
A197: =ROW() -> 197 | C197: Distribution Land & Easements | K197: 0 | L197: 0 | M197: 0 | N197: 0 | O197: 0 | P197: 0 | Q197: 0 | R197: 0 | S197: 0 | T197: 0 | U197: 0 | V197: 0 | W197: 7.468690973 | X197: 19.51936937 | Y197: 36.75097846 | Z197: 42.13039597 | AA197: 69.56112019 | AB197: 69.56112019 | AC197: 69.56112019 | AD197: 69.56112019 | AE197: 69.56112019
A198: =ROW() -> 198 | C198: Equity Raising Costs | K198: 0 | L198: 0 | M198: 0 | N198: 0 | O198: 0 | P198: 0 | Q198: 0 | R198: 6.727830756 | S198: 11.92003422 | T198: 15.79486814 | U198: 16.97478732 | V198: 16.56936806 | W198: 16.15538231 | X198: 15.74139655 | Y198: 15.32741079 | Z198: 14.91342503 | AA198: 14.49943928 | AB198: 14.08545352 | AC198: 13.67146776 | AD198: 13.257482 | AE198: 12.84349625
A199: =ROW() -> 199 | C199: Standalone Power Systems | K199: 0 | L199: 0 | M199: 0 | N199: 0 | O199: 0 | P199: 0 | Q199: 0 | R199: 0 | S199: 0 | T199: 0 | U199: 0 | V199: 0 | W199: 0 | X199: 0 | Y199: 0 | Z199: 23.561896 | AA199: 44.55153617 | AB199: 97.27854631 | AC199: 151.7753432 | AD199: 206.4747899 | AE199: 255.2037729
A200: =ROW() -> 200 | C200: Storage | K200: 0 | L200: 0 | M200: 0 | N200: =M260 -> 0 | O200: 0 | P200: 0 | Q200: 0 | R200: 0 | S200: 0 | T200: 0 | U200: 0 | V200: 0 | W200: 0 | X200: 0 | Y200: 0 | Z200: 0 | AA200: 0 | AB200: 0.002392020028 | AC200: 0.004629781771 | AD200: 0.006808565537 | AE200: 0.008872313489
... 379 more rows

Sheet D_Tax_Asset
B1: =Information!$A$1 -> ERA Western Power AA5 Revenue Model, September 2022 [Draft Decision]
B2: Distribution Tax Asset
B3: =COLUMN() -> 2 | C3: =COLUMN() -> 3 | D3: =COLUMN() -> 4 | E3: =COLUMN() -> 5 | F3: =COLUMN() -> 6 | G3: =COLUMN() -> 7 | H3: =COLUMN() -> 8 | I3: =COLUMN() -> 9 | J3: =COLUMN() -> 10 | K3: =COLUMN() -> 11 | L3: =COLUMN() -> 12 | M3: =COLUMN() -> 13 | N3: =COLUMN() -> 14 | O3: =COLUMN() -> 15 | P3: =COLUMN() -> 16 | Q3: =COLUMN() -> 17 | R3: =COLUMN() -> 18 | S3: =COLUMN() -> 19 | T3: =COLUMN() -> 20 | U3: =COLUMN() -> 21 | V3: =COLUMN() -> 22 | W3: =COLUMN() -> 23 | X3: =COLUMN() -> 24 | Y3: =COLUMN() -> 25 | Z3: =COLUMN() -> 26 | AA3: =COLUMN() -> 27 | AB3: =COLUMN() -> 28 | AC3: =COLUMN() -> 29 | AD3: =COLUMN() -> 30 | AE3: =COLUMN() -> 31
A4: =ROW() -> 4 | B4: Year Ending 30 June | J4: 2006 | K4: =J4+1 -> 2007 | L4: =K4+1 -> 2008 | M4: 2009 | N4: 2010 | O4: 2011 | P4: 2012 | Q4: 2013 | R4: 2014 | S4: 2015 | T4: 2016 | U4: 2017 | V4: 2018 | W4: 2019 | X4: 2020 | Y4: 2021 | Z4: 2022 | AA4: 2023 | AB4: =AA4+1 -> 2024 | AC4: 2025 | AD4: 2026 | AE4: 2027
A5: =ROW() -> 5 | B5: Project Year | J5: 0 | K5: =J5+1 -> 1 | L5: 2 | M5: 3 | N5: 4 | O5: 5 | P5: 6 | Q5: 7 | R5: 8 | S5: 9 | T5: 10 | U5: 11 | V5: 12 | W5: 13 | X5: 14 | Y5: 15 | Z5: 16 | AA5: 17 | AB5: 18 | AC5: 19 | AD5: 20 | AE5: 21
A6: =ROW() -> 6 | B6: Regulatory Period | K6: AA1 | N6: AA2 | Q6: AA3 | V6: AA4 | AA6: AA5
A7: =ROW() -> 7 | B7: Distribution TAB Summary [$M Nominal]
A8: =ROW() -> 8 | C8: Opening Asset Value | Q8: =P13 -> 3127.69238 | R8: 3667.466852 | S8: 4178.603365 | T8: 4617.021714 | U8: 4915.943423 | V8: 5068.680953 | W8: 5162.296121 | X8: 5301.343245 | Y8: 5482.70078 | Z8: 5666.500643 | AA8: 5890.882734 | AB8: 6134.94135 | AC8: 6385.339573 | AD8: 6644.10105 | AE8: 6875.871394
A9: =ROW() -> 9 | C9: Capex | Q9: =Q45 -> 630.1253683 | R9: 642.3267112 | S9: 600.3744449 | T9: 488.6057826 | U9: 357.433 | V9: 316.5041748 | W9: 373.5021014 | X9: 427.3285299 | Y9: 446.5968528 | Z9: 502.885092 | AA9: 546.8307097 | AB9: 568.6632793 | AC9: 600.1991445 | AD9: 597.6871858 | AE9: 616.8072733
A10: =ROW() -> 10 | C10: Depreciation | Q10: =Q60 -> -85.96124891 | R10: -130.4177799 | S10: -157.1670956 | T10: -186.9263104 | U10: -204.0774872 | V10: -217.5304889 | W10: -227.5872255 | X10: -241.4125561 | Y10: -261.1849898 | Z10: -276.8253349 | AA10: -302.7720933 | AB10: -318.265056 | AC10: -341.4376674 | AD10: -365.9168426 | AE10: -385.0406087
A11: =ROW() -> 11 | C11: Accelerated Depreciation | Q11: =Q75 -> -3.527651643 | R11: -0.487418768 | S11: 0 | T11: 0 | U11: 0 | V11: -3.915517539 | W11: -6.280751515 | X11: -3.962439563 | Y11: 0 | Z11: 0 | AA11: 0 | AB11: 0 | AC11: 0 | AD11: 0 | AE11: 0
A12: =ROW() -> 12 | C12: Redundant Asset | Q12: =Q90 -> -0.86199603 | R12: -0.285 | S12: -4.789 | T12: -2.757763012 | U12: -0.6179830525 | V12: -1.443 | W12: -0.587 | X12: -0.596 | Y12: -1.612 | Z12: -1.677666105 | AA12: 0 | AB12: 0 | AC12: 0 | AD12: 0 | AE12: 0
A13: =ROW() -> 13 | C13: Closing Asset Value | P13: =P105 -> 3127.69238 | Q13: =SUM(Q8:Q12) -> 3667.466852 | R13: 4178.603365 | S13: 4617.021714 | T13: 4915.943423 | U13: 5068.680953 | V13: 5162.296121 | W13: 5301.343245 | X13: 5482.70078 | Y13: 5666.500643 | Z13: 5890.882734 | AA13: =SUM(AA8:AA12) -> 6134.94135 | AB13: =SUM(AB8:AB12) -> 6385.339573 | AC13: =SUM(AC8:AC12) -> 6644.10105 | AD13: =SUM(AD8:AD12) -> 6875.871394 | AE13: =SUM(AE8:AE12) -> 7107.638058
A14: =ROW() -> 14
A15: =ROW() -> 15 | B15: Distribution TAB by asset categories [$M Nominal]
A16: =ROW() -> 16 | B16: Opening Value
A17: =ROW() -> 17 | C17: Wooden Pole Lines | Q17: =P92 -> 2747.935154 | R17: 2994.356195 | S17: 3292.8427 | T17: 3498.190705 | U17: 3606.189309 | V17: 3604.487165 | W17: 3634.431758 | X17: 3661.802966 | Y17: 3710.458915 | Z17: 3773.510092 | AA17: 3786.450362 | AB17: 3815.374229 | AC17: 3847.03868 | AD17: 3868.558477 | AE17: 3894.582499
A18: =ROW() -> 18 | C18: Underground Cables | Q18: 110.2319941 | R18: 179.4990142 | S18: 229.7371471 | T18: 278.1400787 | U18: 322.8160004 | V18: 362.8928375 | W18: 377.3218156 | X18: 396.4311439 | Y18: 423.2478332 | Z18: 453.9512215 | AA18: 477.4241038 | AB18: 588.5878128 | AC18: 697.215989 | AD18: 805.6441266 | AE18: 911.7499779
A19: =ROW() -> 19 | C19: Transformers | Q19: 32.22184132 | R19: 153.9053484 | S19: 258.5284966 | T19: 371.5951349 | U19: 465.791876 | V19: 532.7271589 | W19: 558.3763491 | X19: 597.9348627 | Y19: 632.0951365 | Z19: 669.690157 | AA19: 734.0059246 | AB19: 712.0522729 | AC19: 691.7912185 | AD19: 673.1647352 | AE19: 655.6962023
A20: =ROW() -> 20 | C20: Switchgear | Q20: 25.6890398 | R20: 93.46223398 | S20: 154.7566666 | T20: 215.1781421 | U20: 258.0606484 | V20: 286.0037135 | W20: 295.8475168 | X20: 312.5146186 | Y20: 324.256761 | Z20: 339.9902612 | AA20: 372.9962413 | AB20: 372.8208549 | AC20: 375.0269912 | AD20: 379.0596055 | AE20: 382.5342572
A21: =ROW() -> 21 | C21: Street lighting | Q21: 35.1250608 | R21: 37.92311141 | S21: 39.20352392 | T21: 41.14386387 | U21: 42.57013161 | V21: 42.31108532 | W21: 39.85183858 | X21: 37.99487298 | Y21: 35.82510698 | Z21: 34.31198106 | AA21: 33.70148433 | AB21: 39.80433914 | AC21: 45.90448615 | AD21: 51.81446633 | AE21: 58.35108889
A22: =ROW() -> 22 | C22: Meters and Services | Q22: 3.246493062 | R22: 14.64795901 | S22: 22.44482288 | T22: 32.45883396 | U22: 53.02987157 | V22: 70.26423491 | W22: 78.60484921 | X22: 96.20532718 | Y22: 116.848723 | Z22: 126.8153407 | AA22: 138.5912117 | AB22: 198.8686644 | AC22: 254.0670822 | AD22: 315.4549067 | AE22: 365.2378561
A23: =ROW() -> 23 | C23: IT&T | Q23: 31.47250339 | R23: 48.31992562 | S23: 44.28630381 | T23: 46.00712352 | U23: 34.98395044 | V23: 44.86143302 | W23: 48.01952146 | X23: 53.06675956 | Y23: 58.87290619 | Z23: 59.95953689 | AA23: 66.88368555 | AB23: 49.03670447 | AC23: 42.38469904 | AD23: 39.6484189 | AE23: 42.46808529
A24: =ROW() -> 24 | C24: SCADA & Communications | Q24: 15.86631549 | R24: 17.21336342 | S24: 17.08963369 | T24: 16.97425718 | U24: 17.92557518 | V24: 19.82169978 | W24: 21.99850997 | X24: 23.85832349 | Y24: 35.15544785 | Z24: 46.52038306 | AA24: 50.77577991 | AB24: 66.73754273 | AC24: 80.73512553 | AD24: 96.89690661 | AE24: 117.0292558
A25: =ROW() -> 25 | C25: Other Distribution Non-Network | Q25: 107.6731485 | R25: 107.4330772 | S25: 97.66634887 | T25: 98.57906766 | U25: 96.98994553 | V25: 89.96486629 | W25: 87.61183608 | X25: 91.49081873 | Y25: 100.4359416 | Z25: 89.09406401 | AA25: 112.0525505 | AB25: 122.3737016 | AC25: 130.9753165 | AD25: 144.1948306 | AE25: 136.8475663
A26: =ROW() -> 26 | C26: Distribution Land & Easements | Q26: 18.23082961 | R26: 17.4158017 | S26: 17.3848017 | T26: 13.8388017 | U26: 13.8388017 | V26: 13.52486129 | W26: 19.48740808 | X26: 29.87120808 | Y26: 45.50400808 | Z26: 50.45972062 | AA26: 77.77358326 | AB26: 77.77358326 | AC26: 77.77358326 | AD26: 77.77358326 | AE26: 77.77358326
A27: =ROW() -> 27 | C27: Equity Raising Costs | Q27: 0 | R27: 3.290821579 | S27: 4.662919662 | T27: 4.915704917 | U27: 3.747313622 | V27: 1.821897697 | W27: 0.7447185157 | X27: 0.1723443851 | Y27: -5.551115123e-16 | Z27: -5.551115123e-16 | AA27: -5.551115123e-16 | AB27: -5.551115123e-16 | AC27: -5.551115123e-16 | AD27: -5.551115123e-16 | AE27: -5.551115123e-16
A28: =ROW() -> 28 | C28: Standalone Power Systems | Q28: 0 | R28: 0 | S28: 0 | T28: 0 | U28: 0 | V28: 0 | W28: 0 | X28: 0 | Y28: 0 | Z28: 22.19788457 | AA28: 40.2278068 | AB28: 91.50918228 | AC28: 142.4219331 | AD28: 191.8847813 | AE28: 233.5933299
A29: =ROW() -> 29 | C29: Storage | Q29: 0 | R29: 0 | S29: 0 | T29: 0 | U29: 0 | V29: 0 | W29: 0 | X29: 0 | Y29: 0 | Z29: 0 | AA29: 0 | AB29: 0.002462823821 | AC29: 0.004469243102 | AD29: 0.006212624381 | AE29: 0.007691883189
A30: =ROW() -> 30 | C30: Total | Q30: =SUM(Q17:Q29) -> 3127.69238 | R30: =SUM(R17:R29) -> 3667.466852 | S30: 4178.603365 | T30: 4617.021714 | U30: 4915.943423 | V30: 5068.680953 | W30: 5162.296121 | X30: 5301.343245 | Y30: 5482.70078 | Z30: 5666.500643 | AA30: 5890.882734 | AB30: 6134.94135 | AC30: 6385.339573 | AD30: 6644.10105 | AE30: 6875.871394
A31: =ROW() -> 31 | B31: Capex (Actual AA1, AA2, AA3 & Forecast AA4)
A32: =ROW() -> 32 | C32: Wooden Pole Lines | Q32: =Q202 -> 307.6323587 | R32: 372.5195116 | S32: 295.0871513 | T32: 208.1451271 | U32: 105.0464079 | V32: 142.5399403 | W32: 145.0795934 | X32: 169.486418 | Y32: 185.2327667 | Z32: 140.4983011 | AA32: 159.6311878 | AB32: 166.231444 | AC32: 160.0682658 | AD32: 168.1030928 | AE32: 174.7780512
A33: =ROW() -> 33 | C33: Underground Cables | Q33: 69.71205692 | R33: 55.20467582 | S33: 55.43454741 | T33: 53.722517 | U33: 50.9775351 | V33: 27.01758861 | W33: 32.35993691 | X33: 40.91651002 | Y33: 45.96071559 | Z33: 40.04318419 | AA33: 128.7577651 | AB33: 130.7536197 | AC33: 134.9835471 | AD33: 137.0832253 | AE33: 142.3294092
A34: =ROW() -> 34 | C34: Transformers | Q34: 122.5480783 | R34: 111.6438702 | S34: 125.2541628 | T34: 112.0742557 | U34: 89.55495697 | V34: 52.06811839 | W34: 68.2568746 | X34: 64.28338075 | Y34: 68.80769309 | Z34: 97.44693997 | AA34: 14.43205789 | AB34: 15.0657214 | AC34: 15.72598853 | AD34: 15.99136364 | AE34: 16.72576844
A35: =ROW() -> 35 | C35: Switchgear | Q35: 68.1170679 | R35: 66.70591912 | S35: 69.94064594 | T35: 56.48263821 | U35: 44.45023955 | V35: 28.5156752 | W35: 36.3417073 | X35: 32.41925824 | Y35: 36.946268 | Z35: 55.32256823 | AA35: 24.39652078 | AB35: 26.82127129 | AC35: 28.84974548 | AD35: 28.6155442 | AE35: 30.51801886
A36: =ROW() -> 36 | C36: Street lighting | Q36: 4.893438222 | R36: 4.679023215 | S36: 5.836015557 | T36: 5.932678774 | U36: 4.77386046 | V36: 2.895677466 | W36: 3.526615985 | X36: 3.322777117 | Y36: 4.046672013 | Z36: 5.104108028 | AA36: 12.09261696 | AB36: 13.26018008 | AC36: 14.23992313 | AD36: 14.14900796 | AE36: 15.07337687
A37: =ROW() -> 37 | C37: Meters and Services | Q37: 11.40865 | R37: 8.83785 | S37: 11.68715 | T37: 23.055 | U37: 21.373 | V37: 13.86799455 | W37: 23.8051019 | X37: 28.26605246 | Y37: 19.2507406 | Z37: 21.86731784 | AA37: 71.32096377 | AB37: 71.07411954 | AC37: 81.68939431 | AD37: 75.00553959 | AE37: 71.15497624
A38: =ROW() -> 38 | C38: IT&T | Q38: 18.72 | R38: 13.033 | S38: 20.512 | T38: 12.401 | U38: 30.948 | V38: 26.88127146 | W38: 30.33899883 | X38: 33.11458891 | Y38: 32.4573338 | Z38: 38.58399657 | AA38: 17.49104913 | AB38: 19.93600861 | AC38: 20.48465275 | AD38: 25.05537562 | AE38: 24.80286339
A39: =ROW() -> 39 | C39: SCADA & Communications | Q39: 3.34735 | R39: 2.70515 | S39: 2.67785 | T39: 3.702 | U39: 5.064 | V39: 5.985908819 | W39: 6.366272503 | X39: 16.43754436 | Y39: 19.0267784 | Z39: 14.45222538 | AA39: 27.09730307 | AB39: 27.63555462 | AC39: 32.59633814 | AD39: 39.9092297 | AE39: 42.89417354
A40: =ROW() -> 40 | C40: Other Distribution Non-Network | Q40: 18.26166567 | R40: 2.517 | S40: 10.415 | T40: 11.76074797 | U40: 5.245 | V40: 10.0392 | W40: 16.4562 | X40: 23.4492 | Y40: 7.602 | Z40: 41.14608634 | AA40: 34.96369932 | AB40: 34.768886 | AC40: 43.10621276 | AD40: 26.47889911 | AE40: 26.36185807
A41: =ROW() -> 41 | C41: Distribution Land & Easements | Q41: =Q211 -> 0 | R41: 0 | S41: 0 | T41: 0 | U41: 0 | V41: 6.6928 | W41: 10.9708 | X41: 15.6328 | Y41: 5.068 | Z41: 27.43072422 | AA41: 0 | AB41: 0 | AC41: 0 | AD41: 0 | AE41: 0
A42: =ROW() -> 42 | C42: Equity Raising Costs | Q42: 5.484702631 | R42: 4.480711191 | S42: 3.529921867 | T42: 1.329817786 | U42: 0 | V42: 0 | W42: 0 | X42: 0 | Y42: 0 | Z42: 0 | AA42: 0 | AB42: 0 | AC42: 0 | AD42: 0 | AE42: 0
A43: =ROW() -> 43 | C43: Standalone Power Systems | Q43: 0 | R43: 0 | S43: 0 | T43: 0 | U43: 0 | V43: 0 | W43: 0 | X43: 0 | Y43: 22.19788457 | Z43: 20.98964017 | AA43: 56.64508306 | AB43: 63.1139751 | AC43: 68.45243927 | AD43: 67.29318608 | AE43: 72.16598211
A44: =ROW() -> 44 | C44: Storage | Q44: 0 | R44: 0 | S44: 0 | T44: 0 | U44: 0 | V44: 0 | W44: 0 | X44: 0 | Y44: 0 | Z44: 0 | AA44: 0.002462823821 | AB44: 0.002498984045 | AC44: 0.002637229899 | AD44: 0.002721783685 | AE44: 0.00279530183
A45: =ROW() -> 45 | C45: Total | Q45: =SUM(Q32:Q44) -> 630.1253683 | R45: =SUM(R32:R44) -> 642.3267112 | S45: 600.3744449 | T45: 488.6057826 | U45: 357.433 | V45: 316.5041748 | W45: 373.5021014 | X45: 427.3285299 | Y45: 446.5968528 | Z45: 502.885092 | AA45: 546.8307097 | AB45: 568.6632793 | AC45: 600.1991445 | AD45: 597.6871858 | AE45: 616.8072733
A46: =ROW() -> 46 | B46: Depreciation
A47: =ROW() -> 47 | C47: Wooden Pole Lines | Q47: =Q124+Q217 -> -58.5655787 | R47: -73.41344329 | S47: -88.49614579 | T47: -100.0137858 | U47: -106.7485519 | V47: -109.2470678 | W47: -113.3009177 | X47: -117.28747 | Y47: -122.18159 | Z47: -127.5580313 | AA47: -130.7073211 | AB47: -134.566993 | AC47: -138.5484687 | AD47: -142.0790708 | AE47: -145.8098607
A48: =ROW() -> 48 | C48: Underground Cables | Q48: -0.4450368206 | R48: -4.966542944 | S48: -7.03161579 | T48: -9.046595352 | U48: -10.90069801 | V48: -12.58861048 | W48: -13.2506086 | X48: -14.09982073 | Y48: -15.2573273 | Z48: -16.57030183 | AA48: -17.59405612 | AB48: -22.12544347 | AC48: -26.55540951 | AD48: -30.97737401 | AE48: -35.30644706
A49: =ROW() -> 49 | C49: Transformers | Q49: -0.159040855 | R49: -6.923238257 | S49: -12.18752453 | T49: -17.87751465 | U49: -22.61967405 | V49: -26.00518699 | W49: -27.34708236 | X49: -29.43132077 | Y49: -31.21267257 | Z49: -33.13117239 | AA49: -36.38570957 | AB49: -35.32677578 | AC49: -34.35247186 | AD49: -33.45989649 | AE49: -32.62521865
A50: =ROW() -> 50 | C50: Switchgear | Q50: -0.1674911439 | R50: -5.387115588 | S50: -9.519170375 | T50: -13.60013192 | U50: -16.5071745 | V50: -18.42496584 | W50: -19.15260014 | X50: -20.35346096 | Y50: -21.21276779 | Z50: -22.31658814 | AA50: -24.57190715 | AB50: -24.61513507 | AC50: -24.81713116 | AD50: -25.14089245 | AE50: -25.42745624
A51: =ROW() -> 51 | C51: Street lighting | Q51: -2.095387609 | R51: -3.398610707 | S51: -3.89567561 | T51: -4.506411029 | U51: -5.032906757 | V51: -5.3549242 | W51: -5.383581584 | X51: -5.49254312 | Y51: -5.559797935 | Z51: -5.714604761 | AA51: -5.989762146 | AB51: -7.160033071 | AC51: -8.329942954 | AD51: -7.612385403 | AE51: -7.780145185
A52: =ROW() -> 52 | C52: Meters and Services | Q52: -0.007184053835 | R52: -1.040986129 | S52: -1.673138916 | T52: -2.483962393 | U52: -4.138636657 | V52: -5.527380253 | W52: -6.204623925 | X52: -7.622656692 | Y52: -9.284122882 | Z52: -10.09144683 | AA52: -11.04351104 | AB52: -15.87570178 | AC52: -20.30156973 | AD52: -25.22259023 | AE52: -29.21522071
A53: =ROW() -> 53 | C53: IT&T | Q53: -1.872577767 | R53: -17.06662181 | S53: -18.79118029 | T53: -23.42417308 | U53: -21.07051742 | V53: -23.72318302 | W53: -25.29176073 | X53: -27.30844228 | Y53: -31.37070309 | Z53: -31.65984791 | AA53: -35.3380302 | AB53: -26.58801404 | AC53: -23.22093288 | AD53: -22.23570924 | AE53: -22.32723321
A54: =ROW() -> 54 | C54: SCADA & Communications | Q54: -2.000302072 | R54: -2.828879734 | S54: -2.793226512 | T54: -2.750681992 | U54: -3.167875401 | V54: -3.809098633 | W54: -4.506458982 | X54: -5.140419998 | Y54: -7.661843182 | Z54: -10.19682854 | AA54: -11.13554025 | AB54: -13.63797182 | AC54: -16.43455706 | AD54: -19.77688054 | AE54: -23.94959401
A55: =ROW() -> 55 | C55: Other Distribution Non-Network | Q55: -18.45476883 | R55: -12.28372836 | S55: -9.502281203 | T55: -10.72484508 | U55: -11.9660366 | V55: -11.77289257 | W55: -12.57721735 | X55: -14.50407717 | Y55: -17.44416502 | Z55: -16.62679531 | AA55: -24.64254822 | AB55: -26.16727113 | AC55: -29.88669868 | AD55: -33.82616338 | AE55: -31.45211721
A56: =ROW() -> 56 | C56: Distribution Land & Easements | Q56: 0 | R56: 0 | S56: 0 | T56: 0 | U56: 0 | V56: 0 | W56: 0 | X56: 0 | Y56: 0 | Z56: 0 | AA56: 0 | AB56: 0 | AC56: 0 | AD56: 0 | AE56: 0
A57: =ROW() -> 57 | C57: Equity Raising Costs | Q57: -2.193881052 | R57: -3.108613108 | S57: -3.277136611 | T57: -2.498209081 | U57: -1.925415925 | V57: -1.077179181 | W57: -0.5723741306 | X57: -0.1723443851 | Y57: 0 | Z57: 0 | AA57: 0 | AB57: 0 | AC57: 0 | AD57: 0 | AE57: 0
A58: =ROW() -> 58 | C58: Standalone Power Systems | Q58: 0 | R58: 0 | S58: 0 | T58: 0 | U58: 0 | V58: 0 | W58: 0 | X58: 0 | Y58: 0 | Z58: -2.959717943 | AA58: -5.363707574 | AB58: -12.2012243 | AC58: -18.98959108 | AD58: -25.5846375 | AE58: -31.14577731
A59: =ROW() -> 59 | C59: Storage | Q59: 0 | R59: 0 | S59: 0 | T59: 0 | U59: 0 | V59: 0 | W59: 0 | X59: 0 | Y59: 0 | Z59: 0 | AA59: 0 | AB59: -0.0004925647642 | AC59: -0.0008938486204 | AD59: -0.001242524876 | AE59: -0.001538376638
A60: =ROW() -> 60 | C60: Total | Q60: =SUM(Q47:Q59) -> -85.96124891 | R60: =SUM(R47:R59) -> -130.4177799 | S60: -157.1670956 | T60: -186.9263104 | U60: -204.0774872 | V60: -217.5304889 | W60: -227.5872255 | X60: -241.4125561 | Y60: -261.1849898 | Z60: -276.8253349 | AA60: -302.7720933 | AB60: -318.265056 | AC60: -341.4376674 | AD60: -365.9168426 | AE60: -385.0406087
A61: =ROW() -> 61 | B61: Accelerated Depreciation
A62: =ROW() -> 62 | C62: Wooden Pole Lines | Q62: =Q139 -> -2.645738732 | R62: -0.365564076 | S62: 0 | T62: 0 | U62: 0 | V62: -3.254870337 | W62: -4.407467454 | X62: -2.946998526 | Y62: 0 | Z62: 0 | AA62: 0 | AB62: 0 | AC62: 0 | AD62: 0 | AE62: 0
A63: =ROW() -> 63 | C63: Underground Cables | Q63: 0 | R63: 0 | S63: 0 | T63: 0 | U63: 0 | V63: 0 | W63: 0 | X63: 0 | Y63: 0 | Z63: 0 | AA63: 0 | AB63: 0 | AC63: 0 | AD63: 0 | AE63: 0
A64: =ROW() -> 64 | C64: Transformers | Q64: -0.7055303286 | R64: -0.0974837536 | S64: 0 | T64: 0 | U64: 0 | V64: -0.4137411721 | W64: -1.351278658 | X64: -0.6917861905 | Y64: 0 | Z64: 0 | AA64: 0 | AB64: 0 | AC64: 0 | AD64: 0 | AE64: 0
A65: =ROW() -> 65 | C65: Switchgear | Q65: -0.1763825822 | R65: -0.0243709384 | S65: 0 | T65: 0 | U65: 0 | V65: -0.2469060301 | W65: -0.5220054036 | X65: -0.3236548467 | Y65: 0 | Z65: 0 | AA65: 0 | AB65: 0 | AC65: 0 | AD65: 0 | AE65: 0
A66: =ROW() -> 66 | C66: Street lighting | Q66: 0 | R66: 0 | S66: 0 | T66: 0 | U66: 0 | V66: 0 | W66: 0 | X66: 0 | Y66: 0 | Z66: 0 | AA66: 0 | AB66: 0 | AC66: 0 | AD66: 0 | AE66: 0
A67: =ROW() -> 67 | C67: Meters and Services | Q67: 0 | R67: 0 | S67: 0 | T67: 0 | U67: 0 | V67: 0 | W67: 0 | X67: 0 | Y67: 0 | Z67: 0 | AA67: 0 | AB67: 0 | AC67: 0 | AD67: 0 | AE67: 0
A68: =ROW() -> 68 | C68: IT&T | Q68: 0 | R68: 0 | S68: 0 | T68: 0 | U68: 0 | V68: 0 | W68: 0 | X68: 0 | Y68: 0 | Z68: 0 | AA68: 0 | AB68: 0 | AC68: 0 | AD68: 0 | AE68: 0
A69: =ROW() -> 69 | C69: SCADA & Communications | Q69: 0 | R69: 0 | S69: 0 | T69: 0 | U69: 0 | V69: 0 | W69: 0 | X69: 0 | Y69: 0 | Z69: 0 | AA69: 0 | AB69: 0 | AC69: 0 | AD69: 0 | AE69: 0
A70: =ROW() -> 70 | C70: Other Distribution Non-Network | Q70: 0 | R70: 0 | S70: 0 | T70: 0 | U70: 0 | V70: 0 | W70: 0 | X70: 0 | Y70: 0 | Z70: 0 | AA70: 0 | AB70: 0 | AC70: 0 | AD70: 0 | AE70: 0
A71: =ROW() -> 71 | C71: Distribution Land & Easements | Q71: 0 | R71: 0 | S71: 0 | T71: 0 | U71: 0 | V71: 0 | W71: 0 | X71: 0 | Y71: 0 | Z71: 0 | AA71: 0 | AB71: 0 | AC71: 0 | AD71: 0 | AE71: 0
A72: =ROW() -> 72 | C72: Equity Raising Costs | Q72: 0 | R72: 0 | S72: 0 | T72: 0 | U72: 0 | V72: 0 | W72: 0 | X72: 0 | Y72: 0 | Z72: 0 | AA72: 0 | AB72: 0 | AC72: 0 | AD72: 0 | AE72: 0
A73: =ROW() -> 73 | C73: Standalone Power Systems | Q73: 0 | R73: 0 | S73: 0 | T73: 0 | U73: 0 | V73: 0 | W73: 0 | X73: 0 | Y73: 0 | Z73: 0 | AA73: 0 | AB73: 0 | AC73: 0 | AD73: 0 | AE73: 0
A74: =ROW() -> 74 | C74: Storage | Q74: 0 | R74: 0 | S74: 0 | T74: 0 | U74: 0 | V74: 0 | W74: 0 | X74: 0 | Y74: 0 | Z74: 0 | AA74: 0 | AB74: 0 | AC74: 0 | AD74: 0 | AE74: 0
A75: =ROW() -> 75 | C75: Total | Q75: =SUM(Q62:Q74) -> -3.527651643 | R75: =SUM(R62:R74) -> -0.487418768 | S75: 0 | T75: 0 | U75: 0 | V75: -3.915517539 | W75: -6.280751515 | X75: -3.962439563 | Y75: 0 | Z75: 0 | AA75: 0 | AB75: 0 | AC75: 0 | AD75: 0 | AE75: 0
A76: =ROW() -> 76 | B76: Redundant Assets
A77: =ROW() -> 77 | C77: Wooden Pole Lines | Q77: =Q154 -> 0 | R77: -0.254 | S77: -1.243 | T77: -0.13273799 | U77: 0 | V77: -0.09340915512 | W77: 0 | X77: -0.596 | Y77: 0 | Z77: 0 | AA77: 0 | AB77: 0 | AC77: 0 | AD77: 0 | AE77: 0
A78: =ROW() -> 78 | C78: Underground Cables | Q78: 0 | R78: 0 | S78: 0 | T78: 0 | U78: 0 | V78: 0 | W78: 0 | X78: 0 | Y78: 0 | Z78: 0 | AA78: 0 | AB78: 0 | AC78: 0 | AD78: 0 | AE78: 0
A79: =ROW() -> 79 | C79: Transformers | Q79: 0 | R79: 0 | S79: 0 | T79: 0 | U79: 0 | V79: 0 | W79: 0 | X79: 0 | Y79: 0 | Z79: 0 | AA79: 0 | AB79: 0 | AC79: 0 | AD79: 0 | AE79: 0
A80: =ROW() -> 80 | C80: Switchgear | Q80: 0 | R80: 0 | S80: 0 | T80: 0 | U80: 0 | V80: 0 | W80: 0 | X80: 0 | Y80: 0 | Z80: 0 | AA80: 0 | AB80: 0 | AC80: 0 | AD80: 0 | AE80: 0
A81: =ROW() -> 81 | C81: Street lighting | Q81: 0 | R81: 0 | S81: 0 | T81: 0 | U81: 0 | V81: 0 | W81: 0 | X81: 0 | Y81: 0 | Z81: 0 | AA81: 0 | AB81: 0 | AC81: 0 | AD81: 0 | AE81: 0
A82: =ROW() -> 82 | C82: Meters and Services | Q82: 0 | R82: 0 | S82: 0 | T82: 0 | U82: 0 | V82: 0 | W82: 0 | X82: 0 | Y82: 0 | Z82: 0 | AA82: 0 | AB82: 0 | AC82: 0 | AD82: 0 | AE82: 0
A83: =ROW() -> 83 | C83: IT&T | Q83: 0 | R83: 0 | S83: 0 | T83: 0 | U83: 0 | V83: 0 | W83: 0 | X83: 0 | Y83: 0 | Z83: 0 | AA83: 0 | AB83: 0 | AC83: 0 | AD83: 0 | AE83: 0
A84: =ROW() -> 84 | C84: SCADA & Communications | Q84: 0 | R84: 0 | S84: 0 | T84: 0 | U84: 0 | V84: 0 | W84: 0 | X84: 0 | Y84: 0 | Z84: 0 | AA84: 0 | AB84: 0 | AC84: 0 | AD84: 0 | AE84: 0
A85: =ROW() -> 85 | C85: Other Distribution Non-Network | Q85: -0.04696812 | R85: 0 | S85: 0 | T85: -2.625025022 | U85: -0.3040426425 | V85: -0.6193376366 | W85: 0 | X85: 0 | Y85: -1.499712538 | Z85: -1.560804523 | AA85: 0 | AB85: 0 | AC85: 0 | AD85: 0 | AE85: 0
A86: =ROW() -> 86 | C86: Distribution Land & Easements | Q86: -0.81502791 | R86: -0.031 | S86: -3.546 | T86: 0 | U86: -0.31394041 | V86: -0.7302532082 | W86: -0.587 | X86: 0 | Y86: -0.1122874619 | Z86: -0.1168615812 | AA86: 0 | AB86: 0 | AC86: 0 | AD86: 0 | AE86: 0
A87: =ROW() -> 87 | C87: Equity Raising Costs | Q87: 0 | R87: 0 | S87: 0 | T87: 0 | U87: 0 | V87: 0 | W87: 0 | X87: 0 | Y87: 0 | Z87: 0 | AA87: 0 | AB87: 0 | AC87: 0 | AD87: 0 | AE87: 0
A88: =ROW() -> 88 | C88: Standalone Power Systems | Q88: 0 | R88: 0 | S88: 0 | T88: 0 | U88: 0 | V88: 0 | W88: 0 | X88: 0 | Y88: 0 | Z88: 0 | AA88: 0 | AB88: 0 | AC88: 0 | AD88: 0 | AE88: 0
A89: =ROW() -> 89 | C89: Storage | Q89: 0 | R89: 0 | S89: 0 | T89: 0 | U89: 0 | V89: 0 | W89: 0 | X89: 0 | Y89: 0 | Z89: 0 | AA89: 0 | AB89: 0 | AC89: 0 | AD89: 0 | AE89: 0
A90: =ROW() -> 90 | C90: Total | Q90: =SUM(Q77:Q89) -> -0.86199603 | R90: =SUM(R77:R89) -> -0.285 | S90: -4.789 | T90: -2.757763012 | U90: -0.6179830525 | V90: -1.443 | W90: -0.587 | X90: -0.596 | Y90: -1.612 | Z90: -1.677666105 | AA90: 0 | AB90: 0 | AC90: 0 | AD90: 0 | AE90: 0
A91: =ROW() -> 91 | B91: Closing Value
A92: =ROW() -> 92 | C92: Wooden Pole Lines | P92: =P169 -> 2747.935154 | Q92: =Q77+Q62+Q47+Q32+Q17 -> 2994.356195 | R92: 3292.8427 | S92: 3498.190705 | T92: 3606.189309 | U92: 3604.487165 | V92: 3634.431758 | W92: 3661.802966 | X92: 3710.458915 | Y92: 3773.510092 | Z92: 3786.450362 | AA92: 3815.374229 | AB92: 3847.03868 | AC92: 3868.558477 | AD92: 3894.582499 | AE92: 3923.550689
A93: =ROW() -> 93 | C93: Underground Cables | P93: =P170 -> 110.2319941 | Q93: 179.4990142 | R93: 229.7371471 | S93: 278.1400787 | T93: 322.8160004 | U93: 362.8928375 | V93: 377.3218156 | W93: 396.4311439 | X93: 423.2478332 | Y93: 453.9512215 | Z93: 477.4241038 | AA93: 588.5878128 | AB93: 697.215989 | AC93: 805.6441266 | AD93: 911.7499779 | AE93: 1018.77294
A94: =ROW() -> 94 | C94: Transformers | P94: 32.22184132 | Q94: 153.9053484 | R94: 258.5284966 | S94: 371.5951349 | T94: 465.791876 | U94: 532.7271589 | V94: 558.3763491 | W94: 597.9348627 | X94: 632.0951365 | Y94: 669.690157 | Z94: 734.0059246 | AA94: 712.0522729 | AB94: 691.7912185 | AC94: 673.1647352 | AD94: 655.6962023 | AE94: 639.7967521
A95: =ROW() -> 95 | C95: Switchgear | P95: 25.6890398 | Q95: 93.46223398 | R95: 154.7566666 | S95: 215.1781421 | T95: 258.0606484 | U95: 286.0037135 | V95: 295.8475168 | W95: 312.5146186 | X95: 324.256761 | Y95: 339.9902612 | Z95: 372.9962413 | AA95: 372.8208549 | AB95: 375.0269912 | AC95: 379.0596055 | AD95: 382.5342572 | AE95: 387.6248198
A96: =ROW() -> 96 | C96: Street lighting | P96: 35.1250608 | Q96: 37.92311141 | R96: 39.20352392 | S96: 41.14386387 | T96: 42.57013161 | U96: 42.31108532 | V96: 39.85183858 | W96: 37.99487298 | X96: 35.82510698 | Y96: 34.31198106 | Z96: 33.70148433 | AA96: 39.80433914 | AB96: 45.90448615 | AC96: 51.81446633 | AD96: 58.35108889 | AE96: 65.64432057
A97: =ROW() -> 97 | C97: Meters and Services | P97: 3.246493062 | Q97: 14.64795901 | R97: 22.44482288 | S97: 32.45883396 | T97: 53.02987157 | U97: 70.26423491 | V97: 78.60484921 | W97: 96.20532718 | X97: 116.848723 | Y97: 126.8153407 | Z97: 138.5912117 | AA97: 198.8686644 | AB97: 254.0670822 | AC97: 315.4549067 | AD97: 365.2378561 | AE97: 407.1776116
A98: =ROW() -> 98 | C98: IT&T | P98: 31.47250339 | Q98: 48.31992562 | R98: 44.28630381 | S98: 46.00712352 | T98: 34.98395044 | U98: 44.86143302 | V98: 48.01952146 | W98: 53.06675956 | X98: 58.87290619 | Y98: 59.95953689 | Z98: 66.88368555 | AA98: 49.03670447 | AB98: 42.38469904 | AC98: 39.6484189 | AD98: 42.46808529 | AE98: 44.94371546
A99: =ROW() -> 99 | C99: SCADA & Communications | P99: 15.86631549 | Q99: 17.21336342 | R99: 17.08963369 | S99: 16.97425718 | T99: 17.92557518 | U99: 19.82169978 | V99: 21.99850997 | W99: 23.85832349 | X99: 35.15544785 | Y99: 46.52038306 | Z99: 50.77577991 | AA99: 66.73754273 | AB99: 80.73512553 | AC99: 96.89690661 | AD99: 117.0292558 | AE99: 135.9738353
A100: =ROW() -> 100 | C100: Other Distribution Non-Network | P100: 107.6731485 | Q100: 107.4330772 | R100: 97.66634887 | S100: 98.57906766 | T100: 96.98994553 | U100: 89.96486629 | V100: 87.61183608 | W100: 91.49081873 | X100: 100.4359416 | Y100: 89.09406401 | Z100: 112.0525505 | AA100: 122.3737016 | AB100: 130.9753165 | AC100: 144.1948306 | AD100: 136.8475663 | AE100: 131.7573072
A101: =ROW() -> 101 | C101: Distribution Land & Easements | P101: 18.23082961 | Q101: 17.4158017 | R101: 17.3848017 | S101: 13.8388017 | T101: 13.8388017 | U101: 13.52486129 | V101: 19.48740808 | W101: 29.87120808 | X101: 45.50400808 | Y101: 50.45972062 | Z101: 77.77358326 | AA101: 77.77358326 | AB101: 77.77358326 | AC101: 77.77358326 | AD101: 77.77358326 | AE101: 77.77358326
A102: =ROW() -> 102 | C102: Equity Raising Costs | P102: 0 | Q102: 3.290821579 | R102: 4.662919662 | S102: 4.915704917 | T102: 3.747313622 | U102: 1.821897697 | V102: 0.7447185157 | W102: 0.1723443851 | X102: -5.551115123e-16 | Y102: -5.551115123e-16 | Z102: -5.551115123e-16 | AA102: -5.551115123e-16 | AB102: -5.551115123e-16 | AC102: -5.551115123e-16 | AD102: -5.551115123e-16 | AE102: -5.551115123e-16
A103: =ROW() -> 103 | C103: Standalone Power Systems | P103: 0 | Q103: 0 | R103: 0 | S103: 0 | T103: 0 | U103: 0 | V103: 0 | W103: 0 | X103: 0 | Y103: 22.19788457 | Z103: 40.2278068 | AA103: 91.50918228 | AB103: 142.4219331 | AC103: 191.8847813 | AD103: 233.5933299 | AE103: 274.6135346
A104: =ROW() -> 104 | C104: Storage | P104: 0 | Q104: 0 | R104: 0 | S104: 0 | T104: 0 | U104: 0 | V104: 0 | W104: 0 | X104: 0 | Y104: 0 | Z104: 0 | AA104: 0.002462823821 | AB104: 0.004469243102 | AC104: 0.006212624381 | AD104: 0.007691883189 | AE104: 0.008948808381
A105: =ROW() -> 105 | C105: Total | P105: =SUM(P92:P104) -> 3127.69238 | Q105: =SUM(Q92:Q104) -> 3667.466852 | R105: =SUM(R92:R104) -> 4178.603365 | S105: 4617.021714 | T105: 4915.943423 | U105: 5068.680953 | V105: 5162.296121 | W105: 5301.343245 | X105: 5482.70078 | Y105: 5666.500643 | Z105: 5890.882734 | AA105: 6134.94135 | AB105: 6385.339573 | AC105: 6644.10105 | AD105: 6875.871394 | AE105: 7107.638058
A106: =ROW() -> 106
A107: =ROW() -> 107 | B107: Initial Capital Base (ICB) ($M Nominal) | J107: 2006 | K107: =J107+1 -> 2007 | L107: =K107+1 -> 2008 | M107: 2009 | N107: 2010 | O107: 2011 | P107: 2012 | Q107: 2013 | R107: 2014 | S107: 2015 | T107: 2016 | U107: 2017 | V107: 2018 | W107: 2019 | X107: 2020 | Y107: 2021 | Z107: 2022 | AA107: 2023 | AB107: 2024 | AC107: 2025 | AD107: 2026 | AE107: 2027
A108: =ROW() -> 108 | B108: Opening Value
A109: =ROW() -> 109 | C109: Wooden Pole Lines | Q109: =P169 -> 2747.935154 | R109: 2686.723837 | S109: 2626.363379 | T109: 2566.245536 | U109: 2507.518798 | V109: 2449.600046 | W109: 2388.333015 | X109: 2326.006796 | Y109: 2264.545047 | Z109: 2206.626295 | AA109: 2148.707544 | AB109: 2090.788792 | AC109: 2032.870041 | AD109: 1974.95129 | AE109: 1917.032538
A110: =ROW() -> 110 | C110: Underground Cables | Q110: 110.2319941 | R110: 109.7869573 | S110: 107.6088966 | T110: 105.4624109 | U110: 103.3229222 | V110: 101.2019473 | W110: 99.08097246 | X110: 96.95999758 | Y110: 94.8390227 | Z110: 92.71804782 | AA110: 90.59707294 | AB110: 88.47609807 | AC110: 86.35512319 | AD110: 84.23414831 | AE110: 82.11317343
A111: =ROW() -> 111 | C111: Transformers | Q111: 32.22184132 | R111: 31.35727014 | S111: 30.46395204 | T111: 29.67965475 | U111: 28.89791411 | V111: 28.12293815 | W111: 26.93422102 | X111: 24.80796641 | Y111: 23.34120426 | Z111: 22.56622831 | AA111: 21.79125235 | AB111: 21.0162764 | AC111: 20.24130044 | AD111: 19.46632449 | AE111: 18.69134853
A112: =ROW() -> 112 | C112: Switchgear | Q112: 25.6890398 | R112: 25.34516608 | S112: 24.47481741 | T112: 23.64110365 | U112: 22.81010763 | V112: 21.98630252 | W112: 20.91559138 | X112: 19.56978086 | Y112: 18.42232091 | Z112: 17.59851579 | AA112: 16.77471068 | AB112: 15.95090557 | AC112: 15.12710046 | AD112: 14.30329535 | AE112: 13.47949024
A113: =ROW() -> 113 | C113: Street lighting | Q113: 35.1250608 | R113: 33.02967319 | S113: 30.28352091 | T113: 27.57717904 | U113: 24.87965932 | V113: 22.2054822 | W113: 19.53130509 | X113: 16.85712797 | Y113: 14.18295085 | Z113: 11.50877373 | AA113: 8.834596614 | AB113: 6.160419496 | AC113: 3.486242378 | AD113: 0.8120652606 | AE113: 0
A114: =ROW() -> 114 | C114: Meters and Services | Q114: 3.246493062 | R114: 3.239309008 | S114: 3.111014879 | T114: 2.984580603 | U114: 2.858558479 | V114: 2.73362687 | W114: 2.60869526 | X114: 2.48376365 | Y114: 2.358832041 | Z114: 2.233900431 | AA114: 2.108968821 | AB114: 1.984037212 | AC114: 1.859105602 | AD114: 1.734173992 | AE114: 1.609242383
A115: =ROW() -> 115 | C115: IT&T | Q115: 31.47250339 | R115: 29.59992562 | S115: 21.89330381 | T115: 14.29862352 | U115: 6.728700438 | V115: 0.9558080213 | W115: 0 | X115: 0 | Y115: 0 | Z115: 0 | AA115: 0 | AB115: 0 | AC115: 0 | AD115: 0 | AE115: 0
A116: =ROW() -> 116 | C116: SCADA & Communications | Q116: 15.86631549 | R116: 13.86601342 | S116: 11.70660369 | T116: 9.989983175 | U116: 8.636155983 | V116: 7.326164423 | W116: 6.016172862 | X116: 4.706181302 | Y116: 3.396189741 | Z116: 2.086198181 | AA116: 0.7762066202 | AB116: 0 | AC116: 0 | AD116: 0 | AE116: 0
A117: =ROW() -> 117 | C117: Other Distribution Non-Network | Q117: 107.6731485 | R117: 89.17141155 | S117: 80.54001633 | T117: 74.46300163 | U117: 65.93634474 | V117: 59.87698565 | W117: 53.50233157 | X117: 47.74701513 | Y117: 41.99169868 | Z117: 34.7366697 | AA117: 27.42054873 | AB117: 21.66523229 | AC117: 15.90991584 | AD117: 10.1545994 | AE117: 4.399282951
A118: =ROW() -> 118 | C118: Distribution Land & Easements | Q118: 18.23082961 | R118: 17.4158017 | S118: 17.3848017 | T118: 13.8388017 | U118: 13.8388017 | V118: 13.52486129 | W118: 12.79460808 | X118: 12.20760808 | Y118: 12.20760808 | Z118: 12.09532062 | AA118: 11.97845904 | AB118: 11.97845904 | AC118: 11.97845904 | AD118: 11.97845904 | AE118: 11.97845904
A119: =ROW() -> 119 | C119: Equity Raising Costs | Q119: 0 | R119: 0 | S119: 0 | T119: 0 | U119: 0 | V119: 0 | W119: 0 | X119: 0 | Y119: 0 | Z119: 0 | AA119: 0 | AB119: 0 | AC119: 0 | AD119: 0 | AE119: 0
A120: =ROW() -> 120 | C120: Standalone Power Systems | Q120: 0 | R120: 0 | S120: 0 | T120: 0 | U120: 0 | V120: 0 | W120: 0 | X120: 0 | Y120: 0 | Z120: 0 | AA120: 0 | AB120: 0 | AC120: 0 | AD120: 0 | AE120: 0
A121: =ROW() -> 121 | C121: Storage | Q121: 0 | R121: 0 | S121: 0 | T121: 0 | U121: 0 | V121: 0 | W121: 0 | X121: 0 | Y121: 0 | Z121: 0 | AA121: 0 | AB121: 0 | AC121: 0 | AD121: 0 | AE121: 0
A122: =ROW() -> 122 | C122: Total | Q122: =SUM(Q109:Q121) -> 3127.69238 | R122: =SUM(R109:R121) -> 3039.535365 | S122: 2953.830306 | T122: 2868.180875 | U122: 2785.427962 | V122: 2707.534163 | W122: 2629.716913 | X122: 2551.346237 | Y122: 2475.284874 | Z122: 2402.16995 | AA122: 2328.98936 | AB122: 2258.02022 | AC122: 2187.827288 | AD122: 2117.634355 | AE122: 2049.303535
A123: =ROW() -> 123 | B123: Depreciation
A124: =ROW() -> 124 | C124: Wooden Pole Lines | Q124: =D_Input!Q650 -> -58.5655787 | R124: =D_Input!R650 -> -59.74089402 | S124: =D_Input!S650 -> -58.87484263 | T124: =D_Input!T650 -> -58.59400052 | U124: =D_Input!U650 -> -57.91875139 | V124: =-MIN(-$U124,V109) -> -57.91875139 | W124: -57.91875139 | X124: -57.91875139 | Y124: -57.91875139 | Z124: -57.91875139 | AA124: -57.91875139 | AB124: -57.91875139 | AC124: -57.91875139 | AD124: -57.91875139 | AE124: -57.91875139
A125: =ROW() -> 125 | C125: Underground Cables | Q125: =D_Input!Q651 -> -0.4450368206 | R125: =D_Input!R651 -> -2.178060667 | S125: =D_Input!S651 -> -2.146485772 | T125: =D_Input!T651 -> -2.139488638 | U125: =D_Input!U651 -> -2.12097488 | V125: -2.12097488 | W125: -2.12097488 | X125: -2.12097488 | Y125: -2.12097488 | Z125: -2.12097488 | AA125: -2.12097488 | AB125: -2.12097488 | AC125: -2.12097488 | AD125: -2.12097488 | AE125: -2.12097488
A126: =ROW() -> 126 | C126: Transformers | Q126: =D_Input!Q652 -> -0.159040855 | R126: =D_Input!R652 -> -0.7958343418 | S126: =D_Input!S652 -> -0.7842972959 | T126: =D_Input!T652 -> -0.7817406365 | U126: =D_Input!U652 -> -0.7749759559 | V126: -0.7749759559 | W126: -0.7749759559 | X126: -0.7749759559 | Y126: -0.7749759559 | Z126: -0.7749759559 | AA126: -0.7749759559 | AB126: -0.7749759559 | AC126: -0.7749759559 | AD126: -0.7749759559 | AE126: -0.7749759559
A127: =ROW() -> 127 | C127: Switchgear | Q127: =D_Input!Q653 -> -0.1674911439 | R127: =D_Input!R653 -> -0.8459777279 | S127: =D_Input!S653 -> -0.8337137638 | T127: =D_Input!T653 -> -0.8309960161 | U127: =D_Input!U653 -> -0.8238051112 | V127: -0.8238051112 | W127: -0.8238051112 | X127: -0.8238051112 | Y127: -0.8238051112 | Z127: -0.8238051112 | AA127: -0.8238051112 | AB127: -0.8238051112 | AC127: -0.8238051112 | AD127: -0.8238051112 | AE127: -0.8238051112
A128: =ROW() -> 128 | C128: Street lighting | Q128: =D_Input!Q654 -> -2.095387609 | R128: =D_Input!R654 -> -2.746152278 | S128: =D_Input!S654 -> -2.706341876 | T128: =D_Input!T654 -> -2.697519718 | U128: =D_Input!U654 -> -2.674177118 | V128: -2.674177118 | W128: -2.674177118 | X128: -2.674177118 | Y128: -2.674177118 | Z128: -2.674177118 | AA128: -2.674177118 | AB128: -2.674177118 | AC128: -2.674177118 | AD128: -0.8120652606 | AE128: 0
A129: =ROW() -> 129 | C129: Meters and Services | Q129: =D_Input!Q655 -> -0.007184053835 | R129: =D_Input!R655 -> -0.1282941291 | S129: =D_Input!S655 -> -0.1264342757 | T129: =D_Input!T655 -> -0.1260221241 | U129: =D_Input!U655 -> -0.1249316097 | V129: -0.1249316097 | W129: -0.1249316097 | X129: -0.1249316097 | Y129: -0.1249316097 | Z129: -0.1249316097 | AA129: -0.1249316097 | AB129: -0.1249316097 | AC129: -0.1249316097 | AD129: -0.1249316097 | AE129: -0.1249316097
A130: =ROW() -> 130 | C130: IT&T | Q130: =D_Input!Q656 -> -1.872577767 | R130: =D_Input!R656 -> -7.706621811 | S130: =D_Input!S656 -> -7.594680289 | T130: =D_Input!T656 -> -7.569923081 | U130: =D_Input!U656 -> -5.772892417 | V130: -0.9558080213 | W130: 0 | X130: 0 | Y130: 0 | Z130: 0 | AA130: 0 | AB130: 0 | AC130: 0 | AD130: 0 | AE130: 0
A131: =ROW() -> 131 | C131: SCADA & Communications | Q131: =D_Input!Q657 -> -2.000302072 | R131: =D_Input!R657 -> -2.159409734 | S131: =D_Input!S657 -> -1.716620512 | T131: =D_Input!T657 -> -1.353827192 | U131: =D_Input!U657 -> -1.309991561 | V131: -1.309991561 | W131: -1.309991561 | X131: -1.309991561 | Y131: -1.309991561 | Z131: -1.309991561 | AA131: -0.7762066202 | AB131: 0 | AC131: 0 | AD131: 0 | AE131: 0
A132: =ROW() -> 132 | C132: Other Distribution Non-Network | Q132: =D_Input!Q658 -> -18.45476883 | R132: =D_Input!R658 -> -8.631395225 | S132: =D_Input!S658 -> -6.077014696 | T132: =D_Input!T658 -> -5.901631871 | U132: =D_Input!U658 -> -5.755316445 | V132: -5.755316445 | W132: -5.755316445 | X132: -5.755316445 | Y132: -5.755316445 | Z132: -5.755316445 | AA132: -5.755316445 | AB132: -5.755316445 | AC132: -5.755316445 | AD132: -5.755316445 | AE132: -4.399282951
A133: =ROW() -> 133 | C133: Distribution Land & Easements | Q133: =D_Input!Q659 -> 0 | R133: =D_Input!R659 -> 0 | S133: =D_Input!S659 -> 0 | T133: =D_Input!T659 -> 0 | U133: =D_Input!U659 -> 0 | V133: 0 | W133: 0 | X133: 0 | Y133: 0 | Z133: 0 | AA133: 0 | AB133: 0 | AC133: 0 | AD133: 0 | AE133: 0
A134: =ROW() -> 134 | C134: Equity Raising Costs | Q134: =D_Input!Q660 -> 0 | R134: =D_Input!R660 -> 0 | S134: =D_Input!S660 -> 0 | T134: =D_Input!T660 -> 0 | U134: =D_Input!U660 -> 0 | V134: 0 | W134: 0 | X134: 0 | Y134: 0 | Z134: 0 | AA134: 0 | AB134: 0 | AC134: 0 | AD134: 0 | AE134: 0
A135: =ROW() -> 135 | C135: Standalone Power Systems | Q135: =D_Input!Q661 -> 0 | R135: =D_Input!R661 -> 0 | S135: =D_Input!S661 -> 0 | T135: =D_Input!T661 -> 0 | U135: =D_Input!U661 -> 0 | V135: 0 | W135: 0 | X135: 0 | Y135: 0 | Z135: 0 | AA135: 0 | AB135: 0 | AC135: 0 | AD135: 0 | AE135: 0
A136: =ROW() -> 136 | C136: Storage | Q136: =D_Input!Q662 -> 0 | R136: =D_Input!R662 -> 0 | S136: =D_Input!S662 -> 0 | T136: =D_Input!T662 -> 0 | U136: =D_Input!U662 -> 0 | V136: 0 | W136: 0 | X136: 0 | Y136: 0 | Z136: 0 | AA136: 0 | AB136: 0 | AC136: 0 | AD136: 0 | AE136: 0
A137: =ROW() -> 137 | C137: Total | Q137: =SUM(Q124:Q136) -> -83.76736785 | R137: =SUM(R124:R136) -> -84.93263993 | S137: -80.86043111 | T137: -79.9951498 | U137: -77.27581648 | V137: -72.45873209 | W137: -71.50292407 | X137: -71.50292407 | Y137: -71.50292407 | Z137: -71.50292407 | AA137: -70.96913913 | AB137: -70.19293251 | AC137: -70.19293251 | AD137: -68.33082065 | AE137: -66.16272189
A138: =ROW() -> 138 | B138: Accelerated Depreciation
A139: =ROW() -> 139 | C139: Wooden Pole Lines | Q139: =-D_Input!Q1178*D_Input!Q$24 -> -2.645738732 | R139: =-D_Input!R1178*D_Input!R$24 -> -0.365564076 | S139: =-D_Input!S1178*D_Input!S$24 -> 0 | T139: =-D_Input!T1178*D_Input!T$24 -> 0 | U139: =-D_Input!U1178*D_Input!U$24 -> 0 | V139: =-D_Input!V1178*D_Input!V$24 -> -3.254870337 | W139: =-D_Input!W1178*D_Input!W$24 -> -4.407467454 | X139: =-D_Input!X1178*D_Input!X$24 -> -2.946998526 | Y139: =-D_Input!Y1178*D_Input!Y$24 -> 0 | Z139: =-D_Input!Z1178*D_Input!Z$24 -> 0 | AA139: =-D_Input!AA1178*D_Input!AA$24 -> 0 | AB139: =-D_Input!AB1178*D_Input!AB$24 -> 0 | AC139: =-D_Input!AC1178*D_Input!AC$24 -> 0 | AD139: =-D_Input!AD1178*D_Input!AD$24 -> 0 | AE139: =-D_Input!AE1178*D_Input!AE$24 -> 0
A140: =ROW() -> 140 | C140: Underground Cables | Q140: =-D_Input!Q1179*D_Input!Q$24 -> 0 | R140: =-D_Input!R1179*D_Input!R$24 -> 0 | S140: =-D_Input!S1179*D_Input!S$24 -> 0 | T140: =-D_Input!T1179*D_Input!T$24 -> 0 | U140: =-D_Input!U1179*D_Input!U$24 -> 0 | V140: =-D_Input!V1179*D_Input!V$24 -> 0 | W140: =-D_Input!W1179*D_Input!W$24 -> 0 | X140: =-D_Input!X1179*D_Input!X$24 -> 0 | Y140: =-D_Input!Y1179*D_Input!Y$24 -> 0 | Z140: =-D_Input!Z1179*D_Input!Z$24 -> 0 | AA140: =-D_Input!AA1179*D_Input!AA$24 -> 0 | AB140: =-D_Input!AB1179*D_Input!AB$24 -> 0 | AC140: =-D_Input!AC1179*D_Input!AC$24 -> 0 | AD140: =-D_Input!AD1179*D_Input!AD$24 -> 0 | AE140: =-D_Input!AE1179*D_Input!AE$24 -> 0
A141: =ROW() -> 141 | C141: Transformers | Q141: =-D_Input!Q1180*D_Input!Q$24 -> -0.7055303286 | R141: =-D_Input!R1180*D_Input!R$24 -> -0.0974837536 | S141: =-D_Input!S1180*D_Input!S$24 -> 0 | T141: =-D_Input!T1180*D_Input!T$24 -> 0 | U141: =-D_Input!U1180*D_Input!U$24 -> 0 | V141: =-D_Input!V1180*D_Input!V$24 -> -0.4137411721 | W141: =-D_Input!W1180*D_Input!W$24 -> -1.351278658 | X141: =-D_Input!X1180*D_Input!X$24 -> -0.6917861905 | Y141: =-D_Input!Y1180*D_Input!Y$24 -> 0 | Z141: =-D_Input!Z1180*D_Input!Z$24 -> 0 | AA141: =-D_Input!AA1180*D_Input!AA$24 -> 0 | AB141: =-D_Input!AB1180*D_Input!AB$24 -> 0 | AC141: =-D_Input!AC1180*D_Input!AC$24 -> 0 | AD141: =-D_Input!AD1180*D_Input!AD$24 -> 0 | AE141: =-D_Input!AE1180*D_Input!AE$24 -> 0
A142: =ROW() -> 142 | C142: Switchgear | Q142: =-D_Input!Q1181*D_Input!Q$24 -> -0.1763825822 | R142: =-D_Input!R1181*D_Input!R$24 -> -0.0243709384 | S142: =-D_Input!S1181*D_Input!S$24 -> 0 | T142: =-D_Input!T1181*D_Input!T$24 -> 0 | U142: =-D_Input!U1181*D_Input!U$24 -> 0 | V142: =-D_Input!V1181*D_Input!V$24 -> -0.2469060301 | W142: =-D_Input!W1181*D_Input!W$24 -> -0.5220054036 | X142: =-D_Input!X1181*D_Input!X$24 -> -0.3236548467 | Y142: =-D_Input!Y1181*D_Input!Y$24 -> 0 | Z142: =-D_Input!Z1181*D_Input!Z$24 -> 0 | AA142: =-D_Input!AA1181*D_Input!AA$24 -> 0 | AB142: =-D_Input!AB1181*D_Input!AB$24 -> 0 | AC142: =-D_Input!AC1181*D_Input!AC$24 -> 0 | AD142: =-D_Input!AD1181*D_Input!AD$24 -> 0 | AE142: =-D_Input!AE1181*D_Input!AE$24 -> 0
A143: =ROW() -> 143 | C143: Street lighting | Q143: =-D_Input!Q1182*D_Input!Q$24 -> 0 | R143: =-D_Input!R1182*D_Input!R$24 -> 0 | S143: =-D_Input!S1182*D_Input!S$24 -> 0 | T143: =-D_Input!T1182*D_Input!T$24 -> 0 | U143: =-D_Input!U1182*D_Input!U$24 -> 0 | V143: =-D_Input!V1182*D_Input!V$24 -> 0 | W143: =-D_Input!W1182*D_Input!W$24 -> 0 | X143: =-D_Input!X1182*D_Input!X$24 -> 0 | Y143: =-D_Input!Y1182*D_Input!Y$24 -> 0 | Z143: =-D_Input!Z1182*D_Input!Z$24 -> 0 | AA143: =-D_Input!AA1182*D_Input!AA$24 -> 0 | AB143: =-D_Input!AB1182*D_Input!AB$24 -> 0 | AC143: =-D_Input!AC1182*D_Input!AC$24 -> 0 | AD143: =-D_Input!AD1182*D_Input!AD$24 -> 0 | AE143: =-D_Input!AE1182*D_Input!AE$24 -> 0
